Workbook

Sheet Matriz de busqueda de los cod (hidden)
A1: Codigo | C1: Clave
A2: 3070101 | B2: Instalación Monofásica (Toma corriente doble, consumo hasta 2KW/110V) Valor feria de 3 dias | C2: =CONCATENATE(A2:A497," ",B2:B500) -> 3070101 Instalación Monofásica (Toma corriente doble, consumo hasta 2KW/110V) Valor feria de 3 dias
A3: 3070101 | B3: Instalación Monofásica (Toma corriente doble, consumo hasta 2KW/110V) Valor feria de 4 a 6 dias | C3: =CONCATENATE(A3:A498," ",B3:B501) -> 3070101 Instalación Monofásica (Toma corriente doble, consumo hasta 2KW/110V) Valor feria de 4 a 6 dias
A4: 3070101 | B4: Instalación Monofásica (Toma corriente doble, consumo hasta 2KW/110V) Valor feria de 7 a 11 dias | C4: =CONCATENATE(A4:A499," ",B4:B502) -> 3070101 Instalación Monofásica (Toma corriente doble, consumo hasta 2KW/110V) Valor feria de 7 a 11 dias
A5: 3070101 | B5: Instalación Monofásica (Toma corriente doble, consumo hasta 2KW/110V) Valor feria de 12 a 18 dias | C5: =CONCATENATE(A5:A500," ",B5:B503) -> 3070101 Instalación Monofásica (Toma corriente doble, consumo hasta 2KW/110V) Valor feria de 12 a 18 dias
A6: 3070103 | B6: Instalación kilovatio adicional monofásico (Debe contar con punto principal, MAX 2KW por punto) Valor feria de 3 dias | C6: =CONCATENATE(A6:A501," ",B6:B504) -> 3070103 Instalación kilovatio adicional monofásico (Debe contar con punto principal, MAX 2KW por punto) Valor feria de 3 dias
A7: 3070103 | B7: Instalación kilovatio adicional monofásico (Debe contar con punto principal, MAX 2KW por punto) Valor feria de 4 a 6 dias | C7: =CONCATENATE(A7:A502," ",B7:B505) -> 3070103 Instalación kilovatio adicional monofásico (Debe contar con punto principal, MAX 2KW por punto) Valor feria de 4 a 6 dias
A8: 3070103 | B8: Instalación kilovatio adicional monofásico (Debe contar con punto principal, MAX 2KW por punto) Valor feria de 7 a 11 dias | C8: =CONCATENATE(A8:A503," ",B8:B506) -> 3070103 Instalación kilovatio adicional monofásico (Debe contar con punto principal, MAX 2KW por punto) Valor feria de 7 a 11 dias
A9: 3070103 | B9: Instalación kilovatio adicional monofásico (Debe contar con punto principal, MAX 2KW por punto) Valor feria de 12 a 18 dias | C9: =CONCATENATE(A9:A504," ",B9:B507) -> 3070103 Instalación kilovatio adicional monofásico (Debe contar con punto principal, MAX 2KW por punto) Valor feria de 12 a 18 dias
A10: 3070102 | B10: Instalación trifásica (Regleta plastica, consumo hasta 4KW/208V) Valor feria de 3 dias | C10: =CONCATENATE(A10:A505," ",B10:B508) -> 3070102 Instalación trifásica (Regleta plastica, consumo hasta 4KW/208V) Valor feria de 3 dias
A11: 3070102 | B11: Instalación trifásica (Regleta plastica, consumo hasta 4KW/208V) Valor feria de 4 a 6 dias | C11: =CONCATENATE(A11:A506," ",B11:B509) -> 3070102 Instalación trifásica (Regleta plastica, consumo hasta 4KW/208V) Valor feria de 4 a 6 dias
A12: 3070102 | B12: Instalación trifásica (Regleta plastica, consumo hasta 4KW/208V) Valor feria de 7 a 11 dias | C12: =CONCATENATE(A12:A507," ",B12:B510) -> 3070102 Instalación trifásica (Regleta plastica, consumo hasta 4KW/208V) Valor feria de 7 a 11 dias
A13: 3070102 | B13: Instalación trifásica (Regleta plastica, consumo hasta 4KW/208V) Valor feria de 12 a 18 dias | C13: =CONCATENATE(A13:A508," ",B13:B511) -> 3070102 Instalación trifásica (Regleta plastica, consumo hasta 4KW/208V) Valor feria de 12 a 18 dias
A14: 3070104 | B14: Instalación kilovatio adicional trifásico (Debe contar con punto principal) Valor feria de 3 dias | C14: =CONCATENATE(A14:A509," ",B14:B512) -> 3070104 Instalación kilovatio adicional trifásico (Debe contar con punto principal) Valor feria de 3 dias
A15: 3070104 | B15: Instalación kilovatio adicional trifásico (Debe contar con punto principal) Valor feria de 4 a 6 dias | C15: =CONCATENATE(A15:A510," ",B15:B513) -> 3070104 Instalación kilovatio adicional trifásico (Debe contar con punto principal) Valor feria de 4 a 6 dias
A16: 3070104 | B16: Instalación kilovatio adicional trifásico (Debe contar con punto principal) Valor feria de 7 a 11 dias | C16: =CONCATENATE(A16:A511," ",B16:B514) -> 3070104 Instalación kilovatio adicional trifásico (Debe contar con punto principal) Valor feria de 7 a 11 dias
A17: 3070104 | B17: Instalación kilovatio adicional trifásico (Debe contar con punto principal) Valor feria de 12 a 18 dias | C17: =CONCATENATE(A17:A512," ",B17:B515) -> 3070104 Instalación kilovatio adicional trifásico (Debe contar con punto principal) Valor feria de 12 a 18 dias
A18: 3071372 | B18: De 21 a 50 kilovatios adicionales trifásicos (Valor por KW) (Debe contar con punto principal) Valor feria de 3 dias | C18: =CONCATENATE(A18:A513," ",B18:B516) -> 3071372 De 21 a 50 kilovatios adicionales trifásicos (Valor por KW) (Debe contar con punto principal) Valor feria de 3 dias
A19: 3071372 | B19: De 21 a 50 kilovatios adicionales trifásicos (Valor por KW) (Debe contar con punto principal) Valor feria de 4 a 6 dias | C19: =CONCATENATE(A19:A514," ",B19:B517) -> 3071372 De 21 a 50 kilovatios adicionales trifásicos (Valor por KW) (Debe contar con punto principal) Valor feria de 4 a 6 dias
A20: 3071372 | B20: De 21 a 50 kilovatios adicionales trifásicos (Valor por KW) (Debe contar con punto principal) Valor feria de 7 a 11 dias | C20: =CONCATENATE(A20:A515," ",B20:B518) -> 3071372 De 21 a 50 kilovatios adicionales trifásicos (Valor por KW) (Debe contar con punto principal) Valor feria de 7 a 11 dias
A21: 3071372 | B21: De 21 a 50 kilovatios adicionales trifásicos (Valor por KW) (Debe contar con punto principal) Valor feria de 12 a 18 dias | C21: =CONCATENATE(A21:A516," ",B21:B519) -> 3071372 De 21 a 50 kilovatios adicionales trifásicos (Valor por KW) (Debe contar con punto principal) Valor feria de 12 a 18 dias
A22: 3071373 | B22: De 51 a 100 kilovatios adicionales trifásicos (Valor por KW) (Debe contar con punto principal) Valor feria de 3 dias | C22: =CONCATENATE(A22:A517," ",B22:B520) -> 3071373 De 51 a 100 kilovatios adicionales trifásicos (Valor por KW) (Debe contar con punto principal) Valor feria de 3 dias
A23: 3071373 | B23: De 51 a 100 kilovatios adicionales trifásicos (Valor por KW) (Debe contar con punto principal) Valor feria de 4 a 6 dias | C23: =CONCATENATE(A23:A518," ",B23:B521) -> 3071373 De 51 a 100 kilovatios adicionales trifásicos (Valor por KW) (Debe contar con punto principal) Valor feria de 4 a 6 dias
A24: 3071373 | B24: De 51 a 100 kilovatios adicionales trifásicos (Valor por KW) (Debe contar con punto principal) Valor feria de 7 a 11 dias | C24: =CONCATENATE(A24:A519," ",B24:B522) -> 3071373 De 51 a 100 kilovatios adicionales trifásicos (Valor por KW) (Debe contar con punto principal) Valor feria de 7 a 11 dias
A25: 3071373 | B25: De 51 a 100 kilovatios adicionales trifásicos (Valor por KW) (Debe contar con punto principal) Valor feria de 12 a 18 dias | C25: =CONCATENATE(A25:A520," ",B25:B523) -> 3071373 De 51 a 100 kilovatios adicionales trifásicos (Valor por KW) (Debe contar con punto principal) Valor feria de 12 a 18 dias
A26: 3071374 | B26: Mas de100 kilovatios adicionales trifásicos (Valor por KW) (Debe contar con punto principal) Valor feria de 3 dias | C26: =CONCATENATE(A26:A521," ",B26:B524) -> 3071374 Mas de100 kilovatios adicionales trifásicos (Valor por KW) (Debe contar con punto principal) Valor feria de 3 dias
A27: 3071374 | B27: Mas de100 kilovatios adicionales trifásicos (Valor por KW) (Debe contar con punto principal) Valor feria de 4 a 6 dias | C27: =CONCATENATE(A27:A522," ",B27:B525) -> 3071374 Mas de100 kilovatios adicionales trifásicos (Valor por KW) (Debe contar con punto principal) Valor feria de 4 a 6 dias
A28: 3071374 | B28: Mas de100 kilovatios adicionales trifásicos (Valor por KW) (Debe contar con punto principal) Valor feria de 7 a 11 dias | C28: =CONCATENATE(A28:A523," ",B28:B526) -> 3071374 Mas de100 kilovatios adicionales trifásicos (Valor por KW) (Debe contar con punto principal) Valor feria de 7 a 11 dias
A29: 3071374 | B29: Mas de100 kilovatios adicionales trifásicos (Valor por KW) (Debe contar con punto principal) Valor feria de 12 a 18 dias | C29: =CONCATENATE(A29:A524," ",B29:B527) -> 3071374 Mas de100 kilovatios adicionales trifásicos (Valor por KW) (Debe contar con punto principal) Valor feria de 12 a 18 dias
A30: 3070402 | B30: Lampara de pared ajustable (150W/110V) Valor feria de 3 dias | C30: =CONCATENATE(A30:A525," ",B30:B528) -> 3070402 Lampara de pared ajustable (150W/110V) Valor feria de 3 dias
A31: 3070402 | B31: Lampara de pared ajustable (150W/110V) Valor feria de 4 a 6 dias | C31: =CONCATENATE(A31:A526," ",B31:B529) -> 3070402 Lampara de pared ajustable (150W/110V) Valor feria de 4 a 6 dias
A32: 3070402 | B32: Lampara de pared ajustable (150W/110V) Valor feria de 7 a 11 dias | C32: =CONCATENATE(A32:A527," ",B32:B530) -> 3070402 Lampara de pared ajustable (150W/110V) Valor feria de 7 a 11 dias
A33: 3070402 | B33: Lampara de pared ajustable (150W/110V) Valor feria de 12 a 18 dias | C33: =CONCATENATE(A33:A528," ",B33:B531) -> 3070402 Lampara de pared ajustable (150W/110V) Valor feria de 12 a 18 dias
A34: 3070405 | B34: Reflector Led (50W- mltV) Valor feria de 3 dias | C34: =CONCATENATE(A34:A529," ",B34:B532) -> 3070405 Reflector Led (50W- mltV) Valor feria de 3 dias
A35: 3070405 | B35: Reflector Led (50W- mltV) Valor feria de 4 a 6 dias | C35: =CONCATENATE(A35:A530," ",B35:B533) -> 3070405 Reflector Led (50W- mltV) Valor feria de 4 a 6 dias
A36: 3070405 | B36: Reflector Led (50W- mltV) Valor feria de 7 a 11 dias | C36: =CONCATENATE(A36:A531," ",B36:B534) -> 3070405 Reflector Led (50W- mltV) Valor feria de 7 a 11 dias
A37: 3070405 | B37: Reflector Led (50W- mltV) Valor feria de 12 a 18 dias | C37: =CONCATENATE(A37:A532," ",B37:B535) -> 3070405 Reflector Led (50W- mltV) Valor feria de 12 a 18 dias
A38: 3070403 | B38: Extensión – tomacorriente doble con polo a tierra (1500W/110V) MAX 6mts Valor feria de 3 dias | C38: =CONCATENATE(A38:A533," ",B38:B536) -> 3070403 Extensión – tomacorriente doble con polo a tierra (1500W/110V) MAX 6mts Valor feria de 3 dias
A39: 3070403 | B39: Extensión – tomacorriente doble con polo a tierra (1500W/110V) MAX 6mts Valor feria de 4 a 6 dias | C39: =CONCATENATE(A39:A534," ",B39:B537) -> 3070403 Extensión – tomacorriente doble con polo a tierra (1500W/110V) MAX 6mts Valor feria de 4 a 6 dias
A40: 3070403 | B40: Extensión – tomacorriente doble con polo a tierra (1500W/110V) MAX 6mts Valor feria de 7 a 11 dias | C40: =CONCATENATE(A40:A535," ",B40:B538) -> 3070403 Extensión – tomacorriente doble con polo a tierra (1500W/110V) MAX 6mts Valor feria de 7 a 11 dias
A41: 3070403 | B41: Extensión – tomacorriente doble con polo a tierra (1500W/110V) MAX 6mts Valor feria de 12 a 18 dias | C41: =CONCATENATE(A41:A536," ",B41:B539) -> 3070403 Extensión – tomacorriente doble con polo a tierra (1500W/110V) MAX 6mts Valor feria de 12 a 18 dias
A42: 3071345 | B42: Lavaplatos 90XL* 60XH* 90 (No incluye agua y desague) Valor feria de 3 dias | C42: =CONCATENATE(A42:A537," ",B42:B540) -> 3071345 Lavaplatos 90XL* 60XH* 90 (No incluye agua y desague) Valor feria de 3 dias
A43: 3071345 | B43: Lavaplatos 90XL* 60XH* 90 (No incluye agua y desague) Valor de 4 a 6 dias | C43: =CONCATENATE(A43:A538," ",B43:B541) -> 3071345 Lavaplatos 90XL* 60XH* 90 (No incluye agua y desague) Valor de 4 a 6 dias
A44: 3071345 | B44: Lavaplatos 90XL* 60XH* 90 (No incluye agua y desague) Valor de 7 a 11 dias | C44: =CONCATENATE(A44:A539," ",B44:B542) -> 3071345 Lavaplatos 90XL* 60XH* 90 (No incluye agua y desague) Valor de 7 a 11 dias
A45: 3071345 | B45: Lavaplatos 90XL* 60XH* 90 (No incluye agua y desague) Valor de 12 a 18 dias | C45: =CONCATENATE(A45:A540," ",B45:B543) -> 3071345 Lavaplatos 90XL* 60XH* 90 (No incluye agua y desague) Valor de 12 a 18 dias
A46: 3070301 | B46: Punto de Agua en 1/2" (incluye consumo) Valor feria de 3 dias | C46: =CONCATENATE(A46:A541," ",B46:B544) -> 3070301 Punto de Agua en 1/2" (incluye consumo) Valor feria de 3 dias
A47: 3070301 | B47: Punto de Agua en 1/2" (incluye consumo) Valor feria de 4 a 6 dias | C47: =CONCATENATE(A47:A542," ",B47:B545) -> 3070301 Punto de Agua en 1/2" (incluye consumo) Valor feria de 4 a 6 dias
A48: 3070301 | B48: Punto de Agua en 1/2" (incluye consumo) Valor feria de 7 a 11 dias | C48: =CONCATENATE(A48:A543," ",B48:B546) -> 3070301 Punto de Agua en 1/2" (incluye consumo) Valor feria de 7 a 11 dias
A49: 3070301 | B49: Punto de Agua en 1/2" (incluye consumo) Valor feria de 12 a 18 dias | C49: =CONCATENATE(A49:A544," ",B49:B547) -> 3070301 Punto de Agua en 1/2" (incluye consumo) Valor feria de 12 a 18 dias
A50: 3070302 | B50: Desagüe en 1 1/2" Por toda la feria (Ubicación asignada por Corferias en su stand) Valor feria de 3 dias | C50: =CONCATENATE(A50:A545," ",B50:B548) -> 3070302 Desagüe en 1 1/2" Por toda la feria (Ubicación asignada por Corferias en su stand) Valor feria de 3 dias
A51: 3070302 | B51: Desagüe en 1 1/2" Por toda la feria (Ubicación asignada por Corferias en su stand) Valor feria de 4 a 6 dias | C51: =CONCATENATE(A51:A546," ",B51:B549) -> 3070302 Desagüe en 1 1/2" Por toda la feria (Ubicación asignada por Corferias en su stand) Valor feria de 4 a 6 dias
A52: 3070302 | B52: Desagüe en 1 1/2" Por toda la feria (Ubicación asignada por Corferias en su stand) Valor feria de 7 a 11 dias | C52: =CONCATENATE(A52:A547," ",B52:B550) -> 3070302 Desagüe en 1 1/2" Por toda la feria (Ubicación asignada por Corferias en su stand) Valor feria de 7 a 11 dias
A53: 3070302 | B53: Desagüe en 1 1/2" Por toda la feria (Ubicación asignada por Corferias en su stand) Valor feria de 12 a 18 dias | C53: =CONCATENATE(A53:A548," ",B53:B551) -> 3070302 Desagüe en 1 1/2" Por toda la feria (Ubicación asignada por Corferias en su stand) Valor feria de 12 a 18 dias
A54: 3071341 | B54: Aire comprimido para punto con presión máx. de 100 PSI, y caudal máx. 35CFM. Valor feria de 3 dias | C54: =CONCATENATE(A54:A549," ",B54:B552) -> 3071341 Aire comprimido para punto con presión máx. de 100 PSI, y caudal máx. 35CFM. Valor feria de 3 dias
A55: 3071341 | B55: Aire comprimido para punto con presión máx. de 100 PSI, y caudal máx. 35CFM. Valor feria de 4 a 6 dias | C55: =CONCATENATE(A55:A550," ",B55:B553) -> 3071341 Aire comprimido para punto con presión máx. de 100 PSI, y caudal máx. 35CFM. Valor feria de 4 a 6 dias
A56: 3071341 | B56: Aire comprimido para punto con presión máx. de 100 PSI, y caudal máx. 35CFM. Valor feria de 7 a 11 dias | C56: =CONCATENATE(A56:A551," ",B56:B554) -> 3071341 Aire comprimido para punto con presión máx. de 100 PSI, y caudal máx. 35CFM. Valor feria de 7 a 11 dias
A57: 3071341 | B57: Aire comprimido para punto con presión máx. de 100 PSI, y caudal máx. 35CFM. Valor feria de 12 a 18 dias | C57: =CONCATENATE(A57:A552," ",B57:B555) -> 3071341 Aire comprimido para punto con presión máx. de 100 PSI, y caudal máx. 35CFM. Valor feria de 12 a 18 dias
A58: 3070307 | B58: Punto de Agua en 1/2" (Incluye consumo) + Desagüe en 1 1/2" + Lavaplatos Valor feria de 3 dias | C58: =CONCATENATE(A58:A553," ",B58:B556) -> 3070307 Punto de Agua en 1/2" (Incluye consumo) + Desagüe en 1 1/2" + Lavaplatos Valor feria de 3 dias
A59: 3070307 | B59: Punto de Agua en 1/2" (Incluye consumo) + Desagüe en 1 1/2" + Lavaplatos Valor feria de 4 a 6 dias | C59: =CONCATENATE(A59:A554," ",B59:B557) -> 3070307 Punto de Agua en 1/2" (Incluye consumo) + Desagüe en 1 1/2" + Lavaplatos Valor feria de 4 a 6 dias
A60: 3070307 | B60: Punto de Agua en 1/2" (Incluye consumo) + Desagüe en 1 1/2" + Lavaplatos Valor feria de 7 a 11 dias | C60: =CONCATENATE(A60:A555," ",B60:B558) -> 3070307 Punto de Agua en 1/2" (Incluye consumo) + Desagüe en 1 1/2" + Lavaplatos Valor feria de 7 a 11 dias
A61: 3070307 | B61: Punto de Agua en 1/2" (Incluye consumo) + Desagüe en 1 1/2" + Lavaplatos Valor feria de 12 a 18 dias | C61: =CONCATENATE(A61:A556," ",B61:B559) -> 3070307 Punto de Agua en 1/2" (Incluye consumo) + Desagüe en 1 1/2" + Lavaplatos Valor feria de 12 a 18 dias
A62: 3071321 | B62: Instalación de UN (1) punto de gas propano por UN (1) Equipo (Incluye materiales y mano de obra) (No incluye consumo de gas, este será liquidado a través de un medidor una vez finalice la feria y/o evento) Valor feria de 3 dias | C62: =CONCATENATE(A62:A557," ",B62:B560) -> 3071321 Instalación de UN (1) punto de gas propano por UN (1) Equipo (Incluye materiales y mano de obra) (No incluye consumo de gas, este será liquidado a través de un medidor una vez finalice la feria y/o evento) Valor feria de 3 dias
A63: 3071321 | B63: Instalación de UN (1) punto de gas propano por UN (1) Equipo (Incluye materiales y mano de obra) (No incluye consumo de gas, este será liquidado a través de un medidor una vez finalice la feria y/o evento) Valor feria de 4 a 6 dias | C63: =CONCATENATE(A63:A558," ",B63:B561) -> 3071321 Instalación de UN (1) punto de gas propano por UN (1) Equipo (Incluye materiales y mano de obra) (No incluye consumo de gas, este será liquidado a través de un medidor una vez finalice la feria y/o evento) Valor feria de 4 a 6 dias
A64: 3071321 | B64: Instalación de UN (1) punto de gas propano por UN (1) Equipo (Incluye materiales y mano de obra) (No incluye consumo de gas, este será liquidado a través de un medidor una vez finalice la feria y/o evento) Valor feria de 7 a 11 dias | C64: =CONCATENATE(A64:A559," ",B64:B562) -> 3071321 Instalación de UN (1) punto de gas propano por UN (1) Equipo (Incluye materiales y mano de obra) (No incluye consumo de gas, este será liquidado a través de un medidor una vez finalice la feria y/o evento) Valor feria de 7 a 11 dias
A65: 3071321 | B65: Instalación de UN (1) punto de gas propano por UN (1) Equipo (Incluye materiales y mano de obra) (No incluye consumo de gas, este será liquidado a través de un medidor una vez finalice la feria y/o evento) Valor feria de 12 a 18 dias | C65: =CONCATENATE(A65:A560," ",B65:B563) -> 3071321 Instalación de UN (1) punto de gas propano por UN (1) Equipo (Incluye materiales y mano de obra) (No incluye consumo de gas, este será liquidado a través de un medidor una vez finalice la feria y/o evento) Valor feria de 12 a 18 dias
A66: 3070601 | B66: Panel adicional sistema cfe 100cm x 240cm | C66: =CONCATENATE(A66:A561," ",B66:B564) -> 3070601 Panel adicional sistema cfe 100cm x 240cm
A67: 3070801 | B67: Puerta sistema cfe 90cm x 240cm | C67: =CONCATENATE(A67:A562," ",B67:B565) -> 3070801 Puerta sistema cfe 90cm x 240cm
A68: 3070803 | B68: Bodega estándar con puerta 150cm x 150cm (Sistema Corferias) | C68: =CONCATENATE(A68:A563," ",B68:B566) -> 3070803 Bodega estándar con puerta 150cm x 150cm (Sistema Corferias)
A69: 3071319 | B69: Brazo Mecánico por Fracciòn de 15 min (Solo para primer nivel) | C69: =CONCATENATE(A69:A564," ",B69:B567) -> 3071319 Brazo Mecánico por Fracciòn de 15 min (Solo para primer nivel)
A70: 3071319 | B70: Brazo Mecánico por Fracciòn de 30 min (Solo para primer nivel) | C70: =CONCATENATE(A70:A565," ",B70:B568) -> 3071319 Brazo Mecánico por Fracciòn de 30 min (Solo para primer nivel)
A71: 3071319 | B71: Brazo Mecánico por Fracciòn de 60 min (Solo para primer nivel) | C71: =CONCATENATE(A71:A566," ",B71:B569) -> 3071319 Brazo Mecánico por Fracciòn de 60 min (Solo para primer nivel)
A72: 3070413 | B72: Diferencial (Cap. 1 Ton.) + Brazo mecánico (Montaje y desmontaje) | C72: =CONCATENATE(A72:A567," ",B72:B570) -> 3070413 Diferencial (Cap. 1 Ton.) + Brazo mecánico (Montaje y desmontaje)
A73: 3070414 | B73: Plataforma Tijera eléctrica por Fracciòn /30 min (Uso para segundos niveles) | C73: =CONCATENATE(A73:A568," ",B73:B571) -> 3070414 Plataforma Tijera eléctrica por Fracciòn /30 min (Uso para segundos niveles)
A74: 3071387 | B74: Brazo mecánico + Diferencial + TRUSS 2,60 X 2,60 | C74: =CONCATENATE(A74:A569," ",B74:B572) -> 3071387 Brazo mecánico + Diferencial + TRUSS 2,60 X 2,60
A75: 3071351 | B75: Brazo mecánico + Diferencial + TRUSS 3,60 X 2,60 | C75: =CONCATENATE(A75:A570," ",B75:B573) -> 3071351 Brazo mecánico + Diferencial + TRUSS 3,60 X 2,60
A76: 3071395 | B76: Brazo mecánico + Diferencial + TRUSS 3,60 X 3,60 | C76: =CONCATENATE(A76:A571," ",B76:B574) -> 3071395 Brazo mecánico + Diferencial + TRUSS 3,60 X 3,60
A77: 3071324 | B77: Brazo mecánico + Diferencial + TRUSS 5,90 X 5,90 | C77: =CONCATENATE(A77:A572," ",B77:B575) -> 3071324 Brazo mecánico + Diferencial + TRUSS 5,90 X 5,90
A78: 3071436 | B78: Brazo mecánico + Diferencial + TRUSS 6,90 X 6,90 | C78: =CONCATENATE(A78:A573," ",B78:B576) -> 3071436 Brazo mecánico + Diferencial + TRUSS 6,90 X 6,90
A79: 3071350 | B79: Brazo mecánico + Diferencial + TRUSS 5,60 X 5,60 | C79: =CONCATENATE(A79:A574," ",B79:B577) -> 3071350 Brazo mecánico + Diferencial + TRUSS 5,60 X 5,60
A80: 3071371 | B80: Brazo mecánico + Diferencial + TRUSS 6,60 X 6,60 | C80: =CONCATENATE(A80:A575," ",B80:B578) -> 3071371 Brazo mecánico + Diferencial + TRUSS 6,60 X 6,60
A81: 3071393 | B81: Brazo mecánico + Diferencial + TRUSS 9,60 X 2,60 | C81: =CONCATENATE(A81:A576," ",B81:B579) -> 3071393 Brazo mecánico + Diferencial + TRUSS 9,60 X 2,60
A82: 3071394 | B82: Brazo mecánico + Diferencial + TRUSS 9,60 X 3,60 | C82: =CONCATENATE(A82:A577," ",B82:B580) -> 3071394 Brazo mecánico + Diferencial + TRUSS 9,60 X 3,60
A83: 3071396 | B83: Brazo mecánico + Diferencial + TRUSS 9,60 X 5,60 | C83: =CONCATENATE(A83:A578," ",B83:B581) -> 3071396 Brazo mecánico + Diferencial + TRUSS 9,60 X 5,60
A84: 3071397 | B84: Brazo mecánico + Diferencial + TRUSS 9,60 X 6,60 | C84: =CONCATENATE(A84:A579," ",B84:B582) -> 3071397 Brazo mecánico + Diferencial + TRUSS 9,60 X 6,60
A85: 3071418 | B85: Servicio de Internet Cableado "PARA UN EQUIPO - DURANTE UN DÍA" | C85: =CONCATENATE(A85:A580," ",B85:B583) -> 3071418 Servicio de Internet Cableado "PARA UN EQUIPO - DURANTE UN DÍA"
A86: 3071419 | B86: Clave de acceso para la red WiFi "PARA UN EQUIPO - DURANTE UN DÍA" | C86: =CONCATENATE(A86:A581," ",B86:B584) -> 3071419 Clave de acceso para la red WiFi "PARA UN EQUIPO - DURANTE UN DÍA"
A87: 3071417 | B87: Servicio de Internet Cableado "PARA UN EQUIPO - DURANTE TODA LA FERIA" Valor feria de 3 dias | C87: =CONCATENATE(A87:A582," ",B87:B585) -> 3071417 Servicio de Internet Cableado "PARA UN EQUIPO - DURANTE TODA LA FERIA" Valor feria de 3 dias
A88: 3071417 | B88: Servicio de Internet Cableado "PARA UN EQUIPO - DURANTE TODA LA FERIA" Valor feria de 4 a 6 dias | C88: =CONCATENATE(A88:A583," ",B88:B586) -> 3071417 Servicio de Internet Cableado "PARA UN EQUIPO - DURANTE TODA LA FERIA" Valor feria de 4 a 6 dias
A89: 3071417 | B89: Servicio de Internet Cableado "PARA UN EQUIPO - DURANTE TODA LA FERIA" Valor feria de 7 a 11 dias | C89: =CONCATENATE(A89:A584," ",B89:B587) -> 3071417 Servicio de Internet Cableado "PARA UN EQUIPO - DURANTE TODA LA FERIA" Valor feria de 7 a 11 dias
A90: 3071417 | B90: Servicio de Internet Cableado "PARA UN EQUIPO - DURANTE TODA LA FERIA" Valor feria de 12 a 18 dias | C90: =CONCATENATE(A90:A585," ",B90:B588) -> 3071417 Servicio de Internet Cableado "PARA UN EQUIPO - DURANTE TODA LA FERIA" Valor feria de 12 a 18 dias
A91: 3071420 | B91: Clave de acceso para la Red WiFi "PARA UN EQUIPO - DURANTE TODA LA FERIA" Valor feria de 3 dias | C91: =CONCATENATE(A91:A586," ",B91:B589) -> 3071420 Clave de acceso para la Red WiFi "PARA UN EQUIPO - DURANTE TODA LA FERIA" Valor feria de 3 dias
A92: 3071420 | B92: Clave de acceso para la Red WiFi "PARA UN EQUIPO - DURANTE TODA LA FERIA" Valor feria de 4 a 6 dias | C92: =CONCATENATE(A92:A587," ",B92:B590) -> 3071420 Clave de acceso para la Red WiFi "PARA UN EQUIPO - DURANTE TODA LA FERIA" Valor feria de 4 a 6 dias
A93: 3071420 | B93: Clave de acceso para la Red WiFi "PARA UN EQUIPO - DURANTE TODA LA FERIA" Valor feria de 7 a 11 dias | C93: =CONCATENATE(A93:A588," ",B93:B591) -> 3071420 Clave de acceso para la Red WiFi "PARA UN EQUIPO - DURANTE TODA LA FERIA" Valor feria de 7 a 11 dias
A94: 3071420 | B94: Clave de acceso para la Red WiFi "PARA UN EQUIPO - DURANTE TODA LA FERIA" Valor feria de 12 a 18 dias | C94: =CONCATENATE(A94:A589," ",B94:B592) -> 3071420 Clave de acceso para la Red WiFi "PARA UN EQUIPO - DURANTE TODA LA FERIA" Valor feria de 12 a 18 dias
A95: 3071423 | B95: Conexión para Datafono + Clave de acceso WIFI (Para un equipo durante toda la feria) Valor feria de 3 dias | C95: =CONCATENATE(A95:A590," ",B95:B593) -> 3071423 Conexión para Datafono + Clave de acceso WIFI (Para un equipo durante toda la feria) Valor feria de 3 dias
A96: 3071423 | B96: Conexión para Datafono + Clave de acceso WIFI (Para un equipo durante toda la feria) Valor feria de 4 a 6 dias | C96: =CONCATENATE(A96:A591," ",B96:B594) -> 3071423 Conexión para Datafono + Clave de acceso WIFI (Para un equipo durante toda la feria) Valor feria de 4 a 6 dias
A97: 3071423 | B97: Conexión para Datafono + Clave de acceso WIFI (Para un equipo durante toda la feria) Valor feria de 7 a 11 dias | C97: =CONCATENATE(A97:A592," ",B97:B595) -> 3071423 Conexión para Datafono + Clave de acceso WIFI (Para un equipo durante toda la feria) Valor feria de 7 a 11 dias
A98: 3071423 | B98: Conexión para Datafono + Clave de acceso WIFI (Para un equipo durante toda la feria) Valor feria de 12 a 18 dias | C98: =CONCATENATE(A98:A593," ",B98:B596) -> 3071423 Conexión para Datafono + Clave de acceso WIFI (Para un equipo durante toda la feria) Valor feria de 12 a 18 dias
A99: 3071424 | B99: Conexión para Datafono + Servicio de Internet Cableado (Para un equipo durante toda la feria) Valor feria de 3 dias | C99: =CONCATENATE(A99:A594," ",B99:B597) -> 3071424 Conexión para Datafono + Servicio de Internet Cableado (Para un equipo durante toda la feria) Valor feria de 3 dias
A100: 3071424 | B100: Conexión para Datafono + Servicio de Internet Cableado (Para un equipo durante toda la feria) Valor feria de 4 a 6 dias | C100: =CONCATENATE(A100:A595," ",B100:B598) -> 3071424 Conexión para Datafono + Servicio de Internet Cableado (Para un equipo durante toda la feria) Valor feria de 4 a 6 dias
A101: 3071424 | B101: Conexión para Datafono + Servicio de Internet Cableado (Para un equipo durante toda la feria) Valor feria de 7 a 11 dias | C101: =CONCATENATE(A101:A596," ",B101:B599) -> 3071424 Conexión para Datafono + Servicio de Internet Cableado (Para un equipo durante toda la feria) Valor feria de 7 a 11 dias
A102: 3071424 | B102: Conexión para Datafono + Servicio de Internet Cableado (Para un equipo durante toda la feria) Valor feria de 12 a 18 dias | C102: =CONCATENATE(A102:A597," ",B102:B600) -> 3071424 Conexión para Datafono + Servicio de Internet Cableado (Para un equipo durante toda la feria) Valor feria de 12 a 18 dias
A103: 3071425 | B103: Servicio de Internet Cableado + Clave de acceso WIFI (Para un equipo durante toda la feria) Valor feria de 3 dias | C103: =CONCATENATE(A103:A598," ",B103:B601) -> 3071425 Servicio de Internet Cableado + Clave de acceso WIFI (Para un equipo durante toda la feria) Valor feria de 3 dias
A104: 3071425 | B104: Servicio de Internet Cableado + Clave de acceso WIFI (Para un equipo durante toda la feria) Valor feria de 4 a 6 dias | C104: =CONCATENATE(A104:A599," ",B104:B602) -> 3071425 Servicio de Internet Cableado + Clave de acceso WIFI (Para un equipo durante toda la feria) Valor feria de 4 a 6 dias
A105: 3071425 | B105: Servicio de Internet Cableado + Clave de acceso WIFI (Para un equipo durante toda la feria) Valor feria de 7 a 11 dias | C105: =CONCATENATE(A105:A600," ",B105:B603) -> 3071425 Servicio de Internet Cableado + Clave de acceso WIFI (Para un equipo durante toda la feria) Valor feria de 7 a 11 dias
A106: 3071425 | B106: Servicio de Internet Cableado + Clave de acceso WIFI (Para un equipo durante toda la feria) Valor feria de 12 a 18 dias | C106: =CONCATENATE(A106:A601," ",B106:B604) -> 3071425 Servicio de Internet Cableado + Clave de acceso WIFI (Para un equipo durante toda la feria) Valor feria de 12 a 18 dias
A107: 3071437 | B107: Internet Dedicado: Si requiere conexión banda ancha para diferentes servicios o redes locales, contáctese con serviciosplus@corferias.com para brindarle asesoria y cotización. | C107: =CONCATENATE(A107:A602," ",B107:B605) -> 3071437 Internet Dedicado: Si requiere conexión banda ancha para diferentes servicios o redes locales, contáctese con serviciosplus@corferias.com para brindarle asesoria y cotización.
A108: 3071406 | B108: Instalación Punto de Red:Incluye un cable UTP por punto | C108: =CONCATENATE(A108:A603," ",B108:B606) -> 3071406 Instalación Punto de Red:Incluye un cable UTP por punto
A109: 3071407 | B109: Switch Valor POR FERIA | C109: =CONCATENATE(A109:A604," ",B109:B607) -> 3071407 Switch Valor POR FERIA
A110: 3071402 | B110: Servicio de VLAN: Servicio virtual de red. Valor POR FERIA | C110: =CONCATENATE(A110:A605," ",B110:B608) -> 3071402 Servicio de VLAN: Servicio virtual de red. Valor POR FERIA
A111: 3071430 | B111: Extension LAN Valor POR FERIA (Incluye punto de red y aplica para extender el servicio de internet contratado con terceros) | C111: =CONCATENATE(A111:A606," ",B111:B609) -> 3071430 Extension LAN Valor POR FERIA (Incluye punto de red y aplica para extender el servicio de internet contratado con terceros)
A112: 3071442 | B112: Soporte técnico permanente (Por espacio de 8 horas) de un técnico. Valor DÍARIO | C112: =CONCATENATE(A112:A607," ",B112:B610) -> 3071442 Soporte técnico permanente (Por espacio de 8 horas) de un técnico. Valor DÍARIO
A113: 3070202 | B113: Servicio Telefónico Urbano con Aparato (Incluye consumo local ilimitado) Valor feria de 3 dias | C113: =CONCATENATE(A113:A608," ",B113:B611) -> 3070202 Servicio Telefónico Urbano con Aparato (Incluye consumo local ilimitado) Valor feria de 3 dias
A114: 3070202 | B114: Servicio Telefónico Urbano con Aparato (Incluye consumo local ilimitado) Valor feria de 4 a 6 dias | C114: =CONCATENATE(A114:A609," ",B114:B612) -> 3070202 Servicio Telefónico Urbano con Aparato (Incluye consumo local ilimitado) Valor feria de 4 a 6 dias
A115: 3070202 | B115: Servicio Telefónico Urbano con Aparato (Incluye consumo local ilimitado) Valor feria de 7 a 11 dias | C115: =CONCATENATE(A115:A610," ",B115:B613) -> 3070202 Servicio Telefónico Urbano con Aparato (Incluye consumo local ilimitado) Valor feria de 7 a 11 dias
A116: 3070202 | B116: Servicio Telefónico Urbano con Aparato (Incluye consumo local ilimitado) Valor feria de 12 a 18 dias | C116: =CONCATENATE(A116:A611," ",B116:B614) -> 3070202 Servicio Telefónico Urbano con Aparato (Incluye consumo local ilimitado) Valor feria de 12 a 18 dias
A117: 3070203 | B117: Servicio Telefónico Larga Distancia con aparato Valor feria de 3 dias | C117: =CONCATENATE(A117:A612," ",B117:B615) -> 3070203 Servicio Telefónico Larga Distancia con aparato Valor feria de 3 dias
A118: 3070203 | B118: Servicio Telefónico Larga Distancia con aparato Valor feria de 4 a 6 dias | C118: =CONCATENATE(A118:A613," ",B118:B616) -> 3070203 Servicio Telefónico Larga Distancia con aparato Valor feria de 4 a 6 dias
A119: 3070203 | B119: Servicio Telefónico Larga Distancia con aparato Valor feria de 7 a 11 dias | C119: =CONCATENATE(A119:A614," ",B119:B617) -> 3070203 Servicio Telefónico Larga Distancia con aparato Valor feria de 7 a 11 dias
A120: 3070203 | B120: Servicio Telefónico Larga Distancia con aparato Valor feria de 12 a 18 dias | C120: =CONCATENATE(A120:A615," ",B120:B618) -> 3070203 Servicio Telefónico Larga Distancia con aparato Valor feria de 12 a 18 dias
A121: 3070201 | B121: Línea Externa no conmutada (Previa solicitud a Etb, Claro, EPM, Colomsat u otro operador) Valor feria de 3 dias | C121: =CONCATENATE(A121:A616," ",B121:B619) -> 3070201 Línea Externa no conmutada (Previa solicitud a Etb, Claro, EPM, Colomsat u otro operador) Valor feria de 3 dias
A122: 3070201 | B122: Línea Externa no conmutada (Previa solicitud a Etb, Claro, EPM, Colomsat u otro operador) Valor feria de 4 a 6 dias | C122: =CONCATENATE(A122:A617," ",B122:B620) -> 3070201 Línea Externa no conmutada (Previa solicitud a Etb, Claro, EPM, Colomsat u otro operador) Valor feria de 4 a 6 dias
A123: 3070201 | B123: Línea Externa no conmutada (Previa solicitud a Etb, Claro, EPM, Colomsat u otro operador) Valor feria de 7 a 11 dias | C123: =CONCATENATE(A123:A612," ",B123:B615) -> 3070201 Línea Externa no conmutada (Previa solicitud a Etb, Claro, EPM, Colomsat u otro operador) Valor feria de 7 a 11 dias
A124: 3070201 | B124: Línea Externa no conmutada (Previa solicitud a Etb, Claro, EPM, Colomsat u otro operador) Valor feria de 12 a 18 dias | C124: =CONCATENATE(A124:A613," ",B124:B616) -> 3070201 Línea Externa no conmutada (Previa solicitud a Etb, Claro, EPM, Colomsat u otro operador) Valor feria de 12 a 18 dias
A125: 3070207 | B125: Conexión cableada para Datafono:(No incluye Datafono) | C125: =CONCATENATE(A125:A614," ",B125:B617) -> 3070207 Conexión cableada para Datafono:(No incluye Datafono)
A126: 3070503 | B126: Estantería Polo (Blanco) (200cm x 93cm x 35cm) | C126: =CONCATENATE(A126:A615," ",B126:B618) -> 3070503 Estantería Polo (Blanco) (200cm x 93cm x 35cm) | F126: =EXACT(A126,'[1]Matriz de busqueda de los cod'!#REF!) -> 
A127: 3070503 | B127: Estantería Polo (Miel) (200cm x 93cm x 35cm) | C127: =CONCATENATE(A127:A616," ",B127:B619) -> 3070503 Estantería Polo (Miel) (200cm x 93cm x 35cm)
A128: 3070503 | B128: Estantería Polo (Rovere) (200cm x 93cm x 35cm) | C128: =CONCATENATE(A128:A617," ",B128:B620) -> 3070503 Estantería Polo (Rovere) (200cm x 93cm x 35cm)
A129: 3070503 | B129: Estantería Polo (Roble Gris) (200cm x 93cm x 35cm) | C129: =CONCATENATE(A129:A618," ",B129:B621) -> 3070503 Estantería Polo (Roble Gris) (200cm x 93cm x 35cm)
A130: 3070503 | B130: Estantería Polo (OSB) (200cm x 93cm x 35cm) | C130: =CONCATENATE(A130:A619," ",B130:B622) -> 3070503 Estantería Polo (OSB) (200cm x 93cm x 35cm)
A131: 3070517 | B131: Vitrina Mostrador 2E (100cm x 100cm x 40cm) | C131: =CONCATENATE(A131:A620," ",B131:B623) -> 3070517 Vitrina Mostrador 2E (100cm x 100cm x 40cm)
A132: 3070518 | B132: Vitrina Mostrador Tipo 2 1E (Blanco) (92cm x 90 cm x 40cm) | C132: =CONCATENATE(A132:A621," ",B132:B624) -> 3070518 Vitrina Mostrador Tipo 2 1E (Blanco) (92cm x 90 cm x 40cm)
A133: 3070518 | B133: Vitrina Mostrador Tipo 2 1E (Nacar) (92cm x 90 cm x 40cm) | C133: =CONCATENATE(A133:A622," ",B133:B625) -> 3070518 Vitrina Mostrador Tipo 2 1E (Nacar) (92cm x 90 cm x 40cm)
A134: 3070521 | B134: Perchero básico 1 pedestal (120cm Ancho - Altura) graduable + 5 ganchos | C134: =CONCATENATE(A134:A623," ",B134:B626) -> 3070521 Perchero básico 1 pedestal (120cm Ancho - Altura) graduable + 5 ganchos
A135: 3070521 | B135: Perchero doble 2 pedestal (120cm Ancho-Altura) graduable + 5 ganchos | C135: =CONCATENATE(A135:A624," ",B135:B627) -> 3070521 Perchero doble 2 pedestal (120cm Ancho-Altura) graduable + 5 ganchos
A136: 3070535 | B136: Vitrina Isla 2E (200cm x 50cm x 50cm) | C136: =CONCATENATE(A136:A625," ",B136:B628) -> 3070535 Vitrina Isla 2E (200cm x 50cm x 50cm)
A137: 3070714 | B137: Cubo de exhibición (40cm x 40cm x 25cm) | C137: =CONCATENATE(A137:A626," ",B137:B629) -> 3070714 Cubo de exhibición (40cm x 40cm x 25cm)
A138: 3070936 | B138: Mesón plegable plástico (Gris o blanco) (73cm x 182cm x 76cm) | C138: =CONCATENATE(A138:A627," ",B138:B630) -> 3070936 Mesón plegable plástico (Gris o blanco) (73cm x 182cm x 76cm)
A139: 3070954 | B139: Counter Mónaco (Blanco) (100cm x 100cm x 30cm) | C139: =CONCATENATE(A139:A628," ",B139:B631) -> 3070954 Counter Mónaco (Blanco) (100cm x 100cm x 30cm)
A140: 3070954 | B140: Counter Mónaco (Miel) (100cm x 100cm x 30cm) | C140: =CONCATENATE(A140:A629," ",B140:B632) -> 3070954 Counter Mónaco (Miel) (100cm x 100cm x 30cm)
A141: 3070954 | B141: Counter Mónaco (Rovere) (100cm x 100cm x 30cm) | C141: =CONCATENATE(A141:A630," ",B141:B633) -> 3070954 Counter Mónaco (Rovere) (100cm x 100cm x 30cm)
A142: 3070954 | B142: Counter Mónaco (Roble Gris) (100cm x 100cm x 30cm) | C142: =CONCATENATE(A142:A631," ",B142:B634) -> 3070954 Counter Mónaco (Roble Gris) (100cm x 100cm x 30cm)
A143: 3070955 | B143: Pedestal rectangular 90cm (90cm x 30cm x 30cm) | C143: =CONCATENATE(A143:A632," ",B143:B635) -> 3070955 Pedestal rectangular 90cm (90cm x 30cm x 30cm)
A144: 3070956 | B144: Pedestal rectangular 60cm (60cm x 30cm x 30cm) | C144: =CONCATENATE(A144:A633," ",B144:B636) -> 3070956 Pedestal rectangular 60cm (60cm x 30cm x 30cm)
A145: 3070957 | B145: Pedestal cuadrado (30cm x 30cm x 30cm) | C145: =CONCATENATE(A145:A634," ",B145:B637) -> 3070957 Pedestal cuadrado (30cm x 30cm x 30cm)
A146: 3071006 | B146: Silla Interlocutora Negra (79cm x 53cm x 42cm) | C146: =CONCATENATE(A146:A635," ",B146:B638) -> 3071006 Silla Interlocutora Negra (79cm x 53cm x 42cm)
A147: 3071008 | B147: Silla estandar Tipo Huevo (48cm x 46cm x 45cm) | C147: =CONCATENATE(A147:A636," ",B147:B639) -> 3071008 Silla estandar Tipo Huevo (48cm x 46cm x 45cm)
A148: 3071013 | B148: Sofa Victoria derecho (70cm x 100cm x 75cm) | C148: =CONCATENATE(A148:A637," ",B148:B640) -> 3071013 Sofa Victoria derecho (70cm x 100cm x 75cm)
A149: 3071022 | B149: Silla Neumatica alta Versalles (80cm x 40 cm x 40cm) | C149: =CONCATENATE(A149:A638," ",B149:B641) -> 3071022 Silla Neumatica alta Versalles (80cm x 40 cm x 40cm)
A150: 3071023 | B150: Sofa Victoria izquierdo (70cm x 100cm x 75cm) | C150: =CONCATENATE(A150:A639," ",B150:B642) -> 3071023 Sofa Victoria izquierdo (70cm x 100cm x 75cm)
A151: 3071031 | B151: Sofa Terranova 2 cuerpos (88cm x 173cm x 80cm) | C151: =CONCATENATE(A151:A640," ",B151:B643) -> 3071031 Sofa Terranova 2 cuerpos (88cm x 173cm x 80cm)
A152: 3071036 | B152: Mesa plegable plastico + 2 sillas interlocutoras negras | C152: =CONCATENATE(A152:A641," ",B152:B644) -> 3071036 Mesa plegable plastico + 2 sillas interlocutoras negras
A153: 3071039 | B153: Mesa alta Daysa + 2 sillas neumaticas altas marsella | C153: =CONCATENATE(A153:A642," ",B153:B645) -> 3071039 Mesa alta Daysa + 2 sillas neumaticas altas marsella
A154: 3071054 | B154: Mesa estandar lotus vidrio + 2 sillas tipo huevo | C154: =CONCATENATE(A154:A643," ",B154:B646) -> 3071054 Mesa estandar lotus vidrio + 2 sillas tipo huevo
A155: 3071059 | B155: Poltrona Levis (73cm x 86cm x 73cm) | C155: =CONCATENATE(A155:A644," ",B155:B647) -> 3071059 Poltrona Levis (73cm x 86cm x 73cm)
A156: 3071061 | B156: Silla estandar Suiza (48cm x 46cm x 45cm) | C156: =CONCATENATE(A156:A645," ",B156:B648) -> 3071061 Silla estandar Suiza (48cm x 46cm x 45cm)
A157: 3071068 | B157: Mesa Centro Rectangular doble nivel (Blanco) (50cm x 75cm x 50cm) | C157: =CONCATENATE(A157:A646," ",B157:B649) -> 3071068 Mesa Centro Rectangular doble nivel (Blanco) (50cm x 75cm x 50cm)
A158: 3071077 | B158: Silla Neumática alta Marsella (80cm x 40cm x 40cm) | C158: =CONCATENATE(A158:A647," ",B158:B650) -> 3071077 Silla Neumática alta Marsella (80cm x 40cm x 40cm)
A159: 3071081 | B159: Silla Ejecutiva Cuero (57cm x 93cm x 52cm) | C159: =CONCATENATE(A159:A648," ",B159:B651) -> 3071081 Silla Ejecutiva Cuero (57cm x 93cm x 52cm)
A160: 3071081 | B160: Silla Ejecutiva Malla (100cm x 57cm x 52 cm) | C160: =CONCATENATE(A160:A649," ",B160:B652) -> 3071081 Silla Ejecutiva Malla (100cm x 57cm x 52 cm)
A161: 3071083 | B161: Sofa Toronto 3 cuerpos (88cm x 173cm x 80cm) | C161: =CONCATENATE(A161:A650," ",B161:B653) -> 3071083 Sofa Toronto 3 cuerpos (88cm x 173cm x 80cm)
A162: 3071085 | B162: Sofa Otawa 2 cuerpos (85cm x 120cm x 76cm) | C162: =CONCATENATE(A162:A651," ",B162:B654) -> 3071085 Sofa Otawa 2 cuerpos (85cm x 120cm x 76cm)
A163: 3071090 | B163: Puff estandar cuadrado (43cm x 43cm x 43cm) | C163: =CONCATENATE(A163:A652," ",B163:B655) -> 3071090 Puff estandar cuadrado (43cm x 43cm x 43cm)
A164: 3071091 | B164: Puff Trunk 2 cuerpos (48cm x 81cm x 40cm) | C164: =CONCATENATE(A164:A653," ",B164:B656) -> 3071091 Puff Trunk 2 cuerpos (48cm x 81cm x 40cm)
A165: 3071093 | B165: Mesa alta Daysa vidrio (100cm x 60cm) | C165: =CONCATENATE(A165:A654," ",B165:B657) -> 3071093 Mesa alta Daysa vidrio (100cm x 60cm)
A166: 3071095 | B166: Sala VIP (1 sofá Victoria derecho, 1 sofá Victoria izquierdo, 2 poltronas, 1 mesa centro cuadrada 2 niveles) | C166: =CONCATENATE(A166:A655," ",B166:B658) -> 3071095 Sala VIP (1 sofá Victoria derecho, 1 sofá Victoria izquierdo, 2 poltronas, 1 mesa centro cuadrada 2 niveles)
A167: 3071097 | B167: Mesa estandar Daysa (76cm x 60cm) | C167: =CONCATENATE(A167:A655," ",B167:B658) -> 3071097 Mesa estandar Daysa (76cm x 60cm)
A168: 3071098 | B168: Mesa estandar Shia (Blanco) (76cm x 60cm x 60cm) | C168: =CONCATENATE(A168:A656," ",B168:B659) -> 3071098 Mesa estandar Shia (Blanco) (76cm x 60cm x 60cm)
A169: 3071098 | B169: Mesa estandar Shia (Negra) (76cm x 60cm x 60cm) | C169: =CONCATENATE(A169:A657," ",B169:B660) -> 3071098 Mesa estandar Shia (Negra) (76cm x 60cm x 60cm)
A170: 3071100 | B170: Mesa Centro Circular doble nivel (Blanco) (50cm x 110cm x 60cm) | C170: =CONCATENATE(A170:A658," ",B170:B661) -> 3071100 Mesa Centro Circular doble nivel (Blanco) (50cm x 110cm x 60cm)
A171: 3071103 | B171: Nevera Minibar 121 LT (48.5cm X 85.1cm X 60cm) | C171: =CONCATENATE(A171:A659," ",B171:B662) -> 3071103 Nevera Minibar 121 LT (48.5cm X 85.1cm X 60cm)
A172: 3071103 | B172: Nevera Estandar 230LT ( 55.6cm X 157.6cm X 67cm) | C172: =CONCATENATE(A172:A660," ",B172:B663) -> 3071103 Nevera Estandar 230LT ( 55.6cm X 157.6cm X 67cm)
A173: 3071104 | B173: Mesa Centro Cuadrada 2 Niveles (Blanco) (50cm x 60cm x 60) | C173: =CONCATENATE(A173:A661," ",B173:B664) -> 3071104 Mesa Centro Cuadrada 2 Niveles (Blanco) (50cm x 60cm x 60)
A174: 3071105 | B174: KIT básico oficina 2 (2 sillas interlocutoras negras, 1 silla ejecutiva cuero, 1 mesa oficina) | C174: =CONCATENATE(A174:A662," ",B174:B665) -> 3071105 KIT básico oficina 2 (2 sillas interlocutoras negras, 1 silla ejecutiva cuero, 1 mesa oficina)
A175: 3071108 | B175: Estantería Shelf 4E (190cm x 100cm x 30cm) | C175: =CONCATENATE(A175:A663," ",B175:B666) -> 3071108 Estantería Shelf 4E (190cm x 100cm x 30cm)
A176: 3071111 | B176: Vitrina Rectangular 2E (200cm x 100cm x 40cm) | C176: =CONCATENATE(A176:A664," ",B176:B667) -> 3071111 Vitrina Rectangular 2E (200cm x 100cm x 40cm)
A177: 3071113 | B177: Sala Osaka (1 sofá Toronto, 2 puffs Donna, 1 mesa centro cuadrada 2 niveles) | C177: =CONCATENATE(A177:A665," ",B177:B668) -> 3071113 Sala Osaka (1 sofá Toronto, 2 puffs Donna, 1 mesa centro cuadrada 2 niveles)
A178: 3071114 | B178: Puff Trunk 3 cuerpos (46cm x 120cm x 54cm) | C178: =CONCATENATE(A178:A666," ",B178:B669) -> 3071114 Puff Trunk 3 cuerpos (46cm x 120cm x 54cm)
A179: 3071115 | B179: Mesa alta Daysa (Blanco) (100cm x 60cm) | C179: =CONCATENATE(A179:A667," ",B179:B670) -> 3071115 Mesa alta Daysa (Blanco) (100cm x 60cm)
A180: 3071115 | B180: Mesa alta Daysa (Miel) (100cm x 60cm) | C180: =CONCATENATE(A180:A668," ",B180:B671) -> 3071115 Mesa alta Daysa (Miel) (100cm x 60cm)
A181: 3071115 | B181: Mesa alta Daysa (Rovere) (100cm x 60cm) | C181: =CONCATENATE(A181:A669," ",B181:B672) -> 3071115 Mesa alta Daysa (Rovere) (100cm x 60cm)
A182: 3071115 | B182: Mesa alta Daysa (Roble Gris) (100cm x 60cm) | C182: =CONCATENATE(A182:A670," ",B182:B673) -> 3071115 Mesa alta Daysa (Roble Gris) (100cm x 60cm)
A183: 3071116 | B183: Mesa estandar Lotus (70cm x 64cm x 81cm) | C183: =CONCATENATE(A183:A671," ",B183:B674) -> 3071116 Mesa estandar Lotus (70cm x 64cm x 81cm)
A184: 3071302 | B184: Papelera plastica negra | C184: =CONCATENATE(A184:A672," ",B184:B675) -> 3071302 Papelera plastica negra
A185: 3071325 | B185: Poste separador 120cm de alto | C185: =CONCATENATE(A185:A673," ",B185:B676) -> 3071325 Poste separador 120cm de alto
A186: 3071370 | B186: Revistero plegable (140cm x 25cm x 29cm) | C186: =CONCATENATE(A186:A674," ",B186:B677) -> 3071370 Revistero plegable (140cm x 25cm x 29cm)
A187: 30710165 | B187: Silla Bombona Roja (80cm x 43cm x 40cm) | C187: =CONCATENATE(A187:A675," ",B187:B678) -> 30710165 Silla Bombona Roja (80cm x 43cm x 40cm)
A188: 30710166 | B188: Silla Oslo Blanca (90cm x 50cm x 45cm) | C188: =CONCATENATE(A188:A676," ",B188:B679) -> 30710166 Silla Oslo Blanca (90cm x 50cm x 45cm)
A189: 30710167 | B189: Silla Tipo Bar Madera (75cm x 38cm x39 cm) | C189: =CONCATENATE(A189:A677," ",B189:B680) -> 30710167 Silla Tipo Bar Madera (75cm x 38cm x39 cm)
A190: 30710168 | B190: Sala de Juntas (75cm x 120cn x 240cm) | C190: =CONCATENATE(A190:A678," ",B190:B681) -> 30710168 Sala de Juntas (75cm x 120cn x 240cm)
A191: 30713198 | B191: Silla Gerencial (100cm x 49cm x 49cm) | C191: =CONCATENATE(A191:A679," ",B191:B682) -> 30713198 Silla Gerencial (100cm x 49cm x 49cm)
A192: 30713200 | B192: Mesa Oficina (50cm x 120cm x 50cm) | C192: =CONCATENATE(A192:A680," ",B192:B683) -> 30713200 Mesa Oficina (50cm x 120cm x 50cm)
A193: 30713201 | B193: Poltrona Buggy (73cm x 86cm X 73cm) | C193: =CONCATENATE(A193:A681," ",B193:B684) -> 30713201 Poltrona Buggy (73cm x 86cm X 73cm)
A194: 30713225 | B194: Tapete Ferial Tipo Moqueta Liso m2 m2 + Instalación: Contáctese con serviciosplus@corferias.com para brindarle asesoria y cotización. | C194: =CONCATENATE(A194:A682," ",B194:B685) -> 30713225 Tapete Ferial Tipo Moqueta Liso m2 m2 + Instalación: Contáctese con serviciosplus@corferias.com para brindarle asesoria y cotización.
A195: 30713226 | B195: Tapete Ferial Tipo Moqueta Acanalado m2 + Instalación: contáctese con serviciosplus@corferias.com para brindarle asesoria y cotización. | C195: =CONCATENATE(A195:A683," ",B195:B686) -> 30713226 Tapete Ferial Tipo Moqueta Acanalado m2 + Instalación: contáctese con serviciosplus@corferias.com para brindarle asesoria y cotización.
A196: 30713227 | B196: Tapete Caucho m2 + Instalación: contáctese con serviciosplus@corferias.com para brindarle asesoria y cotización. | C196: =CONCATENATE(A196:A684," ",B196:B687) -> 30713227 Tapete Caucho m2 + Instalación: contáctese con serviciosplus@corferias.com para brindarle asesoria y cotización.
A197: 30713228 | B197: Piso Laminado m2 + Instalación: contáctese con serviciosplus@corferias.com para brindarle asesoria y cotización. | C197: =CONCATENATE(A197:A685," ",B197:B688) -> 30713228 Piso Laminado m2 + Instalación: contáctese con serviciosplus@corferias.com para brindarle asesoria y cotización.
A198: 30713229 | B198: Piso Melaminico m2 + Instalación: contáctese con serviciosplus@corferias.com para brindarle asesoria y cotización. | C198: =CONCATENATE(A198:A686," ",B198:B689) -> 30713229 Piso Melaminico m2 + Instalación: contáctese con serviciosplus@corferias.com para brindarle asesoria y cotización.
B199: Sala Barú (1 sofá Otawa, 2 Puff Cuadrados, 1 Puff 2 Puestos, 1 Mesa de Centro 2 niveles) | C199: =CONCATENATE(A199:A687," ",B199:B690) -> Sala Barú (1 sofá Otawa, 2 Puff Cuadrados, 1 Puff 2 Puestos, 1 Mesa de Centro 2 niveles)
B200: Sala Terranova (1 sofá terranoca, 2 Poltronas Buggy, 1 Mesa de Centro 2 niveles) | C200: =CONCATENATE(A200:A688," ",B200:B691) -> Sala Terranova (1 sofá terranoca, 2 Poltronas Buggy, 1 Mesa de Centro 2 niveles)
... 300 more rows

Sheet FERIAS DE 3 DIAS (hidden)
A1: CLAVE | B1: CODIGO | C1: DESCRIPCIÓN | D1: FORMULA | E1: VALOR
A2: =CONCATENATE(B2:B438," ",C2:C438) -> 3070101 Instalación Monofásica (Toma corriente doble, consumo hasta 2KW/110V) Valor feria de 3 dias | B2: 3070101 | C2: Instalación Monofásica (Toma corriente doble, consumo hasta 2KW/110V) Valor feria de 3 dias | D2: =IF(G$3=TRUE,E2/I$3,E2) -> 306000 | E2: 306000 | F2: CELDA VINCULADA | G2: DÓLARES | H2: PESOS | I2: TRM | S2: =E2/1.19 -> 257142.8571
A3: =CONCATENATE(B3:B442," ",C3:C442) -> 3070103 Instalación kilovatio adicional monofásico (Debe contar con punto principal, MAX 2KW por punto) Valor feria de 3 dias | B3: 3070103 | C3: Instalación kilovatio adicional monofásico (Debe contar con punto principal, MAX 2KW por punto) Valor feria de 3 dias | D3: =IF(G$3=TRUE,E3/I$3,E3) -> 98000 | E3: 98000 | F3: 0 | G3: FALSE | H3: FALSE | I3: =REPLACE(Q4,5,4,"") -> 4152 | L3: USD | M3: EUR | N3: GBP | O3: CAD | P3: AUD | Q3: COP | S3: =#REF!/1.19 -> 
A4: =CONCATENATE(B4:B446," ",C4:C446) -> 3070102 Instalación trifásica (Regleta plastica, consumo hasta 4KW/208V) Valor feria de 3 dias | B4: 3070102 | C4: Instalación trifásica (Regleta plastica, consumo hasta 4KW/208V) Valor feria de 3 dias | D4: 450000 | E4: 450000 | K4: USD | L4: 1 | M4: 0.91940 | N4: 0.78519 | O4: 133323 | P4: 150541 | Q4: 4152.94 | S4: =#REF!/1.19 -> 
A5: =CONCATENATE(B5:B450," ",C5:C450) -> 3070104 Instalación kilovatio adicional trifásico (Debe contar con punto principal) Valor feria de 3 dias | B5: 3070104 | C5: Instalación kilovatio adicional trifásico (Debe contar con punto principal) Valor feria de 3 dias | D5: 130000 | E5: 130000 | K5: EUR | L5: 108767 | M5: 1 | N5: 0.85403 | O5: 145011 | P5: 163739 | Q5: 4517.03 | S5: =#REF!/1.19 -> 
A6: =CONCATENATE(B6:B454," ",C6:C454) -> 3071372 De 21 a 50 kilovatios adicionales trifásicos (Valor por KW) (Debe contar con punto principal) Valor feria de 3 dias | B6: 3071372 | C6: De 21 a 50 kilovatios adicionales trifásicos (Valor por KW) (Debe contar con punto principal) Valor feria de 3 dias | D6: 117000 | E6: 117000 | K6: GBP | L6: 127358 | M6: 117092 | N6: 1 | O6: 169797 | P6: 191726 | Q6: 5289.09 | S6: =E3/1.19 -> 82352.94118
A7: =CONCATENATE(B7:B458," ",C7:C458) -> 3071373 De 51 a 100 kilovatios adicionales trifásicos (Valor por KW) (Debe contar con punto principal) Valor feria de 3 dias | B7: 3071373 | C7: De 51 a 100 kilovatios adicionales trifásicos (Valor por KW) (Debe contar con punto principal) Valor feria de 3 dias | D7: 112000 | E7: 112000 | K7: CAD | L7: 0.75006 | M7: 0.68960 | N7: 0.58894 | O7: 1 | P7: 112915 | Q7: 3114.95 | S7: =#REF!/1.19 -> 
A8: =CONCATENATE(B8:B463," ",C8:C463) -> 3071374 Mas de100 kilovatios adicionales trifásicos (Valor por KW) (Debe contar con punto principal) Valor feria de 3 dias | B8: 3071374 | C8: Mas de100 kilovatios adicionales trifásicos (Valor por KW) (Debe contar con punto principal) Valor feria de 3 dias | D8: 79000 | E8: 79000 | K8: AUD | L8: 0.66427 | M8: 0.61073 | N8: 0.52158 | O8: 0.88562 | P8: 1 | Q8: 2758.67 | S8: =#REF!/1.19 -> 
A9: =CONCATENATE(B9:B467," ",C9:C467) -> 3070402 Lampara de pared ajustable (150W/110V) Valor feria de 3 dias | B9: 3070402 | C9: Lampara de pared ajustable (150W/110V) Valor feria de 3 dias | D9: 62000 | E9: 62000 | K9: COP | L9: 0.000241 | M9: 0.000221 | N9: 0.000189 | O9: 0.000321 | P9: 0.000362 | Q9: 1 | S9: =#REF!/1.19 -> 
A10: =CONCATENATE(B10:B471," ",C10:C471) -> 3070405 Reflector Led (50W- mltV) Valor feria de 3 dias | B10: 3070405 | C10: Reflector Led (50W- mltV) Valor feria de 3 dias | D10: 65000 | E10: 65000 | S10: =E4/1.19 -> 378151.2605
A11: =CONCATENATE(B11:B475," ",C11:C475) -> 3070403 Extensión – tomacorriente doble con polo a tierra (1500W/110V) MAX 6mts Valor feria de 3 dias | B11: 3070403 | C11: Extensión – tomacorriente doble con polo a tierra (1500W/110V) MAX 6mts Valor feria de 3 dias | D11: 36000 | E11: 36000 | S11: =#REF!/1.19 -> 
A12: =CONCATENATE(B12:B479," ",C12:C479) -> 3071345 Lavaplatos 90XL* 60XH* 90 (No incluye agua y desague) Valor feria de 3 dias | B12: 3071345 | C12: Lavaplatos 90XL* 60XH* 90 (No incluye agua y desague) Valor feria de 3 dias | D12: 143000 | E12: 143000 | S12: =#REF!/1.19 -> 
A13: =CONCATENATE(B13:B483," ",C13:C483) -> 3070301 Punto de Agua en 1/2" (incluye consumo) Valor feria de 3 dias | B13: 3070301 | C13: Punto de Agua en 1/2" (incluye consumo) Valor feria de 3 dias | D13: 318000 | E13: 318000 | S13: =#REF!/1.19 -> 
A14: =CONCATENATE(B14:B487," ",C14:C487) -> 3070302 Desagüe en 1 1/2" Por toda la feria (Ubicación asignada por Corferias en su stand) Valor feria de 3 dias | B14: 3070302 | C14: Desagüe en 1 1/2" Por toda la feria (Ubicación asignada por Corferias en su stand) Valor feria de 3 dias | D14: 302000 | E14: 302000 | S14: =E5/1.19 -> 109243.6975
A15: =CONCATENATE(B15:B492," ",C15:C492) -> 3071341 Aire comprimido para punto con presión máx. de 100 PSI, y caudal máx. 35CFM. Valor feria de 3 dias | B15: 3071341 | C15: Aire comprimido para punto con presión máx. de 100 PSI, y caudal máx. 35CFM. Valor feria de 3 dias | D15: 450000 | E15: 450000 | S15: =#REF!/1.19 -> 
A16: =CONCATENATE(B16:B496," ",C16:C496) -> 3070307 Punto de Agua en 1/2" (Incluye consumo) + Desagüe en 1 1/2" + Lavaplatos Valor feria de 3 dias | B16: 3070307 | C16: Punto de Agua en 1/2" (Incluye consumo) + Desagüe en 1 1/2" + Lavaplatos Valor feria de 3 dias | D16: 680000 | E16: 680000 | S16: =#REF!/1.19 -> 
A17: =CONCATENATE(B17:B500," ",C17:C500) -> 3071321 Instalación de UN (1) punto de gas propano por UN (1) Equipo (Incluye materiales y mano de obra) (No incluye consumo de gas, este será liquidado a través de un medidor una vez finalice la feria y/o evento) Valor feria de 3 dias | B17: 3071321 | C17: Instalación de UN (1) punto de gas propano por UN (1) Equipo (Incluye materiales y mano de obra) (No incluye consumo de gas, este será liquidado a través de un medidor una vez finalice la feria y/o evento) Valor feria de 3 dias | D17: 88000 | E17: 88000 | S17: =#REF!/1.19 -> 
A18: =CONCATENATE(B18:B505," ",C18:C505) -> 3070601 Panel adicional sistema cfe 100cm x 240cm | B18: 3070601 | C18: Panel adicional sistema cfe 100cm x 240cm | D18: 38000 | E18: 38000 | S18: =#REF!/1.19 -> 
A19: =CONCATENATE(B19:B507," ",C19:C507) -> 3070801 Puerta sistema cfe 90cm x 240cm | B19: 3070801 | C19: Puerta sistema cfe 90cm x 240cm | D19: 93000 | E19: 93000 | S19: =#REF!/1.19 -> 
A20: =CONCATENATE(B20:B508," ",C20:C508) -> 3070803 Bodega estándar con puerta 150cm x 150cm (Sistema Corferias) | B20: 3070803 | C20: Bodega estándar con puerta 150cm x 150cm (Sistema Corferias) | D20: 148000 | E20: 148000 | S20: =#REF!/1.19 -> 
A21: =CONCATENATE(B21:B509," ",C21:C509) -> 3071319 Brazo Mecánico por Fracciòn de 15 min (Solo para primer nivel) | B21: 3071319 | C21: Brazo Mecánico por Fracciòn de 15 min (Solo para primer nivel) | D21: 71700 | E21: 71700 | S21: =E9/1.19 -> 52100.84034
A22: =CONCATENATE(B22:B510," ",C22:C510) -> 3071319 Brazo Mecánico por Fracciòn de 30 min (Solo para primer nivel) | B22: 3071319 | C22: Brazo Mecánico por Fracciòn de 30 min (Solo para primer nivel) | D22: 122600 | E22: 122600 | S22: =#REF!/1.19 -> 
A23: =CONCATENATE(B23:B511," ",C23:C511) -> 3071319 Brazo Mecánico por Fracciòn de 60 min (Solo para primer nivel) | B23: 3071319 | C23: Brazo Mecánico por Fracciòn de 60 min (Solo para primer nivel) | D23: 217800 | E23: 217800 | S23: =#REF!/1.19 -> 
A24: =CONCATENATE(B24:B512," ",C24:C512) -> 3070413 Diferencial (Cap. 1 Ton.) + Brazo mecánico (Montaje y desmontaje) | B24: 3070413 | C24: Diferencial (Cap. 1 Ton.) + Brazo mecánico (Montaje y desmontaje) | D24: 350900 | E24: 350900 | S24: =#REF!/1.19 -> 
A25: =CONCATENATE(B25:B513," ",C25:C513) -> 3070414 Plataforma Tijera eléctrica por Fracciòn /30 min (Uso para segundos niveles) | B25: 3070414 | C25: Plataforma Tijera eléctrica por Fracciòn /30 min (Uso para segundos niveles) | D25: 84200 | E25: 84200 | S25: =E10/1.19 -> 54621.84874
A26: =CONCATENATE(B26:B514," ",C26:C514) -> 3071387 Brazo mecánico + Diferencial + TRUSS 2,60 X 2,60 | B26: 3071387 | C26: Brazo mecánico + Diferencial + TRUSS 2,60 X 2,60 | D26: 2881400 | E26: 2881400 | S26: =#REF!/1.19 -> 
A27: =CONCATENATE(B27:B515," ",C27:C515) -> 3071351 Brazo mecánico + Diferencial + TRUSS 3,60 X 2,60 | B27: 3071351 | C27: Brazo mecánico + Diferencial + TRUSS 3,60 X 2,60 | D27: 2881400 | E27: 2881400 | S27: =#REF!/1.19 -> 
A28: =CONCATENATE(B28:B516," ",C28:C516) -> 3071395 Brazo mecánico + Diferencial + TRUSS 3,60 X 3,60 | B28: 3071395 | C28: Brazo mecánico + Diferencial + TRUSS 3,60 X 3,60 | D28: 2881400 | E28: 2881400 | S28: =#REF!/1.19 -> 
A29: =CONCATENATE(B29:B517," ",C29:C517) -> 3071324 Brazo mecánico + Diferencial + TRUSS 5,90 X 5,90 | B29: 3071324 | C29: Brazo mecánico + Diferencial + TRUSS 5,90 X 5,90 | D29: 3601800 | E29: 3601800 | S29: =E11/1.19 -> 30252.10084
A30: =CONCATENATE(B30:B518," ",C30:C518) -> 3071436 Brazo mecánico + Diferencial + TRUSS 6,90 X 6,90 | B30: 3071436 | C30: Brazo mecánico + Diferencial + TRUSS 6,90 X 6,90 | D30: 3601800 | E30: 3601800 | S30: =#REF!/1.19 -> 
A31: =CONCATENATE(B31:B519," ",C31:C519) -> 3071350 Brazo mecánico + Diferencial + TRUSS 5,60 X 5,60 | B31: 3071350 | C31: Brazo mecánico + Diferencial + TRUSS 5,60 X 5,60 | D31: 3601800 | E31: 3601800 | S31: =#REF!/1.19 -> 
A32: =CONCATENATE(B32:B520," ",C32:C520) -> 3071371 Brazo mecánico + Diferencial + TRUSS 6,60 X 6,60 | B32: 3071371 | C32: Brazo mecánico + Diferencial + TRUSS 6,60 X 6,60 | D32: 3601800 | E32: 3601800 | S32: =#REF!/1.19 -> 
A33: =CONCATENATE(B33:B521," ",C33:C521) -> 3071393 Brazo mecánico + Diferencial + TRUSS 9,60 X 2,60 | B33: 3071393 | C33: Brazo mecánico + Diferencial + TRUSS 9,60 X 2,60 | D33: 3601800 | E33: 3601800 | S33: =E12/1.19 -> 120168.0672
A34: =CONCATENATE(B34:B522," ",C34:C522) -> 3071394 Brazo mecánico + Diferencial + TRUSS 9,60 X 3,60 | B34: 3071394 | C34: Brazo mecánico + Diferencial + TRUSS 9,60 X 3,60 | D34: 3601800 | E34: 3601800 | S34: =#REF!/1.19 -> 
A35: =CONCATENATE(B35:B523," ",C35:C523) -> 3071396 Brazo mecánico + Diferencial + TRUSS 9,60 X 5,60 | B35: 3071396 | C35: Brazo mecánico + Diferencial + TRUSS 9,60 X 5,60 | D35: 4769300 | E35: 4769300 | S35: =#REF!/1.19 -> 
A36: =CONCATENATE(B36:B524," ",C36:C524) -> 3071397 Brazo mecánico + Diferencial + TRUSS 9,60 X 6,60 | B36: 3071397 | C36: Brazo mecánico + Diferencial + TRUSS 9,60 X 6,60 | D36: 4769300 | E36: 4769300 | S36: =#REF!/1.19 -> 
A37: =CONCATENATE(B37:B525," ",C37:C525) -> 3071418 Servicio de Internet Cableado "PARA UN EQUIPO - DURANTE UN DÍA" | B37: 3071418 | C37: Servicio de Internet Cableado "PARA UN EQUIPO - DURANTE UN DÍA" | D37: 93000 | E37: 93000 | S37: =E13/1.19 -> 267226.8908
A38: =CONCATENATE(B38:B526," ",C38:C526) -> 3071419 Clave de acceso para la red WiFi "PARA UN EQUIPO - DURANTE UN DÍA" | B38: 3071419 | C38: Clave de acceso para la red WiFi "PARA UN EQUIPO - DURANTE UN DÍA" | D38: 93000 | E38: 93000 | S38: =#REF!/1.19 -> 
A39: =CONCATENATE(B39:B527," ",C39:C527) -> 3071417 Servicio de Internet Cableado "PARA UN EQUIPO - DURANTE TODA LA FERIA" Valor feria de 3 dias | B39: 3071417 | C39: Servicio de Internet Cableado "PARA UN EQUIPO - DURANTE TODA LA FERIA" Valor feria de 3 dias | D39: 152000 | E39: 152000 | S39: =#REF!/1.19 -> 
A40: =CONCATENATE(B40:B531," ",C40:C531) -> 3071420 Clave de acceso para la Red WiFi "PARA UN EQUIPO - DURANTE TODA LA FERIA" Valor feria de 3 dias | B40: 3071420 | C40: Clave de acceso para la Red WiFi "PARA UN EQUIPO - DURANTE TODA LA FERIA" Valor feria de 3 dias | D40: 152000 | E40: 152000 | S40: =#REF!/1.19 -> 
A41: =CONCATENATE(B41:B535," ",C41:C535) -> 3071423 Conexión para Datafono + Clave de acceso WIFI (Para un equipo durante toda la feria) Valor feria de 3 dias | B41: 3071423 | C41: Conexión para Datafono + Clave de acceso WIFI (Para un equipo durante toda la feria) Valor feria de 3 dias | D41: 260000 | E41: 260000 | S41: =#REF!/1.19 -> 
A42: =CONCATENATE(B42:B539," ",C42:C539) -> 3071424 Conexión para Datafono + Servicio de Internet Cableado (Para un equipo durante toda la feria) Valor feria de 3 dias | B42: 3071424 | C42: Conexión para Datafono + Servicio de Internet Cableado (Para un equipo durante toda la feria) Valor feria de 3 dias | D42: 250000 | E42: 250000 | S42: =#REF!/1.19 -> 
A43: =CONCATENATE(B43:B543," ",C43:C543) -> 3071425 Servicio de Internet Cableado + Clave de acceso WIFI (Para un equipo durante toda la feria) Valor feria de 3 dias | B43: 3071425 | C43: Servicio de Internet Cableado + Clave de acceso WIFI (Para un equipo durante toda la feria) Valor feria de 3 dias | D43: 273000 | E43: 273000 | S43: =#REF!/1.19 -> 
A44: =CONCATENATE(B44:B547," ",C44:C547) -> 3071437 Internet Dedicado: Si requiere conexión banda ancha para diferentes servicios o redes locales, contáctese con serviciosplus@corferias.com para brindarle asesoria y cotización. | B44: 3071437 | C44: Internet Dedicado: Si requiere conexión banda ancha para diferentes servicios o redes locales, contáctese con serviciosplus@corferias.com para brindarle asesoria y cotización. | D44: Según Cotización | E44: Según Cotización | S44: =E20/1.19 -> 124369.7479
A45: =CONCATENATE(B45:B548," ",C45:C548) -> 3071406 Instalación Punto de Red:Incluye un cable UTP por punto | B45: 3071406 | C45: Instalación Punto de Red:Incluye un cable UTP por punto | D45: 78000 | E45: 78000 | S45: 60252.10084
A46: =CONCATENATE(B46:B549," ",C46:C549) -> 3071407 Switch Valor POR FERIA | B46: 3071407 | C46: Switch Valor POR FERIA | D46: 75000 | E46: 75000 | S46: 103025.2101
A47: =CONCATENATE(B47:B550," ",C47:C550) -> 3071402 Servicio de VLAN: Servicio virtual de red. Valor POR FERIA | B47: 3071402 | C47: Servicio de VLAN: Servicio virtual de red. Valor POR FERIA | D47: 325000 | E47: 325000 | S47: 183025.2101
A48: =CONCATENATE(B48:B551," ",C48:C551) -> 3071430 Extension LAN Valor POR FERIA (Incluye punto de red y aplica para extender el servicio de internet contratado con terceros) | B48: 3071430 | C48: Extension LAN Valor POR FERIA (Incluye punto de red y aplica para extender el servicio de internet contratado con terceros) | D48: 1500000 | E48: 1500000 | S48: 294873.9496
A49: =CONCATENATE(B49:B552," ",C49:C552) -> 3071442 Soporte técnico permanente (Por espacio de 8 horas) de un técnico. Valor DÍARIO | B49: 3071442 | C49: Soporte técnico permanente (Por espacio de 8 horas) de un técnico. Valor DÍARIO | D49: 205000 | E49: 205000 | S49: 70756.30252
A50: =CONCATENATE(B50:B553," ",C50:C553) -> 3070202 Servicio Telefónico Urbano con Aparato (Incluye consumo local ilimitado) Valor feria de 3 dias | B50: 3070202 | C50: Servicio Telefónico Urbano con Aparato (Incluye consumo local ilimitado) Valor feria de 3 dias | D50: 41000 | E50: 41000 | S50: 2421344.538
A51: =CONCATENATE(B51:B557," ",C51:C557) -> 3070203 Servicio Telefónico Larga Distancia con aparato Valor feria de 3 dias | B51: 3070203 | C51: Servicio Telefónico Larga Distancia con aparato Valor feria de 3 dias | D51: 41000 | E51: 41000 | S51: =E30/1.19 -> 3026722.689
A52: =CONCATENATE(B52:B555," ",C52:C555) -> 3070201 Línea Externa no conmutada (Previa solicitud a Etb, Claro, EPM, Colomsat u otro operador) Valor feria de 3 dias | B52: 3070201 | C52: Línea Externa no conmutada (Previa solicitud a Etb, Claro, EPM, Colomsat u otro operador) Valor feria de 3 dias | D52: 115000 | E52: 115000 | S52: =E34/1.19 -> 3026722.689
A53: =CONCATENATE(B53:B559," ",C53:C559) -> 3070207 Conexión cableada para Datafono:(No incluye Datafono) | B53: 3070207 | C53: Conexión cableada para Datafono:(No incluye Datafono) | D53: 107000 | E53: 107000 | S53: =E38/1.19 -> 78151.2605
A54: =CONCATENATE(B54:B560," ",C54:C560) -> 3070503 Estantería Polo (Blanco) (200cm x 93cm x 35cm) | B54: 3070503 | C54: Estantería Polo (Blanco) (200cm x 93cm x 35cm) | D54: 165100 | E54: 165100 | S54: =E39/1.19 -> 127731.0924
A55: =CONCATENATE(B55:B561," ",C55:C561) -> 3070503 Estantería Polo (Miel) (200cm x 93cm x 35cm) | B55: 3070503 | C55: Estantería Polo (Miel) (200cm x 93cm x 35cm) | D55: 165100 | E55: 165100 | S55: =#REF!/1.19 -> 
A56: =CONCATENATE(B56:B562," ",C56:C562) -> 3070503 Estantería Polo (Rovere) (200cm x 93cm x 35cm) | B56: 3070503 | C56: Estantería Polo (Rovere) (200cm x 93cm x 35cm) | D56: 165100 | E56: 165100 | S56: =#REF!/1.19 -> 
A57: =CONCATENATE(B57:B563," ",C57:C563) -> 3070503 Estantería Polo (Roble Gris) (200cm x 93cm x 35cm) | B57: 3070503 | C57: Estantería Polo (Roble Gris) (200cm x 93cm x 35cm) | D57: 165100 | E57: 165100 | S57: =#REF!/1.19 -> 
A58: =CONCATENATE(B58:B564," ",C58:C564) -> 3070503 Estantería Polo (OSB) (200cm x 93cm x 35cm) | B58: 3070503 | C58: Estantería Polo (OSB) (200cm x 93cm x 35cm) | D58: 165100 | E58: 165100 | S58: =E40/1.19 -> 127731.0924
A59: =CONCATENATE(B59:B565," ",C59:C565) -> 3070517 Vitrina Mostrador 2E (100cm x 100cm x 40cm) | B59: 3070517 | C59: Vitrina Mostrador 2E (100cm x 100cm x 40cm) | D59: 194300 | E59: 194300 | S59: =#REF!/1.19 -> 
A60: =CONCATENATE(B60:B566," ",C60:C566) -> 3070518 Vitrina Mostrador Tipo 2 1E (Blanco) (92cm x 90 cm x 40cm) | B60: 3070518 | C60: Vitrina Mostrador Tipo 2 1E (Blanco) (92cm x 90 cm x 40cm) | D60: 194300 | E60: 194300 | S60: =#REF!/1.19 -> 
A61: =CONCATENATE(B61:B558," ",C61:C558) -> 3070518 Vitrina Mostrador Tipo 2 1E (Nacar) (92cm x 90 cm x 40cm) | B61: 3070518 | C61: Vitrina Mostrador Tipo 2 1E (Nacar) (92cm x 90 cm x 40cm) | D61: 194300 | E61: 194300 | S61: =#REF!/1.19 -> 
A62: =CONCATENATE(B62:B559," ",C62:C559) -> 3070521 Perchero básico 1 pedestal (120cm Ancho - Altura) graduable + 5 ganchos | B62: 3070521 | C62: Perchero básico 1 pedestal (120cm Ancho - Altura) graduable + 5 ganchos | D62: 70300 | E62: 70300 | S62: =E41/1.19 -> 218487.395
A63: =CONCATENATE(B63:B560," ",C63:C560) -> 3070521 Perchero doble 2 pedestal (120cm Ancho-Altura) graduable + 5 ganchos | B63: 3070521 | C63: Perchero doble 2 pedestal (120cm Ancho-Altura) graduable + 5 ganchos | D63: 81100 | E63: 81100 | S63: =#REF!/1.19 -> 
A64: =CONCATENATE(B64:B561," ",C64:C561) -> 3070535 Vitrina Isla 2E (200cm x 50cm x 50cm) | B64: 3070535 | C64: Vitrina Isla 2E (200cm x 50cm x 50cm) | D64: 225100 | E64: 225100 | S64: =#REF!/1.19 -> 
A65: =CONCATENATE(B65:B562," ",C65:C562) -> 3070714 Cubo de exhibición (40cm x 40cm x 25cm) | B65: 3070714 | C65: Cubo de exhibición (40cm x 40cm x 25cm) | D65: 32400 | E65: 32400 | S65: =#REF!/1.19 -> 
A66: =CONCATENATE(B66:B563," ",C66:C563) -> 3070936 Mesón plegable plástico (Gris o blanco) (73cm x 182cm x 76cm) | B66: 3070936 | C66: Mesón plegable plástico (Gris o blanco) (73cm x 182cm x 76cm) | D66: 94900 | E66: 94900 | S66: =E42/1.19 -> 210084.0336
A67: =CONCATENATE(B67:B564," ",C67:C564) -> 3070954 Counter Mónaco (Blanco) (100cm x 100cm x 30cm) | B67: 3070954 | C67: Counter Mónaco (Blanco) (100cm x 100cm x 30cm) | D67: =IF(G$3=TRUE,E67/I$3,E67) -> 155400 | E67: 155400 | S67: =#REF!/1.19 -> 
A68: =CONCATENATE(B68:B565," ",C68:C565) -> 3070954 Counter Mónaco (Miel) (100cm x 100cm x 30cm) | B68: 3070954 | C68: Counter Mónaco (Miel) (100cm x 100cm x 30cm) | D68: 155400 | E68: 155400 | S68: =#REF!/1.19 -> 
A69: =CONCATENATE(B69:B566," ",C69:C566) -> 3070954 Counter Mónaco (Rovere) (100cm x 100cm x 30cm) | B69: 3070954 | C69: Counter Mónaco (Rovere) (100cm x 100cm x 30cm) | D69: 155400 | E69: 155400 | S69: =#REF!/1.19 -> 
A70: =CONCATENATE(B70:B567," ",C70:C567) -> 3070954 Counter Mónaco (Roble Gris) (100cm x 100cm x 30cm) | B70: 3070954 | C70: Counter Mónaco (Roble Gris) (100cm x 100cm x 30cm) | D70: 155400 | E70: 155400 | S70: =E43/1.19 -> 229411.7647
A71: =CONCATENATE(B71:B568," ",C71:C568) -> 3070955 Pedestal rectangular 90cm (90cm x 30cm x 30cm) | B71: 3070955 | C71: Pedestal rectangular 90cm (90cm x 30cm x 30cm) | D71: 40800 | E71: 40800 | S71: =#REF!/1.19 -> 
A72: =CONCATENATE(B72:B569," ",C72:C569) -> 3070956 Pedestal rectangular 60cm (60cm x 30cm x 30cm) | B72: 3070956 | C72: Pedestal rectangular 60cm (60cm x 30cm x 30cm) | D72: 36000 | E72: 36000 | S72: =#REF!/1.19 -> 
A73: =CONCATENATE(B73:B570," ",C73:C570) -> 3070957 Pedestal cuadrado (30cm x 30cm x 30cm) | B73: 3070957 | C73: Pedestal cuadrado (30cm x 30cm x 30cm) | D73: 31200 | E73: 31200 | S73: =#REF!/1.19 -> 
A74: =CONCATENATE(B74:B571," ",C74:C571) -> 3071006 Silla Interlocutora Negra (79cm x 53cm x 42cm) | B74: 3071006 | C74: Silla Interlocutora Negra (79cm x 53cm x 42cm) | D74: 44900 | E74: 44900 | S74: =E44/1.19 -> 
A75: =CONCATENATE(B75:B572," ",C75:C572) -> 3071008 Silla estandar Tipo Huevo (48cm x 46cm x 45cm) | B75: 3071008 | C75: Silla estandar Tipo Huevo (48cm x 46cm x 45cm) | D75: 62500 | E75: 62500 | S75: 65546.21849
A76: =CONCATENATE(B76:B573," ",C76:C573) -> 3071013 Sofa Victoria derecho (70cm x 100cm x 75cm) | B76: 3071013 | C76: Sofa Victoria derecho (70cm x 100cm x 75cm) | D76: 165200 | E76: 165200 | S76: 63025.21008
A77: =CONCATENATE(B77:B574," ",C77:C574) -> 3071022 Silla Neumatica alta Versalles (80cm x 40 cm x 40cm) | B77: 3071022 | C77: Silla Neumatica alta Versalles (80cm x 40 cm x 40cm) | D77: 94500 | E77: 94500 | S77: 273109.2437
A78: =CONCATENATE(B78:B575," ",C78:C575) -> 3071023 Sofa Victoria izquierdo (70cm x 100cm x 75cm) | B78: 3071023 | C78: Sofa Victoria izquierdo (70cm x 100cm x 75cm) | D78: 165200 | E78: 165200 | S78: 1260504.202
A79: =CONCATENATE(B79:B576," ",C79:C576) -> 3071031 Sofa Terranova 2 cuerpos (88cm x 173cm x 80cm) | B79: 3071031 | C79: Sofa Terranova 2 cuerpos (88cm x 173cm x 80cm) | D79: 203400 | E79: 203400 | S79: 172268.9076
A80: =CONCATENATE(B80:B577," ",C80:C577) -> 3071036 Mesa plegable plastico + 2 sillas interlocutoras negras | B80: 3071036 | C80: Mesa plegable plastico + 2 sillas interlocutoras negras | D80: 172800 | E80: 172800 | S80: 34453.78151
A81: =CONCATENATE(B81:B578," ",C81:C578) -> 3071039 Mesa alta Daysa + 2 sillas neumaticas altas marsella | B81: 3071039 | C81: Mesa alta Daysa + 2 sillas neumaticas altas marsella | D81: 224300 | E81: 224300 | S81: =#REF!/1.19 -> 
A82: =CONCATENATE(B82:B579," ",C82:C579) -> 3071054 Mesa estandar lotus vidrio + 2 sillas tipo huevo | B82: 3071054 | C82: Mesa estandar lotus vidrio + 2 sillas tipo huevo | D82: 247000 | E82: 247000 | S82: =#REF!/1.19 -> 
A83: =CONCATENATE(B83:B580," ",C83:C580) -> 3071059 Poltrona Levis (73cm x 86cm x 73cm) | B83: 3071059 | C83: Poltrona Levis (73cm x 86cm x 73cm) | D83: 179500 | E83: 179500 | S83: =#REF!/1.19 -> 
A84: =CONCATENATE(B84:B581," ",C84:C581) -> 3071061 Silla estandar Suiza (48cm x 46cm x 45cm) | B84: 3071061 | C84: Silla estandar Suiza (48cm x 46cm x 45cm) | D84: 62500 | E84: 62500 | S84: =E51/1.19 -> 34453.78151
A85: =CONCATENATE(B85:B582," ",C85:C582) -> 3071068 Mesa Centro Rectangular doble nivel (Blanco) (50cm x 75cm x 50cm) | B85: 3071068 | C85: Mesa Centro Rectangular doble nivel (Blanco) (50cm x 75cm x 50cm) | D85: 77500 | E85: 77500 | S85: =#REF!/1.19 -> 
A86: =CONCATENATE(B86:B583," ",C86:C583) -> 3071077 Silla Neumática alta Marsella (80cm x 40cm x 40cm) | B86: 3071077 | C86: Silla Neumática alta Marsella (80cm x 40cm x 40cm) | D86: 75200 | E86: 75200 | S86: =#REF!/1.19 -> 
A87: =CONCATENATE(B87:B584," ",C87:C584) -> 3071081 Silla Ejecutiva Cuero (57cm x 93cm x 52cm) | B87: 3071081 | C87: Silla Ejecutiva Cuero (57cm x 93cm x 52cm) | D87: 68400 | E87: 68400 | S87: =#REF!/1.19 -> 
A88: =CONCATENATE(B88:B585," ",C88:C585) -> 3071081 Silla Ejecutiva Malla (100cm x 57cm x 52 cm) | B88: 3071081 | C88: Silla Ejecutiva Malla (100cm x 57cm x 52 cm) | D88: 140800 | E88: 140800 | S88: =E52/1.19 -> 96638.65546
A89: =CONCATENATE(B89:B586," ",C89:C586) -> 3071083 Sofa Toronto 3 cuerpos (88cm x 173cm x 80cm) | B89: 3071083 | C89: Sofa Toronto 3 cuerpos (88cm x 173cm x 80cm) | D89: 203400 | E89: 203400 | S89: =#REF!/1.19 -> 
A90: =CONCATENATE(B90:B587," ",C90:C587) -> 3071085 Sofa Otawa 2 cuerpos (85cm x 120cm x 76cm) | B90: 3071085 | C90: Sofa Otawa 2 cuerpos (85cm x 120cm x 76cm) | D90: 191500 | E90: 191500 | S90: =#REF!/1.19 -> 
A91: =CONCATENATE(B91:B588," ",C91:C588) -> 3071090 Puff estandar cuadrado (43cm x 43cm x 43cm) | B91: 3071090 | C91: Puff estandar cuadrado (43cm x 43cm x 43cm) | D91: 50100 | E91: 50100 | S91: =#REF!/1.19 -> 
A92: =CONCATENATE(B92:B589," ",C92:C589) -> 3071091 Puff Trunk 2 cuerpos (48cm x 81cm x 40cm) | B92: 3071091 | C92: Puff Trunk 2 cuerpos (48cm x 81cm x 40cm) | D92: 95800 | E92: 95800 | S92: =E53/1.19 -> 89915.96639
A93: =CONCATENATE(B93:B590," ",C93:C590) -> 3071093 Mesa alta Daysa vidrio (100cm x 60cm) | B93: 3071093 | C93: Mesa alta Daysa vidrio (100cm x 60cm) | D93: 107700 | E93: 107700 | S93: 138739.4958
A94: =CONCATENATE(B94:B591," ",C94:C591) -> 3071095 Sala VIP (1 sofá Victoria derecho, 1 sofá Victoria izquierdo, 2 poltronas, 1 mesa centro cuadrada 2 niveles) | B94: 3071095 | C94: Sala VIP (1 sofá Victoria derecho, 1 sofá Victoria izquierdo, 2 poltronas, 1 mesa centro cuadrada 2 niveles) | D94: 626400 | E94: 626400 | S94: 138739.4958
A95: =CONCATENATE(B95:B591," ",C95:C591) -> 3071097 Mesa estandar Daysa (76cm x 60cm) | B95: 3071097 | C95: Mesa estandar Daysa (76cm x 60cm) | D95: 95800 | E95: 95800 | S95: 138739.4958
A96: =CONCATENATE(B96:B592," ",C96:C592) -> 3071098 Mesa estandar Shia (Blanco) (76cm x 60cm x 60cm) | B96: 3071098 | C96: Mesa estandar Shia (Blanco) (76cm x 60cm x 60cm) | D96: 95800 | E96: 95800 | S96: 138739.4958
A97: =CONCATENATE(B97:B593," ",C97:C593) -> 3071098 Mesa estandar Shia (Negra) (76cm x 60cm x 60cm) | B97: 3071098 | C97: Mesa estandar Shia (Negra) (76cm x 60cm x 60cm) | D97: 95800 | E97: 95800 | S97: 138739.4958
A98: =CONCATENATE(B98:B594," ",C98:C594) -> 3071100 Mesa Centro Circular doble nivel (Blanco) (50cm x 110cm x 60cm) | B98: 3071100 | C98: Mesa Centro Circular doble nivel (Blanco) (50cm x 110cm x 60cm) | D98: 106600 | E98: 106600 | S98: 163277.3109
A99: =CONCATENATE(B99:B595," ",C99:C595) -> 3071103 Nevera Minibar 121 LT (48.5cm X 85.1cm X 60cm) | B99: 3071103 | C99: Nevera Minibar 121 LT (48.5cm X 85.1cm X 60cm) | D99: 184600 | E99: 184600 | S99: 163277.3109
A100: =CONCATENATE(B100:B596," ",C100:C596) -> 3071103 Nevera Estandar 230LT ( 55.6cm X 157.6cm X 67cm) | B100: 3071103 | C100: Nevera Estandar 230LT ( 55.6cm X 157.6cm X 67cm) | D100: 272300 | E100: 272300 | S100: 163277.3109
A101: =CONCATENATE(B101:B597," ",C101:C597) -> 3071104 Mesa Centro Cuadrada 2 Niveles (Blanco) (50cm x 60cm x 60) | B101: 3071104 | C101: Mesa Centro Cuadrada 2 Niveles (Blanco) (50cm x 60cm x 60) | D101: 77500 | E101: 77500 | S101: 59075.63025
A102: =CONCATENATE(B102:B598," ",C102:C598) -> 3071105 KIT básico oficina 2 (2 sillas interlocutoras negras, 1 silla ejecutiva cuero, 1 mesa oficina) | B102: 3071105 | C102: KIT básico oficina 2 (2 sillas interlocutoras negras, 1 silla ejecutiva cuero, 1 mesa oficina) | D102: 215400 | E102: 215400 | S102: 68151.2605
A103: =CONCATENATE(B103:B599," ",C103:C599) -> 3071108 Estantería Shelf 4E (190cm x 100cm x 30cm) | B103: 3071108 | C103: Estantería Shelf 4E (190cm x 100cm x 30cm) | D103: 137600 | E103: 137600 | S103: 189159.6639
A104: =CONCATENATE(B104:B600," ",C104:C600) -> 3071111 Vitrina Rectangular 2E (200cm x 100cm x 40cm) | B104: 3071111 | C104: Vitrina Rectangular 2E (200cm x 100cm x 40cm) | D104: 260200 | E104: 260200 | S104: 27226.89076
A105: =CONCATENATE(B105:B601," ",C105:C601) -> 3071113 Sala Osaka (1 sofá Toronto, 2 puffs Donna, 1 mesa centro cuadrada 2 niveles) | B105: 3071113 | C105: Sala Osaka (1 sofá Toronto, 2 puffs Donna, 1 mesa centro cuadrada 2 niveles) | D105: 418600 | E105: 418600 | S105: 79747.89916
A106: =CONCATENATE(B106:B602," ",C106:C602) -> 3071114 Puff Trunk 3 cuerpos (46cm x 120cm x 54cm) | B106: 3071114 | C106: Puff Trunk 3 cuerpos (46cm x 120cm x 54cm) | D106: 95800 | E106: 95800 | S106: 130588.2353
A107: =CONCATENATE(B107:B603," ",C107:C603) -> 3071115 Mesa alta Daysa (Blanco) (100cm x 60cm) | B107: 3071115 | C107: Mesa alta Daysa (Blanco) (100cm x 60cm) | D107: 95800 | E107: 95800 | S107: 130588.2353
A108: =CONCATENATE(B108:B604," ",C108:C604) -> 3071115 Mesa alta Daysa (Miel) (100cm x 60cm) | B108: 3071115 | C108: Mesa alta Daysa (Miel) (100cm x 60cm) | D108: 95800 | E108: 95800 | S108: 130588.2353
A109: =CONCATENATE(B109:B605," ",C109:C605) -> 3071115 Mesa alta Daysa (Rovere) (100cm x 60cm) | B109: 3071115 | C109: Mesa alta Daysa (Rovere) (100cm x 60cm) | D109: 95800 | E109: 95800 | S109: 130588.2353
A110: =CONCATENATE(B110:B606," ",C110:C606) -> 3071115 Mesa alta Daysa (Roble Gris) (100cm x 60cm) | B110: 3071115 | C110: Mesa alta Daysa (Roble Gris) (100cm x 60cm) | D110: 95800 | E110: 95800 | S110: 34285.71429
A111: =CONCATENATE(B111:B607," ",C111:C607) -> 3071116 Mesa estandar Lotus (70cm x 64cm x 81cm) | B111: 3071116 | C111: Mesa estandar Lotus (70cm x 64cm x 81cm) | D111: 143500 | E111: 143500 | S111: 30252.10084
A112: =CONCATENATE(B112:B608," ",C112:C608) -> 3071302 Papelera plastica negra | B112: 3071302 | C112: Papelera plastica negra | D112: 23000 | E112: 23000 | S112: 26218.48739
A113: =CONCATENATE(B113:B609," ",C113:C609) -> 3071325 Poste separador 120cm de alto | B113: 3071325 | C113: Poste separador 120cm de alto | D113: 44000 | E113: 44000 | S113: 37731.09244
A114: =CONCATENATE(B114:B610," ",C114:C610) -> 3071370 Revistero plegable (140cm x 25cm x 29cm) | B114: 3071370 | C114: Revistero plegable (140cm x 25cm x 29cm) | D114: 71300 | E114: 71300 | S114: 52521.0084
A115: =CONCATENATE(B115:B611," ",C115:C611) -> 30710165 Silla Bombona Roja (80cm x 43cm x 40cm) | B115: 30710165 | C115: Silla Bombona Roja (80cm x 43cm x 40cm) | D115: 59800 | E115: 59800 | S115: 138823.5294
A116: =CONCATENATE(B116:B612," ",C116:C612) -> 30710166 Silla Oslo Blanca (90cm x 50cm x 45cm) | B116: 30710166 | C116: Silla Oslo Blanca (90cm x 50cm x 45cm) | D116: 68400 | E116: 68400 | S116: 79411.76471
A117: =CONCATENATE(B117:B613," ",C117:C613) -> 30710167 Silla Tipo Bar Madera (75cm x 38cm x39 cm) | B117: 30710167 | C117: Silla Tipo Bar Madera (75cm x 38cm x39 cm) | D117: 74300 | E117: 74300 | S117: 138823.5294
A118: =CONCATENATE(B118:B614," ",C118:C614) -> 30710168 Sala de Juntas (75cm x 120cn x 240cm) | B118: 30710168 | C118: Sala de Juntas (75cm x 120cn x 240cm) | D118: 270000 | E118: 270000 | S118: 170924.3697
A119: =CONCATENATE(B119:B615," ",C119:C615) -> 30713198 Silla Gerencial (100cm x 49cm x 49cm) | B119: 30713198 | C119: Silla Gerencial (100cm x 49cm x 49cm) | D119: 140800 | E119: 140800 | S119: 145210.084
A120: =CONCATENATE(B120:B616," ",C120:C616) -> 30713200 Mesa Oficina (50cm x 120cm x 50cm) | B120: 30713200 | C120: Mesa Oficina (50cm x 120cm x 50cm) | D120: 120700 | E120: 120700 | S120: 188487.395
A121: =CONCATENATE(B121:B617," ",C121:C617) -> 30713201 Poltrona Buggy (73cm x 86cm X 73cm) | B121: 30713201 | C121: Poltrona Buggy (73cm x 86cm X 73cm) | D121: 140800 | E121: 140800 | S121: 207563.0252
A122: =CONCATENATE(B122:B618," ",C122:C618) -> 30713225 Tapete Ferial Tipo Moqueta Liso m2 m2 + Instalación: Contáctese con serviciosplus@corferias.com para brindarle asesoria y cotización. | B122: 30713225 | C122: Tapete Ferial Tipo Moqueta Liso m2 m2 + Instalación: Contáctese con serviciosplus@corferias.com para brindarle asesoria y cotización. | D122: 37800 | E122: 37800 | G122: =E122*1.19 -> 44982 | S122: 150840.3361
A123: =CONCATENATE(B123:B619," ",C123:C619) -> 30713226 Tapete Ferial Tipo Moqueta Acanalado m2 + Instalación: contáctese con serviciosplus@corferias.com para brindarle asesoria y cotización. | B123: 30713226 | C123: Tapete Ferial Tipo Moqueta Acanalado m2 + Instalación: contáctese con serviciosplus@corferias.com para brindarle asesoria y cotización. | D123: 37800 | E123: 37800 | G123: =E123*1.19 -> 44982 | S123: 52521.0084
A124: =CONCATENATE(B124:B620," ",C124:C620) -> 30713227 Tapete Caucho m2 + Instalación: contáctese con serviciosplus@corferias.com para brindarle asesoria y cotización. | B124: 30713227 | C124: Tapete Caucho m2 + Instalación: contáctese con serviciosplus@corferias.com para brindarle asesoria y cotización. | D124: 97200 | E124: 97200 | G124: =E124*1.19 -> 115668 | S124: 65126.05042
A125: =CONCATENATE(B125:B621," ",C125:C621) -> 30713228 Piso Laminado m2 + Instalación: contáctese con serviciosplus@corferias.com para brindarle asesoria y cotización. | B125: 30713228 | C125: Piso Laminado m2 + Instalación: contáctese con serviciosplus@corferias.com para brindarle asesoria y cotización. | D125: 97200 | E125: 97200 | G125: =E125*1.19 -> 115668 | S125: 63193.27731
A126: =CONCATENATE(B126:B622," ",C126:C622) -> 30713229 Piso Melaminico m2 + Instalación: contáctese con serviciosplus@corferias.com para brindarle asesoria y cotización. | B126: 30713229 | C126: Piso Melaminico m2 + Instalación: contáctese con serviciosplus@corferias.com para brindarle asesoria y cotización. | D126: 172800 | E126: 172800 | G126: =E126*1.19 -> 205632 | S126: 57478.9916
A127: =CONCATENATE(B127:B623," ",C127:C623) -> Sala Barú (1 sofá Otawa, 2 Puff Cuadrados, 1 Puff 2 Puestos, 1 Mesa de Centro 2 niveles) | C127: Sala Barú (1 sofá Otawa, 2 Puff Cuadrados, 1 Puff 2 Puestos, 1 Mesa de Centro 2 niveles) | D127: 418600 | E127: 418600 | S127: 118319.3277
A128: =CONCATENATE(B128:B624," ",C128:C624) -> Sala Terranova (1 sofá terranoca, 2 Poltronas Buggy, 1 Mesa de Centro 2 niveles) | C128: Sala Terranova (1 sofá terranoca, 2 Poltronas Buggy, 1 Mesa de Centro 2 niveles) | D128: 418600 | E128: 418600
A129: =CONCATENATE(B129:B625," ",C129:C625) -> Matera Melaminico (con 12 Matas Artificiales) | C129: Matera Melaminico (con 12 Matas Artificiales) | D129: 40800 | E129: 40800
A130: =CONCATENATE(B130:B626," ",C130:C626) -> 3070942 KIT de Oficina Pino 1 (1 mesa plegable pino, 3 sillas acrilicas K negra) | B130: 3070942 | C130: KIT de Oficina Pino 1 (1 mesa plegable pino, 3 sillas acrilicas K negra) | D130: 181000 | E130: 181000
A131: =CONCATENATE(B131:B627," ",C131:C627) -> 3070940 Mesa Pino 120 x 60 cms | B131: 3070940 | C131: Mesa Pino 120 x 60 cms | D131: =IF(G$3=TRUE,E131/I$3,E131) -> 106800 | E131: 106800
A132: =CONCATENATE(B132:B628," ",C132:C628) -> 3071002 Silla Acrilica K Negra 103C | B132: 3071002 | C132: Silla Acrilica K Negra 103C | D132: 45300 | E132: 45300
A133: =CONCATENATE(B133:B624," ",C133:C624) -> 3071346 Base para Tv Led - LCD adaptable (No Incluye Instalacion) Valor evento 1 día | B133: 3071346 | C133: Base para Tv Led - LCD adaptable (No Incluye Instalacion) Valor evento 1 día | D133: 42500 | E133: 42500 | S133: =E89/1.19 -> 170924.3697
A134: =CONCATENATE(B134:B625," ",C134:C625) -> 3071346 Base para Tv Led - LCD adaptable (No Incluye Instalacion) Valor evento 2 dias (Valor dia) | B134: 3071346 | C134: Base para Tv Led - LCD adaptable (No Incluye Instalacion) Valor evento 2 dias (Valor dia) | D134: 42500 | E134: 42500 | S134: 160924.3697
A135: =CONCATENATE(B135:B626," ",C135:C626) -> 3071346 Base para Tv Led - LCD adaptable (No Incluye Instalacion) Valor de 3 a 6 dias (Valor dia) | B135: 3071346 | C135: Base para Tv Led - LCD adaptable (No Incluye Instalacion) Valor de 3 a 6 dias (Valor dia) | D135: 38600 | E135: 38600 | S135: 42100.84034
A136: =CONCATENATE(B136:B627," ",C136:C627) -> 3071346 Base para Tv Led - LCD adaptable (No Incluye Instalacion) Valor de 7 a 18 días (Valor feria) | B136: 3071346 | C136: Base para Tv Led - LCD adaptable (No Incluye Instalacion) Valor de 7 a 18 días (Valor feria) | D136: 272500 | E136: 272500 | S136: 80504.20168
A137: =CONCATENATE(B137:B628," ",C137:C628) -> 3071204 Tv Smart 45" 114cms ( Incluye base para tv / cable de corriente / 1 cable HDMI) IN: HDMI, USB Valor evento 1 día | B137: 3071204 | C137: Tv Smart 45" 114cms ( Incluye base para tv / cable de corriente / 1 cable HDMI) IN: HDMI, USB Valor evento 1 día | D137: 137900 | E137: 137900 | S137: 90504.20168
A138: =CONCATENATE(B138:B629," ",C138:C629) -> 3071204 Tv Smart 45" 114cms ( Incluye base para tv / cable de corriente / 1 cable HDMI) IN: HDMI, USB Valor evento 2 dias (Valor dia) | B138: 3071204 | C138: Tv Smart 45" 114cms ( Incluye base para tv / cable de corriente / 1 cable HDMI) IN: HDMI, USB Valor evento 2 dias (Valor dia) | D138: 135900 | E138: 135900 | S138: 526386.5546
A139: =CONCATENATE(B139:B630," ",C139:C630) -> 3071204 Tv Smart 45" 114cms ( Incluye base para tv / cable de corriente / 1 cable HDMI) IN: HDMI, USB Valor de 3 a 6 dias (Valor dia) | B139: 3071204 | C139: Tv Smart 45" 114cms ( Incluye base para tv / cable de corriente / 1 cable HDMI) IN: HDMI, USB Valor de 3 a 6 dias (Valor dia) | D139: 125800 | E139: 125800 | S139: 80504.20168
A140: =CONCATENATE(B140:B631," ",C140:C631) -> 3071204 Tv Smart 45" 114cms ( Incluye base para tv / cable de corriente / 1 cable HDMI) IN: HDMI, USB Valor de 7 a 18 días (Valor feria) | B140: 3071204 | C140: Tv Smart 45" 114cms ( Incluye base para tv / cable de corriente / 1 cable HDMI) IN: HDMI, USB Valor de 7 a 18 días (Valor feria) | D140: 816500 | E140: 816500 | S140: 80504.20168
A141: =CONCATENATE(B141:B632," ",C141:C632) -> 30713202 Tv Smart 55" 140cms ( Incluye base para tv / cable de corriente / 1 cable HDMI) IN: HDMI, USB Valor evento 1 día | B141: 30713202 | C141: Tv Smart 55" 140cms ( Incluye base para tv / cable de corriente / 1 cable HDMI) IN: HDMI, USB Valor evento 1 día | D141: 188100 | E141: 188100 | S141: 80504.20168
A142: =CONCATENATE(B142:B629," ",C142:C629) -> 30713202 Tv Smart 55" 140cms ( Incluye base para tv / cable de corriente / 1 cable HDMI) IN: HDMI, USB Valor evento 2 dias (Valor dia) | B142: 30713202 | C142: Tv Smart 55" 140cms ( Incluye base para tv / cable de corriente / 1 cable HDMI) IN: HDMI, USB Valor evento 2 dias (Valor dia) | D142: 188100 | E142: 188100 | S142: 89579.83193
A143: =CONCATENATE(B143:B630," ",C143:C630) -> 30713202 Tv Smart 55" 140cms ( Incluye base para tv / cable de corriente / 1 cable HDMI) IN: HDMI, USB Valor de 3 a 6 dias (Valor dia) | B143: 30713202 | C143: Tv Smart 55" 140cms ( Incluye base para tv / cable de corriente / 1 cable HDMI) IN: HDMI, USB Valor de 3 a 6 dias (Valor dia) | D143: 171400 | E143: 171400 | S143: 155126.0504
A144: =CONCATENATE(B144:B631," ",C144:C631) -> 30713202 Tv Smart 55" 140cms ( Incluye base para tv / cable de corriente / 1 cable HDMI) IN: HDMI, USB Valor de 7 a 18 días (Valor feria) | B144: 30713202 | C144: Tv Smart 55" 140cms ( Incluye base para tv / cable de corriente / 1 cable HDMI) IN: HDMI, USB Valor de 7 a 18 días (Valor feria) | D144: 1381900 | E144: 1381900 | S144: 228823.5294
A145: =CONCATENATE(B145:B632," ",C145:C632) -> 3071206 Tv Smart 65" 165cms ( Incluye base para tv / cable de corriente /1 cable HDMI) IN: HDMI, USB Valor evento 1 día | B145: 3071206 | C145: Tv Smart 65" 165cms ( Incluye base para tv / cable de corriente /1 cable HDMI) IN: HDMI, USB Valor evento 1 día | D145: 330600 | E145: 330600 | S145: 65126.05042
A146: =CONCATENATE(B146:B633," ",C146:C633) -> 3071206 Tv Smart 65" 165cms ( Incluye base para tv / cable de corriente /1 cable HDMI) IN: HDMI, USB Valor evento 2 dias (Valor dia) | B146: 3071206 | C146: Tv Smart 65" 165cms ( Incluye base para tv / cable de corriente /1 cable HDMI) IN: HDMI, USB Valor evento 2 dias (Valor dia) | D146: 330600 | E146: 330600 | S146: 181008.4034
A147: =CONCATENATE(B147:B634," ",C147:C634) -> 3071206 Tv Smart 65" 165cms ( Incluye base para tv / cable de corriente /1 cable HDMI) IN: HDMI, USB Valor de 3 a 6 dias (Valor dia) | B147: 3071206 | C147: Tv Smart 65" 165cms ( Incluye base para tv / cable de corriente /1 cable HDMI) IN: HDMI, USB Valor de 3 a 6 dias (Valor dia) | D147: 312400 | E147: 312400 | S147: 115630.2521
A148: =CONCATENATE(B148:B635," ",C148:C635) -> 3071206 Tv Smart 65" 165cms ( Incluye base para tv / cable de corriente /1 cable HDMI) IN: HDMI, USB Valor de 7 a 18 días (Valor feria) | B148: 3071206 | C148: Tv Smart 65" 165cms ( Incluye base para tv / cable de corriente /1 cable HDMI) IN: HDMI, USB Valor de 7 a 18 días (Valor feria) | D148: 1582600 | E148: 1582600 | S148: 218655.4622
A149: =CONCATENATE(B149:B636," ",C149:C636) -> 3071279 Tv Smart 70" 177,8cms ( Incluye base para tv / cable de corriente /1 cable HDMI) IN: HDMI, USB Valor evento 1 día | B149: 3071279 | C149: Tv Smart 70" 177,8cms ( Incluye base para tv / cable de corriente /1 cable HDMI) IN: HDMI, USB Valor evento 1 día | D149: 531400 | E149: 531400 | S149: 351764.7059
A150: =CONCATENATE(B150:B637," ",C150:C637) -> 3071279 Tv Smart 70" 177,8cms ( Incluye base para tv / cable de corriente /1 cable HDMI) IN: HDMI, USB Valor evento 2 dias (Valor dia) | B150: 3071279 | C150: Tv Smart 70" 177,8cms ( Incluye base para tv / cable de corriente /1 cable HDMI) IN: HDMI, USB Valor evento 2 dias (Valor dia) | D150: 531400 | E150: 531400 | S150: 80504.20168
A151: =CONCATENATE(B151:B638," ",C151:C638) -> 3071279 Tv Smart 70" 177,8cms ( Incluye base para tv / cable de corriente /1 cable HDMI) IN: HDMI, USB Valor de 3 a 6 dias (Valor dia) | B151: 3071279 | C151: Tv Smart 70" 177,8cms ( Incluye base para tv / cable de corriente /1 cable HDMI) IN: HDMI, USB Valor de 3 a 6 dias (Valor dia) | D151: 483600 | E151: 483600 | S151: 80504.20168
A152: =CONCATENATE(B152:B639," ",C152:C639) -> 3071279 Tv Smart 70" 177,8cms ( Incluye base para tv / cable de corriente /1 cable HDMI) IN: HDMI, USB Valor de 7 a 18 días (Valor feria) | B152: 3071279 | C152: Tv Smart 70" 177,8cms ( Incluye base para tv / cable de corriente /1 cable HDMI) IN: HDMI, USB Valor de 7 a 18 días (Valor feria) | D152: 3454300 | E152: 3454300 | S152: 80504.20168
A153: =CONCATENATE(B153:B640," ",C153:C640) -> 3071222 Tv Smart 82" 204cms ( Incluye base para tv / cable de corriente /1 cable HDMI) IN: HDMI, USB Valor evento 1 día | B153: 3071222 | C153: Tv Smart 82" 204cms ( Incluye base para tv / cable de corriente /1 cable HDMI) IN: HDMI, USB Valor evento 1 día | D153: 987200 | E153: 987200 | S153: 80504.20168
A154: =CONCATENATE(B154:B641," ",C154:C641) -> 3071222 Tv Smart 82" 204cms ( Incluye base para tv / cable de corriente /1 cable HDMI) IN: HDMI, USB Valor evento 2 dias (Valor dia) | B154: 3071222 | C154: Tv Smart 82" 204cms ( Incluye base para tv / cable de corriente /1 cable HDMI) IN: HDMI, USB Valor evento 2 dias (Valor dia) | D154: 987200 | E154: 987200 | S154: 80504.20168
A155: =CONCATENATE(B155:B642," ",C155:C642) -> 3071222 Tv Smart 82" 204cms ( Incluye base para tv / cable de corriente /1 cable HDMI) IN: HDMI, USB Valor de 3 a 6 dias (Valor dia) | B155: 3071222 | C155: Tv Smart 82" 204cms ( Incluye base para tv / cable de corriente /1 cable HDMI) IN: HDMI, USB Valor de 3 a 6 dias (Valor dia) | D155: 898200 | E155: 898200 | S155: 120588.2353
A156: =CONCATENATE(B156:B643," ",C156:C643) -> 3071222 Tv Smart 82" 204cms ( Incluye base para tv / cable de corriente /1 cable HDMI) IN: HDMI, USB Valor de 7 a 18 días (Valor feria) | B156: 3071222 | C156: Tv Smart 82" 204cms ( Incluye base para tv / cable de corriente /1 cable HDMI) IN: HDMI, USB Valor de 7 a 18 días (Valor feria) | D156: 6414700 | E156: 6414700 | S156: 19327.73109
A157: =CONCATENATE(B157:B644," ",C157:C644) -> 3071262 Monitor tactil 65" 165cms ( Incluye base para monitor / cableado) IN: HDMI Valor evento 1 día | B157: 3071262 | C157: Monitor tactil 65" 165cms ( Incluye base para monitor / cableado) IN: HDMI Valor evento 1 día | D157: 666700 | E157: 666700 | S157: 36974.78992
A158: =CONCATENATE(B158:B645," ",C158:C645) -> 3071262 Monitor tactil 65" 165cms ( Incluye base para monitor / cableado) IN: HDMI Valor evento 2 dias (Valor dia) | B158: 3071262 | C158: Monitor tactil 65" 165cms ( Incluye base para monitor / cableado) IN: HDMI Valor evento 2 dias (Valor dia) | D158: 666700 | E158: 666700 | S158: 59915.96639
A159: =CONCATENATE(B159:B646," ",C159:C646) -> 3071262 Monitor tactil 65" 165cms ( Incluye base para monitor / cableado) IN: HDMI Valor de 3 a 6 dias (Valor dia) | B159: 3071262 | C159: Monitor tactil 65" 165cms ( Incluye base para monitor / cableado) IN: HDMI Valor de 3 a 6 dias (Valor dia) | D159: 485700 | E159: 485700 | S159: 50252.10084
A160: =CONCATENATE(B160:B647," ",C160:C647) -> 3071262 Monitor tactil 65" 165cms ( Incluye base para monitor / cableado) IN: HDMI Valor de 7 a 18 días (Valor feria) | B160: 3071262 | C160: Monitor tactil 65" 165cms ( Incluye base para monitor / cableado) IN: HDMI Valor de 7 a 18 días (Valor feria) | D160: 4847700 | E160: 4847700 | S160: 57478.9916
A161: =CONCATENATE(B161:B648," ",C161:C648) -> 3071284 Tablet tactil 7" RAM:1GB / Conectividad: 3G / Sistema Operativo Android 9.0 Valor evento 1 día | B161: 3071284 | C161: Tablet tactil 7" RAM:1GB / Conectividad: 3G / Sistema Operativo Android 9.0 Valor evento 1 día | D161: 50000 | E161: 50000 | S161: 62436.97479
A162: =CONCATENATE(B162:B649," ",C162:C649) -> 3071284 Tablet tactil 7" RAM:1GB / Conectividad: 3G / Sistema Operativo Android 9.0 Valor evento 2 dias (Valor dia) | B162: 3071284 | C162: Tablet tactil 7" RAM:1GB / Conectividad: 3G / Sistema Operativo Android 9.0 Valor evento 2 dias (Valor dia) | D162: 50000 | E162: 50000 | S162: 226890.7563
A163: =CONCATENATE(B163:B650," ",C163:C650) -> 3071284 Tablet tactil 7" RAM:1GB / Conectividad: 3G / Sistema Operativo Android 9.0 Valor de 3 a 6 dias (Valor dia) | B163: 3071284 | C163: Tablet tactil 7" RAM:1GB / Conectividad: 3G / Sistema Operativo Android 9.0 Valor de 3 a 6 dias (Valor dia) | D163: 46000 | E163: 46000 | S163: 118319.3277
A164: =CONCATENATE(B164:B651," ",C164:C651) -> 3071284 Tablet tactil 7" RAM:1GB / Conectividad: 3G / Sistema Operativo Android 9.0 Valor de 7 a 18 días (Valor feria) | B164: 3071284 | C164: Tablet tactil 7" RAM:1GB / Conectividad: 3G / Sistema Operativo Android 9.0 Valor de 7 a 18 días (Valor feria) | D164: 496800 | E164: 496800 | S164: 101428.5714
A165: =CONCATENATE(B165:B652," ",C165:C652) -> 3071265 Pantalla Led Full Hd Indoor / Medida 3,20mts x 2,96mts / Pitch 3,9 / Incluye estructura para montaje de piso a pared Valor evento 1 día | B165: 3071265 | C165: Pantalla Led Full Hd Indoor / Medida 3,20mts x 2,96mts / Pitch 3,9 / Incluye estructura para montaje de piso a pared Valor evento 1 día | D165: 1662336 | E165: 1662336 | S165: 118319.3277
A166: =CONCATENATE(B166:B653," ",C166:C653) -> 3071265 Pantalla Led Full Hd Indoor / Medida 3,20mts x 2,96mts / Pitch 3,9 / Incluye estructura para montaje de piso a pared Valor evento 2 dias (Valor dia) | B166: 3071265 | C166: Pantalla Led Full Hd Indoor / Medida 3,20mts x 2,96mts / Pitch 3,9 / Incluye estructura para montaje de piso a pared Valor evento 2 dias (Valor dia) | D166: 1662336 | E166: 1662336 | S166: 31764.70588
A167: =CONCATENATE(B167:B654," ",C167:C654) -> 3071265 Pantalla Led Full Hd Indoor / Medida 3,20mts x 2,96mts / Pitch 3,9 / Incluye estructura para montaje de piso a pared Valor de 3 a 6 dias (Valor dia) | B167: 3071265 | C167: Pantalla Led Full Hd Indoor / Medida 3,20mts x 2,96mts / Pitch 3,9 / Incluye estructura para montaje de piso a pared Valor de 3 a 6 dias (Valor dia) | D167: 1496064 | E167: 1496064 | S167: 31764.70588
A168: =CONCATENATE(B168:B655," ",C168:C655) -> 3071265 Pantalla Led Full Hd Indoor / Medida 3,20mts x 2,96mts / Pitch 3,9 / Incluye estructura para montaje de piso a pared Valor de 7 a 18 días (Valor feria) | B168: 3071265 | C168: Pantalla Led Full Hd Indoor / Medida 3,20mts x 2,96mts / Pitch 3,9 / Incluye estructura para montaje de piso a pared Valor de 7 a 18 días (Valor feria) | D168: 14067200 | E168: 14067200 | S168: 81680.67227
A169: =CONCATENATE(B169:B656," ",C169:C656) -> 3071267 Pantalla Led Full Hd Indoor / Medida 4,48mts x 3,20mts / Pitch 3,9 / Incluye estructura para montaje de piso a pared Valor evento 1 día | B169: 3071267 | C169: Pantalla Led Full Hd Indoor / Medida 4,48mts x 3,20mts / Pitch 3,9 / Incluye estructura para montaje de piso a pared Valor evento 1 día | D169: 1926272 | E169: 1926272 | S169: 81680.67227
A170: =CONCATENATE(B170:B657," ",C170:C657) -> 3071267 Pantalla Led Full Hd Indoor / Medida 4,48mts x 3,20mts / Pitch 3,9 / Incluye estructura para montaje de piso a pared Valor evento 2 dias (Valor dia) | B170: 3071267 | C170: Pantalla Led Full Hd Indoor / Medida 4,48mts x 3,20mts / Pitch 3,9 / Incluye estructura para montaje de piso a pared Valor evento 2 dias (Valor dia) | D170: 1926272 | E170: 1926272 | S170: 145210.084
A171: =CONCATENATE(B171:B658," ",C171:C658) -> 3071267 Pantalla Led Full Hd Indoor / Medida 4,48mts x 3,20mts / Pitch 3,9 / Incluye estructura para montaje de piso a pared Valor de 3 a 6 dias (Valor dia) | B171: 3071267 | C171: Pantalla Led Full Hd Indoor / Medida 4,48mts x 3,20mts / Pitch 3,9 / Incluye estructura para montaje de piso a pared Valor de 3 a 6 dias (Valor dia) | D171: 1733632 | E171: 1733632 | S171: 351764.7059
A172: =CONCATENATE(B172:B659," ",C172:C659) -> 3071267 Pantalla Led Full Hd Indoor / Medida 4,48mts x 3,20mts / Pitch 3,9 / Incluye estructura para montaje de piso a pared Valor de 7 a 18 días (Valor feria) | B172: 3071267 | C172: Pantalla Led Full Hd Indoor / Medida 4,48mts x 3,20mts / Pitch 3,9 / Incluye estructura para montaje de piso a pared Valor de 7 a 18 días (Valor feria) | D172: 20284032 | E172: 20284032 | S172: =E133/1.19 -> 35714.28571
A173: =CONCATENATE(B173:B660," ",C173:C660) -> 3071268 Pantalla Led Full Hd Indoor / Medida 6,4mts x 3,20mts /mts2: 20,48 / Pitch 3,9 / Incluye estructura para montaje de piso a pared Valor evento 1 día | B173: 3071268 | C173: Pantalla Led Full Hd Indoor / Medida 6,4mts x 3,20mts /mts2: 20,48 / Pitch 3,9 / Incluye estructura para montaje de piso a pared Valor evento 1 día | D173: 2287360 | E173: 2287360 | S173: 35714.28571
A174: =CONCATENATE(B174:B661," ",C174:C661) -> 3071268 Pantalla Led Full Hd Indoor / Medida 6,4mts x 3,20mts /mts2: 20,48 / Pitch 3,9 / Incluye estructura para montaje de piso a pared Valor evento 2 dias (Valor dia) | B174: 3071268 | C174: Pantalla Led Full Hd Indoor / Medida 6,4mts x 3,20mts /mts2: 20,48 / Pitch 3,9 / Incluye estructura para montaje de piso a pared Valor evento 2 dias (Valor dia) | D174: 2287360 | E174: 2287360 | S174: 32436.97479
A175: =CONCATENATE(B175:B662," ",C175:C662) -> 3071268 Pantalla Led Full Hd Indoor / Medida 6,4mts x 3,20mts /mts2: 20,48 / Pitch 3,9 / Incluye estructura para montaje de piso a pared Valor de 3 a 6 dias (Valor dia) | B175: 3071268 | C175: Pantalla Led Full Hd Indoor / Medida 6,4mts x 3,20mts /mts2: 20,48 / Pitch 3,9 / Incluye estructura para montaje de piso a pared Valor de 3 a 6 dias (Valor dia) | D175: 2071680 | E175: 2071680 | S175: 228991.5966
A176: =CONCATENATE(B176:B663," ",C176:C663) -> 3071268 Pantalla Led Full Hd Indoor / Medida 6,4mts x 3,20mts /mts2: 20,48 / Pitch 3,9 / Incluye estructura para montaje de piso a pared Valor de 7 a 18 días (Valor feria) | B176: 3071268 | C176: Pantalla Led Full Hd Indoor / Medida 6,4mts x 3,20mts /mts2: 20,48 / Pitch 3,9 / Incluye estructura para montaje de piso a pared Valor de 7 a 18 días (Valor feria) | D176: 14796416 | E176: 14796416 | S176: 115882.3529
A177: =CONCATENATE(B177:B664," ",C177:C664) -> 3071264 Pantalla Led Full Hd Indoor / Medida 6,4mts x 4,48mts /mts2: 28,67 / Pitch 3,9 / Incluye estructura para montaje de piso a pared Valor evento 1 día | B177: 3071264 | C177: Pantalla Led Full Hd Indoor / Medida 6,4mts x 4,48mts /mts2: 28,67 / Pitch 3,9 / Incluye estructura para montaje de piso a pared Valor evento 1 día | D177: 3049728 | E177: 3049728 | S177: 114201.6807
A178: =CONCATENATE(B178:B665," ",C178:C665) -> 3071264 Pantalla Led Full Hd Indoor / Medida 6,4mts x 4,48mts /mts2: 28,67 / Pitch 3,9 / Incluye estructura para montaje de piso a pared Valor evento 2 dias (Valor dia) | B178: 3071264 | C178: Pantalla Led Full Hd Indoor / Medida 6,4mts x 4,48mts /mts2: 28,67 / Pitch 3,9 / Incluye estructura para montaje de piso a pared Valor evento 2 dias (Valor dia) | D178: 3049728 | E178: 3049728 | S178: 105714.2857
A179: =CONCATENATE(B179:B666," ",C179:C666) -> 3071264 Pantalla Led Full Hd Indoor / Medida 6,4mts x 4,48mts /mts2: 28,67 / Pitch 3,9 / Incluye estructura para montaje de piso a pared Valor de 3 a 6 dias (Valor dia) | B179: 3071264 | C179: Pantalla Led Full Hd Indoor / Medida 6,4mts x 4,48mts /mts2: 28,67 / Pitch 3,9 / Incluye estructura para montaje de piso a pared Valor de 3 a 6 dias (Valor dia) | D179: 2761984 | E179: 2761984 | S179: 686134.4538
A180: =CONCATENATE(B180:B667," ",C180:C667) -> 3071264 Pantalla Led Full Hd Indoor / Medida 6,4mts x 4,48mts /mts2: 28,67 / Pitch 3,9 / Incluye estructura para montaje de piso a pared Valor de 7 a 18 días (Valor feria) | B180: 3071264 | C180: Pantalla Led Full Hd Indoor / Medida 6,4mts x 4,48mts /mts2: 28,67 / Pitch 3,9 / Incluye estructura para montaje de piso a pared Valor de 7 a 18 días (Valor feria) | D180: 19728512 | E180: 19728512 | S180: 158067.2269
A181: =CONCATENATE(B181:B668," ",C181:C668) -> 3071265 Pantalla Led Full Hd Indoor / Medida 7,4mts x 5,12mts /mts2: 36,04 / Pitch 3,9 / Incluye estructura para montaje de piso a pared Valor evento 1 día | B181: 3071265 | C181: Pantalla Led Full Hd Indoor / Medida 7,4mts x 5,12mts /mts2: 36,04 / Pitch 3,9 / Incluye estructura para montaje de piso a pared Valor evento 1 día | D181: 4447488 | E181: 4447488 | S181: 158067.2269
A182: =CONCATENATE(B182:B669," ",C182:C669) -> 3071265 Pantalla Led Full Hd Indoor / Medida 7,4mts x 5,12mts /mts2: 36,04 / Pitch 3,9 / Incluye estructura para montaje de piso a pared Valor evento 2 dias (Valor dia) | B182: 3071265 | C182: Pantalla Led Full Hd Indoor / Medida 7,4mts x 5,12mts /mts2: 36,04 / Pitch 3,9 / Incluye estructura para montaje de piso a pared Valor evento 2 dias (Valor dia) | D182: 4447488 | E182: 4447488 | S182: 144033.6134
A183: =CONCATENATE(B183:B670," ",C183:C670) -> 3071265 Pantalla Led Full Hd Indoor / Medida 7,4mts x 5,12mts /mts2: 36,04 / Pitch 3,9 / Incluye estructura para montaje de piso a pared Valor de 3 a 6 dias (Valor dia) | B183: 3071265 | C183: Pantalla Led Full Hd Indoor / Medida 7,4mts x 5,12mts /mts2: 36,04 / Pitch 3,9 / Incluye estructura para montaje de piso a pared Valor de 3 a 6 dias (Valor dia) | D183: 4027904 | E183: 4027904 | S183: 1161260.504
A184: =CONCATENATE(B184:B671," ",C184:C671) -> 3071265 Pantalla Led Full Hd Indoor / Medida 7,4mts x 5,12mts /mts2: 36,04 / Pitch 3,9 / Incluye estructura para montaje de piso a pared Valor de 7 a 18 días (Valor feria) | B184: 3071265 | C184: Pantalla Led Full Hd Indoor / Medida 7,4mts x 5,12mts /mts2: 36,04 / Pitch 3,9 / Incluye estructura para montaje de piso a pared Valor de 7 a 18 días (Valor feria) | D184: 28770688 | E184: 28770688 | S184: 277815.1261
A185: =CONCATENATE(B185:B672," ",C185:C672) -> 3071266 Pantalla Led Full Hd Indoor / Medida 8,32mts x 6,40mts /mts2: 53,25 / Pitch 3,9 / Incluye estructura para montaje de piso a pared Valor evento 1 día | B185: 3071266 | C185: Pantalla Led Full Hd Indoor / Medida 8,32mts x 6,40mts /mts2: 53,25 / Pitch 3,9 / Incluye estructura para montaje de piso a pared Valor evento 1 día | D185: 6099456 | E185: 6099456 | S185: 277815.1261
A186: =CONCATENATE(B186:B673," ",C186:C673) -> 3071266 Pantalla Led Full Hd Indoor / Medida 8,32mts x 6,40mts /mts2: 53,25 / Pitch 3,9 / Incluye estructura para montaje de piso a pared Valor evento 2 dias (Valor dia) | B186: 3071266 | C186: Pantalla Led Full Hd Indoor / Medida 8,32mts x 6,40mts /mts2: 53,25 / Pitch 3,9 / Incluye estructura para montaje de piso a pared Valor evento 2 dias (Valor dia) | D186: 6099456 | E186: 6099456 | S186: 262521.0084
A187: =CONCATENATE(B187:B674," ",C187:C674) -> 3071266 Pantalla Led Full Hd Indoor / Medida 8,32mts x 6,40mts /mts2: 53,25 / Pitch 3,9 / Incluye estructura para montaje de piso a pared Valor de 3 a 6 dias (Valor dia) | B187: 3071266 | C187: Pantalla Led Full Hd Indoor / Medida 8,32mts x 6,40mts /mts2: 53,25 / Pitch 3,9 / Incluye estructura para montaje de piso a pared Valor de 3 a 6 dias (Valor dia) | D187: 5524224 | E187: 5524224 | S187: 1329915.966
A188: =CONCATENATE(B188:B675," ",C188:C675) -> 3071266 Pantalla Led Full Hd Indoor / Medida 8,32mts x 6,40mts /mts2: 53,25 / Pitch 3,9 / Incluye estructura para montaje de piso a pared Valor de 7 a 18 días (Valor feria) | B188: 3071266 | C188: Pantalla Led Full Hd Indoor / Medida 8,32mts x 6,40mts /mts2: 53,25 / Pitch 3,9 / Incluye estructura para montaje de piso a pared Valor de 7 a 18 días (Valor feria) | D188: 39457024 | E188: 39457024 | S188: 446554.6218
A189: =CONCATENATE(B189:B676," ",C189:C676) -> 3071267 Pantalla Led Full Hd Outdoor / Medida 6,4mts x 4,48mts /mts2: 28,67 / Pitch 4,8 / No incluye estructura para montaje Valor evento 1 día | B189: 3071267 | C189: Pantalla Led Full Hd Outdoor / Medida 6,4mts x 4,48mts /mts2: 28,67 / Pitch 4,8 / No incluye estructura para montaje Valor evento 1 día | D189: 3049728 | E189: 3049728 | S189: 446554.6218
A190: =CONCATENATE(B190:B677," ",C190:C677) -> 3071267 Pantalla Led Full Hd Outdoor / Medida 6,4mts x 4,48mts /mts2: 28,67 / Pitch 4,8 / No incluye estructura para montaje Valor evento 2 dias (Valor dia) | B190: 3071267 | C190: Pantalla Led Full Hd Outdoor / Medida 6,4mts x 4,48mts /mts2: 28,67 / Pitch 4,8 / No incluye estructura para montaje Valor evento 2 dias (Valor dia) | D190: 3049728 | E190: 3049728 | S190: 406386.5546
A191: =CONCATENATE(B191:B678," ",C191:C678) -> 3071267 Pantalla Led Full Hd Outdoor / Medida 6,4mts x 4,48mts /mts2: 28,67 / Pitch 4,8 / No incluye estructura para montaje Valor de 3 a 6 dias (Valor dia) | B191: 3071267 | C191: Pantalla Led Full Hd Outdoor / Medida 6,4mts x 4,48mts /mts2: 28,67 / Pitch 4,8 / No incluye estructura para montaje Valor de 3 a 6 dias (Valor dia) | D191: 2760320 | E191: 2760320 | S191: 2902773.109
A192: =CONCATENATE(B192:B679," ",C192:C679) -> 3071267 Pantalla Led Full Hd Outdoor / Medida 6,4mts x 4,48mts /mts2: 28,67 / Pitch 4,8 / No incluye estructura para montaje Valor de 7 a 18 días (Valor feria) | B192: 3071267 | C192: Pantalla Led Full Hd Outdoor / Medida 6,4mts x 4,48mts /mts2: 28,67 / Pitch 4,8 / No incluye estructura para montaje Valor de 7 a 18 días (Valor feria) | D192: 19715072 | E192: 19715072 | S192: 829579.8319
A193: =CONCATENATE(B193:B680," ",C193:C680) -> 3071268 Pantalla Led Full Hd Outdoor / Medida 7,4mts x 5,12mts /mts2: 36,04/ Pitch 4,8 / No incluye estructura para montaje Valor evento 1 día | B193: 3071268 | C193: Pantalla Led Full Hd Outdoor / Medida 7,4mts x 5,12mts /mts2: 36,04/ Pitch 4,8 / No incluye estructura para montaje Valor evento 1 día | D193: 4447488 | E193: 4447488 | S193: 829579.8319
A194: =CONCATENATE(B194:B681," ",C194:C681) -> 3071268 Pantalla Led Full Hd Outdoor / Medida 7,4mts x 5,12mts /mts2: 36,04/ Pitch 4,8 / No incluye estructura para montaje Valor evento 2 dias (Valor dia) | B194: 3071268 | C194: Pantalla Led Full Hd Outdoor / Medida 7,4mts x 5,12mts /mts2: 36,04/ Pitch 4,8 / No incluye estructura para montaje Valor evento 2 dias (Valor dia) | D194: 4447488 | E194: 4447488 | S194: 754789.916
A195: =CONCATENATE(B195:B682," ",C195:C682) -> 3071268 Pantalla Led Full Hd Outdoor / Medida 7,4mts x 5,12mts /mts2: 36,04/ Pitch 4,8 / No incluye estructura para montaje Valor de 3 a 6 dias (Valor dia) | B195: 3071268 | C195: Pantalla Led Full Hd Outdoor / Medida 7,4mts x 5,12mts /mts2: 36,04/ Pitch 4,8 / No incluye estructura para montaje Valor de 3 a 6 dias (Valor dia) | D195: =IF(G$3=TRUE,E195/I$3,E195) -> 4025216 | E195: 4025216 | S195: 5390504.202
A196: =CONCATENATE(B196:B683," ",C196:C683) -> 3071268 Pantalla Led Full Hd Outdoor / Medida 7,4mts x 5,12mts /mts2: 36,04/ Pitch 4,8 / No incluye estructura para montaje Valor de 7 a 18 días (Valor feria) | B196: 3071268 | C196: Pantalla Led Full Hd Outdoor / Medida 7,4mts x 5,12mts /mts2: 36,04/ Pitch 4,8 / No incluye estructura para montaje Valor de 7 a 18 días (Valor feria) | D196: 28750976 | E196: 28750976 | S196: 560252.1008
A197: =CONCATENATE(B197:B684," ",C197:C684) -> 3071269 Pantalla Led Full Hd Outdoor / Medida 8,32mts x 6,40mts /mts2: 53,25/ Pitch 4,8 / No incluye estructura para montaje Valor evento 1 día | B197: 3071269 | C197: Pantalla Led Full Hd Outdoor / Medida 8,32mts x 6,40mts /mts2: 53,25/ Pitch 4,8 / No incluye estructura para montaje Valor evento 1 día | D197: 6099456 | E197: 6099456 | S197: 560252.1008
A198: =CONCATENATE(B198:B685," ",C198:C685) -> 3071269 Pantalla Led Full Hd Outdoor / Medida 8,32mts x 6,40mts /mts2: 53,25/ Pitch 4,8 / No incluye estructura para montaje Valor evento 2 dias (Valor dia) | B198: 3071269 | C198: Pantalla Led Full Hd Outdoor / Medida 8,32mts x 6,40mts /mts2: 53,25/ Pitch 4,8 / No incluye estructura para montaje Valor evento 2 dias (Valor dia) | D198: 6099456 | E198: 6099456 | S198: 408151.2605
A199: =CONCATENATE(B199:B686," ",C199:C686) -> 3071269 Pantalla Led Full Hd Outdoor / Medida 8,32mts x 6,40mts /mts2: 53,25/ Pitch 4,8 / No incluye estructura para montaje Valor de 3 a 6 dias (Valor dia) | B199: 3071269 | C199: Pantalla Led Full Hd Outdoor / Medida 8,32mts x 6,40mts /mts2: 53,25/ Pitch 4,8 / No incluye estructura para montaje Valor de 3 a 6 dias (Valor dia) | D199: 5520384 | E199: 5520384 | S199: 4073697.479
A200: =CONCATENATE(B200:B687," ",C200:C687) -> 3071269 Pantalla Led Full Hd Outdoor / Medida 8,32mts x 6,40mts /mts2: 53,25/ Pitch 4,8 / No incluye estructura para montaje Valor de 7 a 18 días (Valor feria) | B200: 3071269 | C200: Pantalla Led Full Hd Outdoor / Medida 8,32mts x 6,40mts /mts2: 53,25/ Pitch 4,8 / No incluye estructura para montaje Valor de 7 a 18 días (Valor feria) | D200: 39429760 | E200: 39429760 | S200: 42016.80672
... 234 more rows

Sheet FERIAS DE 4 A 6 DIAS (hidden)
A1: CLAVE | B1: CODIGO | C1: DESCRIPCIÓN | D1: FORMULA | E1: VALOR
A2: =CONCATENATE(B2:B437," ",C2:C437) -> 3070101 Instalación Monofásica (Toma corriente doble, consumo hasta 2KW/110V) Valor feria de 4 a 6 dias | B2: 3070101 | C2: Instalación Monofásica (Toma corriente doble, consumo hasta 2KW/110V) Valor feria de 4 a 6 dias | D2: =IF('FERIAS DE 3 DIAS'!G$3=TRUE,'FERIAS DE 4 A 6 DIAS'!E2/'FERIAS DE 3 DIAS'!I$3,'FERIAS DE 4 A 6 DIAS'!E2) -> 330000 | E2: 330000 | G2: =E2/1.19 -> 277310.9244
A3: =CONCATENATE(B3:B441," ",C3:C441) -> 3070103 Instalación kilovatio adicional monofásico (Debe contar con punto principal, MAX 2KW por punto) Valor feria de 4 a 6 dias | B3: 3070103 | C3: Instalación kilovatio adicional monofásico (Debe contar con punto principal, MAX 2KW por punto) Valor feria de 4 a 6 dias | D3: =IF('FERIAS DE 3 DIAS'!G$3=TRUE,'FERIAS DE 4 A 6 DIAS'!E3/'FERIAS DE 3 DIAS'!I$3,'FERIAS DE 4 A 6 DIAS'!E3) -> 132000 | E3: 132000 | G3: 110924.3697
A4: =CONCATENATE(B4:B445," ",C4:C445) -> 3070102 Instalación trifásica (Regleta plastica, consumo hasta 4KW/208V) Valor feria de 4 a 6 dias | B4: 3070102 | C4: Instalación trifásica (Regleta plastica, consumo hasta 4KW/208V) Valor feria de 4 a 6 dias | D4: =IF('FERIAS DE 3 DIAS'!G$3=TRUE,'FERIAS DE 4 A 6 DIAS'!E4/'FERIAS DE 3 DIAS'!I$3,'FERIAS DE 4 A 6 DIAS'!E4) -> 570000 | E4: 570000 | G4: 478991.5966
A5: =CONCATENATE(B5:B449," ",C5:C449) -> 3070104 Instalación kilovatio adicional trifásico (Debe contar con punto principal) Valor feria de 4 a 6 dias | B5: 3070104 | C5: Instalación kilovatio adicional trifásico (Debe contar con punto principal) Valor feria de 4 a 6 dias | D5: =IF('FERIAS DE 3 DIAS'!G$3=TRUE,'FERIAS DE 4 A 6 DIAS'!E5/'FERIAS DE 3 DIAS'!I$3,'FERIAS DE 4 A 6 DIAS'!E5) -> 155000 | E5: 155000 | G5: 130252.1008
A6: =CONCATENATE(B6:B453," ",C6:C453) -> 3071372 De 21 a 50 kilovatios adicionales trifásicos (Valor por KW) (Debe contar con punto principal) Valor feria de 4 a 6 dias | B6: 3071372 | C6: De 21 a 50 kilovatios adicionales trifásicos (Valor por KW) (Debe contar con punto principal) Valor feria de 4 a 6 dias | D6: =IF('FERIAS DE 3 DIAS'!G$3=TRUE,'FERIAS DE 4 A 6 DIAS'!E6/'FERIAS DE 3 DIAS'!I$3,'FERIAS DE 4 A 6 DIAS'!E6) -> 140000 | E6: 140000 | G6: 117647.0588
A7: =CONCATENATE(B7:B458," ",C7:C458) -> 3071373 De 51 a 100 kilovatios adicionales trifásicos (Valor por KW) (Debe contar con punto principal) Valor feria de 4 a 6 dias | B7: 3071373 | C7: De 51 a 100 kilovatios adicionales trifásicos (Valor por KW) (Debe contar con punto principal) Valor feria de 4 a 6 dias | D7: =IF('FERIAS DE 3 DIAS'!G$3=TRUE,'FERIAS DE 4 A 6 DIAS'!E7/'FERIAS DE 3 DIAS'!I$3,'FERIAS DE 4 A 6 DIAS'!E7) -> 133000 | E7: 133000 | G7: 111764.7059
A8: =CONCATENATE(B8:B462," ",C8:C462) -> 3071374 Mas de100 kilovatios adicionales trifásicos (Valor por KW) (Debe contar con punto principal) Valor feria de 4 a 6 dias | B8: 3071374 | C8: Mas de100 kilovatios adicionales trifásicos (Valor por KW) (Debe contar con punto principal) Valor feria de 4 a 6 dias | D8: =IF('FERIAS DE 3 DIAS'!G$3=TRUE,'FERIAS DE 4 A 6 DIAS'!E8/'FERIAS DE 3 DIAS'!I$3,'FERIAS DE 4 A 6 DIAS'!E8) -> 107000 | E8: 107000 | G8: 89915.96639
A9: =CONCATENATE(B9:B466," ",C9:C466) -> 3070402 Lampara de pared ajustable (150W/110V) Valor feria de 4 a 6 dias | B9: 3070402 | C9: Lampara de pared ajustable (150W/110V) Valor feria de 4 a 6 dias | D9: =IF('FERIAS DE 3 DIAS'!G$3=TRUE,'FERIAS DE 4 A 6 DIAS'!E9/'FERIAS DE 3 DIAS'!I$3,'FERIAS DE 4 A 6 DIAS'!E9) -> 64000 | E9: 64000 | G9: 53781.51261
A10: =CONCATENATE(B10:B470," ",C10:C470) -> 3070405 Reflector Led (50W- mltV) Valor feria de 4 a 6 dias | B10: 3070405 | C10: Reflector Led (50W- mltV) Valor feria de 4 a 6 dias | D10: =IF('FERIAS DE 3 DIAS'!G$3=TRUE,'FERIAS DE 4 A 6 DIAS'!E10/'FERIAS DE 3 DIAS'!I$3,'FERIAS DE 4 A 6 DIAS'!E10) -> 67000 | E10: 67000 | G10: 56302.52101
A11: =CONCATENATE(B11:B474," ",C11:C474) -> 3070403 Extensión – tomacorriente doble con polo a tierra (1500W/110V) MAX 6mts Valor feria de 4 a 6 dias | B11: 3070403 | C11: Extensión – tomacorriente doble con polo a tierra (1500W/110V) MAX 6mts Valor feria de 4 a 6 dias | D11: =IF('FERIAS DE 3 DIAS'!G$3=TRUE,'FERIAS DE 4 A 6 DIAS'!E11/'FERIAS DE 3 DIAS'!I$3,'FERIAS DE 4 A 6 DIAS'!E11) -> 36000 | E11: 36000 | G11: 30252.10084
A12: =CONCATENATE(B12:B478," ",C12:C478) -> 3071345 Lavaplatos 90XL* 60XH* 90 (No incluye agua y desague) Valor de 4 a 6 dias | B12: 3071345 | C12: Lavaplatos 90XL* 60XH* 90 (No incluye agua y desague) Valor de 4 a 6 dias | D12: =IF('FERIAS DE 3 DIAS'!G$3=TRUE,'FERIAS DE 4 A 6 DIAS'!E12/'FERIAS DE 3 DIAS'!I$3,'FERIAS DE 4 A 6 DIAS'!E12) -> 146000 | E12: 146000 | G12: 122689.0756
A13: =CONCATENATE(B13:B482," ",C13:C482) -> 3070301 Punto de Agua en 1/2" (incluye consumo) Valor feria de 4 a 6 dias | B13: 3070301 | C13: Punto de Agua en 1/2" (incluye consumo) Valor feria de 4 a 6 dias | D13: =IF('FERIAS DE 3 DIAS'!G$3=TRUE,'FERIAS DE 4 A 6 DIAS'!E13/'FERIAS DE 3 DIAS'!I$3,'FERIAS DE 4 A 6 DIAS'!E13) -> 339000 | E13: 339000 | G13: 284873.9496
A14: =CONCATENATE(B14:B486," ",C14:C486) -> 3070302 Desagüe en 1 1/2" Por toda la feria (Ubicación asignada por Corferias en su stand) Valor feria de 4 a 6 dias | B14: 3070302 | C14: Desagüe en 1 1/2" Por toda la feria (Ubicación asignada por Corferias en su stand) Valor feria de 4 a 6 dias | D14: =IF('FERIAS DE 3 DIAS'!G$3=TRUE,'FERIAS DE 4 A 6 DIAS'!E14/'FERIAS DE 3 DIAS'!I$3,'FERIAS DE 4 A 6 DIAS'!E14) -> 313000 | E14: 313000 | G14: 263025.2101
A15: =CONCATENATE(B15:B491," ",C15:C491) -> 3071341 Aire comprimido para punto con presión máx. de 100 PSI, y caudal máx. 35CFM. Valor feria de 4 a 6 dias | B15: 3071341 | C15: Aire comprimido para punto con presión máx. de 100 PSI, y caudal máx. 35CFM. Valor feria de 4 a 6 dias | D15: =IF('FERIAS DE 3 DIAS'!G$3=TRUE,'FERIAS DE 4 A 6 DIAS'!E15/'FERIAS DE 3 DIAS'!I$3,'FERIAS DE 4 A 6 DIAS'!E15) -> 498000 | E15: 498000 | G15: 418487.395
A16: =CONCATENATE(B16:B495," ",C16:C495) -> 3070307 Punto de Agua en 1/2" (Incluye consumo) + Desagüe en 1 1/2" + Lavaplatos Valor feria de 4 a 6 dias | B16: 3070307 | C16: Punto de Agua en 1/2" (Incluye consumo) + Desagüe en 1 1/2" + Lavaplatos Valor feria de 4 a 6 dias | D16: =IF('FERIAS DE 3 DIAS'!G$3=TRUE,'FERIAS DE 4 A 6 DIAS'!E16/'FERIAS DE 3 DIAS'!I$3,'FERIAS DE 4 A 6 DIAS'!E16) -> 719000 | E16: 719000 | G16: 604201.6807
A17: =CONCATENATE(B17:B499," ",C17:C499) -> 3071321 Instalación de UN (1) punto de gas propano por UN (1) Equipo (Incluye materiales y mano de obra) (No incluye consumo de gas, este será liquidado a través de un medidor una vez finalice la feria y/o evento) Valor feria de 4 a 6 dias | B17: 3071321 | C17: Instalación de UN (1) punto de gas propano por UN (1) Equipo (Incluye materiales y mano de obra) (No incluye consumo de gas, este será liquidado a través de un medidor una vez finalice la feria y/o evento) Valor feria de 4 a 6 dias | D17: =IF('FERIAS DE 3 DIAS'!G$3=TRUE,'FERIAS DE 4 A 6 DIAS'!E17/'FERIAS DE 3 DIAS'!I$3,'FERIAS DE 4 A 6 DIAS'!E17) -> 92000 | E17: 92000 | G17: 77310.92437
A18: =CONCATENATE(B18:B503," ",C18:C503) -> 3070601 Panel adicional sistema cfe 100cm x 240cm | B18: 3070601 | C18: Panel adicional sistema cfe 100cm x 240cm | D18: =IF('FERIAS DE 3 DIAS'!G$3=TRUE,'FERIAS DE 4 A 6 DIAS'!E18/'FERIAS DE 3 DIAS'!I$3,'FERIAS DE 4 A 6 DIAS'!E18) -> 38000 | E18: 38000 | G18: 31932.77311
A19: =CONCATENATE(B19:B505," ",C19:C505) -> 3070801 Puerta sistema cfe 90cm x 240cm | B19: 3070801 | C19: Puerta sistema cfe 90cm x 240cm | D19: =IF('FERIAS DE 3 DIAS'!G$3=TRUE,'FERIAS DE 4 A 6 DIAS'!E19/'FERIAS DE 3 DIAS'!I$3,'FERIAS DE 4 A 6 DIAS'!E19) -> 93000 | E19: 93000 | G19: =E19/1.19 -> 78151.2605
A20: =CONCATENATE(B20:B506," ",C20:C506) -> 3070803 Bodega estándar con puerta 150cm x 150cm (Sistema Corferias) | B20: 3070803 | C20: Bodega estándar con puerta 150cm x 150cm (Sistema Corferias) | D20: =IF('FERIAS DE 3 DIAS'!G$3=TRUE,'FERIAS DE 4 A 6 DIAS'!E20/'FERIAS DE 3 DIAS'!I$3,'FERIAS DE 4 A 6 DIAS'!E20) -> 148000 | E20: 148000 | G20: 124369.7479
A21: =CONCATENATE(B21:B507," ",C21:C507) -> 3071319 Brazo Mecánico por Fracciòn de 15 min (Solo para primer nivel) | B21: 3071319 | C21: Brazo Mecánico por Fracciòn de 15 min (Solo para primer nivel) | D21: =IF('FERIAS DE 3 DIAS'!G$3=TRUE,'FERIAS DE 4 A 6 DIAS'!E21/'FERIAS DE 3 DIAS'!I$3,'FERIAS DE 4 A 6 DIAS'!E21) -> 71700 | E21: 71700 | G21: 60252.10084
A22: =CONCATENATE(B22:B508," ",C22:C508) -> 3071319 Brazo Mecánico por Fracciòn de 30 min (Solo para primer nivel) | B22: 3071319 | C22: Brazo Mecánico por Fracciòn de 30 min (Solo para primer nivel) | D22: =IF('FERIAS DE 3 DIAS'!G$3=TRUE,'FERIAS DE 4 A 6 DIAS'!E22/'FERIAS DE 3 DIAS'!I$3,'FERIAS DE 4 A 6 DIAS'!E22) -> 122600 | E22: 122600 | G22: 103025.2101
A23: =CONCATENATE(B23:B509," ",C23:C509) -> 3071319 Brazo Mecánico por Fracciòn de 60 min (Solo para primer nivel) | B23: 3071319 | C23: Brazo Mecánico por Fracciòn de 60 min (Solo para primer nivel) | D23: =IF('FERIAS DE 3 DIAS'!G$3=TRUE,'FERIAS DE 4 A 6 DIAS'!E23/'FERIAS DE 3 DIAS'!I$3,'FERIAS DE 4 A 6 DIAS'!E23) -> 217800 | E23: 217800 | G23: 183025.2101
A24: =CONCATENATE(B24:B510," ",C24:C510) -> 3070413 Diferencial (Cap. 1 Ton.) + Brazo mecánico (Montaje y desmontaje) | B24: 3070413 | C24: Diferencial (Cap. 1 Ton.) + Brazo mecánico (Montaje y desmontaje) | D24: =IF('FERIAS DE 3 DIAS'!G$3=TRUE,'FERIAS DE 4 A 6 DIAS'!E24/'FERIAS DE 3 DIAS'!I$3,'FERIAS DE 4 A 6 DIAS'!E24) -> 350900 | E24: 350900 | G24: 294873.9496
A25: =CONCATENATE(B25:B511," ",C25:C511) -> 3070414 Plataforma Tijera eléctrica por Fracciòn /30 min (Uso para segundos niveles) | B25: 3070414 | C25: Plataforma Tijera eléctrica por Fracciòn /30 min (Uso para segundos niveles) | D25: =IF('FERIAS DE 3 DIAS'!G$3=TRUE,'FERIAS DE 4 A 6 DIAS'!E25/'FERIAS DE 3 DIAS'!I$3,'FERIAS DE 4 A 6 DIAS'!E25) -> 84200 | E25: 84200 | G25: 70756.30252
A26: =CONCATENATE(B26:B512," ",C26:C512) -> 3071387 Brazo mecánico + Diferencial + TRUSS 2,60 X 2,60 | B26: 3071387 | C26: Brazo mecánico + Diferencial + TRUSS 2,60 X 2,60 | D26: =IF('FERIAS DE 3 DIAS'!G$3=TRUE,'FERIAS DE 4 A 6 DIAS'!E26/'FERIAS DE 3 DIAS'!I$3,'FERIAS DE 4 A 6 DIAS'!E26) -> 2881400 | E26: 2881400 | G26: 2421344.538
A27: =CONCATENATE(B27:B513," ",C27:C513) -> 3071351 Brazo mecánico + Diferencial + TRUSS 3,60 X 2,60 | B27: 3071351 | C27: Brazo mecánico + Diferencial + TRUSS 3,60 X 2,60 | D27: =IF('FERIAS DE 3 DIAS'!G$3=TRUE,'FERIAS DE 4 A 6 DIAS'!E27/'FERIAS DE 3 DIAS'!I$3,'FERIAS DE 4 A 6 DIAS'!E27) -> 2881400 | E27: 2881400 | G27: 2421344.538
A28: =CONCATENATE(B28:B514," ",C28:C514) -> 3071395 Brazo mecánico + Diferencial + TRUSS 3,60 X 3,60 | B28: 3071395 | C28: Brazo mecánico + Diferencial + TRUSS 3,60 X 3,60 | D28: =IF('FERIAS DE 3 DIAS'!G$3=TRUE,'FERIAS DE 4 A 6 DIAS'!E28/'FERIAS DE 3 DIAS'!I$3,'FERIAS DE 4 A 6 DIAS'!E28) -> 2881400 | E28: 2881400 | G28: 2421344.538
A29: =CONCATENATE(B29:B515," ",C29:C515) -> 3071324 Brazo mecánico + Diferencial + TRUSS 5,90 X 5,90 | B29: 3071324 | C29: Brazo mecánico + Diferencial + TRUSS 5,90 X 5,90 | D29: =IF('FERIAS DE 3 DIAS'!G$3=TRUE,'FERIAS DE 4 A 6 DIAS'!E29/'FERIAS DE 3 DIAS'!I$3,'FERIAS DE 4 A 6 DIAS'!E29) -> 3601800 | E29: 3601800 | G29: 3026722.689
A30: =CONCATENATE(B30:B516," ",C30:C516) -> 3071436 Brazo mecánico + Diferencial + TRUSS 6,90 X 6,90 | B30: 3071436 | C30: Brazo mecánico + Diferencial + TRUSS 6,90 X 6,90 | D30: =IF('FERIAS DE 3 DIAS'!G$3=TRUE,'FERIAS DE 4 A 6 DIAS'!E30/'FERIAS DE 3 DIAS'!I$3,'FERIAS DE 4 A 6 DIAS'!E30) -> 3601800 | E30: 3601800 | G30: 3026722.689
A31: =CONCATENATE(B31:B517," ",C31:C517) -> 3071350 Brazo mecánico + Diferencial + TRUSS 5,60 X 5,60 | B31: 3071350 | C31: Brazo mecánico + Diferencial + TRUSS 5,60 X 5,60 | D31: =IF('FERIAS DE 3 DIAS'!G$3=TRUE,'FERIAS DE 4 A 6 DIAS'!E31/'FERIAS DE 3 DIAS'!I$3,'FERIAS DE 4 A 6 DIAS'!E31) -> 3601800 | E31: 3601800 | G31: 3026722.689
A32: =CONCATENATE(B32:B518," ",C32:C518) -> 3071371 Brazo mecánico + Diferencial + TRUSS 6,60 X 6,60 | B32: 3071371 | C32: Brazo mecánico + Diferencial + TRUSS 6,60 X 6,60 | D32: =IF('FERIAS DE 3 DIAS'!G$3=TRUE,'FERIAS DE 4 A 6 DIAS'!E32/'FERIAS DE 3 DIAS'!I$3,'FERIAS DE 4 A 6 DIAS'!E32) -> 3601800 | E32: 3601800 | G32: 3026722.689
A33: =CONCATENATE(B33:B519," ",C33:C519) -> 3071393 Brazo mecánico + Diferencial + TRUSS 9,60 X 2,60 | B33: 3071393 | C33: Brazo mecánico + Diferencial + TRUSS 9,60 X 2,60 | D33: =IF('FERIAS DE 3 DIAS'!G$3=TRUE,'FERIAS DE 4 A 6 DIAS'!E33/'FERIAS DE 3 DIAS'!I$3,'FERIAS DE 4 A 6 DIAS'!E33) -> 3601800 | E33: 3601800 | G33: 3026722.689
A34: =CONCATENATE(B34:B520," ",C34:C520) -> 3071394 Brazo mecánico + Diferencial + TRUSS 9,60 X 3,60 | B34: 3071394 | C34: Brazo mecánico + Diferencial + TRUSS 9,60 X 3,60 | D34: =IF('FERIAS DE 3 DIAS'!G$3=TRUE,'FERIAS DE 4 A 6 DIAS'!E34/'FERIAS DE 3 DIAS'!I$3,'FERIAS DE 4 A 6 DIAS'!E34) -> 3601800 | E34: 3601800 | G34: 3026722.689
A35: =CONCATENATE(B35:B521," ",C35:C521) -> 3071396 Brazo mecánico + Diferencial + TRUSS 9,60 X 5,60 | B35: 3071396 | C35: Brazo mecánico + Diferencial + TRUSS 9,60 X 5,60 | D35: =IF('FERIAS DE 3 DIAS'!G$3=TRUE,'FERIAS DE 4 A 6 DIAS'!E35/'FERIAS DE 3 DIAS'!I$3,'FERIAS DE 4 A 6 DIAS'!E35) -> 4769300 | E35: 4769300 | G35: 4007815.126
A36: =CONCATENATE(B36:B522," ",C36:C522) -> 3071397 Brazo mecánico + Diferencial + TRUSS 9,60 X 6,60 | B36: 3071397 | C36: Brazo mecánico + Diferencial + TRUSS 9,60 X 6,60 | D36: =IF('FERIAS DE 3 DIAS'!G$3=TRUE,'FERIAS DE 4 A 6 DIAS'!E36/'FERIAS DE 3 DIAS'!I$3,'FERIAS DE 4 A 6 DIAS'!E36) -> 4769300 | E36: 4769300 | G36: 4007815.126
A37: =CONCATENATE(B37:B523," ",C37:C523) -> 3071418 Servicio de Internet Cableado "PARA UN EQUIPO - DURANTE UN DÍA" | B37: 3071418 | C37: Servicio de Internet Cableado "PARA UN EQUIPO - DURANTE UN DÍA" | D37: =IF('FERIAS DE 3 DIAS'!G$3=TRUE,'FERIAS DE 4 A 6 DIAS'!E37/'FERIAS DE 3 DIAS'!I$3,'FERIAS DE 4 A 6 DIAS'!E37) -> 93000 | E37: 93000 | G37: 78151.2605
A38: =CONCATENATE(B38:B524," ",C38:C524) -> 3071419 Clave de acceso para la red WiFi "PARA UN EQUIPO - DURANTE UN DÍA" | B38: 3071419 | C38: Clave de acceso para la red WiFi "PARA UN EQUIPO - DURANTE UN DÍA" | D38: =IF('FERIAS DE 3 DIAS'!G$3=TRUE,'FERIAS DE 4 A 6 DIAS'!E38/'FERIAS DE 3 DIAS'!I$3,'FERIAS DE 4 A 6 DIAS'!E38) -> 93000 | E38: 93000 | G38: 78151.2605
A39: =CONCATENATE(B39:B526," ",C39:C526) -> 3071417 Servicio de Internet Cableado "PARA UN EQUIPO - DURANTE TODA LA FERIA" Valor feria de 4 a 6 dias | B39: 3071417 | C39: Servicio de Internet Cableado "PARA UN EQUIPO - DURANTE TODA LA FERIA" Valor feria de 4 a 6 dias | D39: =IF('FERIAS DE 3 DIAS'!G$3=TRUE,'FERIAS DE 4 A 6 DIAS'!E39/'FERIAS DE 3 DIAS'!I$3,'FERIAS DE 4 A 6 DIAS'!E39) -> 171000 | E39: 171000 | G39: 143697.479
A40: =CONCATENATE(B40:B530," ",C40:C530) -> 3071420 Clave de acceso para la Red WiFi "PARA UN EQUIPO - DURANTE TODA LA FERIA" Valor feria de 4 a 6 dias | B40: 3071420 | C40: Clave de acceso para la Red WiFi "PARA UN EQUIPO - DURANTE TODA LA FERIA" Valor feria de 4 a 6 dias | D40: =IF('FERIAS DE 3 DIAS'!G$3=TRUE,'FERIAS DE 4 A 6 DIAS'!E40/'FERIAS DE 3 DIAS'!I$3,'FERIAS DE 4 A 6 DIAS'!E40) -> 171000 | E40: 171000 | G40: 143697.479
A41: =CONCATENATE(B41:B534," ",C41:C534) -> 3071423 Conexión para Datafono + Clave de acceso WIFI (Para un equipo durante toda la feria) Valor feria de 4 a 6 dias | B41: 3071423 | C41: Conexión para Datafono + Clave de acceso WIFI (Para un equipo durante toda la feria) Valor feria de 4 a 6 dias | D41: =IF('FERIAS DE 3 DIAS'!G$3=TRUE,'FERIAS DE 4 A 6 DIAS'!E41/'FERIAS DE 3 DIAS'!I$3,'FERIAS DE 4 A 6 DIAS'!E41) -> 270000 | E41: 270000 | G41: 226890.7563
A42: =CONCATENATE(B42:B538," ",C42:C538) -> 3071424 Conexión para Datafono + Servicio de Internet Cableado (Para un equipo durante toda la feria) Valor feria de 4 a 6 dias | B42: 3071424 | C42: Conexión para Datafono + Servicio de Internet Cableado (Para un equipo durante toda la feria) Valor feria de 4 a 6 dias | D42: =IF('FERIAS DE 3 DIAS'!G$3=TRUE,'FERIAS DE 4 A 6 DIAS'!E42/'FERIAS DE 3 DIAS'!I$3,'FERIAS DE 4 A 6 DIAS'!E42) -> 260000 | E42: 260000 | G42: 218487.395
A43: =CONCATENATE(B43:B542," ",C43:C542) -> 3071425 Servicio de Internet Cableado + Clave de acceso WIFI (Para un equipo durante toda la feria) Valor feria de 4 a 6 dias | B43: 3071425 | C43: Servicio de Internet Cableado + Clave de acceso WIFI (Para un equipo durante toda la feria) Valor feria de 4 a 6 dias | D43: =IF('FERIAS DE 3 DIAS'!G$3=TRUE,'FERIAS DE 4 A 6 DIAS'!E43/'FERIAS DE 3 DIAS'!I$3,'FERIAS DE 4 A 6 DIAS'!E43) -> 308000 | E43: 308000 | G43: 258823.5294
A44: =CONCATENATE(B44:B545," ",C44:C545) -> 3071437 Internet Dedicado: Si requiere conexión banda ancha para diferentes servicios o redes locales, contáctese con serviciosplus@corferias.com para brindarle asesoria y cotización. | B44: 3071437 | C44: Internet Dedicado: Si requiere conexión banda ancha para diferentes servicios o redes locales, contáctese con serviciosplus@corferias.com para brindarle asesoria y cotización. | D44: =IF('FERIAS DE 3 DIAS'!G$3=TRUE,'FERIAS DE 4 A 6 DIAS'!E44/'FERIAS DE 3 DIAS'!I$3,'FERIAS DE 4 A 6 DIAS'!E44) -> Según Cotización | E44: Según Cotización
A45: =CONCATENATE(B45:B546," ",C45:C546) -> 3071406 Instalación Punto de Red:Incluye un cable UTP por punto | B45: 3071406 | C45: Instalación Punto de Red:Incluye un cable UTP por punto | D45: =IF('FERIAS DE 3 DIAS'!G$3=TRUE,'FERIAS DE 4 A 6 DIAS'!E45/'FERIAS DE 3 DIAS'!I$3,'FERIAS DE 4 A 6 DIAS'!E45) -> 78000 | E45: 78000 | G45: 65546.21849
A46: =CONCATENATE(B46:B547," ",C46:C547) -> 3071407 Switch Valor POR FERIA | B46: 3071407 | C46: Switch Valor POR FERIA | D46: =IF('FERIAS DE 3 DIAS'!G$3=TRUE,'FERIAS DE 4 A 6 DIAS'!E46/'FERIAS DE 3 DIAS'!I$3,'FERIAS DE 4 A 6 DIAS'!E46) -> 75000 | E46: 75000 | G46: 63025.21008
A47: =CONCATENATE(B47:B548," ",C47:C548) -> 3071402 Servicio de VLAN: Servicio virtual de red. Valor POR FERIA | B47: 3071402 | C47: Servicio de VLAN: Servicio virtual de red. Valor POR FERIA | D47: =IF('FERIAS DE 3 DIAS'!G$3=TRUE,'FERIAS DE 4 A 6 DIAS'!E47/'FERIAS DE 3 DIAS'!I$3,'FERIAS DE 4 A 6 DIAS'!E47) -> 325000 | E47: 325000 | G47: 273109.2437
A48: =CONCATENATE(B48:B549," ",C48:C549) -> 3071430 Extension LAN Valor POR FERIA (Incluye punto de red y aplica para extender el servicio de internet contratado con terceros) | B48: 3071430 | C48: Extension LAN Valor POR FERIA (Incluye punto de red y aplica para extender el servicio de internet contratado con terceros) | D48: =IF('FERIAS DE 3 DIAS'!G$3=TRUE,'FERIAS DE 4 A 6 DIAS'!E48/'FERIAS DE 3 DIAS'!I$3,'FERIAS DE 4 A 6 DIAS'!E48) -> 1500000 | E48: 1500000 | G48: 1260504.202
A49: =CONCATENATE(B49:B550," ",C49:C550) -> 3071442 Soporte técnico permanente (Por espacio de 8 horas) de un técnico. Valor DÍARIO | B49: 3071442 | C49: Soporte técnico permanente (Por espacio de 8 horas) de un técnico. Valor DÍARIO | D49: =IF('FERIAS DE 3 DIAS'!G$3=TRUE,'FERIAS DE 4 A 6 DIAS'!E49/'FERIAS DE 3 DIAS'!I$3,'FERIAS DE 4 A 6 DIAS'!E49) -> 205000 | E49: 205000 | G49: 172268.9076
A50: =CONCATENATE(B50:B552," ",C50:C552) -> 3070202 Servicio Telefónico Urbano con Aparato (Incluye consumo local ilimitado) Valor feria de 4 a 6 dias | B50: 3070202 | C50: Servicio Telefónico Urbano con Aparato (Incluye consumo local ilimitado) Valor feria de 4 a 6 dias | D50: =IF('FERIAS DE 3 DIAS'!G$3=TRUE,'FERIAS DE 4 A 6 DIAS'!E50/'FERIAS DE 3 DIAS'!I$3,'FERIAS DE 4 A 6 DIAS'!E50) -> 42000 | E50: 42000 | G50: 35294.11765
A51: =CONCATENATE(B51:B556," ",C51:C556) -> 3070203 Servicio Telefónico Larga Distancia con aparato Valor feria de 4 a 6 dias | B51: 3070203 | C51: Servicio Telefónico Larga Distancia con aparato Valor feria de 4 a 6 dias | D51: =IF('FERIAS DE 3 DIAS'!G$3=TRUE,'FERIAS DE 4 A 6 DIAS'!E51/'FERIAS DE 3 DIAS'!I$3,'FERIAS DE 4 A 6 DIAS'!E51) -> 42000 | E51: 42000 | G51: 35294.11765
A52: =CONCATENATE(B52:B554," ",C52:C554) -> 3070201 Línea Externa no conmutada (Previa solicitud a Etb, Claro, EPM, Colomsat u otro operador) Valor feria de 4 a 6 dias | B52: 3070201 | C52: Línea Externa no conmutada (Previa solicitud a Etb, Claro, EPM, Colomsat u otro operador) Valor feria de 4 a 6 dias | D52: =IF('FERIAS DE 3 DIAS'!G$3=TRUE,'FERIAS DE 4 A 6 DIAS'!E52/'FERIAS DE 3 DIAS'!I$3,'FERIAS DE 4 A 6 DIAS'!E52) -> 117000 | E52: 117000 | G52: 98319.32773
A53: =CONCATENATE(B53:B557," ",C53:C557) -> 3070207 Conexión cableada para Datafono:(No incluye Datafono) | B53: 3070207 | C53: Conexión cableada para Datafono:(No incluye Datafono) | D53: =IF('FERIAS DE 3 DIAS'!G$3=TRUE,'FERIAS DE 4 A 6 DIAS'!E53/'FERIAS DE 3 DIAS'!I$3,'FERIAS DE 4 A 6 DIAS'!E53) -> 107000 | E53: 107000 | G53: 89915.96639
A54: =CONCATENATE(B54:B558," ",C54:C558) -> 3070503 Estantería Polo (Blanco) (200cm x 93cm x 35cm) | B54: 3070503 | C54: Estantería Polo (Blanco) (200cm x 93cm x 35cm) | D54: =IF('FERIAS DE 3 DIAS'!G$3=TRUE,'FERIAS DE 4 A 6 DIAS'!E54/'FERIAS DE 3 DIAS'!I$3,'FERIAS DE 4 A 6 DIAS'!E54) -> 165100 | E54: 165100 | G54: 138739.4958
A55: =CONCATENATE(B55:B559," ",C55:C559) -> 3070503 Estantería Polo (Miel) (200cm x 93cm x 35cm) | B55: 3070503 | C55: Estantería Polo (Miel) (200cm x 93cm x 35cm) | D55: =IF('FERIAS DE 3 DIAS'!G$3=TRUE,'FERIAS DE 4 A 6 DIAS'!E55/'FERIAS DE 3 DIAS'!I$3,'FERIAS DE 4 A 6 DIAS'!E55) -> 165100 | E55: 165100 | G55: 138739.4958
A56: =CONCATENATE(B56:B560," ",C56:C560) -> 3070503 Estantería Polo (Rovere) (200cm x 93cm x 35cm) | B56: 3070503 | C56: Estantería Polo (Rovere) (200cm x 93cm x 35cm) | D56: =IF('FERIAS DE 3 DIAS'!G$3=TRUE,'FERIAS DE 4 A 6 DIAS'!E56/'FERIAS DE 3 DIAS'!I$3,'FERIAS DE 4 A 6 DIAS'!E56) -> 165100 | E56: 165100 | G56: 138739.4958
A57: =CONCATENATE(B57:B561," ",C57:C561) -> 3070503 Estantería Polo (Roble Gris) (200cm x 93cm x 35cm) | B57: 3070503 | C57: Estantería Polo (Roble Gris) (200cm x 93cm x 35cm) | D57: =IF('FERIAS DE 3 DIAS'!G$3=TRUE,'FERIAS DE 4 A 6 DIAS'!E57/'FERIAS DE 3 DIAS'!I$3,'FERIAS DE 4 A 6 DIAS'!E57) -> 165100 | E57: 165100 | G57: 138739.4958
A58: =CONCATENATE(B58:B562," ",C58:C562) -> 3070503 Estantería Polo (OSB) (200cm x 93cm x 35cm) | B58: 3070503 | C58: Estantería Polo (OSB) (200cm x 93cm x 35cm) | D58: =IF('FERIAS DE 3 DIAS'!G$3=TRUE,'FERIAS DE 4 A 6 DIAS'!E58/'FERIAS DE 3 DIAS'!I$3,'FERIAS DE 4 A 6 DIAS'!E58) -> 165100 | E58: 165100 | G58: 138739.4958
A59: =CONCATENATE(B59:B563," ",C59:C563) -> 3070517 Vitrina Mostrador 2E (100cm x 100cm x 40cm) | B59: 3070517 | C59: Vitrina Mostrador 2E (100cm x 100cm x 40cm) | D59: =IF('FERIAS DE 3 DIAS'!G$3=TRUE,'FERIAS DE 4 A 6 DIAS'!E59/'FERIAS DE 3 DIAS'!I$3,'FERIAS DE 4 A 6 DIAS'!E59) -> 194300 | E59: 194300 | G59: =E59/1.19 -> 163277.3109
A60: =CONCATENATE(B60:B564," ",C60:C564) -> 3070518 Vitrina Mostrador Tipo 2 1E (Blanco) (92cm x 90 cm x 40cm) | B60: 3070518 | C60: Vitrina Mostrador Tipo 2 1E (Blanco) (92cm x 90 cm x 40cm) | D60: =IF('FERIAS DE 3 DIAS'!G$3=TRUE,'FERIAS DE 4 A 6 DIAS'!E60/'FERIAS DE 3 DIAS'!I$3,'FERIAS DE 4 A 6 DIAS'!E60) -> 194300 | E60: 194300 | G60: 163277.3109
A61: =CONCATENATE(B61:B556," ",C61:C556) -> 3070518 Vitrina Mostrador Tipo 2 1E (Nacar) (92cm x 90 cm x 40cm) | B61: 3070518 | C61: Vitrina Mostrador Tipo 2 1E (Nacar) (92cm x 90 cm x 40cm) | D61: =IF('FERIAS DE 3 DIAS'!G$3=TRUE,'FERIAS DE 4 A 6 DIAS'!E61/'FERIAS DE 3 DIAS'!I$3,'FERIAS DE 4 A 6 DIAS'!E61) -> 194300 | E61: 194300 | G61: 163277.3109
A62: =CONCATENATE(B62:B557," ",C62:C557) -> 3070521 Perchero básico 1 pedestal (120cm Ancho - Altura) graduable + 5 ganchos | B62: 3070521 | C62: Perchero básico 1 pedestal (120cm Ancho - Altura) graduable + 5 ganchos | D62: =IF('FERIAS DE 3 DIAS'!G$3=TRUE,'FERIAS DE 4 A 6 DIAS'!E62/'FERIAS DE 3 DIAS'!I$3,'FERIAS DE 4 A 6 DIAS'!E62) -> 70300 | E62: 70300 | G62: 59075.63025
A63: =CONCATENATE(B63:B558," ",C63:C558) -> 3070521 Perchero doble 2 pedestal (120cm Ancho-Altura) graduable + 5 ganchos | B63: 3070521 | C63: Perchero doble 2 pedestal (120cm Ancho-Altura) graduable + 5 ganchos | D63: =IF('FERIAS DE 3 DIAS'!G$3=TRUE,'FERIAS DE 4 A 6 DIAS'!E63/'FERIAS DE 3 DIAS'!I$3,'FERIAS DE 4 A 6 DIAS'!E63) -> 81100 | E63: 81100 | G63: 68151.2605
A64: =CONCATENATE(B64:B559," ",C64:C559) -> 3070535 Vitrina Isla 2E (200cm x 50cm x 50cm) | B64: 3070535 | C64: Vitrina Isla 2E (200cm x 50cm x 50cm) | D64: =IF('FERIAS DE 3 DIAS'!G$3=TRUE,'FERIAS DE 4 A 6 DIAS'!E64/'FERIAS DE 3 DIAS'!I$3,'FERIAS DE 4 A 6 DIAS'!E64) -> 225100 | E64: 225100 | G64: 189159.6639
A65: =CONCATENATE(B65:B560," ",C65:C560) -> 3070714 Cubo de exhibición (40cm x 40cm x 25cm) | B65: 3070714 | C65: Cubo de exhibición (40cm x 40cm x 25cm) | D65: =IF('FERIAS DE 3 DIAS'!G$3=TRUE,'FERIAS DE 4 A 6 DIAS'!E65/'FERIAS DE 3 DIAS'!I$3,'FERIAS DE 4 A 6 DIAS'!E65) -> 32400 | E65: 32400 | G65: 27226.89076
A66: =CONCATENATE(B66:B561," ",C66:C561) -> 3070936 Mesón plegable plástico (Gris o blanco) (73cm x 182cm x 76cm) | B66: 3070936 | C66: Mesón plegable plástico (Gris o blanco) (73cm x 182cm x 76cm) | D66: =IF('FERIAS DE 3 DIAS'!G$3=TRUE,'FERIAS DE 4 A 6 DIAS'!E66/'FERIAS DE 3 DIAS'!I$3,'FERIAS DE 4 A 6 DIAS'!E66) -> 94900 | E66: 94900 | G66: 79747.89916
A67: =CONCATENATE(B67:B562," ",C67:C562) -> 3070954 Counter Mónaco (Blanco) (100cm x 100cm x 30cm) | B67: 3070954 | C67: Counter Mónaco (Blanco) (100cm x 100cm x 30cm) | D67: =IF('FERIAS DE 3 DIAS'!G$3=TRUE,'FERIAS DE 4 A 6 DIAS'!E67/'FERIAS DE 3 DIAS'!I$3,'FERIAS DE 4 A 6 DIAS'!E67) -> 155400 | E67: 155400 | G67: 130588.2353
A68: =CONCATENATE(B68:B563," ",C68:C563) -> 3070954 Counter Mónaco (Miel) (100cm x 100cm x 30cm) | B68: 3070954 | C68: Counter Mónaco (Miel) (100cm x 100cm x 30cm) | D68: =IF('FERIAS DE 3 DIAS'!G$3=TRUE,'FERIAS DE 4 A 6 DIAS'!E68/'FERIAS DE 3 DIAS'!I$3,'FERIAS DE 4 A 6 DIAS'!E68) -> 155400 | E68: 155400 | G68: 130588.2353
A69: =CONCATENATE(B69:B564," ",C69:C564) -> 3070954 Counter Mónaco (Rovere) (100cm x 100cm x 30cm) | B69: 3070954 | C69: Counter Mónaco (Rovere) (100cm x 100cm x 30cm) | D69: =IF('FERIAS DE 3 DIAS'!G$3=TRUE,'FERIAS DE 4 A 6 DIAS'!E69/'FERIAS DE 3 DIAS'!I$3,'FERIAS DE 4 A 6 DIAS'!E69) -> 155400 | E69: 155400 | G69: 130588.2353
A70: =CONCATENATE(B70:B565," ",C70:C565) -> 3070954 Counter Mónaco (Roble Gris) (100cm x 100cm x 30cm) | B70: 3070954 | C70: Counter Mónaco (Roble Gris) (100cm x 100cm x 30cm) | D70: =IF('FERIAS DE 3 DIAS'!G$3=TRUE,'FERIAS DE 4 A 6 DIAS'!E70/'FERIAS DE 3 DIAS'!I$3,'FERIAS DE 4 A 6 DIAS'!E70) -> 155400 | E70: 155400 | G70: 130588.2353
A71: =CONCATENATE(B71:B566," ",C71:C566) -> 3070955 Pedestal rectangular 90cm (90cm x 30cm x 30cm) | B71: 3070955 | C71: Pedestal rectangular 90cm (90cm x 30cm x 30cm) | D71: =IF('FERIAS DE 3 DIAS'!G$3=TRUE,'FERIAS DE 4 A 6 DIAS'!E71/'FERIAS DE 3 DIAS'!I$3,'FERIAS DE 4 A 6 DIAS'!E71) -> 40800 | E71: 40800 | G71: 34285.71429
A72: =CONCATENATE(B72:B567," ",C72:C567) -> 3070956 Pedestal rectangular 60cm (60cm x 30cm x 30cm) | B72: 3070956 | C72: Pedestal rectangular 60cm (60cm x 30cm x 30cm) | D72: =IF('FERIAS DE 3 DIAS'!G$3=TRUE,'FERIAS DE 4 A 6 DIAS'!E72/'FERIAS DE 3 DIAS'!I$3,'FERIAS DE 4 A 6 DIAS'!E72) -> 36000 | E72: 36000 | G72: 30252.10084
A73: =CONCATENATE(B73:B568," ",C73:C568) -> 3070957 Pedestal cuadrado (30cm x 30cm x 30cm) | B73: 3070957 | C73: Pedestal cuadrado (30cm x 30cm x 30cm) | D73: =IF('FERIAS DE 3 DIAS'!G$3=TRUE,'FERIAS DE 4 A 6 DIAS'!E73/'FERIAS DE 3 DIAS'!I$3,'FERIAS DE 4 A 6 DIAS'!E73) -> 31200 | E73: 31200 | G73: 26218.48739
A74: =CONCATENATE(B74:B569," ",C74:C569) -> 3071006 Silla Interlocutora Negra (79cm x 53cm x 42cm) | B74: 3071006 | C74: Silla Interlocutora Negra (79cm x 53cm x 42cm) | D74: =IF('FERIAS DE 3 DIAS'!G$3=TRUE,'FERIAS DE 4 A 6 DIAS'!E74/'FERIAS DE 3 DIAS'!I$3,'FERIAS DE 4 A 6 DIAS'!E74) -> 44900 | E74: 44900 | G74: 37731.09244
A75: =CONCATENATE(B75:B570," ",C75:C570) -> 3071008 Silla estandar Tipo Huevo (48cm x 46cm x 45cm) | B75: 3071008 | C75: Silla estandar Tipo Huevo (48cm x 46cm x 45cm) | D75: =IF('FERIAS DE 3 DIAS'!G$3=TRUE,'FERIAS DE 4 A 6 DIAS'!E75/'FERIAS DE 3 DIAS'!I$3,'FERIAS DE 4 A 6 DIAS'!E75) -> 62500 | E75: 62500 | G75: 52521.0084
A76: =CONCATENATE(B76:B571," ",C76:C571) -> 3071013 Sofa Victoria derecho (70cm x 100cm x 75cm) | B76: 3071013 | C76: Sofa Victoria derecho (70cm x 100cm x 75cm) | D76: =IF('FERIAS DE 3 DIAS'!G$3=TRUE,'FERIAS DE 4 A 6 DIAS'!E76/'FERIAS DE 3 DIAS'!I$3,'FERIAS DE 4 A 6 DIAS'!E76) -> 165200 | E76: 165200 | G76: 138823.5294
A77: =CONCATENATE(B77:B572," ",C77:C572) -> 3071022 Silla Neumatica alta Versalles (80cm x 40 cm x 40cm) | B77: 3071022 | C77: Silla Neumatica alta Versalles (80cm x 40 cm x 40cm) | D77: =IF('FERIAS DE 3 DIAS'!G$3=TRUE,'FERIAS DE 4 A 6 DIAS'!E77/'FERIAS DE 3 DIAS'!I$3,'FERIAS DE 4 A 6 DIAS'!E77) -> 94500 | E77: 94500 | G77: 79411.76471
A78: =CONCATENATE(B78:B573," ",C78:C573) -> 3071023 Sofa Victoria izquierdo (70cm x 100cm x 75cm) | B78: 3071023 | C78: Sofa Victoria izquierdo (70cm x 100cm x 75cm) | D78: =IF('FERIAS DE 3 DIAS'!G$3=TRUE,'FERIAS DE 4 A 6 DIAS'!E78/'FERIAS DE 3 DIAS'!I$3,'FERIAS DE 4 A 6 DIAS'!E78) -> 165200 | E78: 165200 | G78: 138823.5294
A79: =CONCATENATE(B79:B574," ",C79:C574) -> 3071031 Sofa Terranova 2 cuerpos (88cm x 173cm x 80cm) | B79: 3071031 | C79: Sofa Terranova 2 cuerpos (88cm x 173cm x 80cm) | D79: =IF('FERIAS DE 3 DIAS'!G$3=TRUE,'FERIAS DE 4 A 6 DIAS'!E79/'FERIAS DE 3 DIAS'!I$3,'FERIAS DE 4 A 6 DIAS'!E79) -> 203400 | E79: 203400 | G79: 170924.3697
A80: =CONCATENATE(B80:B575," ",C80:C575) -> 3071036 Mesa plegable plastico + 2 sillas interlocutoras negras | B80: 3071036 | C80: Mesa plegable plastico + 2 sillas interlocutoras negras | D80: =IF('FERIAS DE 3 DIAS'!G$3=TRUE,'FERIAS DE 4 A 6 DIAS'!E80/'FERIAS DE 3 DIAS'!I$3,'FERIAS DE 4 A 6 DIAS'!E80) -> 172800 | E80: 172800 | G80: 145210.084
A81: =CONCATENATE(B81:B576," ",C81:C576) -> 3071039 Mesa alta Daysa + 2 sillas neumaticas altas marsella | B81: 3071039 | C81: Mesa alta Daysa + 2 sillas neumaticas altas marsella | D81: =IF('FERIAS DE 3 DIAS'!G$3=TRUE,'FERIAS DE 4 A 6 DIAS'!E81/'FERIAS DE 3 DIAS'!I$3,'FERIAS DE 4 A 6 DIAS'!E81) -> 224300 | E81: 224300 | G81: 188487.395
A82: =CONCATENATE(B82:B577," ",C82:C577) -> 3071054 Mesa estandar lotus vidrio + 2 sillas tipo huevo | B82: 3071054 | C82: Mesa estandar lotus vidrio + 2 sillas tipo huevo | D82: =IF('FERIAS DE 3 DIAS'!G$3=TRUE,'FERIAS DE 4 A 6 DIAS'!E82/'FERIAS DE 3 DIAS'!I$3,'FERIAS DE 4 A 6 DIAS'!E82) -> 247000 | E82: 247000 | G82: 207563.0252
A83: =CONCATENATE(B83:B578," ",C83:C578) -> 3071059 Poltrona Levis (73cm x 86cm x 73cm) | B83: 3071059 | C83: Poltrona Levis (73cm x 86cm x 73cm) | D83: =IF('FERIAS DE 3 DIAS'!G$3=TRUE,'FERIAS DE 4 A 6 DIAS'!E83/'FERIAS DE 3 DIAS'!I$3,'FERIAS DE 4 A 6 DIAS'!E83) -> 179500 | E83: 179500 | G83: 150840.3361
A84: =CONCATENATE(B84:B579," ",C84:C579) -> 3071061 Silla estandar Suiza (48cm x 46cm x 45cm) | B84: 3071061 | C84: Silla estandar Suiza (48cm x 46cm x 45cm) | D84: =IF('FERIAS DE 3 DIAS'!G$3=TRUE,'FERIAS DE 4 A 6 DIAS'!E84/'FERIAS DE 3 DIAS'!I$3,'FERIAS DE 4 A 6 DIAS'!E84) -> 62500 | E84: 62500 | G84: 52521.0084
A85: =CONCATENATE(B85:B580," ",C85:C580) -> 3071068 Mesa Centro Rectangular doble nivel (Blanco) (50cm x 75cm x 50cm) | B85: 3071068 | C85: Mesa Centro Rectangular doble nivel (Blanco) (50cm x 75cm x 50cm) | D85: =IF('FERIAS DE 3 DIAS'!G$3=TRUE,'FERIAS DE 4 A 6 DIAS'!E85/'FERIAS DE 3 DIAS'!I$3,'FERIAS DE 4 A 6 DIAS'!E85) -> 77500 | E85: 77500 | G85: 65126.05042
A86: =CONCATENATE(B86:B581," ",C86:C581) -> 3071077 Silla Neumática alta Marsella (80cm x 40cm x 40cm) | B86: 3071077 | C86: Silla Neumática alta Marsella (80cm x 40cm x 40cm) | D86: =IF('FERIAS DE 3 DIAS'!G$3=TRUE,'FERIAS DE 4 A 6 DIAS'!E86/'FERIAS DE 3 DIAS'!I$3,'FERIAS DE 4 A 6 DIAS'!E86) -> 75200 | E86: 75200 | G86: 63193.27731
A87: =CONCATENATE(B87:B582," ",C87:C582) -> 3071081 Silla Ejecutiva Cuero (57cm x 93cm x 52cm) | B87: 3071081 | C87: Silla Ejecutiva Cuero (57cm x 93cm x 52cm) | D87: =IF('FERIAS DE 3 DIAS'!G$3=TRUE,'FERIAS DE 4 A 6 DIAS'!E87/'FERIAS DE 3 DIAS'!I$3,'FERIAS DE 4 A 6 DIAS'!E87) -> 68400 | E87: 68400 | G87: 57478.9916
A88: =CONCATENATE(B88:B583," ",C88:C583) -> 3071081 Silla Ejecutiva Malla (100cm x 57cm x 52 cm) | B88: 3071081 | C88: Silla Ejecutiva Malla (100cm x 57cm x 52 cm) | D88: =IF('FERIAS DE 3 DIAS'!G$3=TRUE,'FERIAS DE 4 A 6 DIAS'!E88/'FERIAS DE 3 DIAS'!I$3,'FERIAS DE 4 A 6 DIAS'!E88) -> 140800 | E88: 140800 | G88: 118319.3277
A89: =CONCATENATE(B89:B584," ",C89:C584) -> 3071083 Sofa Toronto 3 cuerpos (88cm x 173cm x 80cm) | B89: 3071083 | C89: Sofa Toronto 3 cuerpos (88cm x 173cm x 80cm) | D89: =IF('FERIAS DE 3 DIAS'!G$3=TRUE,'FERIAS DE 4 A 6 DIAS'!E89/'FERIAS DE 3 DIAS'!I$3,'FERIAS DE 4 A 6 DIAS'!E89) -> 203400 | E89: 203400 | G89: 170924.3697
A90: =CONCATENATE(B90:B585," ",C90:C585) -> 3071085 Sofa Otawa 2 cuerpos (85cm x 120cm x 76cm) | B90: 3071085 | C90: Sofa Otawa 2 cuerpos (85cm x 120cm x 76cm) | D90: =IF('FERIAS DE 3 DIAS'!G$3=TRUE,'FERIAS DE 4 A 6 DIAS'!E90/'FERIAS DE 3 DIAS'!I$3,'FERIAS DE 4 A 6 DIAS'!E90) -> 191500 | E90: 191500 | G90: 160924.3697
A91: =CONCATENATE(B91:B586," ",C91:C586) -> 3071090 Puff estandar cuadrado (43cm x 43cm x 43cm) | B91: 3071090 | C91: Puff estandar cuadrado (43cm x 43cm x 43cm) | D91: =IF('FERIAS DE 3 DIAS'!G$3=TRUE,'FERIAS DE 4 A 6 DIAS'!E91/'FERIAS DE 3 DIAS'!I$3,'FERIAS DE 4 A 6 DIAS'!E91) -> 50100 | E91: 50100 | G91: 42100.84034
A92: =CONCATENATE(B92:B587," ",C92:C587) -> 3071091 Puff Trunk 2 cuerpos (48cm x 81cm x 40cm) | B92: 3071091 | C92: Puff Trunk 2 cuerpos (48cm x 81cm x 40cm) | D92: =IF('FERIAS DE 3 DIAS'!G$3=TRUE,'FERIAS DE 4 A 6 DIAS'!E92/'FERIAS DE 3 DIAS'!I$3,'FERIAS DE 4 A 6 DIAS'!E92) -> 95800 | E92: 95800 | G92: 80504.20168
A93: =CONCATENATE(B93:B588," ",C93:C588) -> 3071093 Mesa alta Daysa vidrio (100cm x 60cm) | B93: 3071093 | C93: Mesa alta Daysa vidrio (100cm x 60cm) | D93: =IF('FERIAS DE 3 DIAS'!G$3=TRUE,'FERIAS DE 4 A 6 DIAS'!E93/'FERIAS DE 3 DIAS'!I$3,'FERIAS DE 4 A 6 DIAS'!E93) -> 107700 | E93: 107700 | G93: 90504.20168
A94: =CONCATENATE(B94:B589," ",C94:C589) -> 3071095 Sala VIP (1 sofá Victoria derecho, 1 sofá Victoria izquierdo, 2 poltronas, 1 mesa centro cuadrada 2 niveles) | B94: 3071095 | C94: Sala VIP (1 sofá Victoria derecho, 1 sofá Victoria izquierdo, 2 poltronas, 1 mesa centro cuadrada 2 niveles) | D94: =IF('FERIAS DE 3 DIAS'!G$3=TRUE,'FERIAS DE 4 A 6 DIAS'!E94/'FERIAS DE 3 DIAS'!I$3,'FERIAS DE 4 A 6 DIAS'!E94) -> 626400 | E94: 626400 | G94: 526386.5546
A95: =CONCATENATE(B95:B589," ",C95:C589) -> 3071097 Mesa estandar Daysa (76cm x 60cm) | B95: 3071097 | C95: Mesa estandar Daysa (76cm x 60cm) | D95: =IF('FERIAS DE 3 DIAS'!G$3=TRUE,'FERIAS DE 4 A 6 DIAS'!E95/'FERIAS DE 3 DIAS'!I$3,'FERIAS DE 4 A 6 DIAS'!E95) -> 95800 | E95: 95800 | G95: 80504.20168
A96: =CONCATENATE(B96:B590," ",C96:C590) -> 3071098 Mesa estandar Shia (Blanco) (76cm x 60cm x 60cm) | B96: 3071098 | C96: Mesa estandar Shia (Blanco) (76cm x 60cm x 60cm) | D96: =IF('FERIAS DE 3 DIAS'!G$3=TRUE,'FERIAS DE 4 A 6 DIAS'!E96/'FERIAS DE 3 DIAS'!I$3,'FERIAS DE 4 A 6 DIAS'!E96) -> 95800 | E96: 95800 | G96: 80504.20168
A97: =CONCATENATE(B97:B591," ",C97:C591) -> 3071098 Mesa estandar Shia (Negra) (76cm x 60cm x 60cm) | B97: 3071098 | C97: Mesa estandar Shia (Negra) (76cm x 60cm x 60cm) | D97: =IF('FERIAS DE 3 DIAS'!G$3=TRUE,'FERIAS DE 4 A 6 DIAS'!E97/'FERIAS DE 3 DIAS'!I$3,'FERIAS DE 4 A 6 DIAS'!E97) -> 95800 | E97: 95800 | G97: 80504.20168
A98: =CONCATENATE(B98:B592," ",C98:C592) -> 3071100 Mesa Centro Circular doble nivel (Blanco) (50cm x 110cm x 60cm) | B98: 3071100 | C98: Mesa Centro Circular doble nivel (Blanco) (50cm x 110cm x 60cm) | D98: =IF('FERIAS DE 3 DIAS'!G$3=TRUE,'FERIAS DE 4 A 6 DIAS'!E98/'FERIAS DE 3 DIAS'!I$3,'FERIAS DE 4 A 6 DIAS'!E98) -> 106600 | E98: 106600 | G98: 89579.83193
A99: =CONCATENATE(B99:B593," ",C99:C593) -> 3071103 Nevera Minibar 121 LT (48.5cm X 85.1cm X 60cm) | B99: 3071103 | C99: Nevera Minibar 121 LT (48.5cm X 85.1cm X 60cm) | D99: =IF('FERIAS DE 3 DIAS'!G$3=TRUE,'FERIAS DE 4 A 6 DIAS'!E99/'FERIAS DE 3 DIAS'!I$3,'FERIAS DE 4 A 6 DIAS'!E99) -> 184600 | E99: 184600 | G99: 155126.0504
A100: =CONCATENATE(B100:B594," ",C100:C594) -> 3071103 Nevera Estandar 230LT ( 55.6cm X 157.6cm X 67cm) | B100: 3071103 | C100: Nevera Estandar 230LT ( 55.6cm X 157.6cm X 67cm) | D100: =IF('FERIAS DE 3 DIAS'!G$3=TRUE,'FERIAS DE 4 A 6 DIAS'!E100/'FERIAS DE 3 DIAS'!I$3,'FERIAS DE 4 A 6 DIAS'!E100) -> 272300 | E100: 272300 | G100: 228823.5294
A101: =CONCATENATE(B101:B595," ",C101:C595) -> 3071104 Mesa Centro Cuadrada 2 Niveles (Blanco) (50cm x 60cm x 60) | B101: 3071104 | C101: Mesa Centro Cuadrada 2 Niveles (Blanco) (50cm x 60cm x 60) | D101: =IF('FERIAS DE 3 DIAS'!G$3=TRUE,'FERIAS DE 4 A 6 DIAS'!E101/'FERIAS DE 3 DIAS'!I$3,'FERIAS DE 4 A 6 DIAS'!E101) -> 77500 | E101: 77500 | G101: 65126.05042
A102: =CONCATENATE(B102:B596," ",C102:C596) -> 3071105 KIT básico oficina 2 (2 sillas interlocutoras negras, 1 silla ejecutiva cuero, 1 mesa oficina) | B102: 3071105 | C102: KIT básico oficina 2 (2 sillas interlocutoras negras, 1 silla ejecutiva cuero, 1 mesa oficina) | D102: =IF('FERIAS DE 3 DIAS'!G$3=TRUE,'FERIAS DE 4 A 6 DIAS'!E102/'FERIAS DE 3 DIAS'!I$3,'FERIAS DE 4 A 6 DIAS'!E102) -> 215400 | E102: 215400 | G102: 181008.4034
A103: =CONCATENATE(B103:B597," ",C103:C597) -> 3071108 Estantería Shelf 4E (190cm x 100cm x 30cm) | B103: 3071108 | C103: Estantería Shelf 4E (190cm x 100cm x 30cm) | D103: =IF('FERIAS DE 3 DIAS'!G$3=TRUE,'FERIAS DE 4 A 6 DIAS'!E103/'FERIAS DE 3 DIAS'!I$3,'FERIAS DE 4 A 6 DIAS'!E103) -> 137600 | E103: 137600 | G103: 115630.2521
A104: =CONCATENATE(B104:B598," ",C104:C598) -> 3071111 Vitrina Rectangular 2E (200cm x 100cm x 40cm) | B104: 3071111 | C104: Vitrina Rectangular 2E (200cm x 100cm x 40cm) | D104: =IF('FERIAS DE 3 DIAS'!G$3=TRUE,'FERIAS DE 4 A 6 DIAS'!E104/'FERIAS DE 3 DIAS'!I$3,'FERIAS DE 4 A 6 DIAS'!E104) -> 260200 | E104: 260200 | G104: 218655.4622
A105: =CONCATENATE(B105:B599," ",C105:C599) -> 3071113 Sala Osaka (1 sofá Toronto, 2 puffs Donna, 1 mesa centro cuadrada 2 niveles) | B105: 3071113 | C105: Sala Osaka (1 sofá Toronto, 2 puffs Donna, 1 mesa centro cuadrada 2 niveles) | D105: =IF('FERIAS DE 3 DIAS'!G$3=TRUE,'FERIAS DE 4 A 6 DIAS'!E105/'FERIAS DE 3 DIAS'!I$3,'FERIAS DE 4 A 6 DIAS'!E105) -> 418600 | E105: 418600 | G105: 351764.7059
A106: =CONCATENATE(B106:B600," ",C106:C600) -> 3071114 Puff Trunk 3 cuerpos (46cm x 120cm x 54cm) | B106: 3071114 | C106: Puff Trunk 3 cuerpos (46cm x 120cm x 54cm) | D106: =IF('FERIAS DE 3 DIAS'!G$3=TRUE,'FERIAS DE 4 A 6 DIAS'!E106/'FERIAS DE 3 DIAS'!I$3,'FERIAS DE 4 A 6 DIAS'!E106) -> 95800 | E106: 95800 | G106: 80504.20168
A107: =CONCATENATE(B107:B601," ",C107:C601) -> 3071115 Mesa alta Daysa (Blanco) (100cm x 60cm) | B107: 3071115 | C107: Mesa alta Daysa (Blanco) (100cm x 60cm) | D107: =IF('FERIAS DE 3 DIAS'!G$3=TRUE,'FERIAS DE 4 A 6 DIAS'!E107/'FERIAS DE 3 DIAS'!I$3,'FERIAS DE 4 A 6 DIAS'!E107) -> 95800 | E107: 95800 | G107: 80504.20168
A108: =CONCATENATE(B108:B602," ",C108:C602) -> 3071115 Mesa alta Daysa (Miel) (100cm x 60cm) | B108: 3071115 | C108: Mesa alta Daysa (Miel) (100cm x 60cm) | D108: =IF('FERIAS DE 3 DIAS'!G$3=TRUE,'FERIAS DE 4 A 6 DIAS'!E108/'FERIAS DE 3 DIAS'!I$3,'FERIAS DE 4 A 6 DIAS'!E108) -> 95800 | E108: 95800 | G108: 80504.20168
A109: =CONCATENATE(B109:B603," ",C109:C603) -> 3071115 Mesa alta Daysa (Rovere) (100cm x 60cm) | B109: 3071115 | C109: Mesa alta Daysa (Rovere) (100cm x 60cm) | D109: =IF('FERIAS DE 3 DIAS'!G$3=TRUE,'FERIAS DE 4 A 6 DIAS'!E109/'FERIAS DE 3 DIAS'!I$3,'FERIAS DE 4 A 6 DIAS'!E109) -> 95800 | E109: 95800 | G109: 80504.20168
A110: =CONCATENATE(B110:B604," ",C110:C604) -> 3071115 Mesa alta Daysa (Roble Gris) (100cm x 60cm) | B110: 3071115 | C110: Mesa alta Daysa (Roble Gris) (100cm x 60cm) | D110: =IF('FERIAS DE 3 DIAS'!G$3=TRUE,'FERIAS DE 4 A 6 DIAS'!E110/'FERIAS DE 3 DIAS'!I$3,'FERIAS DE 4 A 6 DIAS'!E110) -> 95800 | E110: 95800 | G110: 80504.20168
A111: =CONCATENATE(B111:B605," ",C111:C605) -> 3071116 Mesa estandar Lotus (70cm x 64cm x 81cm) | B111: 3071116 | C111: Mesa estandar Lotus (70cm x 64cm x 81cm) | D111: =IF('FERIAS DE 3 DIAS'!G$3=TRUE,'FERIAS DE 4 A 6 DIAS'!E111/'FERIAS DE 3 DIAS'!I$3,'FERIAS DE 4 A 6 DIAS'!E111) -> 143500 | E111: 143500 | G111: 120588.2353
A112: =CONCATENATE(B112:B606," ",C112:C606) -> 3071302 Papelera plastica negra | B112: 3071302 | C112: Papelera plastica negra | D112: =IF('FERIAS DE 3 DIAS'!G$3=TRUE,'FERIAS DE 4 A 6 DIAS'!E112/'FERIAS DE 3 DIAS'!I$3,'FERIAS DE 4 A 6 DIAS'!E112) -> 23000 | E112: 23000 | G112: 19327.73109
A113: =CONCATENATE(B113:B607," ",C113:C607) -> 3071325 Poste separador 120cm de alto | B113: 3071325 | C113: Poste separador 120cm de alto | D113: =IF('FERIAS DE 3 DIAS'!G$3=TRUE,'FERIAS DE 4 A 6 DIAS'!E113/'FERIAS DE 3 DIAS'!I$3,'FERIAS DE 4 A 6 DIAS'!E113) -> 44000 | E113: 44000 | G113: 36974.78992
A114: =CONCATENATE(B114:B608," ",C114:C608) -> 3071370 Revistero plegable (140cm x 25cm x 29cm) | B114: 3071370 | C114: Revistero plegable (140cm x 25cm x 29cm) | D114: =IF('FERIAS DE 3 DIAS'!G$3=TRUE,'FERIAS DE 4 A 6 DIAS'!E114/'FERIAS DE 3 DIAS'!I$3,'FERIAS DE 4 A 6 DIAS'!E114) -> 71300 | E114: 71300 | G114: 59915.96639
A115: =CONCATENATE(B115:B609," ",C115:C609) -> 30710165 Silla Bombona Roja (80cm x 43cm x 40cm) | B115: 30710165 | C115: Silla Bombona Roja (80cm x 43cm x 40cm) | D115: =IF('FERIAS DE 3 DIAS'!G$3=TRUE,'FERIAS DE 4 A 6 DIAS'!E115/'FERIAS DE 3 DIAS'!I$3,'FERIAS DE 4 A 6 DIAS'!E115) -> 59800 | E115: 59800 | G115: 50252.10084
A116: =CONCATENATE(B116:B610," ",C116:C610) -> 30710166 Silla Oslo Blanca (90cm x 50cm x 45cm) | B116: 30710166 | C116: Silla Oslo Blanca (90cm x 50cm x 45cm) | D116: =IF('FERIAS DE 3 DIAS'!G$3=TRUE,'FERIAS DE 4 A 6 DIAS'!E116/'FERIAS DE 3 DIAS'!I$3,'FERIAS DE 4 A 6 DIAS'!E116) -> 68400 | E116: 68400 | G116: 57478.9916
A117: =CONCATENATE(B117:B611," ",C117:C611) -> 30710167 Silla Tipo Bar Madera (75cm x 38cm x39 cm) | B117: 30710167 | C117: Silla Tipo Bar Madera (75cm x 38cm x39 cm) | D117: =IF('FERIAS DE 3 DIAS'!G$3=TRUE,'FERIAS DE 4 A 6 DIAS'!E117/'FERIAS DE 3 DIAS'!I$3,'FERIAS DE 4 A 6 DIAS'!E117) -> 74300 | E117: 74300 | G117: 62436.97479
A118: =CONCATENATE(B118:B612," ",C118:C612) -> 30710168 Sala de Juntas (75cm x 120cn x 240cm) | B118: 30710168 | C118: Sala de Juntas (75cm x 120cn x 240cm) | D118: =IF('FERIAS DE 3 DIAS'!G$3=TRUE,'FERIAS DE 4 A 6 DIAS'!E118/'FERIAS DE 3 DIAS'!I$3,'FERIAS DE 4 A 6 DIAS'!E118) -> 270000 | E118: 270000 | G118: 226890.7563
A119: =CONCATENATE(B119:B613," ",C119:C613) -> 30713198 Silla Gerencial (100cm x 49cm x 49cm) | B119: 30713198 | C119: Silla Gerencial (100cm x 49cm x 49cm) | D119: =IF('FERIAS DE 3 DIAS'!G$3=TRUE,'FERIAS DE 4 A 6 DIAS'!E119/'FERIAS DE 3 DIAS'!I$3,'FERIAS DE 4 A 6 DIAS'!E119) -> 140800 | E119: 140800 | G119: 118319.3277
A120: =CONCATENATE(B120:B614," ",C120:C614) -> 30713200 Mesa Oficina (50cm x 120cm x 50cm) | B120: 30713200 | C120: Mesa Oficina (50cm x 120cm x 50cm) | D120: =IF('FERIAS DE 3 DIAS'!G$3=TRUE,'FERIAS DE 4 A 6 DIAS'!E120/'FERIAS DE 3 DIAS'!I$3,'FERIAS DE 4 A 6 DIAS'!E120) -> 120700 | E120: 120700 | G120: 101428.5714
A121: =CONCATENATE(B121:B615," ",C121:C615) -> 30713201 Poltrona Buggy (73cm x 86cm X 73cm) | B121: 30713201 | C121: Poltrona Buggy (73cm x 86cm X 73cm) | D121: =IF('FERIAS DE 3 DIAS'!G$3=TRUE,'FERIAS DE 4 A 6 DIAS'!E121/'FERIAS DE 3 DIAS'!I$3,'FERIAS DE 4 A 6 DIAS'!E121) -> 140800 | E121: 140800 | G121: 118319.3277
A122: =CONCATENATE(B122:B616," ",C122:C616) -> 30713225 Tapete Ferial Tipo Moqueta Liso m2 m2 + Instalación: Contáctese con serviciosplus@corferias.com para brindarle asesoria y cotización. | B122: 30713225 | C122: Tapete Ferial Tipo Moqueta Liso m2 m2 + Instalación: Contáctese con serviciosplus@corferias.com para brindarle asesoria y cotización. | D122: =IF('FERIAS DE 3 DIAS'!G$3=TRUE,'FERIAS DE 4 A 6 DIAS'!E122/'FERIAS DE 3 DIAS'!I$3,'FERIAS DE 4 A 6 DIAS'!E122) -> 37800 | E122: 37800 | G122: 31764.70588
A123: =CONCATENATE(B123:B617," ",C123:C617) -> 30713226 Tapete Ferial Tipo Moqueta Acanalado m2 + Instalación: contáctese con serviciosplus@corferias.com para brindarle asesoria y cotización. | B123: 30713226 | C123: Tapete Ferial Tipo Moqueta Acanalado m2 + Instalación: contáctese con serviciosplus@corferias.com para brindarle asesoria y cotización. | D123: =IF('FERIAS DE 3 DIAS'!G$3=TRUE,'FERIAS DE 4 A 6 DIAS'!E123/'FERIAS DE 3 DIAS'!I$3,'FERIAS DE 4 A 6 DIAS'!E123) -> 37800 | E123: 37800 | G123: =E123/1.19 -> 31764.70588
A124: =CONCATENATE(B124:B618," ",C124:C618) -> 30713227 Tapete Caucho m2 + Instalación: contáctese con serviciosplus@corferias.com para brindarle asesoria y cotización. | B124: 30713227 | C124: Tapete Caucho m2 + Instalación: contáctese con serviciosplus@corferias.com para brindarle asesoria y cotización. | D124: =IF('FERIAS DE 3 DIAS'!G$3=TRUE,'FERIAS DE 4 A 6 DIAS'!E124/'FERIAS DE 3 DIAS'!I$3,'FERIAS DE 4 A 6 DIAS'!E124) -> 97200 | E124: 97200 | G124: 81680.67227
A125: =CONCATENATE(B125:B619," ",C125:C619) -> 30713228 Piso Laminado m2 + Instalación: contáctese con serviciosplus@corferias.com para brindarle asesoria y cotización. | B125: 30713228 | C125: Piso Laminado m2 + Instalación: contáctese con serviciosplus@corferias.com para brindarle asesoria y cotización. | D125: =IF('FERIAS DE 3 DIAS'!G$3=TRUE,'FERIAS DE 4 A 6 DIAS'!E125/'FERIAS DE 3 DIAS'!I$3,'FERIAS DE 4 A 6 DIAS'!E125) -> 97200 | E125: 97200 | G125: 81680.67227
A126: =CONCATENATE(B126:B620," ",C126:C620) -> 30713229 Piso Melaminico m2 + Instalación: contáctese con serviciosplus@corferias.com para brindarle asesoria y cotización. | B126: 30713229 | C126: Piso Melaminico m2 + Instalación: contáctese con serviciosplus@corferias.com para brindarle asesoria y cotización. | D126: =IF('FERIAS DE 3 DIAS'!G$3=TRUE,'FERIAS DE 4 A 6 DIAS'!E126/'FERIAS DE 3 DIAS'!I$3,'FERIAS DE 4 A 6 DIAS'!E126) -> 172800 | E126: 172800 | G126: 145210.084
A127: =CONCATENATE(B127:B621," ",C127:C621) -> Sala Barú (1 sofá Otawa, 2 Puff Cuadrados, 1 Puff 2 Puestos, 1 Mesa de Centro 2 niveles) | C127: Sala Barú (1 sofá Otawa, 2 Puff Cuadrados, 1 Puff 2 Puestos, 1 Mesa de Centro 2 niveles) | D127: =IF('FERIAS DE 3 DIAS'!G$3=TRUE,'FERIAS DE 4 A 6 DIAS'!E127/'FERIAS DE 3 DIAS'!I$3,'FERIAS DE 4 A 6 DIAS'!E127) -> 418600 | E127: 418600 | G127: 351764.7059
A128: =CONCATENATE(B128:B622," ",C128:C622) -> Sala Terranova (1 sofá terranoca, 2 Poltronas Buggy, 1 Mesa de Centro 2 niveles) | C128: Sala Terranova (1 sofá terranoca, 2 Poltronas Buggy, 1 Mesa de Centro 2 niveles) | D128: =IF('FERIAS DE 3 DIAS'!G$3=TRUE,'FERIAS DE 4 A 6 DIAS'!E128/'FERIAS DE 3 DIAS'!I$3,'FERIAS DE 4 A 6 DIAS'!E128) -> 418600 | E128: 418600
A129: =CONCATENATE(B129:B623," ",C129:C623) -> Matera Melaminico (con 12 Matas Artificiales) | C129: Matera Melaminico (con 12 Matas Artificiales) | D129: =IF('FERIAS DE 3 DIAS'!G$3=TRUE,'FERIAS DE 4 A 6 DIAS'!E129/'FERIAS DE 3 DIAS'!I$3,'FERIAS DE 4 A 6 DIAS'!E129) -> 40800 | E129: 40800
A130: =CONCATENATE(B130:B630," ",C130:C630) -> 3070942 KIT de Oficina Pino 1 (1 mesa plegable pino, 3 sillas acrilicas K negra) | B130: 3070942 | C130: KIT de Oficina Pino 1 (1 mesa plegable pino, 3 sillas acrilicas K negra) | D130: =IF('FERIAS DE 3 DIAS'!G$3=TRUE,'FERIAS DE 4 A 6 DIAS'!E130/'FERIAS DE 3 DIAS'!I$3,'FERIAS DE 4 A 6 DIAS'!E130) -> 181000 | E130: 181000
A131: =CONCATENATE(B131:B631," ",C131:C631) -> 3070940 Mesa Pino 120 x 60 cms | B131: 3070940 | C131: Mesa Pino 120 x 60 cms | D131: =IF('FERIAS DE 3 DIAS'!G$3=TRUE,'FERIAS DE 4 A 6 DIAS'!E131/'FERIAS DE 3 DIAS'!I$3,'FERIAS DE 4 A 6 DIAS'!E131) -> 106800 | E131: 106800
A132: =CONCATENATE(B132:B632," ",C132:C632) -> 3071002 Silla Acrilica K Negra 103C | B132: 3071002 | C132: Silla Acrilica K Negra 103C | D132: =IF('FERIAS DE 3 DIAS'!G$3=TRUE,'FERIAS DE 4 A 6 DIAS'!E132/'FERIAS DE 3 DIAS'!I$3,'FERIAS DE 4 A 6 DIAS'!E132) -> 45300 | E132: 45300
A133: =CONCATENATE(B133:B622," ",C133:C622) -> 3071346 Base para Tv Led - LCD adaptable (No Incluye Instalacion) Valor evento 1 día | B133: 3071346 | C133: Base para Tv Led - LCD adaptable (No Incluye Instalacion) Valor evento 1 día | D133: =IF('FERIAS DE 3 DIAS'!G$3=TRUE,'FERIAS DE 4 A 6 DIAS'!E133/'FERIAS DE 3 DIAS'!I$3,'FERIAS DE 4 A 6 DIAS'!E133) -> 42100 | E133: 42100 | G133: 35378.15126
A134: =CONCATENATE(B134:B623," ",C134:C623) -> 3071346 Base para Tv Led - LCD adaptable (No Incluye Instalacion) Valor evento 2 dias (Valor dia) | B134: 3071346 | C134: Base para Tv Led - LCD adaptable (No Incluye Instalacion) Valor evento 2 dias (Valor dia) | D134: =IF('FERIAS DE 3 DIAS'!G$3=TRUE,'FERIAS DE 4 A 6 DIAS'!E134/'FERIAS DE 3 DIAS'!I$3,'FERIAS DE 4 A 6 DIAS'!E134) -> 42100 | E134: 42100 | G134: 35378.15126
A135: =CONCATENATE(B135:B624," ",C135:C624) -> 3071346 Base para Tv Led - LCD adaptable (No Incluye Instalacion) Valor de 3 a 6 dias (Valor dia) | B135: 3071346 | C135: Base para Tv Led - LCD adaptable (No Incluye Instalacion) Valor de 3 a 6 dias (Valor dia) | D135: =IF('FERIAS DE 3 DIAS'!G$3=TRUE,'FERIAS DE 4 A 6 DIAS'!E135/'FERIAS DE 3 DIAS'!I$3,'FERIAS DE 4 A 6 DIAS'!E135) -> 38300 | E135: 38300 | G135: 32184.87395
A136: =CONCATENATE(B136:B625," ",C136:C625) -> 3071346 Base para Tv Led - LCD adaptable (No Incluye Instalacion) Valor de 7 a 18 días (Valor feria) | B136: 3071346 | C136: Base para Tv Led - LCD adaptable (No Incluye Instalacion) Valor de 7 a 18 días (Valor feria) | D136: =IF('FERIAS DE 3 DIAS'!G$3=TRUE,'FERIAS DE 4 A 6 DIAS'!E136/'FERIAS DE 3 DIAS'!I$3,'FERIAS DE 4 A 6 DIAS'!E136) -> 272720 | E136: 272720 | G136: 229176.4706
A137: =CONCATENATE(B137:B626," ",C137:C626) -> 3071346 Base para Tv Led - LCD adaptable (No Incluye Instalacion) Valor evento 1 día | B137: 3071346 | C137: Base para Tv Led - LCD adaptable (No Incluye Instalacion) Valor evento 1 día | D137: =IF(G$3=TRUE,E137/I$3,E137) -> 42500 | E137: 42500 | G137: 35714.28571
A138: =CONCATENATE(B138:B627," ",C138:C627) -> 3071346 Base para Tv Led - LCD adaptable (No Incluye Instalacion) Valor evento 2 dias (Valor dia) | B138: 3071346 | C138: Base para Tv Led - LCD adaptable (No Incluye Instalacion) Valor evento 2 dias (Valor dia) | D138: 42500 | E138: 42500 | G138: 35714.28571
A139: =CONCATENATE(B139:B628," ",C139:C628) -> 3071346 Base para Tv Led - LCD adaptable (No Incluye Instalacion) Valor de 3 a 6 dias (Valor dia) | B139: 3071346 | C139: Base para Tv Led - LCD adaptable (No Incluye Instalacion) Valor de 3 a 6 dias (Valor dia) | D139: 38600 | E139: 38600 | G139: 32436.97479
A140: =CONCATENATE(B140:B629," ",C140:C629) -> 3071346 Base para Tv Led - LCD adaptable (No Incluye Instalacion) Valor de 7 a 18 días (Valor feria) | B140: 3071346 | C140: Base para Tv Led - LCD adaptable (No Incluye Instalacion) Valor de 7 a 18 días (Valor feria) | D140: 272500 | E140: 272500 | G140: 228991.5966
A141: =CONCATENATE(B141:B630," ",C141:C630) -> 3071204 Tv Smart 45" 114cms ( Incluye base para tv / cable de corriente / 1 cable HDMI) IN: HDMI, USB Valor evento 1 día | B141: 3071204 | C141: Tv Smart 45" 114cms ( Incluye base para tv / cable de corriente / 1 cable HDMI) IN: HDMI, USB Valor evento 1 día | D141: 137900 | E141: 137900 | G141: 115882.3529
A142: =CONCATENATE(B142:B627," ",C142:C627) -> 3071204 Tv Smart 45" 114cms ( Incluye base para tv / cable de corriente / 1 cable HDMI) IN: HDMI, USB Valor evento 2 dias (Valor dia) | B142: 3071204 | C142: Tv Smart 45" 114cms ( Incluye base para tv / cable de corriente / 1 cable HDMI) IN: HDMI, USB Valor evento 2 dias (Valor dia) | D142: 135900 | E142: 135900 | G142: 114201.6807
A143: =CONCATENATE(B143:B628," ",C143:C628) -> 3071204 Tv Smart 45" 114cms ( Incluye base para tv / cable de corriente / 1 cable HDMI) IN: HDMI, USB Valor de 3 a 6 dias (Valor dia) | B143: 3071204 | C143: Tv Smart 45" 114cms ( Incluye base para tv / cable de corriente / 1 cable HDMI) IN: HDMI, USB Valor de 3 a 6 dias (Valor dia) | D143: 125800 | E143: 125800 | G143: 105714.2857
A144: =CONCATENATE(B144:B629," ",C144:C629) -> 3071204 Tv Smart 45" 114cms ( Incluye base para tv / cable de corriente / 1 cable HDMI) IN: HDMI, USB Valor de 7 a 18 días (Valor feria) | B144: 3071204 | C144: Tv Smart 45" 114cms ( Incluye base para tv / cable de corriente / 1 cable HDMI) IN: HDMI, USB Valor de 7 a 18 días (Valor feria) | D144: 816500 | E144: 816500 | G144: 686134.4538
A145: =CONCATENATE(B145:B630," ",C145:C630) -> 30713202 Tv Smart 55" 140cms ( Incluye base para tv / cable de corriente / 1 cable HDMI) IN: HDMI, USB Valor evento 1 día | B145: 30713202 | C145: Tv Smart 55" 140cms ( Incluye base para tv / cable de corriente / 1 cable HDMI) IN: HDMI, USB Valor evento 1 día | D145: 188100 | E145: 188100 | G145: 158067.2269
A146: =CONCATENATE(B146:B631," ",C146:C631) -> 30713202 Tv Smart 55" 140cms ( Incluye base para tv / cable de corriente / 1 cable HDMI) IN: HDMI, USB Valor evento 2 dias (Valor dia) | B146: 30713202 | C146: Tv Smart 55" 140cms ( Incluye base para tv / cable de corriente / 1 cable HDMI) IN: HDMI, USB Valor evento 2 dias (Valor dia) | D146: 188100 | E146: 188100 | G146: 158067.2269
A147: =CONCATENATE(B147:B632," ",C147:C632) -> 30713202 Tv Smart 55" 140cms ( Incluye base para tv / cable de corriente / 1 cable HDMI) IN: HDMI, USB Valor de 3 a 6 dias (Valor dia) | B147: 30713202 | C147: Tv Smart 55" 140cms ( Incluye base para tv / cable de corriente / 1 cable HDMI) IN: HDMI, USB Valor de 3 a 6 dias (Valor dia) | D147: 171400 | E147: 171400 | G147: 144033.6134
A148: =CONCATENATE(B148:B633," ",C148:C633) -> 30713202 Tv Smart 55" 140cms ( Incluye base para tv / cable de corriente / 1 cable HDMI) IN: HDMI, USB Valor de 7 a 18 días (Valor feria) | B148: 30713202 | C148: Tv Smart 55" 140cms ( Incluye base para tv / cable de corriente / 1 cable HDMI) IN: HDMI, USB Valor de 7 a 18 días (Valor feria) | D148: 1381900 | E148: 1381900 | G148: 1161260.504
A149: =CONCATENATE(B149:B634," ",C149:C634) -> 3071206 Tv Smart 65" 165cms ( Incluye base para tv / cable de corriente /1 cable HDMI) IN: HDMI, USB Valor evento 1 día | B149: 3071206 | C149: Tv Smart 65" 165cms ( Incluye base para tv / cable de corriente /1 cable HDMI) IN: HDMI, USB Valor evento 1 día | D149: 330600 | E149: 330600 | G149: 277815.1261
A150: =CONCATENATE(B150:B635," ",C150:C635) -> 3071206 Tv Smart 65" 165cms ( Incluye base para tv / cable de corriente /1 cable HDMI) IN: HDMI, USB Valor evento 2 dias (Valor dia) | B150: 3071206 | C150: Tv Smart 65" 165cms ( Incluye base para tv / cable de corriente /1 cable HDMI) IN: HDMI, USB Valor evento 2 dias (Valor dia) | D150: 330600 | E150: 330600 | G150: 277815.1261
A151: =CONCATENATE(B151:B636," ",C151:C636) -> 3071206 Tv Smart 65" 165cms ( Incluye base para tv / cable de corriente /1 cable HDMI) IN: HDMI, USB Valor de 3 a 6 dias (Valor dia) | B151: 3071206 | C151: Tv Smart 65" 165cms ( Incluye base para tv / cable de corriente /1 cable HDMI) IN: HDMI, USB Valor de 3 a 6 dias (Valor dia) | D151: 312400 | E151: 312400 | G151: 262521.0084
A152: =CONCATENATE(B152:B637," ",C152:C637) -> 3071206 Tv Smart 65" 165cms ( Incluye base para tv / cable de corriente /1 cable HDMI) IN: HDMI, USB Valor de 7 a 18 días (Valor feria) | B152: 3071206 | C152: Tv Smart 65" 165cms ( Incluye base para tv / cable de corriente /1 cable HDMI) IN: HDMI, USB Valor de 7 a 18 días (Valor feria) | D152: 1582600 | E152: 1582600 | G152: 1329915.966
A153: =CONCATENATE(B153:B638," ",C153:C638) -> 3071279 Tv Smart 70" 177,8cms ( Incluye base para tv / cable de corriente /1 cable HDMI) IN: HDMI, USB Valor evento 1 día | B153: 3071279 | C153: Tv Smart 70" 177,8cms ( Incluye base para tv / cable de corriente /1 cable HDMI) IN: HDMI, USB Valor evento 1 día | D153: 531400 | E153: 531400 | G153: 446554.6218
A154: =CONCATENATE(B154:B639," ",C154:C639) -> 3071279 Tv Smart 70" 177,8cms ( Incluye base para tv / cable de corriente /1 cable HDMI) IN: HDMI, USB Valor evento 2 dias (Valor dia) | B154: 3071279 | C154: Tv Smart 70" 177,8cms ( Incluye base para tv / cable de corriente /1 cable HDMI) IN: HDMI, USB Valor evento 2 dias (Valor dia) | D154: 531400 | E154: 531400 | G154: 446554.6218
A155: =CONCATENATE(B155:B640," ",C155:C640) -> 3071279 Tv Smart 70" 177,8cms ( Incluye base para tv / cable de corriente /1 cable HDMI) IN: HDMI, USB Valor de 3 a 6 dias (Valor dia) | B155: 3071279 | C155: Tv Smart 70" 177,8cms ( Incluye base para tv / cable de corriente /1 cable HDMI) IN: HDMI, USB Valor de 3 a 6 dias (Valor dia) | D155: 483600 | E155: 483600 | G155: 406386.5546
A156: =CONCATENATE(B156:B641," ",C156:C641) -> 3071279 Tv Smart 70" 177,8cms ( Incluye base para tv / cable de corriente /1 cable HDMI) IN: HDMI, USB Valor de 7 a 18 días (Valor feria) | B156: 3071279 | C156: Tv Smart 70" 177,8cms ( Incluye base para tv / cable de corriente /1 cable HDMI) IN: HDMI, USB Valor de 7 a 18 días (Valor feria) | D156: 3454300 | E156: 3454300 | G156: 2902773.109
A157: =CONCATENATE(B157:B642," ",C157:C642) -> 3071222 Tv Smart 82" 204cms ( Incluye base para tv / cable de corriente /1 cable HDMI) IN: HDMI, USB Valor evento 1 día | B157: 3071222 | C157: Tv Smart 82" 204cms ( Incluye base para tv / cable de corriente /1 cable HDMI) IN: HDMI, USB Valor evento 1 día | D157: 987200 | E157: 987200 | G157: 829579.8319
A158: =CONCATENATE(B158:B643," ",C158:C643) -> 3071222 Tv Smart 82" 204cms ( Incluye base para tv / cable de corriente /1 cable HDMI) IN: HDMI, USB Valor evento 2 dias (Valor dia) | B158: 3071222 | C158: Tv Smart 82" 204cms ( Incluye base para tv / cable de corriente /1 cable HDMI) IN: HDMI, USB Valor evento 2 dias (Valor dia) | D158: 987200 | E158: 987200 | G158: 829579.8319
A159: =CONCATENATE(B159:B644," ",C159:C644) -> 3071222 Tv Smart 82" 204cms ( Incluye base para tv / cable de corriente /1 cable HDMI) IN: HDMI, USB Valor de 3 a 6 dias (Valor dia) | B159: 3071222 | C159: Tv Smart 82" 204cms ( Incluye base para tv / cable de corriente /1 cable HDMI) IN: HDMI, USB Valor de 3 a 6 dias (Valor dia) | D159: 898200 | E159: 898200 | G159: 754789.916
A160: =CONCATENATE(B160:B645," ",C160:C645) -> 3071222 Tv Smart 82" 204cms ( Incluye base para tv / cable de corriente /1 cable HDMI) IN: HDMI, USB Valor de 7 a 18 días (Valor feria) | B160: 3071222 | C160: Tv Smart 82" 204cms ( Incluye base para tv / cable de corriente /1 cable HDMI) IN: HDMI, USB Valor de 7 a 18 días (Valor feria) | D160: 6414700 | E160: 6414700 | G160: 5390504.202
A161: =CONCATENATE(B161:B646," ",C161:C646) -> 3071262 Monitor tactil 65" 165cms ( Incluye base para monitor / cableado) IN: HDMI Valor evento 1 día | B161: 3071262 | C161: Monitor tactil 65" 165cms ( Incluye base para monitor / cableado) IN: HDMI Valor evento 1 día | D161: 666700 | E161: 666700 | G161: 560252.1008
A162: =CONCATENATE(B162:B647," ",C162:C647) -> 3071262 Monitor tactil 65" 165cms ( Incluye base para monitor / cableado) IN: HDMI Valor evento 2 dias (Valor dia) | B162: 3071262 | C162: Monitor tactil 65" 165cms ( Incluye base para monitor / cableado) IN: HDMI Valor evento 2 dias (Valor dia) | D162: 666700 | E162: 666700 | G162: 560252.1008
A163: =CONCATENATE(B163:B648," ",C163:C648) -> 3071262 Monitor tactil 65" 165cms ( Incluye base para monitor / cableado) IN: HDMI Valor de 3 a 6 dias (Valor dia) | B163: 3071262 | C163: Monitor tactil 65" 165cms ( Incluye base para monitor / cableado) IN: HDMI Valor de 3 a 6 dias (Valor dia) | D163: 485700 | E163: 485700 | G163: 408151.2605
A164: =CONCATENATE(B164:B649," ",C164:C649) -> 3071262 Monitor tactil 65" 165cms ( Incluye base para monitor / cableado) IN: HDMI Valor de 7 a 18 días (Valor feria) | B164: 3071262 | C164: Monitor tactil 65" 165cms ( Incluye base para monitor / cableado) IN: HDMI Valor de 7 a 18 días (Valor feria) | D164: 4847700 | E164: 4847700 | G164: 4073697.479
A165: =CONCATENATE(B165:B650," ",C165:C650) -> 3071284 Tablet tactil 7" RAM:1GB / Conectividad: 3G / Sistema Operativo Android 9.0 Valor evento 1 día | B165: 3071284 | C165: Tablet tactil 7" RAM:1GB / Conectividad: 3G / Sistema Operativo Android 9.0 Valor evento 1 día | D165: 50000 | E165: 50000 | G165: 42016.80672
A166: =CONCATENATE(B166:B651," ",C166:C651) -> 3071284 Tablet tactil 7" RAM:1GB / Conectividad: 3G / Sistema Operativo Android 9.0 Valor evento 2 dias (Valor dia) | B166: 3071284 | C166: Tablet tactil 7" RAM:1GB / Conectividad: 3G / Sistema Operativo Android 9.0 Valor evento 2 dias (Valor dia) | D166: 50000 | E166: 50000 | G166: 42016.80672
A167: =CONCATENATE(B167:B652," ",C167:C652) -> 3071284 Tablet tactil 7" RAM:1GB / Conectividad: 3G / Sistema Operativo Android 9.0 Valor de 3 a 6 dias (Valor dia) | B167: 3071284 | C167: Tablet tactil 7" RAM:1GB / Conectividad: 3G / Sistema Operativo Android 9.0 Valor de 3 a 6 dias (Valor dia) | D167: 46000 | E167: 46000 | G167: 38655.46218
A168: =CONCATENATE(B168:B653," ",C168:C653) -> 3071284 Tablet tactil 7" RAM:1GB / Conectividad: 3G / Sistema Operativo Android 9.0 Valor de 7 a 18 días (Valor feria) | B168: 3071284 | C168: Tablet tactil 7" RAM:1GB / Conectividad: 3G / Sistema Operativo Android 9.0 Valor de 7 a 18 días (Valor feria) | D168: 496800 | E168: 496800 | G168: 417478.9916
A169: =CONCATENATE(B169:B654," ",C169:C654) -> 3071265 Pantalla Led Full Hd Indoor / Medida 3,20mts x 2,96mts / Pitch 3,9 / Incluye estructura para montaje de piso a pared Valor evento 1 día | B169: 3071265 | C169: Pantalla Led Full Hd Indoor / Medida 3,20mts x 2,96mts / Pitch 3,9 / Incluye estructura para montaje de piso a pared Valor evento 1 día | D169: 1662336 | E169: 1662336 | G169: 1396921.008
A170: =CONCATENATE(B170:B655," ",C170:C655) -> 3071265 Pantalla Led Full Hd Indoor / Medida 3,20mts x 2,96mts / Pitch 3,9 / Incluye estructura para montaje de piso a pared Valor evento 2 dias (Valor dia) | B170: 3071265 | C170: Pantalla Led Full Hd Indoor / Medida 3,20mts x 2,96mts / Pitch 3,9 / Incluye estructura para montaje de piso a pared Valor evento 2 dias (Valor dia) | D170: 1662336 | E170: 1662336 | G170: 1396921.008
A171: =CONCATENATE(B171:B656," ",C171:C656) -> 3071265 Pantalla Led Full Hd Indoor / Medida 3,20mts x 2,96mts / Pitch 3,9 / Incluye estructura para montaje de piso a pared Valor de 3 a 6 dias (Valor dia) | B171: 3071265 | C171: Pantalla Led Full Hd Indoor / Medida 3,20mts x 2,96mts / Pitch 3,9 / Incluye estructura para montaje de piso a pared Valor de 3 a 6 dias (Valor dia) | D171: 1496064 | E171: 1496064 | G171: 1257196.639
A172: =CONCATENATE(B172:B657," ",C172:C657) -> 3071265 Pantalla Led Full Hd Indoor / Medida 3,20mts x 2,96mts / Pitch 3,9 / Incluye estructura para montaje de piso a pared Valor de 7 a 18 días (Valor feria) | B172: 3071265 | C172: Pantalla Led Full Hd Indoor / Medida 3,20mts x 2,96mts / Pitch 3,9 / Incluye estructura para montaje de piso a pared Valor de 7 a 18 días (Valor feria) | D172: 14067200 | E172: 14067200 | G172: 11821176.47
A173: =CONCATENATE(B173:B658," ",C173:C658) -> 3071267 Pantalla Led Full Hd Indoor / Medida 4,48mts x 3,20mts / Pitch 3,9 / Incluye estructura para montaje de piso a pared Valor evento 1 día | B173: 3071267 | C173: Pantalla Led Full Hd Indoor / Medida 4,48mts x 3,20mts / Pitch 3,9 / Incluye estructura para montaje de piso a pared Valor evento 1 día | D173: 1926272 | E173: 1926272 | G173: 1618715.966
A174: =CONCATENATE(B174:B659," ",C174:C659) -> 3071267 Pantalla Led Full Hd Indoor / Medida 4,48mts x 3,20mts / Pitch 3,9 / Incluye estructura para montaje de piso a pared Valor evento 2 dias (Valor dia) | B174: 3071267 | C174: Pantalla Led Full Hd Indoor / Medida 4,48mts x 3,20mts / Pitch 3,9 / Incluye estructura para montaje de piso a pared Valor evento 2 dias (Valor dia) | D174: 1926272 | E174: 1926272 | G174: 1618715.966
A175: =CONCATENATE(B175:B660," ",C175:C660) -> 3071267 Pantalla Led Full Hd Indoor / Medida 4,48mts x 3,20mts / Pitch 3,9 / Incluye estructura para montaje de piso a pared Valor de 3 a 6 dias (Valor dia) | B175: 3071267 | C175: Pantalla Led Full Hd Indoor / Medida 4,48mts x 3,20mts / Pitch 3,9 / Incluye estructura para montaje de piso a pared Valor de 3 a 6 dias (Valor dia) | D175: 1733632 | E175: 1733632 | G175: 1456833.613
A176: =CONCATENATE(B176:B661," ",C176:C661) -> 3071267 Pantalla Led Full Hd Indoor / Medida 4,48mts x 3,20mts / Pitch 3,9 / Incluye estructura para montaje de piso a pared Valor de 7 a 18 días (Valor feria) | B176: 3071267 | C176: Pantalla Led Full Hd Indoor / Medida 4,48mts x 3,20mts / Pitch 3,9 / Incluye estructura para montaje de piso a pared Valor de 7 a 18 días (Valor feria) | D176: 20284032 | E176: 20284032 | G176: 17045405.04
A177: =CONCATENATE(B177:B662," ",C177:C662) -> 3071268 Pantalla Led Full Hd Indoor / Medida 6,4mts x 3,20mts /mts2: 20,48 / Pitch 3,9 / Incluye estructura para montaje de piso a pared Valor evento 1 día | B177: 3071268 | C177: Pantalla Led Full Hd Indoor / Medida 6,4mts x 3,20mts /mts2: 20,48 / Pitch 3,9 / Incluye estructura para montaje de piso a pared Valor evento 1 día | D177: 2287360 | E177: 2287360 | G177: 1922151.261
A178: =CONCATENATE(B178:B663," ",C178:C663) -> 3071268 Pantalla Led Full Hd Indoor / Medida 6,4mts x 3,20mts /mts2: 20,48 / Pitch 3,9 / Incluye estructura para montaje de piso a pared Valor evento 2 dias (Valor dia) | B178: 3071268 | C178: Pantalla Led Full Hd Indoor / Medida 6,4mts x 3,20mts /mts2: 20,48 / Pitch 3,9 / Incluye estructura para montaje de piso a pared Valor evento 2 dias (Valor dia) | D178: 2287360 | E178: 2287360 | G178: 1922151.261
A179: =CONCATENATE(B179:B664," ",C179:C664) -> 3071268 Pantalla Led Full Hd Indoor / Medida 6,4mts x 3,20mts /mts2: 20,48 / Pitch 3,9 / Incluye estructura para montaje de piso a pared Valor de 3 a 6 dias (Valor dia) | B179: 3071268 | C179: Pantalla Led Full Hd Indoor / Medida 6,4mts x 3,20mts /mts2: 20,48 / Pitch 3,9 / Incluye estructura para montaje de piso a pared Valor de 3 a 6 dias (Valor dia) | D179: 2071680 | E179: 2071680 | G179: 1740907.563
A180: =CONCATENATE(B180:B665," ",C180:C665) -> 3071268 Pantalla Led Full Hd Indoor / Medida 6,4mts x 3,20mts /mts2: 20,48 / Pitch 3,9 / Incluye estructura para montaje de piso a pared Valor de 7 a 18 días (Valor feria) | B180: 3071268 | C180: Pantalla Led Full Hd Indoor / Medida 6,4mts x 3,20mts /mts2: 20,48 / Pitch 3,9 / Incluye estructura para montaje de piso a pared Valor de 7 a 18 días (Valor feria) | D180: 14796416 | E180: 14796416 | G180: 12433963.03
A181: =CONCATENATE(B181:B666," ",C181:C666) -> 3071264 Pantalla Led Full Hd Indoor / Medida 6,4mts x 4,48mts /mts2: 28,67 / Pitch 3,9 / Incluye estructura para montaje de piso a pared Valor evento 1 día | B181: 3071264 | C181: Pantalla Led Full Hd Indoor / Medida 6,4mts x 4,48mts /mts2: 28,67 / Pitch 3,9 / Incluye estructura para montaje de piso a pared Valor evento 1 día | D181: 3049728 | E181: 3049728 | G181: 2562796.639
A182: =CONCATENATE(B182:B667," ",C182:C667) -> 3071264 Pantalla Led Full Hd Indoor / Medida 6,4mts x 4,48mts /mts2: 28,67 / Pitch 3,9 / Incluye estructura para montaje de piso a pared Valor evento 2 dias (Valor dia) | B182: 3071264 | C182: Pantalla Led Full Hd Indoor / Medida 6,4mts x 4,48mts /mts2: 28,67 / Pitch 3,9 / Incluye estructura para montaje de piso a pared Valor evento 2 dias (Valor dia) | D182: 3049728 | E182: 3049728 | G182: 2562796.639
A183: =CONCATENATE(B183:B668," ",C183:C668) -> 3071264 Pantalla Led Full Hd Indoor / Medida 6,4mts x 4,48mts /mts2: 28,67 / Pitch 3,9 / Incluye estructura para montaje de piso a pared Valor de 3 a 6 dias (Valor dia) | B183: 3071264 | C183: Pantalla Led Full Hd Indoor / Medida 6,4mts x 4,48mts /mts2: 28,67 / Pitch 3,9 / Incluye estructura para montaje de piso a pared Valor de 3 a 6 dias (Valor dia) | D183: 2761984 | E183: 2761984 | G183: 2320994.958
A184: =CONCATENATE(B184:B669," ",C184:C669) -> 3071264 Pantalla Led Full Hd Indoor / Medida 6,4mts x 4,48mts /mts2: 28,67 / Pitch 3,9 / Incluye estructura para montaje de piso a pared Valor de 7 a 18 días (Valor feria) | B184: 3071264 | C184: Pantalla Led Full Hd Indoor / Medida 6,4mts x 4,48mts /mts2: 28,67 / Pitch 3,9 / Incluye estructura para montaje de piso a pared Valor de 7 a 18 días (Valor feria) | D184: 19728512 | E184: 19728512 | G184: 16578581.51
A185: =CONCATENATE(B185:B670," ",C185:C670) -> 3071265 Pantalla Led Full Hd Indoor / Medida 7,4mts x 5,12mts /mts2: 36,04 / Pitch 3,9 / Incluye estructura para montaje de piso a pared Valor evento 1 día | B185: 3071265 | C185: Pantalla Led Full Hd Indoor / Medida 7,4mts x 5,12mts /mts2: 36,04 / Pitch 3,9 / Incluye estructura para montaje de piso a pared Valor evento 1 día | D185: 4447488 | E185: 4447488 | G185: 3737384.874
A186: =CONCATENATE(B186:B671," ",C186:C671) -> 3071265 Pantalla Led Full Hd Indoor / Medida 7,4mts x 5,12mts /mts2: 36,04 / Pitch 3,9 / Incluye estructura para montaje de piso a pared Valor evento 2 dias (Valor dia) | B186: 3071265 | C186: Pantalla Led Full Hd Indoor / Medida 7,4mts x 5,12mts /mts2: 36,04 / Pitch 3,9 / Incluye estructura para montaje de piso a pared Valor evento 2 dias (Valor dia) | D186: 4447488 | E186: 4447488 | G186: 3737384.874
A187: =CONCATENATE(B187:B672," ",C187:C672) -> 3071265 Pantalla Led Full Hd Indoor / Medida 7,4mts x 5,12mts /mts2: 36,04 / Pitch 3,9 / Incluye estructura para montaje de piso a pared Valor de 3 a 6 dias (Valor dia) | B187: 3071265 | C187: Pantalla Led Full Hd Indoor / Medida 7,4mts x 5,12mts /mts2: 36,04 / Pitch 3,9 / Incluye estructura para montaje de piso a pared Valor de 3 a 6 dias (Valor dia) | D187: 4027904 | E187: 4027904 | G187: 3384793.277
A188: =CONCATENATE(B188:B673," ",C188:C673) -> 3071265 Pantalla Led Full Hd Indoor / Medida 7,4mts x 5,12mts /mts2: 36,04 / Pitch 3,9 / Incluye estructura para montaje de piso a pared Valor de 7 a 18 días (Valor feria) | B188: 3071265 | C188: Pantalla Led Full Hd Indoor / Medida 7,4mts x 5,12mts /mts2: 36,04 / Pitch 3,9 / Incluye estructura para montaje de piso a pared Valor de 7 a 18 días (Valor feria) | D188: 28770688 | E188: 28770688 | G188: 24177048.74
A189: =CONCATENATE(B189:B674," ",C189:C674) -> 3071266 Pantalla Led Full Hd Indoor / Medida 8,32mts x 6,40mts /mts2: 53,25 / Pitch 3,9 / Incluye estructura para montaje de piso a pared Valor evento 1 día | B189: 3071266 | C189: Pantalla Led Full Hd Indoor / Medida 8,32mts x 6,40mts /mts2: 53,25 / Pitch 3,9 / Incluye estructura para montaje de piso a pared Valor evento 1 día | D189: 6099456 | E189: 6099456 | G189: 5125593.277
A190: =CONCATENATE(B190:B675," ",C190:C675) -> 3071266 Pantalla Led Full Hd Indoor / Medida 8,32mts x 6,40mts /mts2: 53,25 / Pitch 3,9 / Incluye estructura para montaje de piso a pared Valor evento 2 dias (Valor dia) | B190: 3071266 | C190: Pantalla Led Full Hd Indoor / Medida 8,32mts x 6,40mts /mts2: 53,25 / Pitch 3,9 / Incluye estructura para montaje de piso a pared Valor evento 2 dias (Valor dia) | D190: 6099456 | E190: 6099456 | G190: 5125593.277
A191: =CONCATENATE(B191:B676," ",C191:C676) -> 3071266 Pantalla Led Full Hd Indoor / Medida 8,32mts x 6,40mts /mts2: 53,25 / Pitch 3,9 / Incluye estructura para montaje de piso a pared Valor de 3 a 6 dias (Valor dia) | B191: 3071266 | C191: Pantalla Led Full Hd Indoor / Medida 8,32mts x 6,40mts /mts2: 53,25 / Pitch 3,9 / Incluye estructura para montaje de piso a pared Valor de 3 a 6 dias (Valor dia) | D191: 5524224 | E191: 5524224 | G191: 4642205.042
A192: =CONCATENATE(B192:B677," ",C192:C677) -> 3071266 Pantalla Led Full Hd Indoor / Medida 8,32mts x 6,40mts /mts2: 53,25 / Pitch 3,9 / Incluye estructura para montaje de piso a pared Valor de 7 a 18 días (Valor feria) | B192: 3071266 | C192: Pantalla Led Full Hd Indoor / Medida 8,32mts x 6,40mts /mts2: 53,25 / Pitch 3,9 / Incluye estructura para montaje de piso a pared Valor de 7 a 18 días (Valor feria) | D192: 39457024 | E192: 39457024 | G192: =E192/1.19 -> 33157163.03
A193: =CONCATENATE(B193:B678," ",C193:C678) -> 3071267 Pantalla Led Full Hd Outdoor / Medida 6,4mts x 4,48mts /mts2: 28,67 / Pitch 4,8 / No incluye estructura para montaje Valor evento 1 día | B193: 3071267 | C193: Pantalla Led Full Hd Outdoor / Medida 6,4mts x 4,48mts /mts2: 28,67 / Pitch 4,8 / No incluye estructura para montaje Valor evento 1 día | D193: 3049728 | E193: 3049728 | G193: 2562796.639
A194: =CONCATENATE(B194:B679," ",C194:C679) -> 3071267 Pantalla Led Full Hd Outdoor / Medida 6,4mts x 4,48mts /mts2: 28,67 / Pitch 4,8 / No incluye estructura para montaje Valor evento 2 dias (Valor dia) | B194: 3071267 | C194: Pantalla Led Full Hd Outdoor / Medida 6,4mts x 4,48mts /mts2: 28,67 / Pitch 4,8 / No incluye estructura para montaje Valor evento 2 dias (Valor dia) | D194: 3049728 | E194: 3049728 | G194: 2562796.639
A195: =CONCATENATE(B195:B680," ",C195:C680) -> 3071267 Pantalla Led Full Hd Outdoor / Medida 6,4mts x 4,48mts /mts2: 28,67 / Pitch 4,8 / No incluye estructura para montaje Valor de 3 a 6 dias (Valor dia) | B195: 3071267 | C195: Pantalla Led Full Hd Outdoor / Medida 6,4mts x 4,48mts /mts2: 28,67 / Pitch 4,8 / No incluye estructura para montaje Valor de 3 a 6 dias (Valor dia) | D195: 2760320 | E195: 2760320 | G195: 2319596.639
A196: =CONCATENATE(B196:B681," ",C196:C681) -> 3071267 Pantalla Led Full Hd Outdoor / Medida 6,4mts x 4,48mts /mts2: 28,67 / Pitch 4,8 / No incluye estructura para montaje Valor de 7 a 18 días (Valor feria) | B196: 3071267 | C196: Pantalla Led Full Hd Outdoor / Medida 6,4mts x 4,48mts /mts2: 28,67 / Pitch 4,8 / No incluye estructura para montaje Valor de 7 a 18 días (Valor feria) | D196: 19715072 | E196: 19715072 | G196: 16567287.39
A197: =CONCATENATE(B197:B682," ",C197:C682) -> 3071268 Pantalla Led Full Hd Outdoor / Medida 7,4mts x 5,12mts /mts2: 36,04/ Pitch 4,8 / No incluye estructura para montaje Valor evento 1 día | B197: 3071268 | C197: Pantalla Led Full Hd Outdoor / Medida 7,4mts x 5,12mts /mts2: 36,04/ Pitch 4,8 / No incluye estructura para montaje Valor evento 1 día | D197: 4447488 | E197: 4447488 | G197: 3737384.874
A198: =CONCATENATE(B198:B683," ",C198:C683) -> 3071268 Pantalla Led Full Hd Outdoor / Medida 7,4mts x 5,12mts /mts2: 36,04/ Pitch 4,8 / No incluye estructura para montaje Valor evento 2 dias (Valor dia) | B198: 3071268 | C198: Pantalla Led Full Hd Outdoor / Medida 7,4mts x 5,12mts /mts2: 36,04/ Pitch 4,8 / No incluye estructura para montaje Valor evento 2 dias (Valor dia) | D198: 4447488 | E198: 4447488 | G198: 3737384.874
A199: =CONCATENATE(B199:B684," ",C199:C684) -> 3071268 Pantalla Led Full Hd Outdoor / Medida 7,4mts x 5,12mts /mts2: 36,04/ Pitch 4,8 / No incluye estructura para montaje Valor de 3 a 6 dias (Valor dia) | B199: 3071268 | C199: Pantalla Led Full Hd Outdoor / Medida 7,4mts x 5,12mts /mts2: 36,04/ Pitch 4,8 / No incluye estructura para montaje Valor de 3 a 6 dias (Valor dia) | D199: 4025216 | E199: 4025216 | G199: 3382534.454
A200: =CONCATENATE(B200:B685," ",C200:C685) -> 3071268 Pantalla Led Full Hd Outdoor / Medida 7,4mts x 5,12mts /mts2: 36,04/ Pitch 4,8 / No incluye estructura para montaje Valor de 7 a 18 días (Valor feria) | B200: 3071268 | C200: Pantalla Led Full Hd Outdoor / Medida 7,4mts x 5,12mts /mts2: 36,04/ Pitch 4,8 / No incluye estructura para montaje Valor de 7 a 18 días (Valor feria) | D200: 28750976 | E200: 28750976 | G200: 24160484.03
... 236 more rows

Sheet FERIAS DE 7 A 11 DIAS (hidden)
A1: CLAVE | B1: CODIGO | C1: DESCRIPCIÓN | D1: FORMULA | E1: VALOR
A2: =CONCATENATE(B2:B438," ",C2:C438) -> 3070101 Instalación Monofásica (Toma corriente doble, consumo hasta 2KW/110V) Valor feria de 7 a 11 dias | B2: 3070101 | C2: Instalación Monofásica (Toma corriente doble, consumo hasta 2KW/110V) Valor feria de 7 a 11 dias | D2: =IF('FERIAS DE 3 DIAS'!G$3=TRUE,'FERIAS DE 7 A 11 DIAS'!E2/'FERIAS DE 3 DIAS'!I$3,E2) -> 370000 | E2: 370000 | G2: =E2/1.19 -> 310924.3697
A3: =CONCATENATE(B3:B442," ",C3:C442) -> 3070103 Instalación kilovatio adicional monofásico (Debe contar con punto principal, MAX 2KW por punto) Valor feria de 7 a 11 dias | B3: 3070103 | C3: Instalación kilovatio adicional monofásico (Debe contar con punto principal, MAX 2KW por punto) Valor feria de 7 a 11 dias | D3: =IF('FERIAS DE 3 DIAS'!G$3=TRUE,'FERIAS DE 7 A 11 DIAS'!E3/'FERIAS DE 3 DIAS'!I$3,E3) -> 187000 | E3: 187000 | G3: 157142.8571
A4: =CONCATENATE(B4:B446," ",C4:C446) -> 3070102 Instalación trifásica (Regleta plastica, consumo hasta 4KW/208V) Valor feria de 7 a 11 dias | B4: 3070102 | C4: Instalación trifásica (Regleta plastica, consumo hasta 4KW/208V) Valor feria de 7 a 11 dias | D4: =IF('FERIAS DE 3 DIAS'!G$3=TRUE,'FERIAS DE 7 A 11 DIAS'!E4/'FERIAS DE 3 DIAS'!I$3,E4) -> 640000 | E4: 640000 | G4: 537815.1261
A5: =CONCATENATE(B5:B450," ",C5:C450) -> 3070104 Instalación kilovatio adicional trifásico (Debe contar con punto principal) Valor feria de 7 a 11 dias | B5: 3070104 | C5: Instalación kilovatio adicional trifásico (Debe contar con punto principal) Valor feria de 7 a 11 dias | D5: =IF('FERIAS DE 3 DIAS'!G$3=TRUE,'FERIAS DE 7 A 11 DIAS'!E5/'FERIAS DE 3 DIAS'!I$3,E5) -> 205000 | E5: 205000 | G5: 172268.9076
A6: =CONCATENATE(B6:B454," ",C6:C454) -> 3071372 De 21 a 50 kilovatios adicionales trifásicos (Valor por KW) (Debe contar con punto principal) Valor feria de 7 a 11 dias | B6: 3071372 | C6: De 21 a 50 kilovatios adicionales trifásicos (Valor por KW) (Debe contar con punto principal) Valor feria de 7 a 11 dias | D6: =IF('FERIAS DE 3 DIAS'!G$3=TRUE,'FERIAS DE 7 A 11 DIAS'!E6/'FERIAS DE 3 DIAS'!I$3,E6) -> 185000 | E6: 185000 | G6: 155462.1849
A7: =CONCATENATE(B7:B459," ",C7:C459) -> 3071373 De 51 a 100 kilovatios adicionales trifásicos (Valor por KW) (Debe contar con punto principal) Valor feria de 7 a 11 dias | B7: 3071373 | C7: De 51 a 100 kilovatios adicionales trifásicos (Valor por KW) (Debe contar con punto principal) Valor feria de 7 a 11 dias | D7: =IF('FERIAS DE 3 DIAS'!G$3=TRUE,'FERIAS DE 7 A 11 DIAS'!E7/'FERIAS DE 3 DIAS'!I$3,E7) -> 176000 | E7: 176000 | G7: 147899.1597
A8: =CONCATENATE(B8:B463," ",C8:C463) -> 3071374 Mas de100 kilovatios adicionales trifásicos (Valor por KW) (Debe contar con punto principal) Valor feria de 7 a 11 dias | B8: 3071374 | C8: Mas de100 kilovatios adicionales trifásicos (Valor por KW) (Debe contar con punto principal) Valor feria de 7 a 11 dias | D8: =IF('FERIAS DE 3 DIAS'!G$3=TRUE,'FERIAS DE 7 A 11 DIAS'!E8/'FERIAS DE 3 DIAS'!I$3,E8) -> 124000 | E8: 124000 | G8: 104201.6807
A9: =CONCATENATE(B9:B467," ",C9:C467) -> 3070402 Lampara de pared ajustable (150W/110V) Valor feria de 7 a 11 dias | B9: 3070402 | C9: Lampara de pared ajustable (150W/110V) Valor feria de 7 a 11 dias | D9: =IF('FERIAS DE 3 DIAS'!G$3=TRUE,'FERIAS DE 7 A 11 DIAS'!E9/'FERIAS DE 3 DIAS'!I$3,E9) -> 65000 | E9: 65000 | G9: 54621.84874
A10: =CONCATENATE(B10:B471," ",C10:C471) -> 3070405 Reflector Led (50W- mltV) Valor feria de 7 a 11 dias | B10: 3070405 | C10: Reflector Led (50W- mltV) Valor feria de 7 a 11 dias | D10: =IF('FERIAS DE 3 DIAS'!G$3=TRUE,'FERIAS DE 7 A 11 DIAS'!E10/'FERIAS DE 3 DIAS'!I$3,E10) -> 69000 | E10: 69000 | G10: 57983.19328
A11: =CONCATENATE(B11:B475," ",C11:C475) -> 3070403 Extensión – tomacorriente doble con polo a tierra (1500W/110V) MAX 6mts Valor feria de 7 a 11 dias | B11: 3070403 | C11: Extensión – tomacorriente doble con polo a tierra (1500W/110V) MAX 6mts Valor feria de 7 a 11 dias | D11: =IF('FERIAS DE 3 DIAS'!G$3=TRUE,'FERIAS DE 7 A 11 DIAS'!E11/'FERIAS DE 3 DIAS'!I$3,E11) -> 38000 | E11: 38000 | G11: 31932.77311
A12: =CONCATENATE(B12:B479," ",C12:C479) -> 3071345 Lavaplatos 90XL* 60XH* 90 (No incluye agua y desague) Valor de 7 a 11 dias | B12: 3071345 | C12: Lavaplatos 90XL* 60XH* 90 (No incluye agua y desague) Valor de 7 a 11 dias | D12: =IF('FERIAS DE 3 DIAS'!G$3=TRUE,'FERIAS DE 7 A 11 DIAS'!E12/'FERIAS DE 3 DIAS'!I$3,E12) -> 153000 | E12: 153000 | G12: 128571.4286
A13: =CONCATENATE(B13:B483," ",C13:C483) -> 3070301 Punto de Agua en 1/2" (incluye consumo) Valor feria de 7 a 11 dias | B13: 3070301 | C13: Punto de Agua en 1/2" (incluye consumo) Valor feria de 7 a 11 dias | D13: =IF('FERIAS DE 3 DIAS'!G$3=TRUE,'FERIAS DE 7 A 11 DIAS'!E13/'FERIAS DE 3 DIAS'!I$3,E13) -> 438000 | E13: 438000 | G13: 368067.2269
A14: =CONCATENATE(B14:B487," ",C14:C487) -> 3070302 Desagüe en 1 1/2" Por toda la feria (Ubicación asignada por Corferias en su stand) Valor feria de 7 a 11 dias | B14: 3070302 | C14: Desagüe en 1 1/2" Por toda la feria (Ubicación asignada por Corferias en su stand) Valor feria de 7 a 11 dias | D14: =IF('FERIAS DE 3 DIAS'!G$3=TRUE,'FERIAS DE 7 A 11 DIAS'!E14/'FERIAS DE 3 DIAS'!I$3,E14) -> 385000 | E14: 385000 | G14: 323529.4118
A15: =CONCATENATE(B15:B492," ",C15:C492) -> 3071341 Aire comprimido para punto con presión máx. de 100 PSI, y caudal máx. 35CFM. Valor feria de 7 a 11 dias | B15: 3071341 | C15: Aire comprimido para punto con presión máx. de 100 PSI, y caudal máx. 35CFM. Valor feria de 7 a 11 dias | D15: =IF('FERIAS DE 3 DIAS'!G$3=TRUE,'FERIAS DE 7 A 11 DIAS'!E15/'FERIAS DE 3 DIAS'!I$3,E15) -> 538000 | E15: 538000 | G15: 452100.8403
A16: =CONCATENATE(B16:B496," ",C16:C496) -> 3070307 Punto de Agua en 1/2" (Incluye consumo) + Desagüe en 1 1/2" + Lavaplatos Valor feria de 7 a 11 dias | B16: 3070307 | C16: Punto de Agua en 1/2" (Incluye consumo) + Desagüe en 1 1/2" + Lavaplatos Valor feria de 7 a 11 dias | D16: =IF('FERIAS DE 3 DIAS'!G$3=TRUE,'FERIAS DE 7 A 11 DIAS'!E16/'FERIAS DE 3 DIAS'!I$3,E16) -> 879000 | E16: 879000 | G16: 738655.4622
A17: =CONCATENATE(B17:B500," ",C17:C500) -> 3071321 Instalación de UN (1) punto de gas propano por UN (1) Equipo (Incluye materiales y mano de obra) (No incluye consumo de gas, este será liquidado a través de un medidor una vez finalice la feria y/o evento) Valor feria de 7 a 11 dias | B17: 3071321 | C17: Instalación de UN (1) punto de gas propano por UN (1) Equipo (Incluye materiales y mano de obra) (No incluye consumo de gas, este será liquidado a través de un medidor una vez finalice la feria y/o evento) Valor feria de 7 a 11 dias | D17: =IF('FERIAS DE 3 DIAS'!G$3=TRUE,'FERIAS DE 7 A 11 DIAS'!E17/'FERIAS DE 3 DIAS'!I$3,E17) -> 180000 | E17: 180000 | G17: 151260.5042
A18: =CONCATENATE(B18:B503," ",C18:C503) -> 3070601 Panel adicional sistema cfe 100cm x 240cm | B18: 3070601 | C18: Panel adicional sistema cfe 100cm x 240cm | D18: =IF('FERIAS DE 3 DIAS'!G$3=TRUE,'FERIAS DE 7 A 11 DIAS'!E18/'FERIAS DE 3 DIAS'!I$3,E18) -> 38000 | E18: 38000 | G18: 31932.77311
A19: =CONCATENATE(B19:B505," ",C19:C505) -> 3070801 Puerta sistema cfe 90cm x 240cm | B19: 3070801 | C19: Puerta sistema cfe 90cm x 240cm | D19: =IF('FERIAS DE 3 DIAS'!G$3=TRUE,'FERIAS DE 7 A 11 DIAS'!E19/'FERIAS DE 3 DIAS'!I$3,E19) -> 93000 | E19: 93000 | G19: =E19/1.19 -> 78151.2605
A20: =CONCATENATE(B20:B506," ",C20:C506) -> 3070803 Bodega estándar con puerta 150cm x 150cm (Sistema Corferias) | B20: 3070803 | C20: Bodega estándar con puerta 150cm x 150cm (Sistema Corferias) | D20: =IF('FERIAS DE 3 DIAS'!G$3=TRUE,'FERIAS DE 7 A 11 DIAS'!E20/'FERIAS DE 3 DIAS'!I$3,E20) -> 148000 | E20: 148000 | G20: 124369.7479
A21: =CONCATENATE(B21:B507," ",C21:C507) -> 3071319 Brazo Mecánico por Fracciòn de 15 min (Solo para primer nivel) | B21: 3071319 | C21: Brazo Mecánico por Fracciòn de 15 min (Solo para primer nivel) | D21: =IF('FERIAS DE 3 DIAS'!G$3=TRUE,'FERIAS DE 7 A 11 DIAS'!E21/'FERIAS DE 3 DIAS'!I$3,E21) -> 71700 | E21: 71700 | G21: 60252.10084
A22: =CONCATENATE(B22:B508," ",C22:C508) -> 3071319 Brazo Mecánico por Fracciòn de 30 min (Solo para primer nivel) | B22: 3071319 | C22: Brazo Mecánico por Fracciòn de 30 min (Solo para primer nivel) | D22: =IF('FERIAS DE 3 DIAS'!G$3=TRUE,'FERIAS DE 7 A 11 DIAS'!E22/'FERIAS DE 3 DIAS'!I$3,E22) -> 122600 | E22: 122600 | G22: 103025.2101
A23: =CONCATENATE(B23:B509," ",C23:C509) -> 3071319 Brazo Mecánico por Fracciòn de 60 min (Solo para primer nivel) | B23: 3071319 | C23: Brazo Mecánico por Fracciòn de 60 min (Solo para primer nivel) | D23: =IF('FERIAS DE 3 DIAS'!G$3=TRUE,'FERIAS DE 7 A 11 DIAS'!E23/'FERIAS DE 3 DIAS'!I$3,E23) -> 217800 | E23: 217800 | G23: 183025.2101
A24: =CONCATENATE(B24:B510," ",C24:C510) -> 3070413 Diferencial (Cap. 1 Ton.) + Brazo mecánico (Montaje y desmontaje) | B24: 3070413 | C24: Diferencial (Cap. 1 Ton.) + Brazo mecánico (Montaje y desmontaje) | D24: =IF('FERIAS DE 3 DIAS'!G$3=TRUE,'FERIAS DE 7 A 11 DIAS'!E24/'FERIAS DE 3 DIAS'!I$3,E24) -> 350900 | E24: 350900 | G24: 294873.9496
A25: =CONCATENATE(B25:B511," ",C25:C511) -> 3070414 Plataforma Tijera eléctrica por Fracciòn /30 min (Uso para segundos niveles) | B25: 3070414 | C25: Plataforma Tijera eléctrica por Fracciòn /30 min (Uso para segundos niveles) | D25: =IF('FERIAS DE 3 DIAS'!G$3=TRUE,'FERIAS DE 7 A 11 DIAS'!E25/'FERIAS DE 3 DIAS'!I$3,E25) -> 84200 | E25: 84200 | G25: 70756.30252
A26: =CONCATENATE(B26:B512," ",C26:C512) -> 3071387 Brazo mecánico + Diferencial + TRUSS 2,60 X 2,60 | B26: 3071387 | C26: Brazo mecánico + Diferencial + TRUSS 2,60 X 2,60 | D26: =IF('FERIAS DE 3 DIAS'!G$3=TRUE,'FERIAS DE 7 A 11 DIAS'!E26/'FERIAS DE 3 DIAS'!I$3,E26) -> 2881400 | E26: 2881400 | G26: 2421344.538
A27: =CONCATENATE(B27:B513," ",C27:C513) -> 3071351 Brazo mecánico + Diferencial + TRUSS 3,60 X 2,60 | B27: 3071351 | C27: Brazo mecánico + Diferencial + TRUSS 3,60 X 2,60 | D27: =IF('FERIAS DE 3 DIAS'!G$3=TRUE,'FERIAS DE 7 A 11 DIAS'!E27/'FERIAS DE 3 DIAS'!I$3,E27) -> 2881400 | E27: 2881400 | G27: 2421344.538
A28: =CONCATENATE(B28:B514," ",C28:C514) -> 3071395 Brazo mecánico + Diferencial + TRUSS 3,60 X 3,60 | B28: 3071395 | C28: Brazo mecánico + Diferencial + TRUSS 3,60 X 3,60 | D28: =IF('FERIAS DE 3 DIAS'!G$3=TRUE,'FERIAS DE 7 A 11 DIAS'!E28/'FERIAS DE 3 DIAS'!I$3,E28) -> 2881400 | E28: 2881400 | G28: 2421344.538
A29: =CONCATENATE(B29:B515," ",C29:C515) -> 3071324 Brazo mecánico + Diferencial + TRUSS 5,90 X 5,90 | B29: 3071324 | C29: Brazo mecánico + Diferencial + TRUSS 5,90 X 5,90 | D29: =IF('FERIAS DE 3 DIAS'!G$3=TRUE,'FERIAS DE 7 A 11 DIAS'!E29/'FERIAS DE 3 DIAS'!I$3,E29) -> 3601800 | E29: 3601800 | G29: 3026722.689
A30: =CONCATENATE(B30:B516," ",C30:C516) -> 3071436 Brazo mecánico + Diferencial + TRUSS 6,90 X 6,90 | B30: 3071436 | C30: Brazo mecánico + Diferencial + TRUSS 6,90 X 6,90 | D30: =IF('FERIAS DE 3 DIAS'!G$3=TRUE,'FERIAS DE 7 A 11 DIAS'!E30/'FERIAS DE 3 DIAS'!I$3,E30) -> 3601800 | E30: 3601800 | G30: 3026722.689
A31: =CONCATENATE(B31:B517," ",C31:C517) -> 3071350 Brazo mecánico + Diferencial + TRUSS 5,60 X 5,60 | B31: 3071350 | C31: Brazo mecánico + Diferencial + TRUSS 5,60 X 5,60 | D31: =IF('FERIAS DE 3 DIAS'!G$3=TRUE,'FERIAS DE 7 A 11 DIAS'!E31/'FERIAS DE 3 DIAS'!I$3,E31) -> 3601800 | E31: 3601800 | G31: 3026722.689
A32: =CONCATENATE(B32:B518," ",C32:C518) -> 3071371 Brazo mecánico + Diferencial + TRUSS 6,60 X 6,60 | B32: 3071371 | C32: Brazo mecánico + Diferencial + TRUSS 6,60 X 6,60 | D32: =IF('FERIAS DE 3 DIAS'!G$3=TRUE,'FERIAS DE 7 A 11 DIAS'!E32/'FERIAS DE 3 DIAS'!I$3,E32) -> 3601800 | E32: 3601800 | G32: 3026722.689
A33: =CONCATENATE(B33:B519," ",C33:C519) -> 3071393 Brazo mecánico + Diferencial + TRUSS 9,60 X 2,60 | B33: 3071393 | C33: Brazo mecánico + Diferencial + TRUSS 9,60 X 2,60 | D33: =IF('FERIAS DE 3 DIAS'!G$3=TRUE,'FERIAS DE 7 A 11 DIAS'!E33/'FERIAS DE 3 DIAS'!I$3,E33) -> 3601800 | E33: 3601800 | G33: 3026722.689
A34: =CONCATENATE(B34:B520," ",C34:C520) -> 3071394 Brazo mecánico + Diferencial + TRUSS 9,60 X 3,60 | B34: 3071394 | C34: Brazo mecánico + Diferencial + TRUSS 9,60 X 3,60 | D34: =IF('FERIAS DE 3 DIAS'!G$3=TRUE,'FERIAS DE 7 A 11 DIAS'!E34/'FERIAS DE 3 DIAS'!I$3,E34) -> 3601800 | E34: 3601800 | G34: 3026722.689
A35: =CONCATENATE(B35:B521," ",C35:C521) -> 3071396 Brazo mecánico + Diferencial + TRUSS 9,60 X 5,60 | B35: 3071396 | C35: Brazo mecánico + Diferencial + TRUSS 9,60 X 5,60 | D35: =IF('FERIAS DE 3 DIAS'!G$3=TRUE,'FERIAS DE 7 A 11 DIAS'!E35/'FERIAS DE 3 DIAS'!I$3,E35) -> 4769300 | E35: 4769300 | G35: 4007815.126
A36: =CONCATENATE(B36:B522," ",C36:C522) -> 3071397 Brazo mecánico + Diferencial + TRUSS 9,60 X 6,60 | B36: 3071397 | C36: Brazo mecánico + Diferencial + TRUSS 9,60 X 6,60 | D36: =IF('FERIAS DE 3 DIAS'!G$3=TRUE,'FERIAS DE 7 A 11 DIAS'!E36/'FERIAS DE 3 DIAS'!I$3,E36) -> 4769300 | E36: 4769300 | G36: 4007815.126
A37: =CONCATENATE(B37:B523," ",C37:C523) -> 3071418 Servicio de Internet Cableado "PARA UN EQUIPO - DURANTE UN DÍA" | B37: 3071418 | C37: Servicio de Internet Cableado "PARA UN EQUIPO - DURANTE UN DÍA" | D37: =IF('FERIAS DE 3 DIAS'!G$3=TRUE,'FERIAS DE 7 A 11 DIAS'!E37/'FERIAS DE 3 DIAS'!I$3,E37) -> 93000 | E37: 93000 | G37: 78151.2605
A38: =CONCATENATE(B38:B524," ",C38:C524) -> 3071419 Clave de acceso para la red WiFi "PARA UN EQUIPO - DURANTE UN DÍA" | B38: 3071419 | C38: Clave de acceso para la red WiFi "PARA UN EQUIPO - DURANTE UN DÍA" | D38: =IF('FERIAS DE 3 DIAS'!G$3=TRUE,'FERIAS DE 7 A 11 DIAS'!E38/'FERIAS DE 3 DIAS'!I$3,E38) -> 93000 | E38: 93000 | G38: 78151.2605
A39: =CONCATENATE(B39:B527," ",C39:C527) -> 3071417 Servicio de Internet Cableado "PARA UN EQUIPO - DURANTE TODA LA FERIA" Valor feria de 7 a 11 dias | B39: 3071417 | C39: Servicio de Internet Cableado "PARA UN EQUIPO - DURANTE TODA LA FERIA" Valor feria de 7 a 11 dias | D39: =IF('FERIAS DE 3 DIAS'!G$3=TRUE,'FERIAS DE 7 A 11 DIAS'!E39/'FERIAS DE 3 DIAS'!I$3,E39) -> 235000 | E39: 235000 | G39: 197478.9916
A40: =CONCATENATE(B40:B531," ",C40:C531) -> 3071420 Clave de acceso para la Red WiFi "PARA UN EQUIPO - DURANTE TODA LA FERIA" Valor feria de 7 a 11 dias | B40: 3071420 | C40: Clave de acceso para la Red WiFi "PARA UN EQUIPO - DURANTE TODA LA FERIA" Valor feria de 7 a 11 dias | D40: =IF('FERIAS DE 3 DIAS'!G$3=TRUE,'FERIAS DE 7 A 11 DIAS'!E40/'FERIAS DE 3 DIAS'!I$3,E40) -> 235000 | E40: 235000 | G40: 197478.9916
A41: =CONCATENATE(B41:B535," ",C41:C535) -> 3071423 Conexión para Datafono + Clave de acceso WIFI (Para un equipo durante toda la feria) Valor feria de 7 a 11 dias | B41: 3071423 | C41: Conexión para Datafono + Clave de acceso WIFI (Para un equipo durante toda la feria) Valor feria de 7 a 11 dias | D41: =IF('FERIAS DE 3 DIAS'!G$3=TRUE,'FERIAS DE 7 A 11 DIAS'!E41/'FERIAS DE 3 DIAS'!I$3,E41) -> 320000 | E41: 320000 | G41: 268907.563
A42: =CONCATENATE(B42:B539," ",C42:C539) -> 3071424 Conexión para Datafono + Servicio de Internet Cableado (Para un equipo durante toda la feria) Valor feria de 7 a 11 dias | B42: 3071424 | C42: Conexión para Datafono + Servicio de Internet Cableado (Para un equipo durante toda la feria) Valor feria de 7 a 11 dias | D42: =IF('FERIAS DE 3 DIAS'!G$3=TRUE,'FERIAS DE 7 A 11 DIAS'!E42/'FERIAS DE 3 DIAS'!I$3,E42) -> 300000 | E42: 300000 | G42: 252100.8403
A43: =CONCATENATE(B43:B543," ",C43:C543) -> 3071425 Servicio de Internet Cableado + Clave de acceso WIFI (Para un equipo durante toda la feria) Valor feria de 7 a 11 dias | B43: 3071425 | C43: Servicio de Internet Cableado + Clave de acceso WIFI (Para un equipo durante toda la feria) Valor feria de 7 a 11 dias | D43: =IF('FERIAS DE 3 DIAS'!G$3=TRUE,'FERIAS DE 7 A 11 DIAS'!E43/'FERIAS DE 3 DIAS'!I$3,E43) -> 421000 | E43: 421000 | G43: 353781.5126
A44: =CONCATENATE(B44:B545," ",C44:C545) -> 3071437 Internet Dedicado: Si requiere conexión banda ancha para diferentes servicios o redes locales, contáctese con serviciosplus@corferias.com para brindarle asesoria y cotización. | B44: 3071437 | C44: Internet Dedicado: Si requiere conexión banda ancha para diferentes servicios o redes locales, contáctese con serviciosplus@corferias.com para brindarle asesoria y cotización. | D44: =IF('FERIAS DE 3 DIAS'!G$3=TRUE,'FERIAS DE 7 A 11 DIAS'!E44/'FERIAS DE 3 DIAS'!I$3,E44) -> Según Cotización | E44: Según Cotización
A45: =CONCATENATE(B45:B546," ",C45:C546) -> 3071406 Instalación Punto de Red:Incluye un cable UTP por punto | B45: 3071406 | C45: Instalación Punto de Red:Incluye un cable UTP por punto | D45: =IF('FERIAS DE 3 DIAS'!G$3=TRUE,'FERIAS DE 7 A 11 DIAS'!E45/'FERIAS DE 3 DIAS'!I$3,E45) -> 78000 | E45: 78000 | G45: 65546.21849
A46: =CONCATENATE(B46:B547," ",C46:C547) -> 3071407 Switch Valor POR FERIA | B46: 3071407 | C46: Switch Valor POR FERIA | D46: =IF('FERIAS DE 3 DIAS'!G$3=TRUE,'FERIAS DE 7 A 11 DIAS'!E46/'FERIAS DE 3 DIAS'!I$3,E46) -> 75000 | E46: 75000 | G46: 63025.21008
A47: =CONCATENATE(B47:B548," ",C47:C548) -> 3071402 Servicio de VLAN: Servicio virtual de red. Valor POR FERIA | B47: 3071402 | C47: Servicio de VLAN: Servicio virtual de red. Valor POR FERIA | D47: =IF('FERIAS DE 3 DIAS'!G$3=TRUE,'FERIAS DE 7 A 11 DIAS'!E47/'FERIAS DE 3 DIAS'!I$3,E47) -> 325000 | E47: 325000 | G47: 273109.2437
A48: =CONCATENATE(B48:B549," ",C48:C549) -> 3071430 Extension LAN Valor POR FERIA (Incluye punto de red y aplica para extender el servicio de internet contratado con terceros) | B48: 3071430 | C48: Extension LAN Valor POR FERIA (Incluye punto de red y aplica para extender el servicio de internet contratado con terceros) | D48: =IF('FERIAS DE 3 DIAS'!G$3=TRUE,'FERIAS DE 7 A 11 DIAS'!E48/'FERIAS DE 3 DIAS'!I$3,E48) -> 1500000 | E48: 1500000 | G48: 1260504.202
A49: =CONCATENATE(B49:B550," ",C49:C550) -> 3071442 Soporte técnico permanente (Por espacio de 8 horas) de un técnico. Valor DÍARIO | B49: 3071442 | C49: Soporte técnico permanente (Por espacio de 8 horas) de un técnico. Valor DÍARIO | D49: =IF('FERIAS DE 3 DIAS'!G$3=TRUE,'FERIAS DE 7 A 11 DIAS'!E49/'FERIAS DE 3 DIAS'!I$3,E49) -> 205000 | E49: 205000 | G49: 172268.9076
A50: =CONCATENATE(B50:B553," ",C50:C553) -> 3070202 Servicio Telefónico Urbano con Aparato (Incluye consumo local ilimitado) Valor feria de 7 a 11 dias | B50: 3070202 | C50: Servicio Telefónico Urbano con Aparato (Incluye consumo local ilimitado) Valor feria de 7 a 11 dias | D50: =IF('FERIAS DE 3 DIAS'!G$3=TRUE,'FERIAS DE 7 A 11 DIAS'!E50/'FERIAS DE 3 DIAS'!I$3,E50) -> 43000 | E50: 43000 | G50: 36134.45378
A51: =CONCATENATE(B51:B557," ",C51:C557) -> 3070203 Servicio Telefónico Larga Distancia con aparato Valor feria de 7 a 11 dias | B51: 3070203 | C51: Servicio Telefónico Larga Distancia con aparato Valor feria de 7 a 11 dias | D51: =IF('FERIAS DE 3 DIAS'!G$3=TRUE,'FERIAS DE 7 A 11 DIAS'!E51/'FERIAS DE 3 DIAS'!I$3,E51) -> 43000 | E51: 43000 | G51: 36134.45378
A52: =CONCATENATE(B52:B555," ",C52:C555) -> 3070201 Línea Externa no conmutada (Previa solicitud a Etb, Claro, EPM, Colomsat u otro operador) Valor feria de 7 a 11 dias | B52: 3070201 | C52: Línea Externa no conmutada (Previa solicitud a Etb, Claro, EPM, Colomsat u otro operador) Valor feria de 7 a 11 dias | D52: =IF('FERIAS DE 3 DIAS'!G$3=TRUE,'FERIAS DE 7 A 11 DIAS'!E52/'FERIAS DE 3 DIAS'!I$3,E52) -> 119000 | E52: 119000 | G52: 100000
A53: =CONCATENATE(B53:B557," ",C53:C557) -> 3070207 Conexión cableada para Datafono:(No incluye Datafono) | B53: 3070207 | C53: Conexión cableada para Datafono:(No incluye Datafono) | D53: =IF('FERIAS DE 3 DIAS'!G$3=TRUE,'FERIAS DE 7 A 11 DIAS'!E53/'FERIAS DE 3 DIAS'!I$3,E53) -> 107000 | E53: 107000 | G53: 89915.96639
A54: =CONCATENATE(B54:B558," ",C54:C558) -> 3070503 Estantería Polo (Blanco) (200cm x 93cm x 35cm) | B54: 3070503 | C54: Estantería Polo (Blanco) (200cm x 93cm x 35cm) | D54: =IF('FERIAS DE 3 DIAS'!G$3=TRUE,'FERIAS DE 7 A 11 DIAS'!E54/'FERIAS DE 3 DIAS'!I$3,E54) -> 165100 | E54: 165100 | G54: 138739.4958
A55: =CONCATENATE(B55:B559," ",C55:C559) -> 3070503 Estantería Polo (Miel) (200cm x 93cm x 35cm) | B55: 3070503 | C55: Estantería Polo (Miel) (200cm x 93cm x 35cm) | D55: =IF('FERIAS DE 3 DIAS'!G$3=TRUE,'FERIAS DE 7 A 11 DIAS'!E55/'FERIAS DE 3 DIAS'!I$3,E55) -> 165100 | E55: 165100 | G55: 138739.4958
A56: =CONCATENATE(B56:B560," ",C56:C560) -> 3070503 Estantería Polo (Rovere) (200cm x 93cm x 35cm) | B56: 3070503 | C56: Estantería Polo (Rovere) (200cm x 93cm x 35cm) | D56: =IF('FERIAS DE 3 DIAS'!G$3=TRUE,'FERIAS DE 7 A 11 DIAS'!E56/'FERIAS DE 3 DIAS'!I$3,E56) -> 165100 | E56: 165100 | G56: 138739.4958
A57: =CONCATENATE(B57:B561," ",C57:C561) -> 3070503 Estantería Polo (Roble Gris) (200cm x 93cm x 35cm) | B57: 3070503 | C57: Estantería Polo (Roble Gris) (200cm x 93cm x 35cm) | D57: =IF('FERIAS DE 3 DIAS'!G$3=TRUE,'FERIAS DE 7 A 11 DIAS'!E57/'FERIAS DE 3 DIAS'!I$3,E57) -> 165100 | E57: 165100 | G57: 138739.4958
A58: =CONCATENATE(B58:B562," ",C58:C562) -> 3070503 Estantería Polo (OSB) (200cm x 93cm x 35cm) | B58: 3070503 | C58: Estantería Polo (OSB) (200cm x 93cm x 35cm) | D58: =IF('FERIAS DE 3 DIAS'!G$3=TRUE,'FERIAS DE 7 A 11 DIAS'!E58/'FERIAS DE 3 DIAS'!I$3,E58) -> 165100 | E58: 165100 | G58: 138739.4958
A59: =CONCATENATE(B59:B563," ",C59:C563) -> 3070517 Vitrina Mostrador 2E (100cm x 100cm x 40cm) | B59: 3070517 | C59: Vitrina Mostrador 2E (100cm x 100cm x 40cm) | D59: =IF('FERIAS DE 3 DIAS'!G$3=TRUE,'FERIAS DE 7 A 11 DIAS'!E59/'FERIAS DE 3 DIAS'!I$3,E59) -> 194300 | E59: 194300 | G59: =E59/1.19 -> 163277.3109
A60: =CONCATENATE(B60:B564," ",C60:C564) -> 3070518 Vitrina Mostrador Tipo 2 1E (Blanco) (92cm x 90 cm x 40cm) | B60: 3070518 | C60: Vitrina Mostrador Tipo 2 1E (Blanco) (92cm x 90 cm x 40cm) | D60: =IF('FERIAS DE 3 DIAS'!G$3=TRUE,'FERIAS DE 7 A 11 DIAS'!E60/'FERIAS DE 3 DIAS'!I$3,E60) -> 194300 | E60: 194300 | G60: 163277.3109
A61: =CONCATENATE(B61:B556," ",C61:C556) -> 3070518 Vitrina Mostrador Tipo 2 1E (Nacar) (92cm x 90 cm x 40cm) | B61: 3070518 | C61: Vitrina Mostrador Tipo 2 1E (Nacar) (92cm x 90 cm x 40cm) | D61: =IF('FERIAS DE 3 DIAS'!G$3=TRUE,'FERIAS DE 7 A 11 DIAS'!E61/'FERIAS DE 3 DIAS'!I$3,E61) -> 194300 | E61: 194300 | G61: 163277.3109
A62: =CONCATENATE(B62:B557," ",C62:C557) -> 3070521 Perchero básico 1 pedestal (120cm Ancho - Altura) graduable + 5 ganchos | B62: 3070521 | C62: Perchero básico 1 pedestal (120cm Ancho - Altura) graduable + 5 ganchos | D62: =IF('FERIAS DE 3 DIAS'!G$3=TRUE,'FERIAS DE 7 A 11 DIAS'!E62/'FERIAS DE 3 DIAS'!I$3,E62) -> 70300 | E62: 70300 | G62: 59075.63025
A63: =CONCATENATE(B63:B558," ",C63:C558) -> 3070521 Perchero doble 2 pedestal (120cm Ancho-Altura) graduable + 5 ganchos | B63: 3070521 | C63: Perchero doble 2 pedestal (120cm Ancho-Altura) graduable + 5 ganchos | D63: =IF('FERIAS DE 3 DIAS'!G$3=TRUE,'FERIAS DE 7 A 11 DIAS'!E63/'FERIAS DE 3 DIAS'!I$3,E63) -> 81100 | E63: 81100 | G63: 68151.2605
A64: =CONCATENATE(B64:B559," ",C64:C559) -> 3070535 Vitrina Isla 2E (200cm x 50cm x 50cm) | B64: 3070535 | C64: Vitrina Isla 2E (200cm x 50cm x 50cm) | D64: =IF('FERIAS DE 3 DIAS'!G$3=TRUE,'FERIAS DE 7 A 11 DIAS'!E64/'FERIAS DE 3 DIAS'!I$3,E64) -> 225100 | E64: 225100 | G64: 189159.6639
A65: =CONCATENATE(B65:B560," ",C65:C560) -> 3070714 Cubo de exhibición (40cm x 40cm x 25cm) | B65: 3070714 | C65: Cubo de exhibición (40cm x 40cm x 25cm) | D65: =IF('FERIAS DE 3 DIAS'!G$3=TRUE,'FERIAS DE 7 A 11 DIAS'!E65/'FERIAS DE 3 DIAS'!I$3,E65) -> 32400 | E65: 32400 | G65: 27226.89076
A66: =CONCATENATE(B66:B561," ",C66:C561) -> 3070936 Mesón plegable plástico (Gris o blanco) (73cm x 182cm x 76cm) | B66: 3070936 | C66: Mesón plegable plástico (Gris o blanco) (73cm x 182cm x 76cm) | D66: =IF('FERIAS DE 3 DIAS'!G$3=TRUE,'FERIAS DE 7 A 11 DIAS'!E66/'FERIAS DE 3 DIAS'!I$3,E66) -> 94900 | E66: 94900 | G66: 79747.89916
A67: =CONCATENATE(B67:B562," ",C67:C562) -> 3070954 Counter Mónaco (Blanco) (100cm x 100cm x 30cm) | B67: 3070954 | C67: Counter Mónaco (Blanco) (100cm x 100cm x 30cm) | D67: =IF('FERIAS DE 3 DIAS'!G$3=TRUE,'FERIAS DE 7 A 11 DIAS'!E67/'FERIAS DE 3 DIAS'!I$3,E67) -> 155400 | E67: 155400 | G67: 130588.2353
A68: =CONCATENATE(B68:B563," ",C68:C563) -> 3070954 Counter Mónaco (Miel) (100cm x 100cm x 30cm) | B68: 3070954 | C68: Counter Mónaco (Miel) (100cm x 100cm x 30cm) | D68: =IF('FERIAS DE 3 DIAS'!G$3=TRUE,'FERIAS DE 7 A 11 DIAS'!E68/'FERIAS DE 3 DIAS'!I$3,E68) -> 155400 | E68: 155400 | G68: 130588.2353
A69: =CONCATENATE(B69:B564," ",C69:C564) -> 3070954 Counter Mónaco (Rovere) (100cm x 100cm x 30cm) | B69: 3070954 | C69: Counter Mónaco (Rovere) (100cm x 100cm x 30cm) | D69: =IF('FERIAS DE 3 DIAS'!G$3=TRUE,'FERIAS DE 7 A 11 DIAS'!E69/'FERIAS DE 3 DIAS'!I$3,E69) -> 155400 | E69: 155400 | G69: 130588.2353
A70: =CONCATENATE(B70:B565," ",C70:C565) -> 3070954 Counter Mónaco (Roble Gris) (100cm x 100cm x 30cm) | B70: 3070954 | C70: Counter Mónaco (Roble Gris) (100cm x 100cm x 30cm) | D70: =IF('FERIAS DE 3 DIAS'!G$3=TRUE,'FERIAS DE 7 A 11 DIAS'!E70/'FERIAS DE 3 DIAS'!I$3,E70) -> 155400 | E70: 155400 | G70: 130588.2353
A71: =CONCATENATE(B71:B566," ",C71:C566) -> 3070955 Pedestal rectangular 90cm (90cm x 30cm x 30cm) | B71: 3070955 | C71: Pedestal rectangular 90cm (90cm x 30cm x 30cm) | D71: =IF('FERIAS DE 3 DIAS'!G$3=TRUE,'FERIAS DE 7 A 11 DIAS'!E71/'FERIAS DE 3 DIAS'!I$3,E71) -> 40800 | E71: 40800 | G71: 34285.71429
A72: =CONCATENATE(B72:B567," ",C72:C567) -> 3070956 Pedestal rectangular 60cm (60cm x 30cm x 30cm) | B72: 3070956 | C72: Pedestal rectangular 60cm (60cm x 30cm x 30cm) | D72: =IF('FERIAS DE 3 DIAS'!G$3=TRUE,'FERIAS DE 7 A 11 DIAS'!E72/'FERIAS DE 3 DIAS'!I$3,E72) -> 36000 | E72: 36000 | G72: 30252.10084
A73: =CONCATENATE(B73:B568," ",C73:C568) -> 3070957 Pedestal cuadrado (30cm x 30cm x 30cm) | B73: 3070957 | C73: Pedestal cuadrado (30cm x 30cm x 30cm) | D73: =IF('FERIAS DE 3 DIAS'!G$3=TRUE,'FERIAS DE 7 A 11 DIAS'!E73/'FERIAS DE 3 DIAS'!I$3,E73) -> 31200 | E73: 31200 | G73: 26218.48739
A74: =CONCATENATE(B74:B569," ",C74:C569) -> 3071006 Silla Interlocutora Negra (79cm x 53cm x 42cm) | B74: 3071006 | C74: Silla Interlocutora Negra (79cm x 53cm x 42cm) | D74: =IF('FERIAS DE 3 DIAS'!G$3=TRUE,'FERIAS DE 7 A 11 DIAS'!E74/'FERIAS DE 3 DIAS'!I$3,E74) -> 44900 | E74: 44900 | G74: 37731.09244
A75: =CONCATENATE(B75:B570," ",C75:C570) -> 3071008 Silla estandar Tipo Huevo (48cm x 46cm x 45cm) | B75: 3071008 | C75: Silla estandar Tipo Huevo (48cm x 46cm x 45cm) | D75: =IF('FERIAS DE 3 DIAS'!G$3=TRUE,'FERIAS DE 7 A 11 DIAS'!E75/'FERIAS DE 3 DIAS'!I$3,E75) -> 62500 | E75: 62500 | G75: 52521.0084
A76: =CONCATENATE(B76:B571," ",C76:C571) -> 3071013 Sofa Victoria derecho (70cm x 100cm x 75cm) | B76: 3071013 | C76: Sofa Victoria derecho (70cm x 100cm x 75cm) | D76: =IF('FERIAS DE 3 DIAS'!G$3=TRUE,'FERIAS DE 7 A 11 DIAS'!E76/'FERIAS DE 3 DIAS'!I$3,E76) -> 165200 | E76: 165200 | G76: 138823.5294
A77: =CONCATENATE(B77:B572," ",C77:C572) -> 3071022 Silla Neumatica alta Versalles (80cm x 40 cm x 40cm) | B77: 3071022 | C77: Silla Neumatica alta Versalles (80cm x 40 cm x 40cm) | D77: =IF('FERIAS DE 3 DIAS'!G$3=TRUE,'FERIAS DE 7 A 11 DIAS'!E77/'FERIAS DE 3 DIAS'!I$3,E77) -> 94500 | E77: 94500 | G77: 79411.76471
A78: =CONCATENATE(B78:B573," ",C78:C573) -> 3071023 Sofa Victoria izquierdo (70cm x 100cm x 75cm) | B78: 3071023 | C78: Sofa Victoria izquierdo (70cm x 100cm x 75cm) | D78: =IF('FERIAS DE 3 DIAS'!G$3=TRUE,'FERIAS DE 7 A 11 DIAS'!E78/'FERIAS DE 3 DIAS'!I$3,E78) -> 165200 | E78: 165200 | G78: 138823.5294
A79: =CONCATENATE(B79:B574," ",C79:C574) -> 3071031 Sofa Terranova 2 cuerpos (88cm x 173cm x 80cm) | B79: 3071031 | C79: Sofa Terranova 2 cuerpos (88cm x 173cm x 80cm) | D79: =IF('FERIAS DE 3 DIAS'!G$3=TRUE,'FERIAS DE 7 A 11 DIAS'!E79/'FERIAS DE 3 DIAS'!I$3,E79) -> 203400 | E79: 203400 | G79: 170924.3697
A80: =CONCATENATE(B80:B575," ",C80:C575) -> 3071036 Mesa plegable plastico + 2 sillas interlocutoras negras | B80: 3071036 | C80: Mesa plegable plastico + 2 sillas interlocutoras negras | D80: =IF('FERIAS DE 3 DIAS'!G$3=TRUE,'FERIAS DE 7 A 11 DIAS'!E80/'FERIAS DE 3 DIAS'!I$3,E80) -> 172800 | E80: 172800 | G80: 145210.084
A81: =CONCATENATE(B81:B576," ",C81:C576) -> 3071039 Mesa alta Daysa + 2 sillas neumaticas altas marsella | B81: 3071039 | C81: Mesa alta Daysa + 2 sillas neumaticas altas marsella | D81: =IF('FERIAS DE 3 DIAS'!G$3=TRUE,'FERIAS DE 7 A 11 DIAS'!E81/'FERIAS DE 3 DIAS'!I$3,E81) -> 224300 | E81: 224300 | G81: 188487.395
A82: =CONCATENATE(B82:B577," ",C82:C577) -> 3071054 Mesa estandar lotus vidrio + 2 sillas tipo huevo | B82: 3071054 | C82: Mesa estandar lotus vidrio + 2 sillas tipo huevo | D82: =IF('FERIAS DE 3 DIAS'!G$3=TRUE,'FERIAS DE 7 A 11 DIAS'!E82/'FERIAS DE 3 DIAS'!I$3,E82) -> 247000 | E82: 247000 | G82: 207563.0252
A83: =CONCATENATE(B83:B578," ",C83:C578) -> 3071059 Poltrona Levis (73cm x 86cm x 73cm) | B83: 3071059 | C83: Poltrona Levis (73cm x 86cm x 73cm) | D83: =IF('FERIAS DE 3 DIAS'!G$3=TRUE,'FERIAS DE 7 A 11 DIAS'!E83/'FERIAS DE 3 DIAS'!I$3,E83) -> 179500 | E83: 179500 | G83: 150840.3361
A84: =CONCATENATE(B84:B579," ",C84:C579) -> 3071061 Silla estandar Suiza (48cm x 46cm x 45cm) | B84: 3071061 | C84: Silla estandar Suiza (48cm x 46cm x 45cm) | D84: =IF('FERIAS DE 3 DIAS'!G$3=TRUE,'FERIAS DE 7 A 11 DIAS'!E84/'FERIAS DE 3 DIAS'!I$3,E84) -> 62500 | E84: 62500 | G84: 52521.0084
A85: =CONCATENATE(B85:B580," ",C85:C580) -> 3071068 Mesa Centro Rectangular doble nivel (Blanco) (50cm x 75cm x 50cm) | B85: 3071068 | C85: Mesa Centro Rectangular doble nivel (Blanco) (50cm x 75cm x 50cm) | D85: =IF('FERIAS DE 3 DIAS'!G$3=TRUE,'FERIAS DE 7 A 11 DIAS'!E85/'FERIAS DE 3 DIAS'!I$3,E85) -> 77500 | E85: 77500 | G85: 65126.05042
A86: =CONCATENATE(B86:B581," ",C86:C581) -> 3071077 Silla Neumática alta Marsella (80cm x 40cm x 40cm) | B86: 3071077 | C86: Silla Neumática alta Marsella (80cm x 40cm x 40cm) | D86: =IF('FERIAS DE 3 DIAS'!G$3=TRUE,'FERIAS DE 7 A 11 DIAS'!E86/'FERIAS DE 3 DIAS'!I$3,E86) -> 75200 | E86: 75200 | G86: 63193.27731
A87: =CONCATENATE(B87:B582," ",C87:C582) -> 3071081 Silla Ejecutiva Cuero (57cm x 93cm x 52cm) | B87: 3071081 | C87: Silla Ejecutiva Cuero (57cm x 93cm x 52cm) | D87: =IF('FERIAS DE 3 DIAS'!G$3=TRUE,'FERIAS DE 7 A 11 DIAS'!E87/'FERIAS DE 3 DIAS'!I$3,E87) -> 68400 | E87: 68400 | G87: 57478.9916
A88: =CONCATENATE(B88:B583," ",C88:C583) -> 3071081 Silla Ejecutiva Malla (100cm x 57cm x 52 cm) | B88: 3071081 | C88: Silla Ejecutiva Malla (100cm x 57cm x 52 cm) | D88: =IF('FERIAS DE 3 DIAS'!G$3=TRUE,'FERIAS DE 7 A 11 DIAS'!E88/'FERIAS DE 3 DIAS'!I$3,E88) -> 140800 | E88: 140800 | G88: 118319.3277
A89: =CONCATENATE(B89:B584," ",C89:C584) -> 3071083 Sofa Toronto 3 cuerpos (88cm x 173cm x 80cm) | B89: 3071083 | C89: Sofa Toronto 3 cuerpos (88cm x 173cm x 80cm) | D89: =IF('FERIAS DE 3 DIAS'!G$3=TRUE,'FERIAS DE 7 A 11 DIAS'!E89/'FERIAS DE 3 DIAS'!I$3,E89) -> 203400 | E89: 203400 | G89: 170924.3697
A90: =CONCATENATE(B90:B585," ",C90:C585) -> 3071085 Sofa Otawa 2 cuerpos (85cm x 120cm x 76cm) | B90: 3071085 | C90: Sofa Otawa 2 cuerpos (85cm x 120cm x 76cm) | D90: =IF('FERIAS DE 3 DIAS'!G$3=TRUE,'FERIAS DE 7 A 11 DIAS'!E90/'FERIAS DE 3 DIAS'!I$3,E90) -> 191500 | E90: 191500 | G90: 160924.3697
A91: =CONCATENATE(B91:B586," ",C91:C586) -> 3071090 Puff estandar cuadrado (43cm x 43cm x 43cm) | B91: 3071090 | C91: Puff estandar cuadrado (43cm x 43cm x 43cm) | D91: =IF('FERIAS DE 3 DIAS'!G$3=TRUE,'FERIAS DE 7 A 11 DIAS'!E91/'FERIAS DE 3 DIAS'!I$3,E91) -> 50100 | E91: 50100 | G91: 42100.84034
A92: =CONCATENATE(B92:B587," ",C92:C587) -> 3071091 Puff Trunk 2 cuerpos (48cm x 81cm x 40cm) | B92: 3071091 | C92: Puff Trunk 2 cuerpos (48cm x 81cm x 40cm) | D92: =IF('FERIAS DE 3 DIAS'!G$3=TRUE,'FERIAS DE 7 A 11 DIAS'!E92/'FERIAS DE 3 DIAS'!I$3,E92) -> 95800 | E92: 95800 | G92: 80504.20168
A93: =CONCATENATE(B93:B588," ",C93:C588) -> 3071093 Mesa alta Daysa vidrio (100cm x 60cm) | B93: 3071093 | C93: Mesa alta Daysa vidrio (100cm x 60cm) | D93: =IF('FERIAS DE 3 DIAS'!G$3=TRUE,'FERIAS DE 7 A 11 DIAS'!E93/'FERIAS DE 3 DIAS'!I$3,E93) -> 107700 | E93: 107700 | G93: 90504.20168
A94: =CONCATENATE(B94:B589," ",C94:C589) -> 3071095 Sala VIP (1 sofá Victoria derecho, 1 sofá Victoria izquierdo, 2 poltronas, 1 mesa centro cuadrada 2 niveles) | B94: 3071095 | C94: Sala VIP (1 sofá Victoria derecho, 1 sofá Victoria izquierdo, 2 poltronas, 1 mesa centro cuadrada 2 niveles) | D94: =IF('FERIAS DE 3 DIAS'!G$3=TRUE,'FERIAS DE 7 A 11 DIAS'!E94/'FERIAS DE 3 DIAS'!I$3,E94) -> 626400 | E94: 626400 | G94: 526386.5546
A95: =CONCATENATE(B95:B589," ",C95:C589) -> 3071097 Mesa estandar Daysa (76cm x 60cm) | B95: 3071097 | C95: Mesa estandar Daysa (76cm x 60cm) | D95: =IF('FERIAS DE 3 DIAS'!G$3=TRUE,'FERIAS DE 7 A 11 DIAS'!E95/'FERIAS DE 3 DIAS'!I$3,E95) -> 95800 | E95: 95800 | G95: 80504.20168
A96: =CONCATENATE(B96:B590," ",C96:C590) -> 3071098 Mesa estandar Shia (Blanco) (76cm x 60cm x 60cm) | B96: 3071098 | C96: Mesa estandar Shia (Blanco) (76cm x 60cm x 60cm) | D96: =IF('FERIAS DE 3 DIAS'!G$3=TRUE,'FERIAS DE 7 A 11 DIAS'!E96/'FERIAS DE 3 DIAS'!I$3,E96) -> 95800 | E96: 95800 | G96: 80504.20168
A97: =CONCATENATE(B97:B591," ",C97:C591) -> 3071098 Mesa estandar Shia (Negra) (76cm x 60cm x 60cm) | B97: 3071098 | C97: Mesa estandar Shia (Negra) (76cm x 60cm x 60cm) | D97: =IF('FERIAS DE 3 DIAS'!G$3=TRUE,'FERIAS DE 7 A 11 DIAS'!E97/'FERIAS DE 3 DIAS'!I$3,E97) -> 95800 | E97: 95800 | G97: 80504.20168
A98: =CONCATENATE(B98:B592," ",C98:C592) -> 3071100 Mesa Centro Circular doble nivel (Blanco) (50cm x 110cm x 60cm) | B98: 3071100 | C98: Mesa Centro Circular doble nivel (Blanco) (50cm x 110cm x 60cm) | D98: =IF('FERIAS DE 3 DIAS'!G$3=TRUE,'FERIAS DE 7 A 11 DIAS'!E98/'FERIAS DE 3 DIAS'!I$3,E98) -> 106600 | E98: 106600 | G98: 89579.83193
A99: =CONCATENATE(B99:B593," ",C99:C593) -> 3071103 Nevera Minibar 121 LT (48.5cm X 85.1cm X 60cm) | B99: 3071103 | C99: Nevera Minibar 121 LT (48.5cm X 85.1cm X 60cm) | D99: =IF('FERIAS DE 3 DIAS'!G$3=TRUE,'FERIAS DE 7 A 11 DIAS'!E99/'FERIAS DE 3 DIAS'!I$3,E99) -> 184600 | E99: 184600 | G99: 155126.0504
A100: =CONCATENATE(B100:B594," ",C100:C594) -> 3071103 Nevera Estandar 230LT ( 55.6cm X 157.6cm X 67cm) | B100: 3071103 | C100: Nevera Estandar 230LT ( 55.6cm X 157.6cm X 67cm) | D100: =IF('FERIAS DE 3 DIAS'!G$3=TRUE,'FERIAS DE 7 A 11 DIAS'!E100/'FERIAS DE 3 DIAS'!I$3,E100) -> 272300 | E100: 272300 | G100: 228823.5294
A101: =CONCATENATE(B101:B595," ",C101:C595) -> 3071104 Mesa Centro Cuadrada 2 Niveles (Blanco) (50cm x 60cm x 60) | B101: 3071104 | C101: Mesa Centro Cuadrada 2 Niveles (Blanco) (50cm x 60cm x 60) | D101: =IF('FERIAS DE 3 DIAS'!G$3=TRUE,'FERIAS DE 7 A 11 DIAS'!E101/'FERIAS DE 3 DIAS'!I$3,E101) -> 77500 | E101: 77500 | G101: 65126.05042
A102: =CONCATENATE(B102:B596," ",C102:C596) -> 3071105 KIT básico oficina 2 (2 sillas interlocutoras negras, 1 silla ejecutiva cuero, 1 mesa oficina) | B102: 3071105 | C102: KIT básico oficina 2 (2 sillas interlocutoras negras, 1 silla ejecutiva cuero, 1 mesa oficina) | D102: =IF('FERIAS DE 3 DIAS'!G$3=TRUE,'FERIAS DE 7 A 11 DIAS'!E102/'FERIAS DE 3 DIAS'!I$3,E102) -> 215400 | E102: 215400 | G102: 181008.4034
A103: =CONCATENATE(B103:B597," ",C103:C597) -> 3071108 Estantería Shelf 4E (190cm x 100cm x 30cm) | B103: 3071108 | C103: Estantería Shelf 4E (190cm x 100cm x 30cm) | D103: =IF('FERIAS DE 3 DIAS'!G$3=TRUE,'FERIAS DE 7 A 11 DIAS'!E103/'FERIAS DE 3 DIAS'!I$3,E103) -> 137600 | E103: 137600 | G103: 115630.2521
A104: =CONCATENATE(B104:B598," ",C104:C598) -> 3071111 Vitrina Rectangular 2E (200cm x 100cm x 40cm) | B104: 3071111 | C104: Vitrina Rectangular 2E (200cm x 100cm x 40cm) | D104: =IF('FERIAS DE 3 DIAS'!G$3=TRUE,'FERIAS DE 7 A 11 DIAS'!E104/'FERIAS DE 3 DIAS'!I$3,E104) -> 260200 | E104: 260200 | G104: 218655.4622
A105: =CONCATENATE(B105:B599," ",C105:C599) -> 3071113 Sala Osaka (1 sofá Toronto, 2 puffs Donna, 1 mesa centro cuadrada 2 niveles) | B105: 3071113 | C105: Sala Osaka (1 sofá Toronto, 2 puffs Donna, 1 mesa centro cuadrada 2 niveles) | D105: =IF('FERIAS DE 3 DIAS'!G$3=TRUE,'FERIAS DE 7 A 11 DIAS'!E105/'FERIAS DE 3 DIAS'!I$3,E105) -> 418600 | E105: 418600 | G105: 351764.7059
A106: =CONCATENATE(B106:B600," ",C106:C600) -> 3071114 Puff Trunk 3 cuerpos (46cm x 120cm x 54cm) | B106: 3071114 | C106: Puff Trunk 3 cuerpos (46cm x 120cm x 54cm) | D106: =IF('FERIAS DE 3 DIAS'!G$3=TRUE,'FERIAS DE 7 A 11 DIAS'!E106/'FERIAS DE 3 DIAS'!I$3,E106) -> 95800 | E106: 95800 | G106: 80504.20168
A107: =CONCATENATE(B107:B601," ",C107:C601) -> 3071115 Mesa alta Daysa (Blanco) (100cm x 60cm) | B107: 3071115 | C107: Mesa alta Daysa (Blanco) (100cm x 60cm) | D107: =IF('FERIAS DE 3 DIAS'!G$3=TRUE,'FERIAS DE 7 A 11 DIAS'!E107/'FERIAS DE 3 DIAS'!I$3,E107) -> 95800 | E107: 95800 | G107: 80504.20168
A108: =CONCATENATE(B108:B602," ",C108:C602) -> 3071115 Mesa alta Daysa (Miel) (100cm x 60cm) | B108: 3071115 | C108: Mesa alta Daysa (Miel) (100cm x 60cm) | D108: =IF('FERIAS DE 3 DIAS'!G$3=TRUE,'FERIAS DE 7 A 11 DIAS'!E108/'FERIAS DE 3 DIAS'!I$3,E108) -> 95800 | E108: 95800 | G108: 80504.20168
A109: =CONCATENATE(B109:B603," ",C109:C603) -> 3071115 Mesa alta Daysa (Rovere) (100cm x 60cm) | B109: 3071115 | C109: Mesa alta Daysa (Rovere) (100cm x 60cm) | D109: =IF('FERIAS DE 3 DIAS'!G$3=TRUE,'FERIAS DE 7 A 11 DIAS'!E109/'FERIAS DE 3 DIAS'!I$3,E109) -> 95800 | E109: 95800 | G109: 80504.20168
A110: =CONCATENATE(B110:B604," ",C110:C604) -> 3071115 Mesa alta Daysa (Roble Gris) (100cm x 60cm) | B110: 3071115 | C110: Mesa alta Daysa (Roble Gris) (100cm x 60cm) | D110: =IF('FERIAS DE 3 DIAS'!G$3=TRUE,'FERIAS DE 7 A 11 DIAS'!E110/'FERIAS DE 3 DIAS'!I$3,E110) -> 95800 | E110: 95800 | G110: 80504.20168
A111: =CONCATENATE(B111:B605," ",C111:C605) -> 3071116 Mesa estandar Lotus (70cm x 64cm x 81cm) | B111: 3071116 | C111: Mesa estandar Lotus (70cm x 64cm x 81cm) | D111: =IF('FERIAS DE 3 DIAS'!G$3=TRUE,'FERIAS DE 7 A 11 DIAS'!E111/'FERIAS DE 3 DIAS'!I$3,E111) -> 143500 | E111: 143500 | G111: 120588.2353
A112: =CONCATENATE(B112:B606," ",C112:C606) -> 3071302 Papelera plastica negra | B112: 3071302 | C112: Papelera plastica negra | D112: =IF('FERIAS DE 3 DIAS'!G$3=TRUE,'FERIAS DE 7 A 11 DIAS'!E112/'FERIAS DE 3 DIAS'!I$3,E112) -> 23000 | E112: 23000 | G112: 19327.73109
A113: =CONCATENATE(B113:B607," ",C113:C607) -> 3071325 Poste separador 120cm de alto | B113: 3071325 | C113: Poste separador 120cm de alto | D113: =IF('FERIAS DE 3 DIAS'!G$3=TRUE,'FERIAS DE 7 A 11 DIAS'!E113/'FERIAS DE 3 DIAS'!I$3,E113) -> 44000 | E113: 44000 | G113: 36974.78992
A114: =CONCATENATE(B114:B608," ",C114:C608) -> 3071370 Revistero plegable (140cm x 25cm x 29cm) | B114: 3071370 | C114: Revistero plegable (140cm x 25cm x 29cm) | D114: =IF('FERIAS DE 3 DIAS'!G$3=TRUE,'FERIAS DE 7 A 11 DIAS'!E114/'FERIAS DE 3 DIAS'!I$3,E114) -> 71300 | E114: 71300 | G114: 59915.96639
A115: =CONCATENATE(B115:B609," ",C115:C609) -> 30710165 Silla Bombona Roja (80cm x 43cm x 40cm) | B115: 30710165 | C115: Silla Bombona Roja (80cm x 43cm x 40cm) | D115: =IF('FERIAS DE 3 DIAS'!G$3=TRUE,'FERIAS DE 7 A 11 DIAS'!E115/'FERIAS DE 3 DIAS'!I$3,E115) -> 59800 | E115: 59800 | G115: 50252.10084
A116: =CONCATENATE(B116:B610," ",C116:C610) -> 30710166 Silla Oslo Blanca (90cm x 50cm x 45cm) | B116: 30710166 | C116: Silla Oslo Blanca (90cm x 50cm x 45cm) | D116: =IF('FERIAS DE 3 DIAS'!G$3=TRUE,'FERIAS DE 7 A 11 DIAS'!E116/'FERIAS DE 3 DIAS'!I$3,E116) -> 68400 | E116: 68400 | G116: 57478.9916
A117: =CONCATENATE(B117:B611," ",C117:C611) -> 30710167 Silla Tipo Bar Madera (75cm x 38cm x39 cm) | B117: 30710167 | C117: Silla Tipo Bar Madera (75cm x 38cm x39 cm) | D117: =IF('FERIAS DE 3 DIAS'!G$3=TRUE,'FERIAS DE 7 A 11 DIAS'!E117/'FERIAS DE 3 DIAS'!I$3,E117) -> 74300 | E117: 74300 | G117: 62436.97479
A118: =CONCATENATE(B118:B612," ",C118:C612) -> 30710168 Sala de Juntas (75cm x 120cn x 240cm) | B118: 30710168 | C118: Sala de Juntas (75cm x 120cn x 240cm) | D118: =IF('FERIAS DE 3 DIAS'!G$3=TRUE,'FERIAS DE 7 A 11 DIAS'!E118/'FERIAS DE 3 DIAS'!I$3,E118) -> 270000 | E118: 270000 | G118: 226890.7563
A119: =CONCATENATE(B119:B613," ",C119:C613) -> 30713198 Silla Gerencial (100cm x 49cm x 49cm) | B119: 30713198 | C119: Silla Gerencial (100cm x 49cm x 49cm) | D119: =IF('FERIAS DE 3 DIAS'!G$3=TRUE,'FERIAS DE 7 A 11 DIAS'!E119/'FERIAS DE 3 DIAS'!I$3,E119) -> 140800 | E119: 140800 | G119: 118319.3277
A120: =CONCATENATE(B120:B614," ",C120:C614) -> 30713200 Mesa Oficina (50cm x 120cm x 50cm) | B120: 30713200 | C120: Mesa Oficina (50cm x 120cm x 50cm) | D120: =IF('FERIAS DE 3 DIAS'!G$3=TRUE,'FERIAS DE 7 A 11 DIAS'!E120/'FERIAS DE 3 DIAS'!I$3,E120) -> 120700 | E120: 120700 | G120: 101428.5714
A121: =CONCATENATE(B121:B615," ",C121:C615) -> 30713201 Poltrona Buggy (73cm x 86cm X 73cm) | B121: 30713201 | C121: Poltrona Buggy (73cm x 86cm X 73cm) | D121: =IF('FERIAS DE 3 DIAS'!G$3=TRUE,'FERIAS DE 7 A 11 DIAS'!E121/'FERIAS DE 3 DIAS'!I$3,E121) -> 140800 | E121: 140800 | G121: 118319.3277
A122: =CONCATENATE(B122:B616," ",C122:C616) -> 30713225 Tapete Ferial Tipo Moqueta Liso m2 m2 + Instalación: Contáctese con serviciosplus@corferias.com para brindarle asesoria y cotización. | B122: 30713225 | C122: Tapete Ferial Tipo Moqueta Liso m2 m2 + Instalación: Contáctese con serviciosplus@corferias.com para brindarle asesoria y cotización. | D122: =IF('FERIAS DE 3 DIAS'!G$3=TRUE,'FERIAS DE 7 A 11 DIAS'!E122/'FERIAS DE 3 DIAS'!I$3,E122) -> 37800 | E122: 37800 | G122: 31764.70588
A123: =CONCATENATE(B123:B617," ",C123:C617) -> 30713226 Tapete Ferial Tipo Moqueta Acanalado m2 + Instalación: contáctese con serviciosplus@corferias.com para brindarle asesoria y cotización. | B123: 30713226 | C123: Tapete Ferial Tipo Moqueta Acanalado m2 + Instalación: contáctese con serviciosplus@corferias.com para brindarle asesoria y cotización. | D123: =IF('FERIAS DE 3 DIAS'!G$3=TRUE,'FERIAS DE 7 A 11 DIAS'!E123/'FERIAS DE 3 DIAS'!I$3,E123) -> 37800 | E123: 37800 | G123: =E123/1.19 -> 31764.70588
A124: =CONCATENATE(B124:B618," ",C124:C618) -> 30713227 Tapete Caucho m2 + Instalación: contáctese con serviciosplus@corferias.com para brindarle asesoria y cotización. | B124: 30713227 | C124: Tapete Caucho m2 + Instalación: contáctese con serviciosplus@corferias.com para brindarle asesoria y cotización. | D124: =IF('FERIAS DE 3 DIAS'!G$3=TRUE,'FERIAS DE 7 A 11 DIAS'!E124/'FERIAS DE 3 DIAS'!I$3,E124) -> 97200 | E124: 97200 | G124: 81680.67227
A125: =CONCATENATE(B125:B619," ",C125:C619) -> 30713228 Piso Laminado m2 + Instalación: contáctese con serviciosplus@corferias.com para brindarle asesoria y cotización. | B125: 30713228 | C125: Piso Laminado m2 + Instalación: contáctese con serviciosplus@corferias.com para brindarle asesoria y cotización. | D125: =IF('FERIAS DE 3 DIAS'!G$3=TRUE,'FERIAS DE 7 A 11 DIAS'!E125/'FERIAS DE 3 DIAS'!I$3,E125) -> 97200 | E125: 97200 | G125: 81680.67227
A126: =CONCATENATE(B126:B620," ",C126:C620) -> 30713229 Piso Melaminico m2 + Instalación: contáctese con serviciosplus@corferias.com para brindarle asesoria y cotización. | B126: 30713229 | C126: Piso Melaminico m2 + Instalación: contáctese con serviciosplus@corferias.com para brindarle asesoria y cotización. | D126: =IF('FERIAS DE 3 DIAS'!G$3=TRUE,'FERIAS DE 7 A 11 DIAS'!E126/'FERIAS DE 3 DIAS'!I$3,E126) -> 172800 | E126: 172800 | G126: 145210.084
A127: =CONCATENATE(B127:B621," ",C127:C621) -> Sala Barú (1 sofá Otawa, 2 Puff Cuadrados, 1 Puff 2 Puestos, 1 Mesa de Centro 2 niveles) | C127: Sala Barú (1 sofá Otawa, 2 Puff Cuadrados, 1 Puff 2 Puestos, 1 Mesa de Centro 2 niveles) | D127: =IF('FERIAS DE 3 DIAS'!G$3=TRUE,'FERIAS DE 7 A 11 DIAS'!E127/'FERIAS DE 3 DIAS'!I$3,E127) -> 418600 | E127: 418600 | G127: 351764.7059
A128: =CONCATENATE(B128:B622," ",C128:C622) -> Sala Terranova (1 sofá terranoca, 2 Poltronas Buggy, 1 Mesa de Centro 2 niveles) | C128: Sala Terranova (1 sofá terranoca, 2 Poltronas Buggy, 1 Mesa de Centro 2 niveles) | D128: =IF('FERIAS DE 3 DIAS'!G$3=TRUE,'FERIAS DE 7 A 11 DIAS'!E128/'FERIAS DE 3 DIAS'!I$3,E128) -> 418600 | E128: 418600
A129: =CONCATENATE(B129:B623," ",C129:C623) -> Matera Melaminico (con 12 Matas Artificiales) | C129: Matera Melaminico (con 12 Matas Artificiales) | D129: =IF('FERIAS DE 3 DIAS'!G$3=TRUE,'FERIAS DE 7 A 11 DIAS'!E129/'FERIAS DE 3 DIAS'!I$3,E129) -> 40800 | E129: 40800
A130: =CONCATENATE(B130:B630," ",C130:C630) -> 3070942 KIT de Oficina Pino 1 (1 mesa plegable pino, 3 sillas acrilicas K negra) | B130: 3070942 | C130: KIT de Oficina Pino 1 (1 mesa plegable pino, 3 sillas acrilicas K negra) | D130: =IF('FERIAS DE 3 DIAS'!G$3=TRUE,'FERIAS DE 7 A 11 DIAS'!E130/'FERIAS DE 3 DIAS'!I$3,E130) -> 181000 | E130: 181000
A131: =CONCATENATE(B131:B631," ",C131:C631) -> 3070940 Mesa Pino 120 x 60 cms | B131: 3070940 | C131: Mesa Pino 120 x 60 cms | D131: =IF('FERIAS DE 3 DIAS'!G$3=TRUE,'FERIAS DE 7 A 11 DIAS'!E131/'FERIAS DE 3 DIAS'!I$3,E131) -> 106800 | E131: 106800
A132: =CONCATENATE(B132:B632," ",C132:C632) -> 3071002 Silla Acrilica K Negra 103C | B132: 3071002 | C132: Silla Acrilica K Negra 103C | D132: =IF('FERIAS DE 3 DIAS'!G$3=TRUE,'FERIAS DE 7 A 11 DIAS'!E132/'FERIAS DE 3 DIAS'!I$3,E132) -> 45300 | E132: 45300
A133: =CONCATENATE(B133:B622," ",C133:C622) -> 3071346 Base para Tv Led - LCD adaptable (No Incluye Instalacion) Valor evento 1 día | B133: 3071346 | C133: Base para Tv Led - LCD adaptable (No Incluye Instalacion) Valor evento 1 día | D133: =IF('FERIAS DE 3 DIAS'!G$3=TRUE,'FERIAS DE 7 A 11 DIAS'!E133/'FERIAS DE 3 DIAS'!I$3,E133) -> 42500 | E133: 42500 | G133: 35714.28571
A134: =CONCATENATE(B134:B623," ",C134:C623) -> 3071346 Base para Tv Led - LCD adaptable (No Incluye Instalacion) Valor evento 2 dias (Valor dia) | B134: 3071346 | C134: Base para Tv Led - LCD adaptable (No Incluye Instalacion) Valor evento 2 dias (Valor dia) | D134: =IF('FERIAS DE 3 DIAS'!G$3=TRUE,'FERIAS DE 7 A 11 DIAS'!E134/'FERIAS DE 3 DIAS'!I$3,E134) -> 42500 | E134: 42500 | G134: 35714.28571
A135: =CONCATENATE(B135:B624," ",C135:C624) -> 3071346 Base para Tv Led - LCD adaptable (No Incluye Instalacion) Valor de 3 a 6 dias (Valor dia) | B135: 3071346 | C135: Base para Tv Led - LCD adaptable (No Incluye Instalacion) Valor de 3 a 6 dias (Valor dia) | D135: =IF('FERIAS DE 3 DIAS'!G$3=TRUE,'FERIAS DE 7 A 11 DIAS'!E135/'FERIAS DE 3 DIAS'!I$3,E135) -> 38600 | E135: 38600 | G135: 32436.97479
A136: =CONCATENATE(B136:B625," ",C136:C625) -> 3071346 Base para Tv Led - LCD adaptable (No Incluye Instalacion) Valor de 7 a 18 días (Valor feria) | B136: 3071346 | C136: Base para Tv Led - LCD adaptable (No Incluye Instalacion) Valor de 7 a 18 días (Valor feria) | D136: =IF('FERIAS DE 3 DIAS'!G$3=TRUE,'FERIAS DE 7 A 11 DIAS'!E136/'FERIAS DE 3 DIAS'!I$3,E136) -> 272500 | E136: 272500 | G136: 228991.5966
A137: =CONCATENATE(B137:B626," ",C137:C626) -> 3071204 Tv Smart 45" 114cms ( Incluye base para tv / cable de corriente / 1 cable HDMI) IN: HDMI, USB Valor evento 1 día | B137: 3071204 | C137: Tv Smart 45" 114cms ( Incluye base para tv / cable de corriente / 1 cable HDMI) IN: HDMI, USB Valor evento 1 día | D137: =IF('FERIAS DE 3 DIAS'!G$3=TRUE,'FERIAS DE 7 A 11 DIAS'!E137/'FERIAS DE 3 DIAS'!I$3,E137) -> 137900 | E137: 137900 | G137: 115882.3529
A138: =CONCATENATE(B138:B627," ",C138:C627) -> 3071204 Tv Smart 45" 114cms ( Incluye base para tv / cable de corriente / 1 cable HDMI) IN: HDMI, USB Valor evento 2 dias (Valor dia) | B138: 3071204 | C138: Tv Smart 45" 114cms ( Incluye base para tv / cable de corriente / 1 cable HDMI) IN: HDMI, USB Valor evento 2 dias (Valor dia) | D138: =IF('FERIAS DE 3 DIAS'!G$3=TRUE,'FERIAS DE 7 A 11 DIAS'!E138/'FERIAS DE 3 DIAS'!I$3,E138) -> 135900 | E138: 135900 | G138: 114201.6807
A139: =CONCATENATE(B139:B628," ",C139:C628) -> 3071204 Tv Smart 45" 114cms ( Incluye base para tv / cable de corriente / 1 cable HDMI) IN: HDMI, USB Valor de 3 a 6 dias (Valor dia) | B139: 3071204 | C139: Tv Smart 45" 114cms ( Incluye base para tv / cable de corriente / 1 cable HDMI) IN: HDMI, USB Valor de 3 a 6 dias (Valor dia) | D139: =IF('FERIAS DE 3 DIAS'!G$3=TRUE,'FERIAS DE 7 A 11 DIAS'!E139/'FERIAS DE 3 DIAS'!I$3,E139) -> 125800 | E139: 125800 | G139: 105714.2857
A140: =CONCATENATE(B140:B629," ",C140:C629) -> 3071204 Tv Smart 45" 114cms ( Incluye base para tv / cable de corriente / 1 cable HDMI) IN: HDMI, USB Valor de 7 a 18 días (Valor feria) | B140: 3071204 | C140: Tv Smart 45" 114cms ( Incluye base para tv / cable de corriente / 1 cable HDMI) IN: HDMI, USB Valor de 7 a 18 días (Valor feria) | D140: =IF('FERIAS DE 3 DIAS'!G$3=TRUE,'FERIAS DE 7 A 11 DIAS'!E140/'FERIAS DE 3 DIAS'!I$3,E140) -> 816500 | E140: 816500 | G140: 686134.4538
A141: =CONCATENATE(B141:B630," ",C141:C630) -> 30713202 Tv Smart 55" 140cms ( Incluye base para tv / cable de corriente / 1 cable HDMI) IN: HDMI, USB Valor evento 1 día | B141: 30713202 | C141: Tv Smart 55" 140cms ( Incluye base para tv / cable de corriente / 1 cable HDMI) IN: HDMI, USB Valor evento 1 día | D141: =IF('FERIAS DE 3 DIAS'!G$3=TRUE,'FERIAS DE 7 A 11 DIAS'!E141/'FERIAS DE 3 DIAS'!I$3,E141) -> 188100 | E141: 188100 | G141: 158067.2269
A142: =CONCATENATE(B142:B627," ",C142:C627) -> 30713202 Tv Smart 55" 140cms ( Incluye base para tv / cable de corriente / 1 cable HDMI) IN: HDMI, USB Valor evento 2 dias (Valor dia) | B142: 30713202 | C142: Tv Smart 55" 140cms ( Incluye base para tv / cable de corriente / 1 cable HDMI) IN: HDMI, USB Valor evento 2 dias (Valor dia) | D142: =IF('FERIAS DE 3 DIAS'!G$3=TRUE,'FERIAS DE 7 A 11 DIAS'!E142/'FERIAS DE 3 DIAS'!I$3,E142) -> 188100 | E142: 188100 | G142: 158067.2269
A143: =CONCATENATE(B143:B628," ",C143:C628) -> 30713202 Tv Smart 55" 140cms ( Incluye base para tv / cable de corriente / 1 cable HDMI) IN: HDMI, USB Valor de 3 a 6 dias (Valor dia) | B143: 30713202 | C143: Tv Smart 55" 140cms ( Incluye base para tv / cable de corriente / 1 cable HDMI) IN: HDMI, USB Valor de 3 a 6 dias (Valor dia) | D143: =IF('FERIAS DE 3 DIAS'!G$3=TRUE,'FERIAS DE 7 A 11 DIAS'!E143/'FERIAS DE 3 DIAS'!I$3,E143) -> 171400 | E143: 171400 | G143: 144033.6134
A144: =CONCATENATE(B144:B629," ",C144:C629) -> 30713202 Tv Smart 55" 140cms ( Incluye base para tv / cable de corriente / 1 cable HDMI) IN: HDMI, USB Valor de 7 a 18 días (Valor feria) | B144: 30713202 | C144: Tv Smart 55" 140cms ( Incluye base para tv / cable de corriente / 1 cable HDMI) IN: HDMI, USB Valor de 7 a 18 días (Valor feria) | D144: =IF('FERIAS DE 3 DIAS'!G$3=TRUE,'FERIAS DE 7 A 11 DIAS'!E144/'FERIAS DE 3 DIAS'!I$3,E144) -> 1381900 | E144: 1381900 | G144: 1161260.504
A145: =CONCATENATE(B145:B630," ",C145:C630) -> 3071206 Tv Smart 65" 165cms ( Incluye base para tv / cable de corriente /1 cable HDMI) IN: HDMI, USB Valor evento 1 día | B145: 3071206 | C145: Tv Smart 65" 165cms ( Incluye base para tv / cable de corriente /1 cable HDMI) IN: HDMI, USB Valor evento 1 día | D145: =IF('FERIAS DE 3 DIAS'!G$3=TRUE,'FERIAS DE 7 A 11 DIAS'!E145/'FERIAS DE 3 DIAS'!I$3,E145) -> 330600 | E145: 330600 | G145: 277815.1261
A146: =CONCATENATE(B146:B631," ",C146:C631) -> 3071206 Tv Smart 65" 165cms ( Incluye base para tv / cable de corriente /1 cable HDMI) IN: HDMI, USB Valor evento 2 dias (Valor dia) | B146: 3071206 | C146: Tv Smart 65" 165cms ( Incluye base para tv / cable de corriente /1 cable HDMI) IN: HDMI, USB Valor evento 2 dias (Valor dia) | D146: =IF('FERIAS DE 3 DIAS'!G$3=TRUE,'FERIAS DE 7 A 11 DIAS'!E146/'FERIAS DE 3 DIAS'!I$3,E146) -> 330600 | E146: 330600 | G146: 277815.1261
A147: =CONCATENATE(B147:B632," ",C147:C632) -> 3071206 Tv Smart 65" 165cms ( Incluye base para tv / cable de corriente /1 cable HDMI) IN: HDMI, USB Valor de 3 a 6 dias (Valor dia) | B147: 3071206 | C147: Tv Smart 65" 165cms ( Incluye base para tv / cable de corriente /1 cable HDMI) IN: HDMI, USB Valor de 3 a 6 dias (Valor dia) | D147: =IF('FERIAS DE 3 DIAS'!G$3=TRUE,'FERIAS DE 7 A 11 DIAS'!E147/'FERIAS DE 3 DIAS'!I$3,E147) -> 312400 | E147: 312400 | G147: 262521.0084
A148: =CONCATENATE(B148:B633," ",C148:C633) -> 3071206 Tv Smart 65" 165cms ( Incluye base para tv / cable de corriente /1 cable HDMI) IN: HDMI, USB Valor de 7 a 18 días (Valor feria) | B148: 3071206 | C148: Tv Smart 65" 165cms ( Incluye base para tv / cable de corriente /1 cable HDMI) IN: HDMI, USB Valor de 7 a 18 días (Valor feria) | D148: =IF('FERIAS DE 3 DIAS'!G$3=TRUE,'FERIAS DE 7 A 11 DIAS'!E148/'FERIAS DE 3 DIAS'!I$3,E148) -> 1582600 | E148: 1582600 | G148: 1329915.966
A149: =CONCATENATE(B149:B634," ",C149:C634) -> 3071279 Tv Smart 70" 177,8cms ( Incluye base para tv / cable de corriente /1 cable HDMI) IN: HDMI, USB Valor evento 1 día | B149: 3071279 | C149: Tv Smart 70" 177,8cms ( Incluye base para tv / cable de corriente /1 cable HDMI) IN: HDMI, USB Valor evento 1 día | D149: =IF('FERIAS DE 3 DIAS'!G$3=TRUE,'FERIAS DE 7 A 11 DIAS'!E149/'FERIAS DE 3 DIAS'!I$3,E149) -> 531400 | E149: 531400 | G149: 446554.6218
A150: =CONCATENATE(B150:B635," ",C150:C635) -> 3071279 Tv Smart 70" 177,8cms ( Incluye base para tv / cable de corriente /1 cable HDMI) IN: HDMI, USB Valor evento 2 dias (Valor dia) | B150: 3071279 | C150: Tv Smart 70" 177,8cms ( Incluye base para tv / cable de corriente /1 cable HDMI) IN: HDMI, USB Valor evento 2 dias (Valor dia) | D150: =IF('FERIAS DE 3 DIAS'!G$3=TRUE,'FERIAS DE 7 A 11 DIAS'!E150/'FERIAS DE 3 DIAS'!I$3,E150) -> 531400 | E150: 531400 | G150: 446554.6218
A151: =CONCATENATE(B151:B636," ",C151:C636) -> 3071279 Tv Smart 70" 177,8cms ( Incluye base para tv / cable de corriente /1 cable HDMI) IN: HDMI, USB Valor de 3 a 6 dias (Valor dia) | B151: 3071279 | C151: Tv Smart 70" 177,8cms ( Incluye base para tv / cable de corriente /1 cable HDMI) IN: HDMI, USB Valor de 3 a 6 dias (Valor dia) | D151: =IF('FERIAS DE 3 DIAS'!G$3=TRUE,'FERIAS DE 7 A 11 DIAS'!E151/'FERIAS DE 3 DIAS'!I$3,E151) -> 483600 | E151: 483600 | G151: 406386.5546
A152: =CONCATENATE(B152:B637," ",C152:C637) -> 3071279 Tv Smart 70" 177,8cms ( Incluye base para tv / cable de corriente /1 cable HDMI) IN: HDMI, USB Valor de 7 a 18 días (Valor feria) | B152: 3071279 | C152: Tv Smart 70" 177,8cms ( Incluye base para tv / cable de corriente /1 cable HDMI) IN: HDMI, USB Valor de 7 a 18 días (Valor feria) | D152: =IF('FERIAS DE 3 DIAS'!G$3=TRUE,'FERIAS DE 7 A 11 DIAS'!E152/'FERIAS DE 3 DIAS'!I$3,E152) -> 3454300 | E152: 3454300 | G152: 2902773.109
A153: =CONCATENATE(B153:B638," ",C153:C638) -> 3071222 Tv Smart 82" 204cms ( Incluye base para tv / cable de corriente /1 cable HDMI) IN: HDMI, USB Valor evento 1 día | B153: 3071222 | C153: Tv Smart 82" 204cms ( Incluye base para tv / cable de corriente /1 cable HDMI) IN: HDMI, USB Valor evento 1 día | D153: =IF('FERIAS DE 3 DIAS'!G$3=TRUE,'FERIAS DE 7 A 11 DIAS'!E153/'FERIAS DE 3 DIAS'!I$3,E153) -> 987200 | E153: 987200 | G153: 829579.8319
A154: =CONCATENATE(B154:B639," ",C154:C639) -> 3071222 Tv Smart 82" 204cms ( Incluye base para tv / cable de corriente /1 cable HDMI) IN: HDMI, USB Valor evento 2 dias (Valor dia) | B154: 3071222 | C154: Tv Smart 82" 204cms ( Incluye base para tv / cable de corriente /1 cable HDMI) IN: HDMI, USB Valor evento 2 dias (Valor dia) | D154: =IF('FERIAS DE 3 DIAS'!G$3=TRUE,'FERIAS DE 7 A 11 DIAS'!E154/'FERIAS DE 3 DIAS'!I$3,E154) -> 987200 | E154: 987200 | G154: 829579.8319
A155: =CONCATENATE(B155:B640," ",C155:C640) -> 3071222 Tv Smart 82" 204cms ( Incluye base para tv / cable de corriente /1 cable HDMI) IN: HDMI, USB Valor de 3 a 6 dias (Valor dia) | B155: 3071222 | C155: Tv Smart 82" 204cms ( Incluye base para tv / cable de corriente /1 cable HDMI) IN: HDMI, USB Valor de 3 a 6 dias (Valor dia) | D155: =IF('FERIAS DE 3 DIAS'!G$3=TRUE,'FERIAS DE 7 A 11 DIAS'!E155/'FERIAS DE 3 DIAS'!I$3,E155) -> 898200 | E155: 898200 | G155: 754789.916
A156: =CONCATENATE(B156:B641," ",C156:C641) -> 3071222 Tv Smart 82" 204cms ( Incluye base para tv / cable de corriente /1 cable HDMI) IN: HDMI, USB Valor de 7 a 18 días (Valor feria) | B156: 3071222 | C156: Tv Smart 82" 204cms ( Incluye base para tv / cable de corriente /1 cable HDMI) IN: HDMI, USB Valor de 7 a 18 días (Valor feria) | D156: =IF('FERIAS DE 3 DIAS'!G$3=TRUE,'FERIAS DE 7 A 11 DIAS'!E156/'FERIAS DE 3 DIAS'!I$3,E156) -> 6414700 | E156: 6414700 | G156: 5390504.202
A157: =CONCATENATE(B157:B642," ",C157:C642) -> 3071262 Monitor tactil 65" 165cms ( Incluye base para monitor / cableado) IN: HDMI Valor evento 1 día | B157: 3071262 | C157: Monitor tactil 65" 165cms ( Incluye base para monitor / cableado) IN: HDMI Valor evento 1 día | D157: =IF('FERIAS DE 3 DIAS'!G$3=TRUE,'FERIAS DE 7 A 11 DIAS'!E157/'FERIAS DE 3 DIAS'!I$3,E157) -> 666700 | E157: 666700 | G157: 560252.1008
A158: =CONCATENATE(B158:B643," ",C158:C643) -> 3071262 Monitor tactil 65" 165cms ( Incluye base para monitor / cableado) IN: HDMI Valor evento 2 dias (Valor dia) | B158: 3071262 | C158: Monitor tactil 65" 165cms ( Incluye base para monitor / cableado) IN: HDMI Valor evento 2 dias (Valor dia) | D158: =IF('FERIAS DE 3 DIAS'!G$3=TRUE,'FERIAS DE 7 A 11 DIAS'!E158/'FERIAS DE 3 DIAS'!I$3,E158) -> 666700 | E158: 666700 | G158: 560252.1008
A159: =CONCATENATE(B159:B644," ",C159:C644) -> 3071262 Monitor tactil 65" 165cms ( Incluye base para monitor / cableado) IN: HDMI Valor de 3 a 6 dias (Valor dia) | B159: 3071262 | C159: Monitor tactil 65" 165cms ( Incluye base para monitor / cableado) IN: HDMI Valor de 3 a 6 dias (Valor dia) | D159: =IF('FERIAS DE 3 DIAS'!G$3=TRUE,'FERIAS DE 7 A 11 DIAS'!E159/'FERIAS DE 3 DIAS'!I$3,E159) -> 485700 | E159: 485700 | G159: 408151.2605
A160: =CONCATENATE(B160:B645," ",C160:C645) -> 3071262 Monitor tactil 65" 165cms ( Incluye base para monitor / cableado) IN: HDMI Valor de 7 a 18 días (Valor feria) | B160: 3071262 | C160: Monitor tactil 65" 165cms ( Incluye base para monitor / cableado) IN: HDMI Valor de 7 a 18 días (Valor feria) | D160: =IF('FERIAS DE 3 DIAS'!G$3=TRUE,'FERIAS DE 7 A 11 DIAS'!E160/'FERIAS DE 3 DIAS'!I$3,E160) -> 4847700 | E160: 4847700 | G160: 4073697.479
A161: =CONCATENATE(B161:B646," ",C161:C646) -> 3071284 Tablet tactil 7" RAM:1GB / Conectividad: 3G / Sistema Operativo Android 9.0 Valor evento 1 día | B161: 3071284 | C161: Tablet tactil 7" RAM:1GB / Conectividad: 3G / Sistema Operativo Android 9.0 Valor evento 1 día | D161: =IF('FERIAS DE 3 DIAS'!G$3=TRUE,'FERIAS DE 7 A 11 DIAS'!E161/'FERIAS DE 3 DIAS'!I$3,E161) -> 50000 | E161: 50000 | G161: 42016.80672
A162: =CONCATENATE(B162:B647," ",C162:C647) -> 3071284 Tablet tactil 7" RAM:1GB / Conectividad: 3G / Sistema Operativo Android 9.0 Valor evento 2 dias (Valor dia) | B162: 3071284 | C162: Tablet tactil 7" RAM:1GB / Conectividad: 3G / Sistema Operativo Android 9.0 Valor evento 2 dias (Valor dia) | D162: =IF('FERIAS DE 3 DIAS'!G$3=TRUE,'FERIAS DE 7 A 11 DIAS'!E162/'FERIAS DE 3 DIAS'!I$3,E162) -> 50000 | E162: 50000 | G162: 42016.80672
A163: =CONCATENATE(B163:B648," ",C163:C648) -> 3071284 Tablet tactil 7" RAM:1GB / Conectividad: 3G / Sistema Operativo Android 9.0 Valor de 3 a 6 dias (Valor dia) | B163: 3071284 | C163: Tablet tactil 7" RAM:1GB / Conectividad: 3G / Sistema Operativo Android 9.0 Valor de 3 a 6 dias (Valor dia) | D163: =IF('FERIAS DE 3 DIAS'!G$3=TRUE,'FERIAS DE 7 A 11 DIAS'!E163/'FERIAS DE 3 DIAS'!I$3,E163) -> 46000 | E163: 46000 | G163: 38655.46218
A164: =CONCATENATE(B164:B649," ",C164:C649) -> 3071284 Tablet tactil 7" RAM:1GB / Conectividad: 3G / Sistema Operativo Android 9.0 Valor de 7 a 18 días (Valor feria) | B164: 3071284 | C164: Tablet tactil 7" RAM:1GB / Conectividad: 3G / Sistema Operativo Android 9.0 Valor de 7 a 18 días (Valor feria) | D164: =IF('FERIAS DE 3 DIAS'!G$3=TRUE,'FERIAS DE 7 A 11 DIAS'!E164/'FERIAS DE 3 DIAS'!I$3,E164) -> 496800 | E164: 496800 | G164: 417478.9916
A165: =CONCATENATE(B165:B650," ",C165:C650) -> 3071265 Pantalla Led Full Hd Indoor / Medida 3,20mts x 2,96mts / Pitch 3,9 / Incluye estructura para montaje de piso a pared Valor evento 1 día | B165: 3071265 | C165: Pantalla Led Full Hd Indoor / Medida 3,20mts x 2,96mts / Pitch 3,9 / Incluye estructura para montaje de piso a pared Valor evento 1 día | D165: =IF('FERIAS DE 3 DIAS'!G$3=TRUE,'FERIAS DE 7 A 11 DIAS'!E165/'FERIAS DE 3 DIAS'!I$3,E165) -> 1662336 | E165: 1662336 | G165: 1396921.008
A166: =CONCATENATE(B166:B651," ",C166:C651) -> 3071265 Pantalla Led Full Hd Indoor / Medida 3,20mts x 2,96mts / Pitch 3,9 / Incluye estructura para montaje de piso a pared Valor evento 2 dias (Valor dia) | B166: 3071265 | C166: Pantalla Led Full Hd Indoor / Medida 3,20mts x 2,96mts / Pitch 3,9 / Incluye estructura para montaje de piso a pared Valor evento 2 dias (Valor dia) | D166: =IF('FERIAS DE 3 DIAS'!G$3=TRUE,'FERIAS DE 7 A 11 DIAS'!E166/'FERIAS DE 3 DIAS'!I$3,E166) -> 1662336 | E166: 1662336 | G166: 1396921.008
A167: =CONCATENATE(B167:B652," ",C167:C652) -> 3071265 Pantalla Led Full Hd Indoor / Medida 3,20mts x 2,96mts / Pitch 3,9 / Incluye estructura para montaje de piso a pared Valor de 3 a 6 dias (Valor dia) | B167: 3071265 | C167: Pantalla Led Full Hd Indoor / Medida 3,20mts x 2,96mts / Pitch 3,9 / Incluye estructura para montaje de piso a pared Valor de 3 a 6 dias (Valor dia) | D167: =IF('FERIAS DE 3 DIAS'!G$3=TRUE,'FERIAS DE 7 A 11 DIAS'!E167/'FERIAS DE 3 DIAS'!I$3,E167) -> 1496064 | E167: 1496064 | G167: 1257196.639
A168: =CONCATENATE(B168:B653," ",C168:C653) -> 3071265 Pantalla Led Full Hd Indoor / Medida 3,20mts x 2,96mts / Pitch 3,9 / Incluye estructura para montaje de piso a pared Valor de 7 a 18 días (Valor feria) | B168: 3071265 | C168: Pantalla Led Full Hd Indoor / Medida 3,20mts x 2,96mts / Pitch 3,9 / Incluye estructura para montaje de piso a pared Valor de 7 a 18 días (Valor feria) | D168: =IF('FERIAS DE 3 DIAS'!G$3=TRUE,'FERIAS DE 7 A 11 DIAS'!E168/'FERIAS DE 3 DIAS'!I$3,E168) -> 14067200 | E168: 14067200 | G168: 11821176.47
A169: =CONCATENATE(B169:B654," ",C169:C654) -> 3071267 Pantalla Led Full Hd Indoor / Medida 4,48mts x 3,20mts / Pitch 3,9 / Incluye estructura para montaje de piso a pared Valor evento 1 día | B169: 3071267 | C169: Pantalla Led Full Hd Indoor / Medida 4,48mts x 3,20mts / Pitch 3,9 / Incluye estructura para montaje de piso a pared Valor evento 1 día | D169: =IF('FERIAS DE 3 DIAS'!G$3=TRUE,'FERIAS DE 7 A 11 DIAS'!E169/'FERIAS DE 3 DIAS'!I$3,E169) -> 1926272 | E169: 1926272 | G169: 1618715.966
A170: =CONCATENATE(B170:B655," ",C170:C655) -> 3071267 Pantalla Led Full Hd Indoor / Medida 4,48mts x 3,20mts / Pitch 3,9 / Incluye estructura para montaje de piso a pared Valor evento 2 dias (Valor dia) | B170: 3071267 | C170: Pantalla Led Full Hd Indoor / Medida 4,48mts x 3,20mts / Pitch 3,9 / Incluye estructura para montaje de piso a pared Valor evento 2 dias (Valor dia) | D170: =IF('FERIAS DE 3 DIAS'!G$3=TRUE,'FERIAS DE 7 A 11 DIAS'!E170/'FERIAS DE 3 DIAS'!I$3,E170) -> 1926272 | E170: 1926272 | G170: 1618715.966
A171: =CONCATENATE(B171:B656," ",C171:C656) -> 3071267 Pantalla Led Full Hd Indoor / Medida 4,48mts x 3,20mts / Pitch 3,9 / Incluye estructura para montaje de piso a pared Valor de 3 a 6 dias (Valor dia) | B171: 3071267 | C171: Pantalla Led Full Hd Indoor / Medida 4,48mts x 3,20mts / Pitch 3,9 / Incluye estructura para montaje de piso a pared Valor de 3 a 6 dias (Valor dia) | D171: =IF('FERIAS DE 3 DIAS'!G$3=TRUE,'FERIAS DE 7 A 11 DIAS'!E171/'FERIAS DE 3 DIAS'!I$3,E171) -> 1733632 | E171: 1733632 | G171: 1456833.613
A172: =CONCATENATE(B172:B657," ",C172:C657) -> 3071267 Pantalla Led Full Hd Indoor / Medida 4,48mts x 3,20mts / Pitch 3,9 / Incluye estructura para montaje de piso a pared Valor de 7 a 18 días (Valor feria) | B172: 3071267 | C172: Pantalla Led Full Hd Indoor / Medida 4,48mts x 3,20mts / Pitch 3,9 / Incluye estructura para montaje de piso a pared Valor de 7 a 18 días (Valor feria) | D172: =IF('FERIAS DE 3 DIAS'!G$3=TRUE,'FERIAS DE 7 A 11 DIAS'!E172/'FERIAS DE 3 DIAS'!I$3,E172) -> 20284032 | E172: 20284032 | G172: 17045405.04
A173: =CONCATENATE(B173:B658," ",C173:C658) -> 3071268 Pantalla Led Full Hd Indoor / Medida 6,4mts x 3,20mts /mts2: 20,48 / Pitch 3,9 / Incluye estructura para montaje de piso a pared Valor evento 1 día | B173: 3071268 | C173: Pantalla Led Full Hd Indoor / Medida 6,4mts x 3,20mts /mts2: 20,48 / Pitch 3,9 / Incluye estructura para montaje de piso a pared Valor evento 1 día | D173: =IF('FERIAS DE 3 DIAS'!G$3=TRUE,'FERIAS DE 7 A 11 DIAS'!E173/'FERIAS DE 3 DIAS'!I$3,E173) -> 2287360 | E173: 2287360 | G173: 1922151.261
A174: =CONCATENATE(B174:B659," ",C174:C659) -> 3071268 Pantalla Led Full Hd Indoor / Medida 6,4mts x 3,20mts /mts2: 20,48 / Pitch 3,9 / Incluye estructura para montaje de piso a pared Valor evento 2 dias (Valor dia) | B174: 3071268 | C174: Pantalla Led Full Hd Indoor / Medida 6,4mts x 3,20mts /mts2: 20,48 / Pitch 3,9 / Incluye estructura para montaje de piso a pared Valor evento 2 dias (Valor dia) | D174: =IF('FERIAS DE 3 DIAS'!G$3=TRUE,'FERIAS DE 7 A 11 DIAS'!E174/'FERIAS DE 3 DIAS'!I$3,E174) -> 2287360 | E174: 2287360 | G174: 1922151.261
A175: =CONCATENATE(B175:B660," ",C175:C660) -> 3071268 Pantalla Led Full Hd Indoor / Medida 6,4mts x 3,20mts /mts2: 20,48 / Pitch 3,9 / Incluye estructura para montaje de piso a pared Valor de 3 a 6 dias (Valor dia) | B175: 3071268 | C175: Pantalla Led Full Hd Indoor / Medida 6,4mts x 3,20mts /mts2: 20,48 / Pitch 3,9 / Incluye estructura para montaje de piso a pared Valor de 3 a 6 dias (Valor dia) | D175: =IF('FERIAS DE 3 DIAS'!G$3=TRUE,'FERIAS DE 7 A 11 DIAS'!E175/'FERIAS DE 3 DIAS'!I$3,E175) -> 2071680 | E175: 2071680 | G175: 1740907.563
A176: =CONCATENATE(B176:B661," ",C176:C661) -> 3071268 Pantalla Led Full Hd Indoor / Medida 6,4mts x 3,20mts /mts2: 20,48 / Pitch 3,9 / Incluye estructura para montaje de piso a pared Valor de 7 a 18 días (Valor feria) | B176: 3071268 | C176: Pantalla Led Full Hd Indoor / Medida 6,4mts x 3,20mts /mts2: 20,48 / Pitch 3,9 / Incluye estructura para montaje de piso a pared Valor de 7 a 18 días (Valor feria) | D176: =IF('FERIAS DE 3 DIAS'!G$3=TRUE,'FERIAS DE 7 A 11 DIAS'!E176/'FERIAS DE 3 DIAS'!I$3,E176) -> 14796416 | E176: 14796416 | G176: 12433963.03
A177: =CONCATENATE(B177:B662," ",C177:C662) -> 3071264 Pantalla Led Full Hd Indoor / Medida 6,4mts x 4,48mts /mts2: 28,67 / Pitch 3,9 / Incluye estructura para montaje de piso a pared Valor evento 1 día | B177: 3071264 | C177: Pantalla Led Full Hd Indoor / Medida 6,4mts x 4,48mts /mts2: 28,67 / Pitch 3,9 / Incluye estructura para montaje de piso a pared Valor evento 1 día | D177: =IF('FERIAS DE 3 DIAS'!G$3=TRUE,'FERIAS DE 7 A 11 DIAS'!E177/'FERIAS DE 3 DIAS'!I$3,E177) -> 3049728 | E177: 3049728 | G177: 2562796.639
A178: =CONCATENATE(B178:B663," ",C178:C663) -> 3071264 Pantalla Led Full Hd Indoor / Medida 6,4mts x 4,48mts /mts2: 28,67 / Pitch 3,9 / Incluye estructura para montaje de piso a pared Valor evento 2 dias (Valor dia) | B178: 3071264 | C178: Pantalla Led Full Hd Indoor / Medida 6,4mts x 4,48mts /mts2: 28,67 / Pitch 3,9 / Incluye estructura para montaje de piso a pared Valor evento 2 dias (Valor dia) | D178: =IF('FERIAS DE 3 DIAS'!G$3=TRUE,'FERIAS DE 7 A 11 DIAS'!E178/'FERIAS DE 3 DIAS'!I$3,E178) -> 3049728 | E178: 3049728 | G178: 2562796.639
A179: =CONCATENATE(B179:B664," ",C179:C664) -> 3071264 Pantalla Led Full Hd Indoor / Medida 6,4mts x 4,48mts /mts2: 28,67 / Pitch 3,9 / Incluye estructura para montaje de piso a pared Valor de 3 a 6 dias (Valor dia) | B179: 3071264 | C179: Pantalla Led Full Hd Indoor / Medida 6,4mts x 4,48mts /mts2: 28,67 / Pitch 3,9 / Incluye estructura para montaje de piso a pared Valor de 3 a 6 dias (Valor dia) | D179: =IF('FERIAS DE 3 DIAS'!G$3=TRUE,'FERIAS DE 7 A 11 DIAS'!E179/'FERIAS DE 3 DIAS'!I$3,E179) -> 2761984 | E179: 2761984 | G179: 2320994.958
A180: =CONCATENATE(B180:B665," ",C180:C665) -> 3071264 Pantalla Led Full Hd Indoor / Medida 6,4mts x 4,48mts /mts2: 28,67 / Pitch 3,9 / Incluye estructura para montaje de piso a pared Valor de 7 a 18 días (Valor feria) | B180: 3071264 | C180: Pantalla Led Full Hd Indoor / Medida 6,4mts x 4,48mts /mts2: 28,67 / Pitch 3,9 / Incluye estructura para montaje de piso a pared Valor de 7 a 18 días (Valor feria) | D180: =IF('FERIAS DE 3 DIAS'!G$3=TRUE,'FERIAS DE 7 A 11 DIAS'!E180/'FERIAS DE 3 DIAS'!I$3,E180) -> 19728512 | E180: 19728512 | G180: 16578581.51
A181: =CONCATENATE(B181:B666," ",C181:C666) -> 3071265 Pantalla Led Full Hd Indoor / Medida 7,4mts x 5,12mts /mts2: 36,04 / Pitch 3,9 / Incluye estructura para montaje de piso a pared Valor evento 1 día | B181: 3071265 | C181: Pantalla Led Full Hd Indoor / Medida 7,4mts x 5,12mts /mts2: 36,04 / Pitch 3,9 / Incluye estructura para montaje de piso a pared Valor evento 1 día | D181: =IF('FERIAS DE 3 DIAS'!G$3=TRUE,'FERIAS DE 7 A 11 DIAS'!E181/'FERIAS DE 3 DIAS'!I$3,E181) -> 4447488 | E181: 4447488 | G181: 3737384.874
A182: =CONCATENATE(B182:B667," ",C182:C667) -> 3071265 Pantalla Led Full Hd Indoor / Medida 7,4mts x 5,12mts /mts2: 36,04 / Pitch 3,9 / Incluye estructura para montaje de piso a pared Valor evento 2 dias (Valor dia) | B182: 3071265 | C182: Pantalla Led Full Hd Indoor / Medida 7,4mts x 5,12mts /mts2: 36,04 / Pitch 3,9 / Incluye estructura para montaje de piso a pared Valor evento 2 dias (Valor dia) | D182: =IF('FERIAS DE 3 DIAS'!G$3=TRUE,'FERIAS DE 7 A 11 DIAS'!E182/'FERIAS DE 3 DIAS'!I$3,E182) -> 4447488 | E182: 4447488 | G182: 3737384.874
A183: =CONCATENATE(B183:B668," ",C183:C668) -> 3071265 Pantalla Led Full Hd Indoor / Medida 7,4mts x 5,12mts /mts2: 36,04 / Pitch 3,9 / Incluye estructura para montaje de piso a pared Valor de 3 a 6 dias (Valor dia) | B183: 3071265 | C183: Pantalla Led Full Hd Indoor / Medida 7,4mts x 5,12mts /mts2: 36,04 / Pitch 3,9 / Incluye estructura para montaje de piso a pared Valor de 3 a 6 dias (Valor dia) | D183: =IF('FERIAS DE 3 DIAS'!G$3=TRUE,'FERIAS DE 7 A 11 DIAS'!E183/'FERIAS DE 3 DIAS'!I$3,E183) -> 4027904 | E183: 4027904 | G183: 3384793.277
A184: =CONCATENATE(B184:B669," ",C184:C669) -> 3071265 Pantalla Led Full Hd Indoor / Medida 7,4mts x 5,12mts /mts2: 36,04 / Pitch 3,9 / Incluye estructura para montaje de piso a pared Valor de 7 a 18 días (Valor feria) | B184: 3071265 | C184: Pantalla Led Full Hd Indoor / Medida 7,4mts x 5,12mts /mts2: 36,04 / Pitch 3,9 / Incluye estructura para montaje de piso a pared Valor de 7 a 18 días (Valor feria) | D184: =IF('FERIAS DE 3 DIAS'!G$3=TRUE,'FERIAS DE 7 A 11 DIAS'!E184/'FERIAS DE 3 DIAS'!I$3,E184) -> 28770688 | E184: 28770688 | G184: 24177048.74
A185: =CONCATENATE(B185:B670," ",C185:C670) -> 3071266 Pantalla Led Full Hd Indoor / Medida 8,32mts x 6,40mts /mts2: 53,25 / Pitch 3,9 / Incluye estructura para montaje de piso a pared Valor evento 1 día | B185: 3071266 | C185: Pantalla Led Full Hd Indoor / Medida 8,32mts x 6,40mts /mts2: 53,25 / Pitch 3,9 / Incluye estructura para montaje de piso a pared Valor evento 1 día | D185: =IF('FERIAS DE 3 DIAS'!G$3=TRUE,'FERIAS DE 7 A 11 DIAS'!E185/'FERIAS DE 3 DIAS'!I$3,E185) -> 6099456 | E185: 6099456 | G185: 5125593.277
A186: =CONCATENATE(B186:B671," ",C186:C671) -> 3071266 Pantalla Led Full Hd Indoor / Medida 8,32mts x 6,40mts /mts2: 53,25 / Pitch 3,9 / Incluye estructura para montaje de piso a pared Valor evento 2 dias (Valor dia) | B186: 3071266 | C186: Pantalla Led Full Hd Indoor / Medida 8,32mts x 6,40mts /mts2: 53,25 / Pitch 3,9 / Incluye estructura para montaje de piso a pared Valor evento 2 dias (Valor dia) | D186: =IF('FERIAS DE 3 DIAS'!G$3=TRUE,'FERIAS DE 7 A 11 DIAS'!E186/'FERIAS DE 3 DIAS'!I$3,E186) -> 6099456 | E186: 6099456 | G186: 5125593.277
A187: =CONCATENATE(B187:B672," ",C187:C672) -> 3071266 Pantalla Led Full Hd Indoor / Medida 8,32mts x 6,40mts /mts2: 53,25 / Pitch 3,9 / Incluye estructura para montaje de piso a pared Valor de 3 a 6 dias (Valor dia) | B187: 3071266 | C187: Pantalla Led Full Hd Indoor / Medida 8,32mts x 6,40mts /mts2: 53,25 / Pitch 3,9 / Incluye estructura para montaje de piso a pared Valor de 3 a 6 dias (Valor dia) | D187: =IF('FERIAS DE 3 DIAS'!G$3=TRUE,'FERIAS DE 7 A 11 DIAS'!E187/'FERIAS DE 3 DIAS'!I$3,E187) -> 5524224 | E187: 5524224 | G187: 4642205.042
A188: =CONCATENATE(B188:B673," ",C188:C673) -> 3071266 Pantalla Led Full Hd Indoor / Medida 8,32mts x 6,40mts /mts2: 53,25 / Pitch 3,9 / Incluye estructura para montaje de piso a pared Valor de 7 a 18 días (Valor feria) | B188: 3071266 | C188: Pantalla Led Full Hd Indoor / Medida 8,32mts x 6,40mts /mts2: 53,25 / Pitch 3,9 / Incluye estructura para montaje de piso a pared Valor de 7 a 18 días (Valor feria) | D188: =IF('FERIAS DE 3 DIAS'!G$3=TRUE,'FERIAS DE 7 A 11 DIAS'!E188/'FERIAS DE 3 DIAS'!I$3,E188) -> 39457024 | E188: 39457024 | G188: 33157163.03
A189: =CONCATENATE(B189:B674," ",C189:C674) -> 3071267 Pantalla Led Full Hd Outdoor / Medida 6,4mts x 4,48mts /mts2: 28,67 / Pitch 4,8 / No incluye estructura para montaje Valor evento 1 día | B189: 3071267 | C189: Pantalla Led Full Hd Outdoor / Medida 6,4mts x 4,48mts /mts2: 28,67 / Pitch 4,8 / No incluye estructura para montaje Valor evento 1 día | D189: =IF('FERIAS DE 3 DIAS'!G$3=TRUE,'FERIAS DE 7 A 11 DIAS'!E189/'FERIAS DE 3 DIAS'!I$3,E189) -> 3049728 | E189: 3049728 | G189: 2562796.639
A190: =CONCATENATE(B190:B675," ",C190:C675) -> 3071267 Pantalla Led Full Hd Outdoor / Medida 6,4mts x 4,48mts /mts2: 28,67 / Pitch 4,8 / No incluye estructura para montaje Valor evento 2 dias (Valor dia) | B190: 3071267 | C190: Pantalla Led Full Hd Outdoor / Medida 6,4mts x 4,48mts /mts2: 28,67 / Pitch 4,8 / No incluye estructura para montaje Valor evento 2 dias (Valor dia) | D190: =IF('FERIAS DE 3 DIAS'!G$3=TRUE,'FERIAS DE 7 A 11 DIAS'!E190/'FERIAS DE 3 DIAS'!I$3,E190) -> 3049728 | E190: 3049728 | G190: 2562796.639
A191: =CONCATENATE(B191:B676," ",C191:C676) -> 3071267 Pantalla Led Full Hd Outdoor / Medida 6,4mts x 4,48mts /mts2: 28,67 / Pitch 4,8 / No incluye estructura para montaje Valor de 3 a 6 dias (Valor dia) | B191: 3071267 | C191: Pantalla Led Full Hd Outdoor / Medida 6,4mts x 4,48mts /mts2: 28,67 / Pitch 4,8 / No incluye estructura para montaje Valor de 3 a 6 dias (Valor dia) | D191: =IF('FERIAS DE 3 DIAS'!G$3=TRUE,'FERIAS DE 7 A 11 DIAS'!E191/'FERIAS DE 3 DIAS'!I$3,E191) -> 2760320 | E191: 2760320 | G191: 2319596.639
A192: =CONCATENATE(B192:B677," ",C192:C677) -> 3071267 Pantalla Led Full Hd Outdoor / Medida 6,4mts x 4,48mts /mts2: 28,67 / Pitch 4,8 / No incluye estructura para montaje Valor de 7 a 18 días (Valor feria) | B192: 3071267 | C192: Pantalla Led Full Hd Outdoor / Medida 6,4mts x 4,48mts /mts2: 28,67 / Pitch 4,8 / No incluye estructura para montaje Valor de 7 a 18 días (Valor feria) | D192: =IF('FERIAS DE 3 DIAS'!G$3=TRUE,'FERIAS DE 7 A 11 DIAS'!E192/'FERIAS DE 3 DIAS'!I$3,E192) -> 19715072 | E192: 19715072 | G192: =E192/1.19 -> 16567287.39
A193: =CONCATENATE(B193:B678," ",C193:C678) -> 3071268 Pantalla Led Full Hd Outdoor / Medida 7,4mts x 5,12mts /mts2: 36,04/ Pitch 4,8 / No incluye estructura para montaje Valor evento 1 día | B193: 3071268 | C193: Pantalla Led Full Hd Outdoor / Medida 7,4mts x 5,12mts /mts2: 36,04/ Pitch 4,8 / No incluye estructura para montaje Valor evento 1 día | D193: =IF('FERIAS DE 3 DIAS'!G$3=TRUE,'FERIAS DE 7 A 11 DIAS'!E193/'FERIAS DE 3 DIAS'!I$3,E193) -> 4447488 | E193: 4447488 | G193: 3737384.874
A194: =CONCATENATE(B194:B679," ",C194:C679) -> 3071268 Pantalla Led Full Hd Outdoor / Medida 7,4mts x 5,12mts /mts2: 36,04/ Pitch 4,8 / No incluye estructura para montaje Valor evento 2 dias (Valor dia) | B194: 3071268 | C194: Pantalla Led Full Hd Outdoor / Medida 7,4mts x 5,12mts /mts2: 36,04/ Pitch 4,8 / No incluye estructura para montaje Valor evento 2 dias (Valor dia) | D194: =IF('FERIAS DE 3 DIAS'!G$3=TRUE,'FERIAS DE 7 A 11 DIAS'!E194/'FERIAS DE 3 DIAS'!I$3,E194) -> 4447488 | E194: 4447488 | G194: 3737384.874
A195: =CONCATENATE(B195:B680," ",C195:C680) -> 3071268 Pantalla Led Full Hd Outdoor / Medida 7,4mts x 5,12mts /mts2: 36,04/ Pitch 4,8 / No incluye estructura para montaje Valor de 3 a 6 dias (Valor dia) | B195: 3071268 | C195: Pantalla Led Full Hd Outdoor / Medida 7,4mts x 5,12mts /mts2: 36,04/ Pitch 4,8 / No incluye estructura para montaje Valor de 3 a 6 dias (Valor dia) | D195: =IF('FERIAS DE 3 DIAS'!G$3=TRUE,'FERIAS DE 7 A 11 DIAS'!E195/'FERIAS DE 3 DIAS'!I$3,E195) -> 4025216 | E195: 4025216 | G195: 3382534.454
A196: =CONCATENATE(B196:B681," ",C196:C681) -> 3071268 Pantalla Led Full Hd Outdoor / Medida 7,4mts x 5,12mts /mts2: 36,04/ Pitch 4,8 / No incluye estructura para montaje Valor de 7 a 18 días (Valor feria) | B196: 3071268 | C196: Pantalla Led Full Hd Outdoor / Medida 7,4mts x 5,12mts /mts2: 36,04/ Pitch 4,8 / No incluye estructura para montaje Valor de 7 a 18 días (Valor feria) | D196: =IF('FERIAS DE 3 DIAS'!G$3=TRUE,'FERIAS DE 7 A 11 DIAS'!E196/'FERIAS DE 3 DIAS'!I$3,E196) -> 28750976 | E196: 28750976 | G196: 24160484.03
A197: =CONCATENATE(B197:B682," ",C197:C682) -> 3071269 Pantalla Led Full Hd Outdoor / Medida 8,32mts x 6,40mts /mts2: 53,25/ Pitch 4,8 / No incluye estructura para montaje Valor evento 1 día | B197: 3071269 | C197: Pantalla Led Full Hd Outdoor / Medida 8,32mts x 6,40mts /mts2: 53,25/ Pitch 4,8 / No incluye estructura para montaje Valor evento 1 día | D197: =IF('FERIAS DE 3 DIAS'!G$3=TRUE,'FERIAS DE 7 A 11 DIAS'!E197/'FERIAS DE 3 DIAS'!I$3,E197) -> 6099456 | E197: 6099456 | G197: 5125593.277
A198: =CONCATENATE(B198:B683," ",C198:C683) -> 3071269 Pantalla Led Full Hd Outdoor / Medida 8,32mts x 6,40mts /mts2: 53,25/ Pitch 4,8 / No incluye estructura para montaje Valor evento 2 dias (Valor dia) | B198: 3071269 | C198: Pantalla Led Full Hd Outdoor / Medida 8,32mts x 6,40mts /mts2: 53,25/ Pitch 4,8 / No incluye estructura para montaje Valor evento 2 dias (Valor dia) | D198: =IF('FERIAS DE 3 DIAS'!G$3=TRUE,'FERIAS DE 7 A 11 DIAS'!E198/'FERIAS DE 3 DIAS'!I$3,E198) -> 6099456 | E198: 6099456 | G198: 5125593.277
A199: =CONCATENATE(B199:B684," ",C199:C684) -> 3071269 Pantalla Led Full Hd Outdoor / Medida 8,32mts x 6,40mts /mts2: 53,25/ Pitch 4,8 / No incluye estructura para montaje Valor de 3 a 6 dias (Valor dia) | B199: 3071269 | C199: Pantalla Led Full Hd Outdoor / Medida 8,32mts x 6,40mts /mts2: 53,25/ Pitch 4,8 / No incluye estructura para montaje Valor de 3 a 6 dias (Valor dia) | D199: =IF('FERIAS DE 3 DIAS'!G$3=TRUE,'FERIAS DE 7 A 11 DIAS'!E199/'FERIAS DE 3 DIAS'!I$3,E199) -> 5520384 | E199: 5520384 | G199: 4638978.151
A200: =CONCATENATE(B200:B685," ",C200:C685) -> 3071269 Pantalla Led Full Hd Outdoor / Medida 8,32mts x 6,40mts /mts2: 53,25/ Pitch 4,8 / No incluye estructura para montaje Valor de 7 a 18 días (Valor feria) | B200: 3071269 | C200: Pantalla Led Full Hd Outdoor / Medida 8,32mts x 6,40mts /mts2: 53,25/ Pitch 4,8 / No incluye estructura para montaje Valor de 7 a 18 días (Valor feria) | D200: =IF('FERIAS DE 3 DIAS'!G$3=TRUE,'FERIAS DE 7 A 11 DIAS'!E200/'FERIAS DE 3 DIAS'!I$3,E200) -> 39429760 | E200: 39429760 | G200: 33134252.1
... 232 more rows

Sheet FERIAS DE 12 A 18 DIAS (hidden)
A1: CLAVE | B1: CODIGO | C1: DESCRIPCIÓN | D1: FORMULA | E1: VALOR
A2: =CONCATENATE(B2:B439," ",C2:C439) -> 3070101 Instalación Monofásica (Toma corriente doble, consumo hasta 2KW/110V) Valor feria de 12 a 18 dias | B2: 3070101 | C2: Instalación Monofásica (Toma corriente doble, consumo hasta 2KW/110V) Valor feria de 12 a 18 dias | D2: =IF('FERIAS DE 3 DIAS'!G$3=TRUE,'FERIAS DE 12 A 18 DIAS'!E2/'FERIAS DE 3 DIAS'!I$3,E2) -> 395000 | E2: 395000 | G2: =E2/1.19 -> 331932.7731
A3: =CONCATENATE(B3:B443," ",C3:C443) -> 3070103 Instalación kilovatio adicional monofásico (Debe contar con punto principal, MAX 2KW por punto) Valor feria de 12 a 18 dias | B3: 3070103 | C3: Instalación kilovatio adicional monofásico (Debe contar con punto principal, MAX 2KW por punto) Valor feria de 12 a 18 dias | D3: =IF('FERIAS DE 3 DIAS'!G$3=TRUE,'FERIAS DE 12 A 18 DIAS'!E3/'FERIAS DE 3 DIAS'!I$3,E3) -> 232000 | E3: 232000 | G3: 194957.9832
A4: =CONCATENATE(B4:B447," ",C4:C447) -> 3070102 Instalación trifásica (Regleta plastica, consumo hasta 4KW/208V) Valor feria de 12 a 18 dias | B4: 3070102 | C4: Instalación trifásica (Regleta plastica, consumo hasta 4KW/208V) Valor feria de 12 a 18 dias | D4: =IF('FERIAS DE 3 DIAS'!G$3=TRUE,'FERIAS DE 12 A 18 DIAS'!E4/'FERIAS DE 3 DIAS'!I$3,E4) -> 830000 | E4: 830000 | G4: 697478.9916
A5: =CONCATENATE(B5:B451," ",C5:C451) -> 3070104 Instalación kilovatio adicional trifásico (Debe contar con punto principal) Valor feria de 12 a 18 dias | B5: 3070104 | C5: Instalación kilovatio adicional trifásico (Debe contar con punto principal) Valor feria de 12 a 18 dias | D5: =IF('FERIAS DE 3 DIAS'!G$3=TRUE,'FERIAS DE 12 A 18 DIAS'!E5/'FERIAS DE 3 DIAS'!I$3,E5) -> 235000 | E5: 235000 | G5: 197478.9916
A6: =CONCATENATE(B6:B455," ",C6:C455) -> 3071372 De 21 a 50 kilovatios adicionales trifásicos (Valor por KW) (Debe contar con punto principal) Valor feria de 12 a 18 dias | B6: 3071372 | C6: De 21 a 50 kilovatios adicionales trifásicos (Valor por KW) (Debe contar con punto principal) Valor feria de 12 a 18 dias | D6: =IF('FERIAS DE 3 DIAS'!G$3=TRUE,'FERIAS DE 12 A 18 DIAS'!E6/'FERIAS DE 3 DIAS'!I$3,E6) -> 212000 | E6: 212000 | G6: 178151.2605
A7: =CONCATENATE(B7:B460," ",C7:C460) -> 3071373 De 51 a 100 kilovatios adicionales trifásicos (Valor por KW) (Debe contar con punto principal) Valor feria de 12 a 18 dias | B7: 3071373 | C7: De 51 a 100 kilovatios adicionales trifásicos (Valor por KW) (Debe contar con punto principal) Valor feria de 12 a 18 dias | D7: =IF('FERIAS DE 3 DIAS'!G$3=TRUE,'FERIAS DE 12 A 18 DIAS'!E7/'FERIAS DE 3 DIAS'!I$3,E7) -> 202000 | E7: 202000 | G7: 169747.8992
A8: =CONCATENATE(B8:B464," ",C8:C464) -> 3071374 Mas de100 kilovatios adicionales trifásicos (Valor por KW) (Debe contar con punto principal) Valor feria de 12 a 18 dias | B8: 3071374 | C8: Mas de100 kilovatios adicionales trifásicos (Valor por KW) (Debe contar con punto principal) Valor feria de 12 a 18 dias | D8: =IF('FERIAS DE 3 DIAS'!G$3=TRUE,'FERIAS DE 12 A 18 DIAS'!E8/'FERIAS DE 3 DIAS'!I$3,E8) -> 162000 | E8: 162000 | G8: 136134.4538
A9: =CONCATENATE(B9:B468," ",C9:C468) -> 3070402 Lampara de pared ajustable (150W/110V) Valor feria de 12 a 18 dias | B9: 3070402 | C9: Lampara de pared ajustable (150W/110V) Valor feria de 12 a 18 dias | D9: =IF('FERIAS DE 3 DIAS'!G$3=TRUE,'FERIAS DE 12 A 18 DIAS'!E9/'FERIAS DE 3 DIAS'!I$3,E9) -> 67000 | E9: 67000 | G9: 56302.52101
A10: =CONCATENATE(B10:B472," ",C10:C472) -> 3070405 Reflector Led (50W- mltV) Valor feria de 12 a 18 dias | B10: 3070405 | C10: Reflector Led (50W- mltV) Valor feria de 12 a 18 dias | D10: =IF('FERIAS DE 3 DIAS'!G$3=TRUE,'FERIAS DE 12 A 18 DIAS'!E10/'FERIAS DE 3 DIAS'!I$3,E10) -> 71000 | E10: 71000 | G10: 59663.86555
A11: =CONCATENATE(B11:B476," ",C11:C476) -> 3070403 Extensión – tomacorriente doble con polo a tierra (1500W/110V) MAX 6mts Valor feria de 12 a 18 dias | B11: 3070403 | C11: Extensión – tomacorriente doble con polo a tierra (1500W/110V) MAX 6mts Valor feria de 12 a 18 dias | D11: =IF('FERIAS DE 3 DIAS'!G$3=TRUE,'FERIAS DE 12 A 18 DIAS'!E11/'FERIAS DE 3 DIAS'!I$3,E11) -> 40000 | E11: 40000 | G11: 33613.44538
A12: =CONCATENATE(B12:B480," ",C12:C480) -> 3071345 Lavaplatos 90XL* 60XH* 90 (No incluye agua y desague) Valor de 12 a 18 dias | B12: 3071345 | C12: Lavaplatos 90XL* 60XH* 90 (No incluye agua y desague) Valor de 12 a 18 dias | D12: =IF('FERIAS DE 3 DIAS'!G$3=TRUE,'FERIAS DE 12 A 18 DIAS'!E12/'FERIAS DE 3 DIAS'!I$3,E12) -> 156000 | E12: 156000 | G12: 131092.437
A13: =CONCATENATE(B13:B484," ",C13:C484) -> 3070301 Punto de Agua en 1/2" (incluye consumo) Valor feria de 12 a 18 dias | B13: 3070301 | C13: Punto de Agua en 1/2" (incluye consumo) Valor feria de 12 a 18 dias | D13: =IF('FERIAS DE 3 DIAS'!G$3=TRUE,'FERIAS DE 12 A 18 DIAS'!E13/'FERIAS DE 3 DIAS'!I$3,E13) -> 445000 | E13: 445000 | G13: 373949.5798
A14: =CONCATENATE(B14:B488," ",C14:C488) -> 3070302 Desagüe en 1 1/2" Por toda la feria (Ubicación asignada por Corferias en su stand) Valor feria de 12 a 18 dias | B14: 3070302 | C14: Desagüe en 1 1/2" Por toda la feria (Ubicación asignada por Corferias en su stand) Valor feria de 12 a 18 dias | D14: =IF('FERIAS DE 3 DIAS'!G$3=TRUE,'FERIAS DE 12 A 18 DIAS'!E14/'FERIAS DE 3 DIAS'!I$3,E14) -> 395000 | E14: 395000 | G14: 331932.7731
A15: =CONCATENATE(B15:B493," ",C15:C493) -> 3071341 Aire comprimido para punto con presión máx. de 100 PSI, y caudal máx. 35CFM. Valor feria de 12 a 18 dias | B15: 3071341 | C15: Aire comprimido para punto con presión máx. de 100 PSI, y caudal máx. 35CFM. Valor feria de 12 a 18 dias | D15: =IF('FERIAS DE 3 DIAS'!G$3=TRUE,'FERIAS DE 12 A 18 DIAS'!E15/'FERIAS DE 3 DIAS'!I$3,E15) -> 540000 | E15: 540000 | G15: 453781.5126
A16: =CONCATENATE(B16:B497," ",C16:C497) -> 3070307 Punto de Agua en 1/2" (Incluye consumo) + Desagüe en 1 1/2" + Lavaplatos Valor feria de 12 a 18 dias | B16: 3070307 | C16: Punto de Agua en 1/2" (Incluye consumo) + Desagüe en 1 1/2" + Lavaplatos Valor feria de 12 a 18 dias | D16: =IF('FERIAS DE 3 DIAS'!G$3=TRUE,'FERIAS DE 12 A 18 DIAS'!E16/'FERIAS DE 3 DIAS'!I$3,E16) -> 897000 | E16: 897000 | G16: 753781.5126
A17: =CONCATENATE(B17:B502," ",C17:C502) -> 3071321 Instalación de UN (1) punto de gas propano por UN (1) Equipo (Incluye materiales y mano de obra) (No incluye consumo de gas, este será liquidado a través de un medidor una vez finalice la feria y/o evento) Valor feria de 12 a 18 dias | B17: 3071321 | C17: Instalación de UN (1) punto de gas propano por UN (1) Equipo (Incluye materiales y mano de obra) (No incluye consumo de gas, este será liquidado a través de un medidor una vez finalice la feria y/o evento) Valor feria de 12 a 18 dias | D17: =IF('FERIAS DE 3 DIAS'!G$3=TRUE,'FERIAS DE 12 A 18 DIAS'!E17/'FERIAS DE 3 DIAS'!I$3,E17) -> 185000 | E17: 185000 | G17: 155462.1849
A18: =CONCATENATE(B18:B503," ",C18:C503) -> 3070601 Panel adicional sistema cfe 100cm x 240cm | B18: 3070601 | C18: Panel adicional sistema cfe 100cm x 240cm | D18: =IF('FERIAS DE 3 DIAS'!G$3=TRUE,'FERIAS DE 12 A 18 DIAS'!E18/'FERIAS DE 3 DIAS'!I$3,E18) -> 38000 | E18: 38000 | G18: 31932.77311
A19: =CONCATENATE(B19:B505," ",C19:C505) -> 3070801 Puerta sistema cfe 90cm x 240cm | B19: 3070801 | C19: Puerta sistema cfe 90cm x 240cm | D19: =IF('FERIAS DE 3 DIAS'!G$3=TRUE,'FERIAS DE 12 A 18 DIAS'!E19/'FERIAS DE 3 DIAS'!I$3,E19) -> 93000 | E19: 93000 | G19: =E19/1.19 -> 78151.2605
A20: =CONCATENATE(B20:B506," ",C20:C506) -> 3070803 Bodega estándar con puerta 150cm x 150cm (Sistema Corferias) | B20: 3070803 | C20: Bodega estándar con puerta 150cm x 150cm (Sistema Corferias) | D20: =IF('FERIAS DE 3 DIAS'!G$3=TRUE,'FERIAS DE 12 A 18 DIAS'!E20/'FERIAS DE 3 DIAS'!I$3,E20) -> 148000 | E20: 148000 | G20: 124369.7479
A21: =CONCATENATE(B21:B507," ",C21:C507) -> 3071319 Brazo Mecánico por Fracciòn de 15 min (Solo para primer nivel) | B21: 3071319 | C21: Brazo Mecánico por Fracciòn de 15 min (Solo para primer nivel) | D21: =IF('FERIAS DE 3 DIAS'!G$3=TRUE,'FERIAS DE 12 A 18 DIAS'!E21/'FERIAS DE 3 DIAS'!I$3,E21) -> 71700 | E21: 71700 | G21: 60252.10084
A22: =CONCATENATE(B22:B508," ",C22:C508) -> 3071319 Brazo Mecánico por Fracciòn de 30 min (Solo para primer nivel) | B22: 3071319 | C22: Brazo Mecánico por Fracciòn de 30 min (Solo para primer nivel) | D22: =IF('FERIAS DE 3 DIAS'!G$3=TRUE,'FERIAS DE 12 A 18 DIAS'!E22/'FERIAS DE 3 DIAS'!I$3,E22) -> 122600 | E22: 122600 | G22: 103025.2101
A23: =CONCATENATE(B23:B509," ",C23:C509) -> 3071319 Brazo Mecánico por Fracciòn de 60 min (Solo para primer nivel) | B23: 3071319 | C23: Brazo Mecánico por Fracciòn de 60 min (Solo para primer nivel) | D23: =IF('FERIAS DE 3 DIAS'!G$3=TRUE,'FERIAS DE 12 A 18 DIAS'!E23/'FERIAS DE 3 DIAS'!I$3,E23) -> 217800 | E23: 217800 | G23: 183025.2101
A24: =CONCATENATE(B24:B510," ",C24:C510) -> 3070413 Diferencial (Cap. 1 Ton.) + Brazo mecánico (Montaje y desmontaje) | B24: 3070413 | C24: Diferencial (Cap. 1 Ton.) + Brazo mecánico (Montaje y desmontaje) | D24: =IF('FERIAS DE 3 DIAS'!G$3=TRUE,'FERIAS DE 12 A 18 DIAS'!E24/'FERIAS DE 3 DIAS'!I$3,E24) -> 350900 | E24: 350900 | G24: 294873.9496
A25: =CONCATENATE(B25:B511," ",C25:C511) -> 3070414 Plataforma Tijera eléctrica por Fracciòn /30 min (Uso para segundos niveles) | B25: 3070414 | C25: Plataforma Tijera eléctrica por Fracciòn /30 min (Uso para segundos niveles) | D25: =IF('FERIAS DE 3 DIAS'!G$3=TRUE,'FERIAS DE 12 A 18 DIAS'!E25/'FERIAS DE 3 DIAS'!I$3,E25) -> 84200 | E25: 84200 | G25: 70756.30252
A26: =CONCATENATE(B26:B512," ",C26:C512) -> 3071387 Brazo mecánico + Diferencial + TRUSS 2,60 X 2,60 | B26: 3071387 | C26: Brazo mecánico + Diferencial + TRUSS 2,60 X 2,60 | D26: =IF('FERIAS DE 3 DIAS'!G$3=TRUE,'FERIAS DE 12 A 18 DIAS'!E26/'FERIAS DE 3 DIAS'!I$3,E26) -> 2881400 | E26: 2881400 | G26: 2421344.538
A27: =CONCATENATE(B27:B513," ",C27:C513) -> 3071351 Brazo mecánico + Diferencial + TRUSS 3,60 X 2,60 | B27: 3071351 | C27: Brazo mecánico + Diferencial + TRUSS 3,60 X 2,60 | D27: =IF('FERIAS DE 3 DIAS'!G$3=TRUE,'FERIAS DE 12 A 18 DIAS'!E27/'FERIAS DE 3 DIAS'!I$3,E27) -> 2881400 | E27: 2881400 | G27: 2421344.538
A28: =CONCATENATE(B28:B514," ",C28:C514) -> 3071395 Brazo mecánico + Diferencial + TRUSS 3,60 X 3,60 | B28: 3071395 | C28: Brazo mecánico + Diferencial + TRUSS 3,60 X 3,60 | D28: =IF('FERIAS DE 3 DIAS'!G$3=TRUE,'FERIAS DE 12 A 18 DIAS'!E28/'FERIAS DE 3 DIAS'!I$3,E28) -> 2881400 | E28: 2881400 | G28: 2421344.538
A29: =CONCATENATE(B29:B515," ",C29:C515) -> 3071324 Brazo mecánico + Diferencial + TRUSS 5,90 X 5,90 | B29: 3071324 | C29: Brazo mecánico + Diferencial + TRUSS 5,90 X 5,90 | D29: =IF('FERIAS DE 3 DIAS'!G$3=TRUE,'FERIAS DE 12 A 18 DIAS'!E29/'FERIAS DE 3 DIAS'!I$3,E29) -> 3601800 | E29: 3601800 | G29: 3026722.689
A30: =CONCATENATE(B30:B516," ",C30:C516) -> 3071436 Brazo mecánico + Diferencial + TRUSS 6,90 X 6,90 | B30: 3071436 | C30: Brazo mecánico + Diferencial + TRUSS 6,90 X 6,90 | D30: =IF('FERIAS DE 3 DIAS'!G$3=TRUE,'FERIAS DE 12 A 18 DIAS'!E30/'FERIAS DE 3 DIAS'!I$3,E30) -> 3601800 | E30: 3601800 | G30: 3026722.689
A31: =CONCATENATE(B31:B517," ",C31:C517) -> 3071350 Brazo mecánico + Diferencial + TRUSS 5,60 X 5,60 | B31: 3071350 | C31: Brazo mecánico + Diferencial + TRUSS 5,60 X 5,60 | D31: =IF('FERIAS DE 3 DIAS'!G$3=TRUE,'FERIAS DE 12 A 18 DIAS'!E31/'FERIAS DE 3 DIAS'!I$3,E31) -> 3601800 | E31: 3601800 | G31: 3026722.689
A32: =CONCATENATE(B32:B518," ",C32:C518) -> 3071371 Brazo mecánico + Diferencial + TRUSS 6,60 X 6,60 | B32: 3071371 | C32: Brazo mecánico + Diferencial + TRUSS 6,60 X 6,60 | D32: =IF('FERIAS DE 3 DIAS'!G$3=TRUE,'FERIAS DE 12 A 18 DIAS'!E32/'FERIAS DE 3 DIAS'!I$3,E32) -> 3601800 | E32: 3601800 | G32: 3026722.689
A33: =CONCATENATE(B33:B519," ",C33:C519) -> 3071393 Brazo mecánico + Diferencial + TRUSS 9,60 X 2,60 | B33: 3071393 | C33: Brazo mecánico + Diferencial + TRUSS 9,60 X 2,60 | D33: =IF('FERIAS DE 3 DIAS'!G$3=TRUE,'FERIAS DE 12 A 18 DIAS'!E33/'FERIAS DE 3 DIAS'!I$3,E33) -> 3601800 | E33: 3601800 | G33: 3026722.689
A34: =CONCATENATE(B34:B520," ",C34:C520) -> 3071394 Brazo mecánico + Diferencial + TRUSS 9,60 X 3,60 | B34: 3071394 | C34: Brazo mecánico + Diferencial + TRUSS 9,60 X 3,60 | D34: =IF('FERIAS DE 3 DIAS'!G$3=TRUE,'FERIAS DE 12 A 18 DIAS'!E34/'FERIAS DE 3 DIAS'!I$3,E34) -> 3601800 | E34: 3601800 | G34: 3026722.689
A35: =CONCATENATE(B35:B521," ",C35:C521) -> 3071396 Brazo mecánico + Diferencial + TRUSS 9,60 X 5,60 | B35: 3071396 | C35: Brazo mecánico + Diferencial + TRUSS 9,60 X 5,60 | D35: =IF('FERIAS DE 3 DIAS'!G$3=TRUE,'FERIAS DE 12 A 18 DIAS'!E35/'FERIAS DE 3 DIAS'!I$3,E35) -> 4769300 | E35: 4769300 | G35: 4007815.126
A36: =CONCATENATE(B36:B522," ",C36:C522) -> 3071397 Brazo mecánico + Diferencial + TRUSS 9,60 X 6,60 | B36: 3071397 | C36: Brazo mecánico + Diferencial + TRUSS 9,60 X 6,60 | D36: =IF('FERIAS DE 3 DIAS'!G$3=TRUE,'FERIAS DE 12 A 18 DIAS'!E36/'FERIAS DE 3 DIAS'!I$3,E36) -> 4769300 | E36: 4769300 | G36: 4007815.126
A37: =CONCATENATE(B37:B523," ",C37:C523) -> 3071418 Servicio de Internet Cableado "PARA UN EQUIPO - DURANTE UN DÍA" | B37: 3071418 | C37: Servicio de Internet Cableado "PARA UN EQUIPO - DURANTE UN DÍA" | D37: =IF('FERIAS DE 3 DIAS'!G$3=TRUE,'FERIAS DE 12 A 18 DIAS'!E37/'FERIAS DE 3 DIAS'!I$3,E37) -> 93000 | E37: 93000 | G37: 78151.2605
A38: =CONCATENATE(B38:B524," ",C38:C524) -> 3071419 Clave de acceso para la red WiFi "PARA UN EQUIPO - DURANTE UN DÍA" | B38: 3071419 | C38: Clave de acceso para la red WiFi "PARA UN EQUIPO - DURANTE UN DÍA" | D38: =IF('FERIAS DE 3 DIAS'!G$3=TRUE,'FERIAS DE 12 A 18 DIAS'!E38/'FERIAS DE 3 DIAS'!I$3,E38) -> 93000 | E38: 93000 | G38: 78151.2605
A39: =CONCATENATE(B39:B528," ",C39:C528) -> 3071417 Servicio de Internet Cableado "PARA UN EQUIPO - DURANTE TODA LA FERIA" Valor feria de 12 a 18 dias | B39: 3071417 | C39: Servicio de Internet Cableado "PARA UN EQUIPO - DURANTE TODA LA FERIA" Valor feria de 12 a 18 dias | D39: =IF('FERIAS DE 3 DIAS'!G$3=TRUE,'FERIAS DE 12 A 18 DIAS'!E39/'FERIAS DE 3 DIAS'!I$3,E39) -> 300000 | E39: 300000 | G39: 252100.8403
A40: =CONCATENATE(B40:B532," ",C40:C532) -> 3071420 Clave de acceso para la Red WiFi "PARA UN EQUIPO - DURANTE TODA LA FERIA" Valor feria de 12 a 18 dias | B40: 3071420 | C40: Clave de acceso para la Red WiFi "PARA UN EQUIPO - DURANTE TODA LA FERIA" Valor feria de 12 a 18 dias | D40: =IF('FERIAS DE 3 DIAS'!G$3=TRUE,'FERIAS DE 12 A 18 DIAS'!E40/'FERIAS DE 3 DIAS'!I$3,E40) -> 300000 | E40: 300000 | G40: 252100.8403
A41: =CONCATENATE(B41:B536," ",C41:C536) -> 3071423 Conexión para Datafono + Clave de acceso WIFI (Para un equipo durante toda la feria) Valor feria de 12 a 18 dias | B41: 3071423 | C41: Conexión para Datafono + Clave de acceso WIFI (Para un equipo durante toda la feria) Valor feria de 12 a 18 dias | D41: =IF('FERIAS DE 3 DIAS'!G$3=TRUE,'FERIAS DE 12 A 18 DIAS'!E41/'FERIAS DE 3 DIAS'!I$3,E41) -> 370000 | E41: 370000 | G41: 310924.3697
A42: =CONCATENATE(B42:B540," ",C42:C540) -> 3071424 Conexión para Datafono + Servicio de Internet Cableado (Para un equipo durante toda la feria) Valor feria de 12 a 18 dias | B42: 3071424 | C42: Conexión para Datafono + Servicio de Internet Cableado (Para un equipo durante toda la feria) Valor feria de 12 a 18 dias | D42: =IF('FERIAS DE 3 DIAS'!G$3=TRUE,'FERIAS DE 12 A 18 DIAS'!E42/'FERIAS DE 3 DIAS'!I$3,E42) -> 320000 | E42: 320000 | G42: 268907.563
A43: =CONCATENATE(B43:B544," ",C43:C544) -> 3071425 Servicio de Internet Cableado + Clave de acceso WIFI (Para un equipo durante toda la feria) Valor feria de 12 a 18 dias | B43: 3071425 | C43: Servicio de Internet Cableado + Clave de acceso WIFI (Para un equipo durante toda la feria) Valor feria de 12 a 18 dias | D43: =IF('FERIAS DE 3 DIAS'!G$3=TRUE,'FERIAS DE 12 A 18 DIAS'!E43/'FERIAS DE 3 DIAS'!I$3,E43) -> 480000 | E43: 480000 | G43: 403361.3445
A44: =CONCATENATE(B44:B545," ",C44:C545) -> 3071437 Internet Dedicado: Si requiere conexión banda ancha para diferentes servicios o redes locales, contáctese con serviciosplus@corferias.com para brindarle asesoria y cotización. | B44: 3071437 | C44: Internet Dedicado: Si requiere conexión banda ancha para diferentes servicios o redes locales, contáctese con serviciosplus@corferias.com para brindarle asesoria y cotización. | D44: =IF('FERIAS DE 3 DIAS'!G$3=TRUE,'FERIAS DE 12 A 18 DIAS'!E44/'FERIAS DE 3 DIAS'!I$3,E44) -> Según Cotización | E44: Según Cotización
A45: =CONCATENATE(B45:B546," ",C45:C546) -> 3071406 Instalación Punto de Red:Incluye un cable UTP por punto | B45: 3071406 | C45: Instalación Punto de Red:Incluye un cable UTP por punto | D45: =IF('FERIAS DE 3 DIAS'!G$3=TRUE,'FERIAS DE 12 A 18 DIAS'!E45/'FERIAS DE 3 DIAS'!I$3,E45) -> 78000 | E45: 78000 | G45: 65546.21849
A46: =CONCATENATE(B46:B547," ",C46:C547) -> 3071407 Switch Valor POR FERIA | B46: 3071407 | C46: Switch Valor POR FERIA | D46: =IF('FERIAS DE 3 DIAS'!G$3=TRUE,'FERIAS DE 12 A 18 DIAS'!E46/'FERIAS DE 3 DIAS'!I$3,E46) -> 75000 | E46: 75000 | G46: 63025.21008
A47: =CONCATENATE(B47:B548," ",C47:C548) -> 3071402 Servicio de VLAN: Servicio virtual de red. Valor POR FERIA | B47: 3071402 | C47: Servicio de VLAN: Servicio virtual de red. Valor POR FERIA | D47: =IF('FERIAS DE 3 DIAS'!G$3=TRUE,'FERIAS DE 12 A 18 DIAS'!E47/'FERIAS DE 3 DIAS'!I$3,E47) -> 325000 | E47: 325000 | G47: 273109.2437
A48: =CONCATENATE(B48:B549," ",C48:C549) -> 3071430 Extension LAN Valor POR FERIA (Incluye punto de red y aplica para extender el servicio de internet contratado con terceros) | B48: 3071430 | C48: Extension LAN Valor POR FERIA (Incluye punto de red y aplica para extender el servicio de internet contratado con terceros) | D48: =IF('FERIAS DE 3 DIAS'!G$3=TRUE,'FERIAS DE 12 A 18 DIAS'!E48/'FERIAS DE 3 DIAS'!I$3,E48) -> 1500000 | E48: 1500000 | G48: 1260504.202
A49: =CONCATENATE(B49:B550," ",C49:C550) -> 3071442 Soporte técnico permanente (Por espacio de 8 horas) de un técnico. Valor DÍARIO | B49: 3071442 | C49: Soporte técnico permanente (Por espacio de 8 horas) de un técnico. Valor DÍARIO | D49: =IF('FERIAS DE 3 DIAS'!G$3=TRUE,'FERIAS DE 12 A 18 DIAS'!E49/'FERIAS DE 3 DIAS'!I$3,E49) -> 205000 | E49: 205000 | G49: 172268.9076
A50: =CONCATENATE(B50:B554," ",C50:C554) -> 3070202 Servicio Telefónico Urbano con Aparato (Incluye consumo local ilimitado) Valor feria de 12 a 18 dias | B50: 3070202 | C50: Servicio Telefónico Urbano con Aparato (Incluye consumo local ilimitado) Valor feria de 12 a 18 dias | D50: =IF('FERIAS DE 3 DIAS'!G$3=TRUE,'FERIAS DE 12 A 18 DIAS'!E50/'FERIAS DE 3 DIAS'!I$3,E50) -> 45000 | E50: 45000 | G50: 37815.12605
A51: =CONCATENATE(B51:B558," ",C51:C558) -> 3070203 Servicio Telefónico Larga Distancia con aparato Valor feria de 12 a 18 dias | B51: 3070203 | C51: Servicio Telefónico Larga Distancia con aparato Valor feria de 12 a 18 dias | D51: =IF('FERIAS DE 3 DIAS'!G$3=TRUE,'FERIAS DE 12 A 18 DIAS'!E51/'FERIAS DE 3 DIAS'!I$3,E51) -> 45000 | E51: 45000 | G51: 37815.12605
A52: =CONCATENATE(B52:B556," ",C52:C556) -> 3070201 Línea Externa no conmutada (Previa solicitud a Etb, Claro, EPM, Colomsat u otro operador) Valor feria de 12 a 18 dias | B52: 3070201 | C52: Línea Externa no conmutada (Previa solicitud a Etb, Claro, EPM, Colomsat u otro operador) Valor feria de 12 a 18 dias | D52: =IF('FERIAS DE 3 DIAS'!G$3=TRUE,'FERIAS DE 12 A 18 DIAS'!E52/'FERIAS DE 3 DIAS'!I$3,E52) -> 121000 | E52: 121000 | G52: 101680.6723
A53: =CONCATENATE(B53:B557," ",C53:C557) -> 3070207 Conexión cableada para Datafono:(No incluye Datafono) | B53: 3070207 | C53: Conexión cableada para Datafono:(No incluye Datafono) | D53: =IF('FERIAS DE 3 DIAS'!G$3=TRUE,'FERIAS DE 12 A 18 DIAS'!E53/'FERIAS DE 3 DIAS'!I$3,E53) -> 107000 | E53: 107000 | G53: 89915.96639
A54: =CONCATENATE(B54:B558," ",C54:C558) -> 3070503 Estantería Polo (Blanco) (200cm x 93cm x 35cm) | B54: 3070503 | C54: Estantería Polo (Blanco) (200cm x 93cm x 35cm) | D54: =IF('FERIAS DE 3 DIAS'!G$3=TRUE,'FERIAS DE 12 A 18 DIAS'!E54/'FERIAS DE 3 DIAS'!I$3,E54) -> 165100 | E54: 165100 | G54: 138739.4958
A55: =CONCATENATE(B55:B559," ",C55:C559) -> 3070503 Estantería Polo (Miel) (200cm x 93cm x 35cm) | B55: 3070503 | C55: Estantería Polo (Miel) (200cm x 93cm x 35cm) | D55: =IF('FERIAS DE 3 DIAS'!G$3=TRUE,'FERIAS DE 12 A 18 DIAS'!E55/'FERIAS DE 3 DIAS'!I$3,E55) -> 165100 | E55: 165100 | G55: 138739.4958
A56: =CONCATENATE(B56:B560," ",C56:C560) -> 3070503 Estantería Polo (Rovere) (200cm x 93cm x 35cm) | B56: 3070503 | C56: Estantería Polo (Rovere) (200cm x 93cm x 35cm) | D56: =IF('FERIAS DE 3 DIAS'!G$3=TRUE,'FERIAS DE 12 A 18 DIAS'!E56/'FERIAS DE 3 DIAS'!I$3,E56) -> 165100 | E56: 165100 | G56: 138739.4958
A57: =CONCATENATE(B57:B561," ",C57:C561) -> 3070503 Estantería Polo (Roble Gris) (200cm x 93cm x 35cm) | B57: 3070503 | C57: Estantería Polo (Roble Gris) (200cm x 93cm x 35cm) | D57: =IF('FERIAS DE 3 DIAS'!G$3=TRUE,'FERIAS DE 12 A 18 DIAS'!E57/'FERIAS DE 3 DIAS'!I$3,E57) -> 165100 | E57: 165100 | G57: 138739.4958
A58: =CONCATENATE(B58:B562," ",C58:C562) -> 3070503 Estantería Polo (OSB) (200cm x 93cm x 35cm) | B58: 3070503 | C58: Estantería Polo (OSB) (200cm x 93cm x 35cm) | D58: =IF('FERIAS DE 3 DIAS'!G$3=TRUE,'FERIAS DE 12 A 18 DIAS'!E58/'FERIAS DE 3 DIAS'!I$3,E58) -> 165100 | E58: 165100 | G58: 138739.4958
A59: =CONCATENATE(B59:B563," ",C59:C563) -> 3070517 Vitrina Mostrador 2E (100cm x 100cm x 40cm) | B59: 3070517 | C59: Vitrina Mostrador 2E (100cm x 100cm x 40cm) | D59: =IF('FERIAS DE 3 DIAS'!G$3=TRUE,'FERIAS DE 12 A 18 DIAS'!E59/'FERIAS DE 3 DIAS'!I$3,E59) -> 194300 | E59: 194300 | G59: =E59/1.19 -> 163277.3109
A60: =CONCATENATE(B60:B564," ",C60:C564) -> 3070518 Vitrina Mostrador Tipo 2 1E (Blanco) (92cm x 90 cm x 40cm) | B60: 3070518 | C60: Vitrina Mostrador Tipo 2 1E (Blanco) (92cm x 90 cm x 40cm) | D60: =IF('FERIAS DE 3 DIAS'!G$3=TRUE,'FERIAS DE 12 A 18 DIAS'!E60/'FERIAS DE 3 DIAS'!I$3,E60) -> 194300 | E60: 194300 | G60: 163277.3109
A61: =CONCATENATE(B61:B556," ",C61:C556) -> 3070518 Vitrina Mostrador Tipo 2 1E (Nacar) (92cm x 90 cm x 40cm) | B61: 3070518 | C61: Vitrina Mostrador Tipo 2 1E (Nacar) (92cm x 90 cm x 40cm) | D61: =IF('FERIAS DE 3 DIAS'!G$3=TRUE,'FERIAS DE 12 A 18 DIAS'!E61/'FERIAS DE 3 DIAS'!I$3,E61) -> 194300 | E61: 194300 | G61: 163277.3109
A62: =CONCATENATE(B62:B557," ",C62:C557) -> 3070521 Perchero básico 1 pedestal (120cm Ancho - Altura) graduable + 5 ganchos | B62: 3070521 | C62: Perchero básico 1 pedestal (120cm Ancho - Altura) graduable + 5 ganchos | D62: =IF('FERIAS DE 3 DIAS'!G$3=TRUE,'FERIAS DE 12 A 18 DIAS'!E62/'FERIAS DE 3 DIAS'!I$3,E62) -> 70300 | E62: 70300 | G62: 59075.63025
A63: =CONCATENATE(B63:B558," ",C63:C558) -> 3070521 Perchero doble 2 pedestal (120cm Ancho-Altura) graduable + 5 ganchos | B63: 3070521 | C63: Perchero doble 2 pedestal (120cm Ancho-Altura) graduable + 5 ganchos | D63: =IF('FERIAS DE 3 DIAS'!G$3=TRUE,'FERIAS DE 12 A 18 DIAS'!E63/'FERIAS DE 3 DIAS'!I$3,E63) -> 81100 | E63: 81100 | G63: 68151.2605
A64: =CONCATENATE(B64:B559," ",C64:C559) -> 3070535 Vitrina Isla 2E (200cm x 50cm x 50cm) | B64: 3070535 | C64: Vitrina Isla 2E (200cm x 50cm x 50cm) | D64: =IF('FERIAS DE 3 DIAS'!G$3=TRUE,'FERIAS DE 12 A 18 DIAS'!E64/'FERIAS DE 3 DIAS'!I$3,E64) -> 225100 | E64: 225100 | G64: 189159.6639
A65: =CONCATENATE(B65:B560," ",C65:C560) -> 3070714 Cubo de exhibición (40cm x 40cm x 25cm) | B65: 3070714 | C65: Cubo de exhibición (40cm x 40cm x 25cm) | D65: =IF('FERIAS DE 3 DIAS'!G$3=TRUE,'FERIAS DE 12 A 18 DIAS'!E65/'FERIAS DE 3 DIAS'!I$3,E65) -> 32400 | E65: 32400 | G65: 27226.89076
A66: =CONCATENATE(B66:B561," ",C66:C561) -> 3070936 Mesón plegable plástico (Gris o blanco) (73cm x 182cm x 76cm) | B66: 3070936 | C66: Mesón plegable plástico (Gris o blanco) (73cm x 182cm x 76cm) | D66: =IF('FERIAS DE 3 DIAS'!G$3=TRUE,'FERIAS DE 12 A 18 DIAS'!E66/'FERIAS DE 3 DIAS'!I$3,E66) -> 94900 | E66: 94900 | G66: 79747.89916
A67: =CONCATENATE(B67:B562," ",C67:C562) -> 3070954 Counter Mónaco (Blanco) (100cm x 100cm x 30cm) | B67: 3070954 | C67: Counter Mónaco (Blanco) (100cm x 100cm x 30cm) | D67: =IF('FERIAS DE 3 DIAS'!G$3=TRUE,'FERIAS DE 12 A 18 DIAS'!E67/'FERIAS DE 3 DIAS'!I$3,E67) -> 155400 | E67: 155400 | G67: 130588.2353
A68: =CONCATENATE(B68:B563," ",C68:C563) -> 3070954 Counter Mónaco (Miel) (100cm x 100cm x 30cm) | B68: 3070954 | C68: Counter Mónaco (Miel) (100cm x 100cm x 30cm) | D68: =IF('FERIAS DE 3 DIAS'!G$3=TRUE,'FERIAS DE 12 A 18 DIAS'!E68/'FERIAS DE 3 DIAS'!I$3,E68) -> 155400 | E68: 155400 | G68: 130588.2353
A69: =CONCATENATE(B69:B564," ",C69:C564) -> 3070954 Counter Mónaco (Rovere) (100cm x 100cm x 30cm) | B69: 3070954 | C69: Counter Mónaco (Rovere) (100cm x 100cm x 30cm) | D69: =IF('FERIAS DE 3 DIAS'!G$3=TRUE,'FERIAS DE 12 A 18 DIAS'!E69/'FERIAS DE 3 DIAS'!I$3,E69) -> 155400 | E69: 155400 | G69: 130588.2353
A70: =CONCATENATE(B70:B565," ",C70:C565) -> 3070954 Counter Mónaco (Roble Gris) (100cm x 100cm x 30cm) | B70: 3070954 | C70: Counter Mónaco (Roble Gris) (100cm x 100cm x 30cm) | D70: =IF('FERIAS DE 3 DIAS'!G$3=TRUE,'FERIAS DE 12 A 18 DIAS'!E70/'FERIAS DE 3 DIAS'!I$3,E70) -> 155400 | E70: 155400 | G70: 130588.2353
A71: =CONCATENATE(B71:B566," ",C71:C566) -> 3070955 Pedestal rectangular 90cm (90cm x 30cm x 30cm) | B71: 3070955 | C71: Pedestal rectangular 90cm (90cm x 30cm x 30cm) | D71: =IF('FERIAS DE 3 DIAS'!G$3=TRUE,'FERIAS DE 12 A 18 DIAS'!E71/'FERIAS DE 3 DIAS'!I$3,E71) -> 40800 | E71: 40800 | G71: 34285.71429
A72: =CONCATENATE(B72:B567," ",C72:C567) -> 3070956 Pedestal rectangular 60cm (60cm x 30cm x 30cm) | B72: 3070956 | C72: Pedestal rectangular 60cm (60cm x 30cm x 30cm) | D72: =IF('FERIAS DE 3 DIAS'!G$3=TRUE,'FERIAS DE 12 A 18 DIAS'!E72/'FERIAS DE 3 DIAS'!I$3,E72) -> 36000 | E72: 36000 | G72: 30252.10084
A73: =CONCATENATE(B73:B568," ",C73:C568) -> 3070957 Pedestal cuadrado (30cm x 30cm x 30cm) | B73: 3070957 | C73: Pedestal cuadrado (30cm x 30cm x 30cm) | D73: =IF('FERIAS DE 3 DIAS'!G$3=TRUE,'FERIAS DE 12 A 18 DIAS'!E73/'FERIAS DE 3 DIAS'!I$3,E73) -> 31200 | E73: 31200 | G73: 26218.48739
A74: =CONCATENATE(B74:B569," ",C74:C569) -> 3071006 Silla Interlocutora Negra (79cm x 53cm x 42cm) | B74: 3071006 | C74: Silla Interlocutora Negra (79cm x 53cm x 42cm) | D74: =IF('FERIAS DE 3 DIAS'!G$3=TRUE,'FERIAS DE 12 A 18 DIAS'!E74/'FERIAS DE 3 DIAS'!I$3,E74) -> 44900 | E74: 44900 | G74: 37731.09244
A75: =CONCATENATE(B75:B570," ",C75:C570) -> 3071008 Silla estandar Tipo Huevo (48cm x 46cm x 45cm) | B75: 3071008 | C75: Silla estandar Tipo Huevo (48cm x 46cm x 45cm) | D75: =IF('FERIAS DE 3 DIAS'!G$3=TRUE,'FERIAS DE 12 A 18 DIAS'!E75/'FERIAS DE 3 DIAS'!I$3,E75) -> 62500 | E75: 62500 | G75: 52521.0084
A76: =CONCATENATE(B76:B571," ",C76:C571) -> 3071013 Sofa Victoria derecho (70cm x 100cm x 75cm) | B76: 3071013 | C76: Sofa Victoria derecho (70cm x 100cm x 75cm) | D76: =IF('FERIAS DE 3 DIAS'!G$3=TRUE,'FERIAS DE 12 A 18 DIAS'!E76/'FERIAS DE 3 DIAS'!I$3,E76) -> 165200 | E76: 165200 | G76: 138823.5294
A77: =CONCATENATE(B77:B572," ",C77:C572) -> 3071022 Silla Neumatica alta Versalles (80cm x 40 cm x 40cm) | B77: 3071022 | C77: Silla Neumatica alta Versalles (80cm x 40 cm x 40cm) | D77: =IF('FERIAS DE 3 DIAS'!G$3=TRUE,'FERIAS DE 12 A 18 DIAS'!E77/'FERIAS DE 3 DIAS'!I$3,E77) -> 94500 | E77: 94500 | G77: 79411.76471
A78: =CONCATENATE(B78:B573," ",C78:C573) -> 3071023 Sofa Victoria izquierdo (70cm x 100cm x 75cm) | B78: 3071023 | C78: Sofa Victoria izquierdo (70cm x 100cm x 75cm) | D78: =IF('FERIAS DE 3 DIAS'!G$3=TRUE,'FERIAS DE 12 A 18 DIAS'!E78/'FERIAS DE 3 DIAS'!I$3,E78) -> 165200 | E78: 165200 | G78: 138823.5294
A79: =CONCATENATE(B79:B574," ",C79:C574) -> 3071031 Sofa Terranova 2 cuerpos (88cm x 173cm x 80cm) | B79: 3071031 | C79: Sofa Terranova 2 cuerpos (88cm x 173cm x 80cm) | D79: =IF('FERIAS DE 3 DIAS'!G$3=TRUE,'FERIAS DE 12 A 18 DIAS'!E79/'FERIAS DE 3 DIAS'!I$3,E79) -> 203400 | E79: 203400 | G79: 170924.3697
A80: =CONCATENATE(B80:B575," ",C80:C575) -> 3071036 Mesa plegable plastico + 2 sillas interlocutoras negras | B80: 3071036 | C80: Mesa plegable plastico + 2 sillas interlocutoras negras | D80: =IF('FERIAS DE 3 DIAS'!G$3=TRUE,'FERIAS DE 12 A 18 DIAS'!E80/'FERIAS DE 3 DIAS'!I$3,E80) -> 172800 | E80: 172800 | G80: 145210.084
A81: =CONCATENATE(B81:B576," ",C81:C576) -> 3071039 Mesa alta Daysa + 2 sillas neumaticas altas marsella | B81: 3071039 | C81: Mesa alta Daysa + 2 sillas neumaticas altas marsella | D81: =IF('FERIAS DE 3 DIAS'!G$3=TRUE,'FERIAS DE 12 A 18 DIAS'!E81/'FERIAS DE 3 DIAS'!I$3,E81) -> 224300 | E81: 224300 | G81: 188487.395
A82: =CONCATENATE(B82:B577," ",C82:C577) -> 3071054 Mesa estandar lotus vidrio + 2 sillas tipo huevo | B82: 3071054 | C82: Mesa estandar lotus vidrio + 2 sillas tipo huevo | D82: =IF('FERIAS DE 3 DIAS'!G$3=TRUE,'FERIAS DE 12 A 18 DIAS'!E82/'FERIAS DE 3 DIAS'!I$3,E82) -> 247000 | E82: 247000 | G82: 207563.0252
A83: =CONCATENATE(B83:B578," ",C83:C578) -> 3071059 Poltrona Levis (73cm x 86cm x 73cm) | B83: 3071059 | C83: Poltrona Levis (73cm x 86cm x 73cm) | D83: =IF('FERIAS DE 3 DIAS'!G$3=TRUE,'FERIAS DE 12 A 18 DIAS'!E83/'FERIAS DE 3 DIAS'!I$3,E83) -> 179500 | E83: 179500 | G83: 150840.3361
A84: =CONCATENATE(B84:B579," ",C84:C579) -> 3071061 Silla estandar Suiza (48cm x 46cm x 45cm) | B84: 3071061 | C84: Silla estandar Suiza (48cm x 46cm x 45cm) | D84: =IF('FERIAS DE 3 DIAS'!G$3=TRUE,'FERIAS DE 12 A 18 DIAS'!E84/'FERIAS DE 3 DIAS'!I$3,E84) -> 62500 | E84: 62500 | G84: 52521.0084
A85: =CONCATENATE(B85:B580," ",C85:C580) -> 3071068 Mesa Centro Rectangular doble nivel (Blanco) (50cm x 75cm x 50cm) | B85: 3071068 | C85: Mesa Centro Rectangular doble nivel (Blanco) (50cm x 75cm x 50cm) | D85: =IF('FERIAS DE 3 DIAS'!G$3=TRUE,'FERIAS DE 12 A 18 DIAS'!E85/'FERIAS DE 3 DIAS'!I$3,E85) -> 77500 | E85: 77500 | G85: 65126.05042
A86: =CONCATENATE(B86:B581," ",C86:C581) -> 3071077 Silla Neumática alta Marsella (80cm x 40cm x 40cm) | B86: 3071077 | C86: Silla Neumática alta Marsella (80cm x 40cm x 40cm) | D86: =IF('FERIAS DE 3 DIAS'!G$3=TRUE,'FERIAS DE 12 A 18 DIAS'!E86/'FERIAS DE 3 DIAS'!I$3,E86) -> 75200 | E86: 75200 | G86: 63193.27731
A87: =CONCATENATE(B87:B582," ",C87:C582) -> 3071081 Silla Ejecutiva Cuero (57cm x 93cm x 52cm) | B87: 3071081 | C87: Silla Ejecutiva Cuero (57cm x 93cm x 52cm) | D87: =IF('FERIAS DE 3 DIAS'!G$3=TRUE,'FERIAS DE 12 A 18 DIAS'!E87/'FERIAS DE 3 DIAS'!I$3,E87) -> 68400 | E87: 68400 | G87: 57478.9916
A88: =CONCATENATE(B88:B583," ",C88:C583) -> 3071081 Silla Ejecutiva Malla (100cm x 57cm x 52 cm) | B88: 3071081 | C88: Silla Ejecutiva Malla (100cm x 57cm x 52 cm) | D88: =IF('FERIAS DE 3 DIAS'!G$3=TRUE,'FERIAS DE 12 A 18 DIAS'!E88/'FERIAS DE 3 DIAS'!I$3,E88) -> 140800 | E88: 140800 | G88: 118319.3277
A89: =CONCATENATE(B89:B584," ",C89:C584) -> 3071083 Sofa Toronto 3 cuerpos (88cm x 173cm x 80cm) | B89: 3071083 | C89: Sofa Toronto 3 cuerpos (88cm x 173cm x 80cm) | D89: =IF('FERIAS DE 3 DIAS'!G$3=TRUE,'FERIAS DE 12 A 18 DIAS'!E89/'FERIAS DE 3 DIAS'!I$3,E89) -> 203400 | E89: 203400 | G89: 170924.3697
A90: =CONCATENATE(B90:B585," ",C90:C585) -> 3071085 Sofa Otawa 2 cuerpos (85cm x 120cm x 76cm) | B90: 3071085 | C90: Sofa Otawa 2 cuerpos (85cm x 120cm x 76cm) | D90: =IF('FERIAS DE 3 DIAS'!G$3=TRUE,'FERIAS DE 12 A 18 DIAS'!E90/'FERIAS DE 3 DIAS'!I$3,E90) -> 191500 | E90: 191500 | G90: 160924.3697
A91: =CONCATENATE(B91:B586," ",C91:C586) -> 3071090 Puff estandar cuadrado (43cm x 43cm x 43cm) | B91: 3071090 | C91: Puff estandar cuadrado (43cm x 43cm x 43cm) | D91: =IF('FERIAS DE 3 DIAS'!G$3=TRUE,'FERIAS DE 12 A 18 DIAS'!E91/'FERIAS DE 3 DIAS'!I$3,E91) -> 50100 | E91: 50100 | G91: 42100.84034
A92: =CONCATENATE(B92:B587," ",C92:C587) -> 3071091 Puff Trunk 2 cuerpos (48cm x 81cm x 40cm) | B92: 3071091 | C92: Puff Trunk 2 cuerpos (48cm x 81cm x 40cm) | D92: =IF('FERIAS DE 3 DIAS'!G$3=TRUE,'FERIAS DE 12 A 18 DIAS'!E92/'FERIAS DE 3 DIAS'!I$3,E92) -> 95800 | E92: 95800 | G92: 80504.20168
A93: =CONCATENATE(B93:B588," ",C93:C588) -> 3071093 Mesa alta Daysa vidrio (100cm x 60cm) | B93: 3071093 | C93: Mesa alta Daysa vidrio (100cm x 60cm) | D93: =IF('FERIAS DE 3 DIAS'!G$3=TRUE,'FERIAS DE 12 A 18 DIAS'!E93/'FERIAS DE 3 DIAS'!I$3,E93) -> 107700 | E93: 107700 | G93: 90504.20168
A94: =CONCATENATE(B94:B589," ",C94:C589) -> 3071095 Sala VIP (1 sofá Victoria derecho, 1 sofá Victoria izquierdo, 2 poltronas, 1 mesa centro cuadrada 2 niveles) | B94: 3071095 | C94: Sala VIP (1 sofá Victoria derecho, 1 sofá Victoria izquierdo, 2 poltronas, 1 mesa centro cuadrada 2 niveles) | D94: =IF('FERIAS DE 3 DIAS'!G$3=TRUE,'FERIAS DE 12 A 18 DIAS'!E94/'FERIAS DE 3 DIAS'!I$3,E94) -> 626400 | E94: 626400 | G94: 526386.5546
A95: =CONCATENATE(B95:B589," ",C95:C589) -> 3071097 Mesa estandar Daysa (76cm x 60cm) | B95: 3071097 | C95: Mesa estandar Daysa (76cm x 60cm) | D95: =IF('FERIAS DE 3 DIAS'!G$3=TRUE,'FERIAS DE 12 A 18 DIAS'!E95/'FERIAS DE 3 DIAS'!I$3,E95) -> 95800 | E95: 95800 | G95: 80504.20168
A96: =CONCATENATE(B96:B590," ",C96:C590) -> 3071098 Mesa estandar Shia (Blanco) (76cm x 60cm x 60cm) | B96: 3071098 | C96: Mesa estandar Shia (Blanco) (76cm x 60cm x 60cm) | D96: =IF('FERIAS DE 3 DIAS'!G$3=TRUE,'FERIAS DE 12 A 18 DIAS'!E96/'FERIAS DE 3 DIAS'!I$3,E96) -> 95800 | E96: 95800 | G96: 80504.20168
A97: =CONCATENATE(B97:B591," ",C97:C591) -> 3071098 Mesa estandar Shia (Negra) (76cm x 60cm x 60cm) | B97: 3071098 | C97: Mesa estandar Shia (Negra) (76cm x 60cm x 60cm) | D97: =IF('FERIAS DE 3 DIAS'!G$3=TRUE,'FERIAS DE 12 A 18 DIAS'!E97/'FERIAS DE 3 DIAS'!I$3,E97) -> 95800 | E97: 95800 | G97: 80504.20168
A98: =CONCATENATE(B98:B592," ",C98:C592) -> 3071100 Mesa Centro Circular doble nivel (Blanco) (50cm x 110cm x 60cm) | B98: 3071100 | C98: Mesa Centro Circular doble nivel (Blanco) (50cm x 110cm x 60cm) | D98: =IF('FERIAS DE 3 DIAS'!G$3=TRUE,'FERIAS DE 12 A 18 DIAS'!E98/'FERIAS DE 3 DIAS'!I$3,E98) -> 106600 | E98: 106600 | G98: 89579.83193
A99: =CONCATENATE(B99:B593," ",C99:C593) -> 3071103 Nevera Minibar 121 LT (48.5cm X 85.1cm X 60cm) | B99: 3071103 | C99: Nevera Minibar 121 LT (48.5cm X 85.1cm X 60cm) | D99: =IF('FERIAS DE 3 DIAS'!G$3=TRUE,'FERIAS DE 12 A 18 DIAS'!E99/'FERIAS DE 3 DIAS'!I$3,E99) -> 184600 | E99: 184600 | G99: 155126.0504
A100: =CONCATENATE(B100:B594," ",C100:C594) -> 3071103 Nevera Estandar 230LT ( 55.6cm X 157.6cm X 67cm) | B100: 3071103 | C100: Nevera Estandar 230LT ( 55.6cm X 157.6cm X 67cm) | D100: =IF('FERIAS DE 3 DIAS'!G$3=TRUE,'FERIAS DE 12 A 18 DIAS'!E100/'FERIAS DE 3 DIAS'!I$3,E100) -> 272300 | E100: 272300 | G100: 228823.5294
A101: =CONCATENATE(B101:B595," ",C101:C595) -> 3071104 Mesa Centro Cuadrada 2 Niveles (Blanco) (50cm x 60cm x 60) | B101: 3071104 | C101: Mesa Centro Cuadrada 2 Niveles (Blanco) (50cm x 60cm x 60) | D101: =IF('FERIAS DE 3 DIAS'!G$3=TRUE,'FERIAS DE 12 A 18 DIAS'!E101/'FERIAS DE 3 DIAS'!I$3,E101) -> 77500 | E101: 77500 | G101: 65126.05042
A102: =CONCATENATE(B102:B596," ",C102:C596) -> 3071105 KIT básico oficina 2 (2 sillas interlocutoras negras, 1 silla ejecutiva cuero, 1 mesa oficina) | B102: 3071105 | C102: KIT básico oficina 2 (2 sillas interlocutoras negras, 1 silla ejecutiva cuero, 1 mesa oficina) | D102: =IF('FERIAS DE 3 DIAS'!G$3=TRUE,'FERIAS DE 12 A 18 DIAS'!E102/'FERIAS DE 3 DIAS'!I$3,E102) -> 215400 | E102: 215400 | G102: 181008.4034
A103: =CONCATENATE(B103:B597," ",C103:C597) -> 3071108 Estantería Shelf 4E (190cm x 100cm x 30cm) | B103: 3071108 | C103: Estantería Shelf 4E (190cm x 100cm x 30cm) | D103: =IF('FERIAS DE 3 DIAS'!G$3=TRUE,'FERIAS DE 12 A 18 DIAS'!E103/'FERIAS DE 3 DIAS'!I$3,E103) -> 137600 | E103: 137600 | G103: 115630.2521
A104: =CONCATENATE(B104:B598," ",C104:C598) -> 3071111 Vitrina Rectangular 2E (200cm x 100cm x 40cm) | B104: 3071111 | C104: Vitrina Rectangular 2E (200cm x 100cm x 40cm) | D104: =IF('FERIAS DE 3 DIAS'!G$3=TRUE,'FERIAS DE 12 A 18 DIAS'!E104/'FERIAS DE 3 DIAS'!I$3,E104) -> 260200 | E104: 260200 | G104: 218655.4622
A105: =CONCATENATE(B105:B599," ",C105:C599) -> 3071113 Sala Osaka (1 sofá Toronto, 2 puffs Donna, 1 mesa centro cuadrada 2 niveles) | B105: 3071113 | C105: Sala Osaka (1 sofá Toronto, 2 puffs Donna, 1 mesa centro cuadrada 2 niveles) | D105: =IF('FERIAS DE 3 DIAS'!G$3=TRUE,'FERIAS DE 12 A 18 DIAS'!E105/'FERIAS DE 3 DIAS'!I$3,E105) -> 418600 | E105: 418600 | G105: 351764.7059
A106: =CONCATENATE(B106:B600," ",C106:C600) -> 3071114 Puff Trunk 3 cuerpos (46cm x 120cm x 54cm) | B106: 3071114 | C106: Puff Trunk 3 cuerpos (46cm x 120cm x 54cm) | D106: =IF('FERIAS DE 3 DIAS'!G$3=TRUE,'FERIAS DE 12 A 18 DIAS'!E106/'FERIAS DE 3 DIAS'!I$3,E106) -> 95800 | E106: 95800 | G106: 80504.20168
A107: =CONCATENATE(B107:B601," ",C107:C601) -> 3071115 Mesa alta Daysa (Blanco) (100cm x 60cm) | B107: 3071115 | C107: Mesa alta Daysa (Blanco) (100cm x 60cm) | D107: =IF('FERIAS DE 3 DIAS'!G$3=TRUE,'FERIAS DE 12 A 18 DIAS'!E107/'FERIAS DE 3 DIAS'!I$3,E107) -> 95800 | E107: 95800 | G107: 80504.20168
A108: =CONCATENATE(B108:B602," ",C108:C602) -> 3071115 Mesa alta Daysa (Miel) (100cm x 60cm) | B108: 3071115 | C108: Mesa alta Daysa (Miel) (100cm x 60cm) | D108: =IF('FERIAS DE 3 DIAS'!G$3=TRUE,'FERIAS DE 12 A 18 DIAS'!E108/'FERIAS DE 3 DIAS'!I$3,E108) -> 95800 | E108: 95800 | G108: 80504.20168
A109: =CONCATENATE(B109:B603," ",C109:C603) -> 3071115 Mesa alta Daysa (Rovere) (100cm x 60cm) | B109: 3071115 | C109: Mesa alta Daysa (Rovere) (100cm x 60cm) | D109: =IF('FERIAS DE 3 DIAS'!G$3=TRUE,'FERIAS DE 12 A 18 DIAS'!E109/'FERIAS DE 3 DIAS'!I$3,E109) -> 95800 | E109: 95800 | G109: 80504.20168
A110: =CONCATENATE(B110:B604," ",C110:C604) -> 3071115 Mesa alta Daysa (Roble Gris) (100cm x 60cm) | B110: 3071115 | C110: Mesa alta Daysa (Roble Gris) (100cm x 60cm) | D110: =IF('FERIAS DE 3 DIAS'!G$3=TRUE,'FERIAS DE 12 A 18 DIAS'!E110/'FERIAS DE 3 DIAS'!I$3,E110) -> 95800 | E110: 95800 | G110: 80504.20168
A111: =CONCATENATE(B111:B605," ",C111:C605) -> 3071116 Mesa estandar Lotus (70cm x 64cm x 81cm) | B111: 3071116 | C111: Mesa estandar Lotus (70cm x 64cm x 81cm) | D111: =IF('FERIAS DE 3 DIAS'!G$3=TRUE,'FERIAS DE 12 A 18 DIAS'!E111/'FERIAS DE 3 DIAS'!I$3,E111) -> 143500 | E111: 143500 | G111: 120588.2353
A112: =CONCATENATE(B112:B606," ",C112:C606) -> 3071302 Papelera plastica negra | B112: 3071302 | C112: Papelera plastica negra | D112: =IF('FERIAS DE 3 DIAS'!G$3=TRUE,'FERIAS DE 12 A 18 DIAS'!E112/'FERIAS DE 3 DIAS'!I$3,E112) -> 23000 | E112: 23000 | G112: 19327.73109
A113: =CONCATENATE(B113:B607," ",C113:C607) -> 3071325 Poste separador 120cm de alto | B113: 3071325 | C113: Poste separador 120cm de alto | D113: =IF('FERIAS DE 3 DIAS'!G$3=TRUE,'FERIAS DE 12 A 18 DIAS'!E113/'FERIAS DE 3 DIAS'!I$3,E113) -> 44000 | E113: 44000 | G113: 36974.78992
A114: =CONCATENATE(B114:B608," ",C114:C608) -> 3071370 Revistero plegable (140cm x 25cm x 29cm) | B114: 3071370 | C114: Revistero plegable (140cm x 25cm x 29cm) | D114: =IF('FERIAS DE 3 DIAS'!G$3=TRUE,'FERIAS DE 12 A 18 DIAS'!E114/'FERIAS DE 3 DIAS'!I$3,E114) -> 71300 | E114: 71300 | G114: 59915.96639
